Workbook

Sheet Report Timeline
A1: The following list of reports are needed to update the workload analysis | I1: Total Potential CATS Problem Hours
A3: ="The data exported from CATS and eFACTS is between " & Data_Date_Range -> The data exported from CATS and eFACTS is between 01/01/2014 and 12/31/2014
I4: ='CATS - Problem Records'!I3 -> 4986.77
A5: # | B5: Report Name | C5: Start Date | D5: Due Date | E5: Completion Date | F5: Days Till Due
D6: Date | E6: Date
A7: 1 | B7: Run New Workload Analysis | C7: 2015-04-01 | D7: 2015-04-20 | E7: =IF(E30="","",E30) ->  | F7: =IF(E7="",IF(D7="","",IF(C7="","No Start Date",D7-NOW())),"Completed") -> -7.385466782 | G7: The first 24 items are fixed and can not be changed or moved.
A8: =IF(OR(B7 ="", B8=""),"",+A7+1) -> 2 | B8: Create Snapshot | C8: 2015-04-06 | E8: 2015-04-06 | F8: Completed
A9: =IF(OR(B8 ="", B9=""),"",+A8+1) -> 3 | B9: Enter FTE (Constants TAB) | C9: 2015-04-06 | D9: 2015-04-13 | E9: 2015-04-07 | F9: Completed
A10: 4 | B10: Enter Date of Report (Constants TAB) | C10: 2015-04-06 | D10: 2015-04-13 | F10: -14.38546678
A11: 5 | B11: Enter Hrs/ Blasting Inspection (Constants TAB) | C11: 2015-04-06 | D11: 2015-04-13 | F11: -14.38546678
A12: 6 | B12: Enter Number of Persons Managed (Constants TAB) | C12: 2015-04-06 | D12: 2015-04-13 | F12: -14.38546678
A13: 7 | B13: Enter Clerical Staff Support Ratio (Constants TAB) | C13: 2015-04-06 | D13: 2015-04-13 | F13: -14.38546678
A14: 8 | B14: Enter IT Staff Support Ratio (Constants TAB) | C14: 2015-04-06 | D14: 2015-04-13 | F14: -14.38546678
A15: 9 | B15: Review CATS Activity Code Groups (Constants TAB) | C15: 2015-04-06 | D15: 2015-04-13 | F15: -14.38546678
A16: 10 | B16: Enter TMDL Man Hours Assigned (TMDL Tab) | C16: 2015-04-06 | D16: 2015-04-13 | F16: -14.38546678
A17: 11 | B17: Request Number of Long Wall Pannels (California) (Constants TAB) | D17: =IF(C17="","",C17+7) -> 
A18: 12 | B18: Request Current Org Charts (Central Office)
A19: 13 | B19: Request Supported Out-Bureau numbers (Clerical Supvs)
A20: 14 | B20: Request List of Current Activity Codes (excel)
A21: 15 | B21: Request List of Current Work Codes (excel)
A22: 16 | B22: Request CATS Extracts (Rhonda)
A23: 17 | B23: Authorizations - Run Duplicate Authorizations Report | C23: 2015-04-06 | D23: 2015-04-13 | E23: 2015-04-06 | F23: Completed
A24: 18 | B24: Authorizations - Remove Duplicate Authorizations From Snapshot Database | C24: 2015-04-06 | D24: 2015-04-13 | F24: -14.38546678
A25: 19 | B25: Authorizations - Export Autorizations - Man Hours Required to Authorizations Tab | C25: =IF(E24="","",E24) ->  | D25: =IF(C25="","",C25+7) ->  | E25: 2015-04-17 | F25: Completed
A26: 20 | B26: Inspections - Download Insperctions From Oracle and Populate all 4 Inspection Tabs | C26: 2015-04-06 | D26: 2015-04-13 | E26: 2015-04-06 | F26: Completed
A27: 21 | B27: Complaints - Download Complaints from Oracle and Export to Complaints Tab | C27: 2015-04-06 | D27: 2015-04-13 | E27: 2015-04-06 | F27: Completed
A28: 22 | B28: CATS Data - Export CATS Times | C28: =IF(OR(E20="",E21="", E22=""),"",MAX(E20,E21,E22)) ->  | D28: =IF(C28="","",C28+3) ->  | E28: 2015-04-07 | F28: Completed
A29: 23 | B29: Update Staffing Input Sheet | C29: 2015-04-06 | D29: 2015-04-13 | F29: -14.38546678
A30: 24 | B30: Print New Workload Analysis Reports | C30: =IF(OR(E8="",E9="",E10="",E11="",E12="",E13="",E14="",E15="",E16="",E17="",E18="",E19="",E20="",E21="",E22="",E23="",E24="",E25="",E26="",,E27="",E28="",E29=""),"",MAX(E8,E9,E10,E11,E12,E13,E14,E15,E16,E17,E18,E19,E20,E21,E22,E23,E24,E25,E26,E27,E28,E29)) ->  | D30: =IF(OR(C30="",D7=""),"",D7) -> 
F31: =IF(E31="",IF(D31="","",IF(C31="","No Start Date",D31-NOW())),"Completed") ->  | G31: Days Till Due Key:
F32: =IF(E32="",IF(D32="","",IF(C32="","No Start Date",D32-NOW())),"Completed") -> 
F33: =IF(E33="",IF(D33="","",IF(C33="","No Start Date",D33-NOW())),"Completed") ->  | G33: Due >3 days
F34: =IF(E34="",IF(D34="","",IF(C34="","No Start Date",D34-NOW())),"Completed") ->  | G34: Due between 1 and 3 days
F35: =IF(E35="",IF(D35="","",IF(C35="","No Start Date",D35-NOW())),"Completed") ->  | G35: Due <= 0 days
B38: * Note: Fileds colored Rose - See Adjacent Cell - may be modified

Sheet Constants
A1: Data Date Range | B1: =D1 & " and " & D2 -> 01/01/2014 and 12/31/2014 | C1: Physical Beginning Date | D1: 01/01/2014 | E1: Clerical Staff Support Ratio | F1: 8 | G1: : 1 | H1: Inspection Man Hours For Surface, Undgrd, Prep, and Refuse Apps | I1: 7.5
A2: Date Of Report | B2: 2015-04-24 | C2: Physical Ending Date | D2: 12/31/2014 | E2: IT Staff Support Ratio | F2: 50 | G2: : 1 | H2: Man Hours For Small IM and Bluestone Apps | I2: 3.5
A3: Full Time Equivalent (FTE) Hrs | B3: 1500 | C3: Number Of LongWall Panels | D3: 7 | E3: Number Of Persons Managed | F3: 7 | G3: : 1 | H3: Man Hours For Large IM Apps | I3: 7.5
A4: Hrs/Blasting Inspection | B4: 3.75 | C4: Duration | E4: Inspection Hrs. For PreApps | F4: 7.5
A5: Activity Code Groups | B5: Activity Code Assignments | C5: Activity Code Colors | D5: To ensure that the CATS records are color coded correctly: 1st indicate the name of the Activity code Group. 2nd indicate or update the Activity Codes assigned to the Group. 3rd highlight the group (Name through Activity Code Colors) and change to the desired color. When the CATS codes are exported each line will be color coded according to the groupings indicated here. If the CATS information has already been exported then the lines will be color coded accordingly
A6: Blasting | B6: 63022, 63023, 63111, 63304 | C6: 44
A7: Permitting | B7: 63001, 63002, 63003, 63004, 63005, 63006, 63007, 63011, 63012, 63015 | C7: 4
A8: MSI | B8: 63400, 63401, 63403 | C8: 40
A9: Inspections | B9: 63100, 63102, 63306, 63311 | C9: 35
A10: Misc | B10: 63000, 63108, 63112, 63200 | C10: 3
A11: Clerical | B11: 63700, 63701, 63705 | C11: 8
A12: TMDL | B12: 63602 | C12: 1
C13: =IF(A13="","",showColorIndex(A13)) -> 

Sheet Staffing
C2: Current DMO Staffing Levels by District Office
C3: =IF(Date_Of_Report=0,"No Date Of Report Entered",Date_Of_Report) -> 2015-04-24
C4: POSITIONS | D4: California | F4: Cambria | H4: Greensburg | J4: Knox | L4: Moshannon | N4: Pottsville | P4: TOTALS | R4: 1
A5: Counts | D5: Authorized | E5: Filled | F5: Authorized | G5: Filled | H5: Authorized | I5: Filled | J5: Authorized | K5: Filled | L5: Authorized | M5: Filled | N5: Authorized | O5: Filled | P5: Authorized | Q5: Filled | R5: =R4+1 -> 2
A6: 1st | B6: 2nd | R6: =R5+1 -> 3
D7: California | F7: Cambria | H7: Greensburg | J7: Knox | L7: Moshannon | N7: Pottsville | P7: TOTALS | R7: 4
C8: Management/Supervisory Positions | R8: 5
C9: District Mining Manager | D9: 1 | E9: 1 | F9: 1 | G9: 1 | H9: 1 | I9: 1 | J9: 1 | K9: 1 | L9: 1 | M9: 1 | N9: 1 | O9: 1 | P9: =SUM(D9,F9,H9,J9,L9,N9) -> 6 | Q9: =SUM(E9,G9,I9,K9,M9,O9) -> 6 | R9: 6
A10: PS | C10: Permits Chief | D10: 1 | E10: 1 | F10: 1 | G10: 1 | H10: 1 | I10: 1 | J10: 1 | K10: 1 | L10: 1 | M10: 1 | N10: 1 | O10: 1 | P10: =SUM(D10,F10,H10,J10,L10,N10) -> 6 | Q10: =SUM(E10,G10,I10,K10,M10,O10) -> 6 | R10: 7
A11: CS | C11: Monitoring & Compliance Manager | D11: 1 | E11: 1 | F11: 0 | G11: 0 | H11: 0 | I11: 0 | J11: 1 | K11: 1 | L11: 0 | M11: 0 | N11: 0 | O11: 0 | P11: 2 | Q11: 2 | R11: 8
C12: Watershed Manager | D12: 0 | E12: 0 | F12: 1 | G12: 1 | H12: 1 | I12: 1 | J12: 0 | K12: 0 | L12: 1 | M12: 1 | N12: 1 | O12: 1 | P12: 4 | Q12: 4 | R12: 9
A13: PS | C13: Hydro Supervisor | D13: 1 | E13: 1 | F13: 0 | G13: 0 | H13: 0 | I13: 0 | J13: 0 | K13: 0 | L13: 0 | M13: 0 | N13: 0 | O13: 0 | P13: 1 | Q13: 1 | R13: 10
A14: PS | C14: Mining Permit & Comp Spec (Permits Supervisory) | D14: 0 | E14: 0 | F14: 0 | G14: 0 | H14: 0 | I14: 0 | J14: 0 | K14: 0 | L14: 0 | M14: 0 | N14: 0 | O14: 0 | P14: 0 | Q14: 0 | R14: 11
A15: CS | C15: Mining Permit & Comp Spec (Compliance Supervisory) | D15: 1 | E15: 1 | F15: 1 | G15: 1 | H15: 1 | I15: 1 | J15: 0 | K15: 0 | L15: 0 | M15: 0 | N15: 0 | O15: 0 | P15: 3 | Q15: 3 | R15: 12
A16: CLS | C16: Administrative Officer | D16: 0 | E16: 0 | F16: 1 | G16: 1 | H16: 0 | I16: 0 | J16: 0 | K16: 0 | L16: 0 | M16: 0 | N16: 0 | O16: 0 | P16: 1 | Q16: 1 | R16: 13
A17: CS | B17: SMCIS | C17: SMCI Supervisor | D17: 1 | E17: 1 | F17: 2 | G17: 2 | H17: 2 | I17: 2 | J17: 2 | K17: 2 | L17: 2 | M17: 2 | N17: 3 | O17: 3 | P17: 12 | Q17: 12 | R17: 14
A18: CLS | C18: Clerical Supervisor | D18: 1 | E18: 1 | F18: 0 | G18: 0 | H18: 1 | I18: 1 | J18: 1 | K18: 1 | L18: 1 | M18: 1 | N18: 1 | O18: 1 | P18: 5 | Q18: 5 | R18: 15
A19: MSIS | C19: MSI Chief | D19: 1 | E19: 1 | F19: 0 | G19: 0 | H19: 0 | I19: 0 | J19: 0 | K19: 0 | L19: 0 | M19: 0 | N19: 0 | O19: 0 | P19: 1 | Q19: 1 | R19: 16
A20: MSIS | C20: Min Res Prog Spec (MSI) | D20: 1 | E20: 1 | F20: 0 | G20: 0 | H20: 0 | I20: 0 | J20: 0 | K20: 0 | L20: 0 | M20: 0 | N20: 0 | O20: 0 | P20: 1 | Q20: 1 | R20: 17
A21: MSIS | C21: Management Tech (MSI) | D21: 1 | E21: 1 | F21: 0 | G21: 0 | H21: 0 | I21: 0 | J21: 0 | K21: 0 | L21: 0 | M21: 0 | N21: 0 | O21: 0 | P21: 1 | Q21: 1 | R21: 18
A22: MSIS | C22: MSI Program Supervisor | D22: 1 | E22: 1 | F22: 0 | G22: 0 | H22: 0 | I22: 0 | J22: 0 | K22: 0 | L22: 0 | M22: 0 | N22: 0 | O22: 0 | P22: 1 | Q22: 1 | R22: 19
A23: MSIS | C23: Mining Permit & Comp Spec (MSI) | D23: 1 | E23: 1 | F23: 0 | G23: 0 | H23: 0 | I23: 0 | J23: 0 | K23: 0 | L23: 0 | M23: 0 | N23: 0 | O23: 0 | P23: 1 | Q23: 1 | R23: 20
C24: DMO Management/Supervisory Positions SubTotal | D24: =SUM(D9:D18) -> 7 | E24: =SUM(E9:E18) -> 7 | F24: 7 | G24: 7 | H24: 7 | I24: 7 | J24: 6 | K24: 6 | L24: 6 | M24: 6 | N24: 7 | O24: 7 | P24: 40 | Q24: 40 | R24: 21
C25: MSI Management/Supervisory Positions SubTotal | D25: =SUM(D19:D23) -> 5 | E25: 5 | F25: 0 | G25: 0 | H25: 0 | I25: 0 | J25: 0 | K25: 0 | L25: 0 | M25: 0 | N25: 0 | O25: 0 | P25: =+N25+H25+L25+J25+F25+D25 -> 5 | Q25: =+O25+I25+M25+K25+G25+E25 -> 5 | R25: 22
C26: Management/Supervisory Positions Total | D26: =SUM(D24:D25) -> 12 | E26: 12 | F26: 7 | G26: 7 | H26: 7 | I26: 7 | J26: 6 | K26: 6 | L26: 6 | M26: 6 | N26: 7 | O26: 7 | P26: =+N26+H26+L26+J26+F26+D26 -> 45 | Q26: =+O26+I26+M26+K26+G26+E26 -> 45 | R26: 23
C27: Non-supervisory Positions | R27: 24
C28: Info Tech Gen | D28: 1 | E28: 1 | F28: 1 | G28: 0 | H28: 1 | I28: 0 | J28: 1 | K28: 0 | L28: 0 | M28: 0 | N28: 1 | O28: 0 | P28: =SUM(D28,F28,H28,J28,L28,N28) -> 5 | Q28: =SUM(E28,G28,I28,K28,M28,O28) -> 1 | R28: 25
A29: PNS | C29: Geologist | D29: 5 | E29: 5 | F29: 5 | G29: 5 | H29: 5 | I29: 5 | J29: 3 | K29: 3 | L29: 5 | M29: 4 | N29: 4 | O29: 4 | P29: 27 | Q29: 26 | R29: 26
A30: PNS | C30: Engineer | D30: 8 | E30: 8 | F30: 1 | G30: 1 | H30: 1 | I30: 1 | J30: 1 | K30: 1 | L30: 2 | M30: 2 | N30: 3 | O30: 3 | P30: 16 | Q30: 16 | R30: 27
A31: PNS | C31: Mining Spec/Env Trainee (Permits) | D31: 0 | E31: 0 | F31: 1 | G31: 0 | H31: 1 | I31: 1 | J31: 0 | K31: 0 | L31: 0 | M31: 0 | N31: 1 | O31: 1 | P31: 3 | Q31: 2 | R31: 28
A32: PNS | C32: Water Pollution Biologist (Permits) | D32: 2 | E32: 2 | F32: 0 | G32: 0 | H32: 0 | I32: 0 | J32: 0 | K32: 0 | L32: 0 | M32: 0 | N32: 0 | O32: 0 | P32: 2 | Q32: 2 | R32: 29
A33: PNS | C33: Mining Permit & Comp Spec (Permits) | D33: 0 | E33: 0 | F33: 0 | G33: 0 | H33: 0 | I33: 0 | J33: 1 | K33: 1 | L33: 1 | M33: 1 | N33: 0 | O33: 0 | P33: 2 | Q33: 2 | R33: 30
A34: CNS | C34: Mining Permit & Comp Spec (Compliance) | D34: 0 | E34: 0 | F34: 0 | G34: 0 | H34: 0 | I34: 0 | J34: 1 | K34: 1 | L34: 1 | M34: 1 | N34: 1 | O34: 1 | P34: 3 | Q34: 3 | R34: 31
A35: PNS | B35: CNS | C35: Forester | D35: 0 | E35: 0 | F35: 0 | G35: 0 | H35: 0 | I35: 0 | J35: 0 | K35: 0 | L35: 0 | M35: 0 | N35: 0 | O35: 0 | P35: 0 | Q35: 0 | R35: 32
A36: PNS | C36: Water Treatment | D36: 0 | E36: 0 | F36: 0 | G36: 0 | H36: 0 | I36: 0 | J36: 0 | K36: 0 | L36: 0 | M36: 0 | N36: 0 | O36: 0 | P36: 0 | Q36: 0 | R36: 33
A37: CNS | B37: SMCINS | C37: SMCI/Mining Spec/Env Trainee (Compliance) | D37: 0 | E37: 0 | F37: 14 | G37: 14 | H37: 11 | I37: 10 | J37: 8 | K37: 7 | L37: 11 | M37: 11 | N37: 16 | O37: 15 | P37: 60 | Q37: 57 | R37: 34
A38: CNS | B38: SMCINS | C38: Surface Subsidence Agent | D38: 4 | E38: 4 | F38: 0 | G38: 0 | H38: 0 | I38: 0 | J38: 0 | K38: 0 | L38: 0 | M38: 0 | N38: 0 | O38: 0 | P38: 4 | Q38: 4 | R38: 35
A39: CNS | C39: Blasting & Explosives Insp | D39: 0 | E39: 0 | F39: 2 | G39: 2 | H39: 2 | I39: 2 | J39: 1 | K39: 1 | L39: 2 | M39: 2 | N39: 4 | O39: 4 | P39: 11 | Q39: 11 | R39: 36
C40: TMDL Position | D40: 0 | E40: 0 | F40: 0 | G40: 0 | H40: 0 | I40: 0 | J40: 1 | K40: 1 | L40: 1 | M40: 0 | N40: 0 | O40: 0 | P40: 2 | Q40: 1 | R40: 37
A41: CNS | C41: Legal Assistant | D41: 1 | E41: 1 | F41: 1 | G41: 1 | H41: 1 | I41: 1 | J41: 0 | K41: 0 | L41: 1 | M41: 1 | N41: 1 | O41: 1 | P41: 5 | Q41: 5 | R41: 38
A42: CLNS | C42: Clerical | D42: 7 | E42: 6 | F42: 5 | G42: 5 | H42: 6 | I42: 6 | J42: 4 | K42: 4 | L42: 6 | M42: 6 | N42: 6 | O42: 6 | P42: 34 | Q42: 33 | R42: 39
A43: MSINS | C43: Engineer (MSI) | D43: 6 | E43: 6 | F43: 0 | G43: 0 | H43: 0 | I43: 0 | J43: 0 | K43: 0 | L43: 0 | M43: 0 | N43: 0 | O43: 0 | P43: 6 | Q43: 6 | R43: 40
A44: MSINS | C44: Mining Spec/Env Trainee (GIS) | D44: 6 | E44: 5 | F44: 0 | G44: 0 | H44: 0 | I44: 0 | J44: 0 | K44: 0 | L44: 0 | M44: 0 | N44: 0 | O44: 0 | P44: 6 | Q44: 5 | R44: 41
A45: MSINS | C45: MSI Claims Rep | D45: 4 | E45: 4 | F45: 0 | G45: 0 | H45: 0 | I45: 0 | J45: 0 | K45: 0 | L45: 0 | M45: 0 | N45: 0 | O45: 0 | P45: 4 | Q45: 4 | R45: 42
C46: Mining Non-supv subtotal | D46: =SUM(D28:D42) -> 28 | E46: =SUM(E28:E42) -> 27 | F46: 30 | G46: 28 | H46: 28 | I46: 26 | J46: 21 | K46: 19 | L46: 30 | M46: 28 | N46: 37 | O46: 35 | P46: =+N46+H46+L46+J46+F46+D46 -> 174 | Q46: 163 | R46: 43
C47: MSI Non-supv subtotal | D47: =SUM(D43:D45) -> 16 | E47: 15 | F47: 0 | G47: 0 | H47: 0 | I47: 0 | J47: 0 | K47: 0 | L47: 0 | M47: 0 | N47: 0 | O47: 0 | P47: 16 | Q47: 15 | R47: 44
C48: Non-Supervisory Positions Total | D48: =SUM(D46:D47) -> 44 | E48: 42 | F48: 30 | G48: 28 | H48: 28 | I48: 26 | J48: 21 | K48: 19 | L48: 30 | M48: 28 | N48: 37 | O48: 35 | P48: 190 | Q48: 178 | R48: 45
C49: DMO Complement Totals | D49: =+D48+D26 -> 56 | E49: 54 | F49: 37 | G49: 35 | H49: 35 | I49: 33 | J49: 27 | K49: 25 | L49: 36 | M49: 34 | N49: 44 | O49: 42 | P49: 235 | Q49: 223 | R49: 46
C50: Out-Bureau Staff Supported by DO | R50: 47
C51: Office Staff | D51: 0 | E51: 0 | F51: 2 | G51: 2 | H51: 4 | I51: 4 | J51: 1 | K51: 1 | L51: 3 | M51: 3 | N51: 0 | O51: 0 | P51: =SUM(D51,F51,H51,J51,L51,N51) -> 10 | Q51: =SUM(E51,G51,I51,K51,M51,O51) -> 10 | R51: 48
C52: Field Staff | D52: 14 | E52: 12 | F52: 18 | G52: 18 | H52: 23 | I52: 23 | J52: 12 | K52: 12 | L52: 9 | M52: 9 | N52: 6 | O52: 6 | P52: =SUM(D52,F52,H52,J52,L52,N52) -> 82 | Q52: =SUM(E52,G52,I52,K52,M52,O52) -> 80 | R52: 49
C53: Out-Bureau subtotal | D53: =SUM(D51:D52) -> 14 | E53: 12 | F53: 20 | G53: 20 | H53: 27 | I53: 27 | J53: 13 | K53: 13 | L53: 12 | M53: 12 | N53: 6 | O53: 6 | P53: 92 | Q53: 90 | R53: 50
C54: Total Office Personnel | D54: =+D53+D48+D26 -> 70 | E54: 66 | F54: 57 | G54: 55 | H54: 62 | I54: 60 | J54: 40 | K54: 38 | L54: 48 | M54: 46 | N54: 50 | O54: 48 | P54: 327 | Q54: 313 | R54: 51
C55: Technical Staff Subtotal | D55: =SUM(D29:D33,D35) -> 15 | E55: =SUM(E29:E33,E35) -> 15 | F55: 7 | G55: 6 | H55: 7 | I55: 7 | J55: 5 | K55: 5 | L55: 8 | M55: 7 | N55: 8 | O55: 8 | P55: 50 | Q55: 48 | R55: 52
C56: Field Staff Subtotal | D56: =SUM(D34,D37:D39) -> 4 | E56: =SUM(E34,E37:E39) -> 4 | F56: 16 | G56: 16 | H56: 13 | I56: 12 | J56: 10 | K56: 9 | L56: 14 | M56: 14 | N56: 21 | O56: 20 | P56: 78 | Q56: 75 | R56: 53
C57: Permits Supervisory Subtotal | D57: =SUM(D14,D13,D10) -> 2 | E57: =SUM(E14,E13,E10) -> 2 | F57: 1 | G57: 1 | H57: 1 | I57: 1 | J57: 1 | K57: 1 | L57: 1 | M57: 1 | N57: 1 | O57: 1 | P57: 7 | Q57: 7 | R57: 54
C58: Permits Non-supervisory Subtotal | D58: =SUM(D29:D33,D35,D36) -> 15 | E58: =SUM(E29:E33,E35,E36) -> 15 | F58: 7 | G58: 6 | H58: 7 | I58: 7 | J58: 5 | K58: 5 | L58: 8 | M58: 7 | N58: 8 | O58: 8 | P58: 50 | Q58: 48 | R58: 55
C59: Compliance Supervisory Subtotal | D59: =SUM(D17,D15,D11) -> 3 | E59: =SUM(E17,E15,E11) -> 3 | F59: 3 | G59: 3 | H59: 3 | I59: 3 | J59: 3 | K59: 3 | L59: 2 | M59: 2 | N59: 3 | O59: 3 | P59: 17 | Q59: 17 | R59: 56
C60: Compliance Non-supervisory Subtotal | D60: =SUM(D41,D39,D38,D37,D34) -> 5 | E60: =SUM(E41,E39,E38,E37,E34) -> 5 | F60: 17 | G60: 17 | H60: 14 | I60: 13 | J60: 10 | K60: 9 | L60: 15 | M60: 15 | N60: 22 | O60: 21 | P60: 83 | Q60: 80 | R60: 57
C61: SMCI Supervisory Subtotal | D61: =SUM(D17) -> 1 | E61: =SUM(E17) -> 1 | F61: 2 | G61: 2 | H61: 2 | I61: 2 | J61: 2 | K61: 2 | L61: 2 | M61: 2 | N61: 3 | O61: 3 | P61: 12 | Q61: 12 | R61: 58
C62: SMCI Non-supervisory Subtotal | D62: =SUM(D38,D37) -> 4 | E62: =SUM(E38,E37) -> 4 | F62: 14 | G62: 14 | H62: 11 | I62: 10 | J62: 8 | K62: 7 | L62: 11 | M62: 11 | N62: 16 | O62: 15 | P62: 64 | Q62: 61 | R62: 59
C63: Clerical Supervisory Subtotal | D63: =SUM(D18,D16) -> 1 | E63: =SUM(E18,E16) -> 1 | F63: 1 | G63: 1 | H63: 1 | I63: 1 | J63: 1 | K63: 1 | L63: 1 | M63: 1 | N63: 1 | O63: 1 | P63: 6 | Q63: 6 | R63: 60
C64: Clerical Non-supervisory Subtotal | D64: =SUM(D42) -> 7 | E64: =SUM(E42) -> 6 | F64: 5 | G64: 5 | H64: 6 | I64: 6 | J64: 4 | K64: 4 | L64: 6 | M64: 6 | N64: 6 | O64: 6 | P64: 34 | Q64: 33 | R64: 61
C65: MSI Supervisory Subtotal | D65: =SUM(D19:D23) -> 5 | E65: 5 | F65: 0 | G65: 0 | H65: 0 | I65: 0 | J65: 0 | K65: 0 | L65: 0 | M65: 0 | N65: 0 | O65: 0 | P65: 5 | Q65: 5 | R65: 62
C66: MSI Non-supervisory Subtotal | D66: =SUM(D43:D45) -> 16 | E66: 15 | F66: 0 | G66: 0 | H66: 0 | I66: 0 | J66: 0 | K66: 0 | L66: 0 | M66: 0 | N66: 0 | O66: 0 | P66: 16 | Q66: 15 | R66: 63
C67: Staff Assigned to Hydro Supervisor | D67: 10 | E67: 8 | F67: 0 | G67: 0 | H67: 0 | I67: 0 | J67: 0 | K67: 0 | L67: 0 | M67: 0 | N67: 0 | O67: 0 | P67: =SUM(D67,F67,H67,J67,L67,N67) -> 10 | Q67: =SUM(E67,G67,I67,K67,M67,O67) -> 8 | R67: 64
C68: Staff Assigned To Mining Permit & Comp Spec (Compliance Supervisory) | D68: 1 | E68: 1 | F68: 1 | G68: 1 | H68: 1 | I68: 1 | J68: 0 | K68: 0 | L68: 0 | M68: 0 | N68: 0 | O68: 0 | P68: =SUM(D68,F68,H68,J68,L68,N68) -> 3 | Q68: =SUM(E68,G68,I68,K68,M68,O68) -> 3 | R68: 65
C70: Mining Personnel
C71: MSI Personnel
C72: Out-Bureau Personnel
C73: DMO Totals

Sheet Staff Ratios
B2: DMO Supervisory Ratios by District Office
B3: =IF(Date_Of_Report=0,"No Date Of Report Entered",Date_Of_Report) -> 2015-04-24
B5: POSITIONS | C5: California | D5: Cambria | E5: Greensburg | F5: Knox | G5: Moshannon | H5: Pottsville | I5: TOTALS
B6: Management/Supervisory Positions Total | C6: =IF(ISERROR(VLOOKUP(StaffRatiosPositions,Staff,2,FALSE)),"Err",VLOOKUP(StaffRatiosPositions,Staff,2,FALSE)) -> 12 | D6: =IF(ISERROR(VLOOKUP(StaffRatiosPositions,Staff,4,FALSE)),"Err",VLOOKUP(StaffRatiosPositions,Staff,4,FALSE)) -> 7 | E6: =IF(ISERROR(VLOOKUP(StaffRatiosPositions,Staff,6,FALSE)),"Err",VLOOKUP(StaffRatiosPositions,Staff,6,FALSE)) -> 7 | F6: =IF(ISERROR(VLOOKUP(StaffRatiosPositions,Staff,8,FALSE)),"Err",VLOOKUP(StaffRatiosPositions,Staff,8,FALSE)) -> 6 | G6: =IF(ISERROR(VLOOKUP(StaffRatiosPositions,Staff,10,FALSE)),"Err",VLOOKUP(StaffRatiosPositions,Staff,10,FALSE)) -> 6 | H6: =IF(ISERROR(VLOOKUP(StaffRatiosPositions,Staff,12,FALSE)),"Err",VLOOKUP(StaffRatiosPositions,Staff,12,FALSE)) -> 7 | I6: =IF(ISERROR(VLOOKUP(StaffRatiosPositions,Staff,14,FALSE)),"Err",VLOOKUP(StaffRatiosPositions,Staff,14,FALSE)) -> 45
B7: Non-Supervisory Positions Total | C7: =IF(ISERROR(VLOOKUP(StaffRatiosPositions,Staff,2,FALSE)),"Err",VLOOKUP(StaffRatiosPositions,Staff,2,FALSE)) -> 44 | D7: =IF(ISERROR(VLOOKUP(StaffRatiosPositions,Staff,4,FALSE)),"Err",VLOOKUP(StaffRatiosPositions,Staff,4,FALSE)) -> 30 | E7: =IF(ISERROR(VLOOKUP(StaffRatiosPositions,Staff,6,FALSE)),"Err",VLOOKUP(StaffRatiosPositions,Staff,6,FALSE)) -> 28 | F7: =IF(ISERROR(VLOOKUP(StaffRatiosPositions,Staff,8,FALSE)),"Err",VLOOKUP(StaffRatiosPositions,Staff,8,FALSE)) -> 21 | G7: =IF(ISERROR(VLOOKUP(StaffRatiosPositions,Staff,10,FALSE)),"Err",VLOOKUP(StaffRatiosPositions,Staff,10,FALSE)) -> 30 | H7: =IF(ISERROR(VLOOKUP(B7,Staff,12,FALSE)),"Err",VLOOKUP(B7,Staff,12,FALSE)) -> 37 | I7: =IF(ISERROR(VLOOKUP(StaffRatiosPositions,Staff,14,FALSE)),"Err",VLOOKUP(StaffRatiosPositions,Staff,14,FALSE)) -> 190
B8: Non-supervisory/Supervisory ratio (X:1) | C8: =IF(C6=0,0,C7/C6) -> 3.666666667 | D8: 4.285714286 | E8: 4 | F8: 3.5 | G8: 5 | H8: 5.285714286 | I8: 4.222222222
B9: DMO Key Supervisory Ratios by District Office
B10: =IF(Date_Of_Report=0,"No Date Of Report Entered",Date_Of_Report) -> 2015-04-24
B11: POSITIONS | C11: Cal | D11: Cam | E11: Grn | F11: Knox | G11: Mosh | H11: Pott | I11: TOTALS
B12: Permits Supervisory Subtotal | C12: =IF(ISERROR(VLOOKUP(StaffRatiosPositions,Staff,2,FALSE)),"Err",VLOOKUP(StaffRatiosPositions,Staff,2,FALSE)) -> 2 | D12: =IF(ISERROR(VLOOKUP(StaffRatiosPositions,Staff,4,FALSE)),"Err",VLOOKUP(StaffRatiosPositions,Staff,4,FALSE)) -> 1 | E12: =IF(ISERROR(VLOOKUP(StaffRatiosPositions,Staff,6,FALSE)),"Err",VLOOKUP(StaffRatiosPositions,Staff,6,FALSE)) -> 1 | F12: =IF(ISERROR(VLOOKUP(StaffRatiosPositions,Staff,8,FALSE)),"Err",VLOOKUP(StaffRatiosPositions,Staff,8,FALSE)) -> 1 | G12: =IF(ISERROR(VLOOKUP(StaffRatiosPositions,Staff,10,FALSE)),"Err",VLOOKUP(StaffRatiosPositions,Staff,10,FALSE)) -> 1 | H12: =IF(ISERROR(VLOOKUP(StaffRatiosPositions,Staff,12,FALSE)),"Err",VLOOKUP(StaffRatiosPositions,Staff,12,FALSE)) -> 1 | I12: =IF(ISERROR(VLOOKUP(StaffRatiosPositions,Staff,14,FALSE)),"Err",VLOOKUP(StaffRatiosPositions,Staff,14,FALSE)) -> 7
B13: Permits Non-supervisory Subtotal | C13: =IF(ISERROR(VLOOKUP(StaffRatiosPositions,Staff,2,FALSE)),"Err",VLOOKUP(StaffRatiosPositions,Staff,2,FALSE)) -> 15 | D13: =IF(ISERROR(VLOOKUP(StaffRatiosPositions,Staff,4,FALSE)),"Err",VLOOKUP(StaffRatiosPositions,Staff,4,FALSE)) -> 7 | E13: =IF(ISERROR(VLOOKUP(StaffRatiosPositions,Staff,6,FALSE)),"Err",VLOOKUP(StaffRatiosPositions,Staff,6,FALSE)) -> 7 | F13: =IF(ISERROR(VLOOKUP(StaffRatiosPositions,Staff,8,FALSE)),"Err",VLOOKUP(StaffRatiosPositions,Staff,8,FALSE)) -> 5 | G13: =IF(ISERROR(VLOOKUP(StaffRatiosPositions,Staff,10,FALSE)),"Err",VLOOKUP(StaffRatiosPositions,Staff,10,FALSE)) -> 8 | H13: =IF(ISERROR(VLOOKUP(StaffRatiosPositions,Staff,12,FALSE)),"Err",VLOOKUP(StaffRatiosPositions,Staff,12,FALSE)) -> 8 | I13: =IF(ISERROR(VLOOKUP(StaffRatiosPositions,Staff,14,FALSE)),"Err",VLOOKUP(StaffRatiosPositions,Staff,14,FALSE)) -> 50
B14: Non-supervisory/Supervisory ratio (X:1) | C14: =IF(C12=0,0,C13/C12) -> 7.5 | D14: 7 | E14: 7 | F14: 5 | G14: 8 | H14: 8 | I14: 7.142857143
B16: Compliance Supervisory Subtotal | C16: =IF(ISERROR(VLOOKUP(StaffRatiosPositions,Staff,2,FALSE)),"Err",VLOOKUP(StaffRatiosPositions,Staff,2,FALSE)) -> 3 | D16: =IF(ISERROR(VLOOKUP(StaffRatiosPositions,Staff,4,FALSE)),"Err",VLOOKUP(StaffRatiosPositions,Staff,4,FALSE)) -> 3 | E16: =IF(ISERROR(VLOOKUP(StaffRatiosPositions,Staff,6,FALSE)),"Err",VLOOKUP(StaffRatiosPositions,Staff,6,FALSE)) -> 3 | F16: =IF(ISERROR(VLOOKUP(StaffRatiosPositions,Staff,8,FALSE)),"Err",VLOOKUP(StaffRatiosPositions,Staff,8,FALSE)) -> 3 | G16: =IF(ISERROR(VLOOKUP(StaffRatiosPositions,Staff,10,FALSE)),"Err",VLOOKUP(StaffRatiosPositions,Staff,10,FALSE)) -> 2 | H16: =IF(ISERROR(VLOOKUP(StaffRatiosPositions,Staff,12,FALSE)),"Err",VLOOKUP(StaffRatiosPositions,Staff,12,FALSE)) -> 3 | I16: =IF(ISERROR(VLOOKUP(StaffRatiosPositions,Staff,14,FALSE)),"Err",VLOOKUP(StaffRatiosPositions,Staff,14,FALSE)) -> 17
B17: Compliance Non-supervisory Subtotal | C17: =IF(ISERROR(VLOOKUP(StaffRatiosPositions,Staff,2,FALSE)),"Err",VLOOKUP(StaffRatiosPositions,Staff,2,FALSE)) -> 5 | D17: =IF(ISERROR(VLOOKUP(StaffRatiosPositions,Staff,4,FALSE)),"Err",VLOOKUP(StaffRatiosPositions,Staff,4,FALSE)) -> 17 | E17: =IF(ISERROR(VLOOKUP(StaffRatiosPositions,Staff,6,FALSE)),"Err",VLOOKUP(StaffRatiosPositions,Staff,6,FALSE)) -> 14 | F17: =IF(ISERROR(VLOOKUP(StaffRatiosPositions,Staff,8,FALSE)),"Err",VLOOKUP(StaffRatiosPositions,Staff,8,FALSE)) -> 10 | G17: =IF(ISERROR(VLOOKUP(StaffRatiosPositions,Staff,10,FALSE)),"Err",VLOOKUP(StaffRatiosPositions,Staff,10,FALSE)) -> 15 | H17: =IF(ISERROR(VLOOKUP(StaffRatiosPositions,Staff,12,FALSE)),"Err",VLOOKUP(StaffRatiosPositions,Staff,12,FALSE)) -> 22 | I17: =IF(ISERROR(VLOOKUP(StaffRatiosPositions,Staff,14,FALSE)),"Err",VLOOKUP(StaffRatiosPositions,Staff,14,FALSE)) -> 83
B18: Non-supervisory/Supervisory ratio (X:1) | C18: =IF(C16=0,0,C17/C16) -> 1.666666667 | D18: 5.666666667 | E18: 4.666666667 | F18: 3.333333333 | G18: 7.5 | H18: 7.333333333 | I18: 4.882352941
B20: SMCI Supervisory Subtotal | C20: =IF(ISERROR(VLOOKUP(StaffRatiosPositions,Staff,2,FALSE)),"Err",VLOOKUP(StaffRatiosPositions,Staff,2,FALSE)) -> 1 | D20: =IF(ISERROR(VLOOKUP(StaffRatiosPositions,Staff,4,FALSE)),"Err",VLOOKUP(StaffRatiosPositions,Staff,4,FALSE)) -> 2 | E20: =IF(ISERROR(VLOOKUP(StaffRatiosPositions,Staff,6,FALSE)),"Err",VLOOKUP(StaffRatiosPositions,Staff,6,FALSE)) -> 2 | F20: =IF(ISERROR(VLOOKUP(StaffRatiosPositions,Staff,8,FALSE)),"Err",VLOOKUP(StaffRatiosPositions,Staff,8,FALSE)) -> 2 | G20: =IF(ISERROR(VLOOKUP(StaffRatiosPositions,Staff,10,FALSE)),"Err",VLOOKUP(StaffRatiosPositions,Staff,10,FALSE)) -> 2 | H20: =IF(ISERROR(VLOOKUP(StaffRatiosPositions,Staff,12,FALSE)),"Err",VLOOKUP(StaffRatiosPositions,Staff,12,FALSE)) -> 3 | I20: =IF(ISERROR(VLOOKUP(StaffRatiosPositions,Staff,14,FALSE)),"Err",VLOOKUP(StaffRatiosPositions,Staff,14,FALSE)) -> 12
B21: SMCI Non-supervisory Subtotal | C21: =IF(ISERROR(VLOOKUP(StaffRatiosPositions,Staff,2,FALSE)),"Err",VLOOKUP(StaffRatiosPositions,Staff,2,FALSE)) -> 4 | D21: =IF(ISERROR(VLOOKUP(StaffRatiosPositions,Staff,4,FALSE)),"Err",VLOOKUP(StaffRatiosPositions,Staff,4,FALSE)) -> 14 | E21: =IF(ISERROR(VLOOKUP(StaffRatiosPositions,Staff,6,FALSE)),"Err",VLOOKUP(StaffRatiosPositions,Staff,6,FALSE)) -> 11 | F21: =IF(ISERROR(VLOOKUP(StaffRatiosPositions,Staff,8,FALSE)),"Err",VLOOKUP(StaffRatiosPositions,Staff,8,FALSE)) -> 8 | G21: =IF(ISERROR(VLOOKUP(StaffRatiosPositions,Staff,10,FALSE)),"Err",VLOOKUP(StaffRatiosPositions,Staff,10,FALSE)) -> 11 | H21: =IF(ISERROR(VLOOKUP(StaffRatiosPositions,Staff,12,FALSE)),"Err",VLOOKUP(StaffRatiosPositions,Staff,12,FALSE)) -> 16 | I21: =IF(ISERROR(VLOOKUP(StaffRatiosPositions,Staff,14,FALSE)),"Err",VLOOKUP(StaffRatiosPositions,Staff,14,FALSE)) -> 64
B22: Non-supervisory/Supervisory ratio (X:1) | C22: =IF(C20=0,0,C21/C20) -> 4 | D22: 7 | E22: 5.5 | F22: 4 | G22: 5.5 | H22: 5.333333333 | I22: 5.333333333
B24: Clerical Supervisory Subtotal | C24: =IF(ISERROR(VLOOKUP(StaffRatiosPositions,Staff,2,FALSE)),"Err",VLOOKUP(StaffRatiosPositions,Staff,2,FALSE)) -> 1 | D24: =IF(ISERROR(VLOOKUP(StaffRatiosPositions,Staff,4,FALSE)),"Err",VLOOKUP(StaffRatiosPositions,Staff,4,FALSE)) -> 1 | E24: =IF(ISERROR(VLOOKUP(StaffRatiosPositions,Staff,6,FALSE)),"Err",VLOOKUP(StaffRatiosPositions,Staff,6,FALSE)) -> 1 | F24: =IF(ISERROR(VLOOKUP(StaffRatiosPositions,Staff,8,FALSE)),"Err",VLOOKUP(StaffRatiosPositions,Staff,8,FALSE)) -> 1 | G24: =IF(ISERROR(VLOOKUP(StaffRatiosPositions,Staff,10,FALSE)),"Err",VLOOKUP(StaffRatiosPositions,Staff,10,FALSE)) -> 1 | H24: =IF(ISERROR(VLOOKUP(StaffRatiosPositions,Staff,12,FALSE)),"Err",VLOOKUP(StaffRatiosPositions,Staff,12,FALSE)) -> 1 | I24: =IF(ISERROR(VLOOKUP(StaffRatiosPositions,Staff,14,FALSE)),"Err",VLOOKUP(StaffRatiosPositions,Staff,14,FALSE)) -> 6
B25: Clerical Non-supervisory Subtotal | C25: =IF(ISERROR(VLOOKUP(StaffRatiosPositions,Staff,2,FALSE)),"Err",VLOOKUP(StaffRatiosPositions,Staff,2,FALSE)) -> 7 | D25: =IF(ISERROR(VLOOKUP(StaffRatiosPositions,Staff,4,FALSE)),"Err",VLOOKUP(StaffRatiosPositions,Staff,4,FALSE)) -> 5 | E25: =IF(ISERROR(VLOOKUP(StaffRatiosPositions,Staff,6,FALSE)),"Err",VLOOKUP(StaffRatiosPositions,Staff,6,FALSE)) -> 6 | F25: =IF(ISERROR(VLOOKUP(StaffRatiosPositions,Staff,8,FALSE)),"Err",VLOOKUP(StaffRatiosPositions,Staff,8,FALSE)) -> 4 | G25: =IF(ISERROR(VLOOKUP(StaffRatiosPositions,Staff,10,FALSE)),"Err",VLOOKUP(StaffRatiosPositions,Staff,10,FALSE)) -> 6 | H25: =IF(ISERROR(VLOOKUP(StaffRatiosPositions,Staff,12,FALSE)),"Err",VLOOKUP(StaffRatiosPositions,Staff,12,FALSE)) -> 6 | I25: =IF(ISERROR(VLOOKUP(StaffRatiosPositions,Staff,14,FALSE)),"Err",VLOOKUP(StaffRatiosPositions,Staff,14,FALSE)) -> 34
B26: Non-supervisory/Supervisory ratio (X:1) | C26: =IF(C24=0,0,C25/C24) -> 7 | D26: 5 | E26: 6 | F26: 4 | G26: 6 | H26: 6 | I26: 5.666666667
B28: MSI Supervisory Subtotal | C28: =IF(ISERROR(VLOOKUP(StaffRatiosPositions,Staff,2,FALSE)),"Err",VLOOKUP(StaffRatiosPositions,Staff,2,FALSE)) -> 5 | D28: =IF(ISERROR(VLOOKUP(StaffRatiosPositions,Staff,4,FALSE)),"Err",VLOOKUP(StaffRatiosPositions,Staff,4,FALSE)) -> 0 | E28: =IF(ISERROR(VLOOKUP(StaffRatiosPositions,Staff,6,FALSE)),"Err",VLOOKUP(StaffRatiosPositions,Staff,6,FALSE)) -> 0 | F28: =IF(ISERROR(VLOOKUP(StaffRatiosPositions,Staff,8,FALSE)),"Err",VLOOKUP(StaffRatiosPositions,Staff,8,FALSE)) -> 0 | G28: =IF(ISERROR(VLOOKUP(StaffRatiosPositions,Staff,10,FALSE)),"Err",VLOOKUP(StaffRatiosPositions,Staff,10,FALSE)) -> 0 | H28: =IF(ISERROR(VLOOKUP(StaffRatiosPositions,Staff,12,FALSE)),"Err",VLOOKUP(StaffRatiosPositions,Staff,12,FALSE)) -> 0 | I28: =IF(ISERROR(VLOOKUP(StaffRatiosPositions,Staff,14,FALSE)),"Err",VLOOKUP(StaffRatiosPositions,Staff,14,FALSE)) -> 5
B29: MSI Non-supervisory Subtotal | C29: =IF(ISERROR(VLOOKUP(StaffRatiosPositions,Staff,2,FALSE)),"Err",VLOOKUP(StaffRatiosPositions,Staff,2,FALSE)) -> 16 | D29: =IF(ISERROR(VLOOKUP(StaffRatiosPositions,Staff,4,FALSE)),"Err",VLOOKUP(StaffRatiosPositions,Staff,4,FALSE)) -> 0 | E29: =IF(ISERROR(VLOOKUP(StaffRatiosPositions,Staff,6,FALSE)),"Err",VLOOKUP(StaffRatiosPositions,Staff,6,FALSE)) -> 0 | F29: =IF(ISERROR(VLOOKUP(StaffRatiosPositions,Staff,8,FALSE)),"Err",VLOOKUP(StaffRatiosPositions,Staff,8,FALSE)) -> 0 | G29: =IF(ISERROR(VLOOKUP(StaffRatiosPositions,Staff,10,FALSE)),"Err",VLOOKUP(StaffRatiosPositions,Staff,10,FALSE)) -> 0 | H29: =IF(ISERROR(VLOOKUP(StaffRatiosPositions,Staff,12,FALSE)),"Err",VLOOKUP(StaffRatiosPositions,Staff,12,FALSE)) -> 0 | I29: =IF(ISERROR(VLOOKUP(StaffRatiosPositions,Staff,14,FALSE)),"Err",VLOOKUP(StaffRatiosPositions,Staff,14,FALSE)) -> 16
B30: Non-supervisory/Supervisory ratio (X:1) | C30: =IF(C28=0,0,C29/C28) -> 3.2 | D30: =IF(D28=0,0,D29/D28) -> 0 | E30: 0 | F30: 0 | G30: 0 | H30: 0 | I30: 3.2
B31: SMCI Supervisory Ratios by District Office
B32: =IF(Date_Of_Report=0,"No Date Of Report Entered",Date_Of_Report) -> 2015-04-24
B33: POSITIONS | C33: California | D33: Cambria | E33: Greensburg | F33: Knox | G33: Moshannon | H33: Pottsville | I33: TOTALS
B35: SMCI Supervisory Subtotal | C35: =IF(ISERROR(VLOOKUP(StaffRatiosPositions,Staff,2,FALSE)),"Err",VLOOKUP(StaffRatiosPositions,Staff,2,FALSE)) -> 1 | D35: =IF(ISERROR(VLOOKUP(StaffRatiosPositions,Staff,4,FALSE)),"Err",VLOOKUP(StaffRatiosPositions,Staff,4,FALSE)) -> 2 | E35: =IF(ISERROR(VLOOKUP(StaffRatiosPositions,Staff,6,FALSE)),"Err",VLOOKUP(StaffRatiosPositions,Staff,6,FALSE)) -> 2 | F35: =IF(ISERROR(VLOOKUP(StaffRatiosPositions,Staff,8,FALSE)),"Err",VLOOKUP(StaffRatiosPositions,Staff,8,FALSE)) -> 2 | G35: =IF(ISERROR(VLOOKUP(StaffRatiosPositions,Staff,10,FALSE)),"Err",VLOOKUP(StaffRatiosPositions,Staff,10,FALSE)) -> 2 | H35: =IF(ISERROR(VLOOKUP(StaffRatiosPositions,Staff,12,FALSE)),"Err",VLOOKUP(StaffRatiosPositions,Staff,12,FALSE)) -> 3 | I35: =IF(ISERROR(VLOOKUP(StaffRatiosPositions,Staff,14,FALSE)),"Err",VLOOKUP(StaffRatiosPositions,Staff,14,FALSE)) -> 12
B36: SMCI Non-supervisory Subtotal | C36: =IF(ISERROR(VLOOKUP(StaffRatiosPositions,Staff,2,FALSE)),"Err",VLOOKUP(StaffRatiosPositions,Staff,2,FALSE)) -> 4 | D36: =IF(ISERROR(VLOOKUP(StaffRatiosPositions,Staff,4,FALSE)),"Err",VLOOKUP(StaffRatiosPositions,Staff,4,FALSE)) -> 14 | E36: =IF(ISERROR(VLOOKUP(StaffRatiosPositions,Staff,6,FALSE)),"Err",VLOOKUP(StaffRatiosPositions,Staff,6,FALSE)) -> 11 | F36: =IF(ISERROR(VLOOKUP(StaffRatiosPositions,Staff,8,FALSE)),"Err",VLOOKUP(StaffRatiosPositions,Staff,8,FALSE)) -> 8 | G36: =IF(ISERROR(VLOOKUP(StaffRatiosPositions,Staff,10,FALSE)),"Err",VLOOKUP(StaffRatiosPositions,Staff,10,FALSE)) -> 11 | H36: =IF(ISERROR(VLOOKUP(StaffRatiosPositions,Staff,12,FALSE)),"Err",VLOOKUP(StaffRatiosPositions,Staff,12,FALSE)) -> 16 | I36: =IF(ISERROR(VLOOKUP(StaffRatiosPositions,Staff,14,FALSE)),"Err",VLOOKUP(StaffRatiosPositions,Staff,14,FALSE)) -> 64
B37: Non-supervisory/Supervisory ratio (X:1) | C37: =IF(C35=0,0,C36/C35) -> 4 | D37: =IF(D35=0,0,D36/D35) -> 7 | E37: 5.5 | F37: 4 | G37: 5.5 | H37: 5.333333333 | I37: 5.333333333
B39: ="Optimum SMCI Super Staff @ " & Number_Of_Persons_Managed & ":1 ratio" -> Optimum SMCI Super Staff @ 7:1 ratio | C39: =IF(Number_Of_Persons_Managed=0,"No # Managed",C36/Number_Of_Persons_Managed) -> 0.5714285714 | D39: 2 | E39: 1.571428571 | F39: 1.142857143 | G39: 1.571428571 | H39: 2.285714286 | I39: 9.142857143
B41: Difference SMCI Super Staff | C41: =IF(Number_Of_Persons_Managed=0,"No # Managed",C35-C39) -> 0.4285714286 | D41: 0 | E41: 0.4285714286 | F41: 0.8571428571 | G41: 0.4285714286 | H41: 0.7142857143 | I41: 2.857142857
B42: DMO Clerical Ratios by District Office
B43: =IF(Date_Of_Report=0,"No Date Of Report Entered",Date_Of_Report) -> 2015-04-24
B44: POSITIONS | C44: California | D44: Cambria | E44: Greensburg | F44: Knox | G44: Moshannon | H44: Pottsville | I44: TOTALS
B45: Bureau Staff Supported
B46: Management/Supervisory Positions Total | C46: =IF(ISERROR(VLOOKUP(StaffRatiosPositions,Staff,2,FALSE)),"Err",VLOOKUP(StaffRatiosPositions,Staff,2,FALSE)) -> 12 | D46: =IF(ISERROR(VLOOKUP(StaffRatiosPositions,Staff,4,FALSE)),"Err",VLOOKUP(StaffRatiosPositions,Staff,4,FALSE)) -> 7 | E46: =IF(ISERROR(VLOOKUP(StaffRatiosPositions,Staff,6,FALSE)),"Err",VLOOKUP(StaffRatiosPositions,Staff,6,FALSE)) -> 7 | F46: =IF(ISERROR(VLOOKUP(StaffRatiosPositions,Staff,8,FALSE)),"Err",VLOOKUP(StaffRatiosPositions,Staff,8,FALSE)) -> 6 | G46: =IF(ISERROR(VLOOKUP(StaffRatiosPositions,Staff,10,FALSE)),"Err",VLOOKUP(StaffRatiosPositions,Staff,10,FALSE)) -> 6 | H46: =IF(ISERROR(VLOOKUP(StaffRatiosPositions,Staff,12,FALSE)),"Err",VLOOKUP(StaffRatiosPositions,Staff,12,FALSE)) -> 7 | I46: =IF(ISERROR(VLOOKUP(StaffRatiosPositions,Staff,14,FALSE)),"Err",VLOOKUP(StaffRatiosPositions,Staff,14,FALSE)) -> 45
B47: Non-Supervisory Positions Total | C47: =IF(ISERROR(VLOOKUP(StaffRatiosPositions,Staff,2,FALSE)),"Err",VLOOKUP(StaffRatiosPositions,Staff,2,FALSE)) -> 44 | D47: =IF(ISERROR(VLOOKUP(StaffRatiosPositions,Staff,4,FALSE)),"Err",VLOOKUP(StaffRatiosPositions,Staff,4,FALSE)) -> 30 | E47: =IF(ISERROR(VLOOKUP(StaffRatiosPositions,Staff,6,FALSE)),"Err",VLOOKUP(StaffRatiosPositions,Staff,6,FALSE)) -> 28 | F47: =IF(ISERROR(VLOOKUP(StaffRatiosPositions,Staff,8,FALSE)),"Err",VLOOKUP(StaffRatiosPositions,Staff,8,FALSE)) -> 21 | G47: =IF(ISERROR(VLOOKUP(StaffRatiosPositions,Staff,10,FALSE)),"Err",VLOOKUP(StaffRatiosPositions,Staff,10,FALSE)) -> 30 | H47: =IF(ISERROR(VLOOKUP(StaffRatiosPositions,Staff,12,FALSE)),"Err",VLOOKUP(StaffRatiosPositions,Staff,12,FALSE)) -> 37 | I47: =IF(ISERROR(VLOOKUP(StaffRatiosPositions,Staff,14,FALSE)),"Err",VLOOKUP(StaffRatiosPositions,Staff,14,FALSE)) -> 190
C48: =IF(ISERROR(VLOOKUP(StaffRatiosPositions,Staff,2,FALSE)),"Err",VLOOKUP(StaffRatiosPositions,Staff,2,FALSE)) -> Err | D48: =IF(ISERROR(VLOOKUP(StaffRatiosPositions,Staff,4,FALSE)),"Err",VLOOKUP(StaffRatiosPositions,Staff,4,FALSE)) -> Err | E48: =IF(ISERROR(VLOOKUP(StaffRatiosPositions,Staff,6,FALSE)),"Err",VLOOKUP(StaffRatiosPositions,Staff,6,FALSE)) -> Err | F48: =IF(ISERROR(VLOOKUP(StaffRatiosPositions,Staff,8,FALSE)),"Err",VLOOKUP(StaffRatiosPositions,Staff,8,FALSE)) -> Err | G48: =IF(ISERROR(VLOOKUP(StaffRatiosPositions,Staff,10,FALSE)),"Err",VLOOKUP(StaffRatiosPositions,Staff,10,FALSE)) -> Err | H48: =IF(ISERROR(VLOOKUP(StaffRatiosPositions,Staff,12,FALSE)),"Err",VLOOKUP(StaffRatiosPositions,Staff,12,FALSE)) -> Err | I48: =IF(ISERROR(VLOOKUP(StaffRatiosPositions,Staff,14,FALSE)),"Err",VLOOKUP(StaffRatiosPositions,Staff,14,FALSE)) -> Err
B49: Non-clerical subtotal | C49: =SUM(C46:C48)-C56 -> 49 | D49: =SUM(D46:D48)-D56 -> 32 | E49: 29 | F49: 23 | G49: 30 | H49: 38 | I49: 201
B50: Out-bureau Staff Supported
B51: Office Staff | C51: =IF(ISERROR(VLOOKUP(StaffRatiosPositions,Staff,2,FALSE)),"Err",VLOOKUP(StaffRatiosPositions,Staff,2,FALSE)) -> 0 | D51: =IF(ISERROR(VLOOKUP(StaffRatiosPositions,Staff,4,FALSE)),"Err",VLOOKUP(StaffRatiosPositions,Staff,4,FALSE)) -> 2 | E51: =IF(ISERROR(VLOOKUP(StaffRatiosPositions,Staff,6,FALSE)),"Err",VLOOKUP(StaffRatiosPositions,Staff,6,FALSE)) -> 4 | F51: =IF(ISERROR(VLOOKUP(StaffRatiosPositions,Staff,8,FALSE)),"Err",VLOOKUP(StaffRatiosPositions,Staff,8,FALSE)) -> 1 | G51: =IF(ISERROR(VLOOKUP(StaffRatiosPositions,Staff,10,FALSE)),"Err",VLOOKUP(StaffRatiosPositions,Staff,10,FALSE)) -> 3 | H51: =IF(ISERROR(VLOOKUP(StaffRatiosPositions,Staff,12,FALSE)),"Err",VLOOKUP(StaffRatiosPositions,Staff,12,FALSE)) -> 0 | I51: =IF(ISERROR(VLOOKUP(StaffRatiosPositions,Staff,14,FALSE)),"Err",VLOOKUP(StaffRatiosPositions,Staff,14,FALSE)) -> 10
B52: Field Staff | C52: =IF(ISERROR(VLOOKUP(StaffRatiosPositions,Staff,2,FALSE)),"Err",VLOOKUP(StaffRatiosPositions,Staff,2,FALSE)) -> 14 | D52: =IF(ISERROR(VLOOKUP(StaffRatiosPositions,Staff,4,FALSE)),"Err",VLOOKUP(StaffRatiosPositions,Staff,4,FALSE)) -> 18 | E52: =IF(ISERROR(VLOOKUP(StaffRatiosPositions,Staff,6,FALSE)),"Err",VLOOKUP(StaffRatiosPositions,Staff,6,FALSE)) -> 23 | F52: =IF(ISERROR(VLOOKUP(StaffRatiosPositions,Staff,8,FALSE)),"Err",VLOOKUP(StaffRatiosPositions,Staff,8,FALSE)) -> 12 | G52: =IF(ISERROR(VLOOKUP(StaffRatiosPositions,Staff,10,FALSE)),"Err",VLOOKUP(StaffRatiosPositions,Staff,10,FALSE)) -> 9 | H52: =IF(ISERROR(VLOOKUP(StaffRatiosPositions,Staff,12,FALSE)),"Err",VLOOKUP(StaffRatiosPositions,Staff,12,FALSE)) -> 6 | I52: =IF(ISERROR(VLOOKUP(StaffRatiosPositions,Staff,14,FALSE)),"Err",VLOOKUP(StaffRatiosPositions,Staff,14,FALSE)) -> 82
B53: Out-bureau subtotal | C53: =SUM(C51:C52) -> 14 | D53: =SUM(D51:D52) -> 20 | E53: 27 | F53: 13 | G53: 12 | H53: 6 | I53: 92
B54: Total Staff Supported | C54: =C49+C53 -> 63 | D54: 52 | E54: 56 | F54: 36 | G54: 42 | H54: 44 | I54: 293
B55: Authorized Clerical Complement
B56: Clerical | C56: =IF(ISERROR(VLOOKUP(StaffRatiosPositions,Staff,2,FALSE)),"Err",VLOOKUP(StaffRatiosPositions,Staff,2,FALSE)) -> 7 | D56: =IF(ISERROR(VLOOKUP(StaffRatiosPositions,Staff,4,FALSE)),"Err",VLOOKUP(StaffRatiosPositions,Staff,4,FALSE)) -> 5 | E56: =IF(ISERROR(VLOOKUP(StaffRatiosPositions,Staff,6,FALSE)),"Err",VLOOKUP(StaffRatiosPositions,Staff,6,FALSE)) -> 6 | F56: =IF(ISERROR(VLOOKUP(StaffRatiosPositions,Staff,8,FALSE)),"Err",VLOOKUP(StaffRatiosPositions,Staff,8,FALSE)) -> 4 | G56: =IF(ISERROR(VLOOKUP(StaffRatiosPositions,Staff,10,FALSE)),"Err",VLOOKUP(StaffRatiosPositions,Staff,10,FALSE)) -> 6 | H56: =IF(ISERROR(VLOOKUP(StaffRatiosPositions,Staff,12,FALSE)),"Err",VLOOKUP(StaffRatiosPositions,Staff,12,FALSE)) -> 6 | I56: =IF(ISERROR(VLOOKUP(StaffRatiosPositions,Staff,14,FALSE)),"Err",VLOOKUP(StaffRatiosPositions,Staff,14,FALSE)) -> 34
B57: Staff/Clerical ratio (X:1) | C57: =C54/C56 -> 9 | D57: =D54/D56 -> 10.4 | E57: 9.333333333 | F57: 9 | G57: 7 | H57: 7.333333333 | I57: 8.617647059
B59: ="Optimum Clerical Staff @ " & Clerical_Staff_Support_Ratio & ":1 ratio" -> Optimum Clerical Staff @ 8:1 ratio | C59: =IF(Clerical_Staff_Support_Ratio=0,"No Clerical Ratio",C54/Clerical_Staff_Support_Ratio) -> 7.875 | D59: 6.5 | E59: 7 | F59: 4.5 | G59: 5.25 | H59: 5.5 | I59: 36.625
B61: Difference Clerical Staff | C61: =IF(Clerical_Staff_Support_Ratio=0,"No Clerical Ratio",C56-C59) -> -0.875 | D61: -1.5 | E61: -1 | F61: -0.5 | G61: 0.75 | H61: 0.5 | I61: -2.625
B62: DMO IT Ratios by District Office
B63: =IF(Date_Of_Report=0,"No Date Of Report Entered",Date_Of_Report) -> 2015-04-24
B64: POSITIONS | C64: California | D64: Cambria | E64: Greensburg | F64: Knox | G64: Moshannon | H64: Pottsville | I64: TOTALS
B65: Bureau Staff Supported
B66: Management/Supervisory Positions Total | C66: =IF(ISERROR(VLOOKUP(StaffRatiosPositions,Staff,2,FALSE)),"Err",VLOOKUP(StaffRatiosPositions,Staff,2,FALSE)) -> 12 | D66: =IF(ISERROR(VLOOKUP(StaffRatiosPositions,Staff,4,FALSE)),"Err",VLOOKUP(StaffRatiosPositions,Staff,4,FALSE)) -> 7 | E66: =IF(ISERROR(VLOOKUP(StaffRatiosPositions,Staff,6,FALSE)),"Err",VLOOKUP(StaffRatiosPositions,Staff,6,FALSE)) -> 7 | F66: =IF(ISERROR(VLOOKUP(StaffRatiosPositions,Staff,8,FALSE)),"Err",VLOOKUP(StaffRatiosPositions,Staff,8,FALSE)) -> 6 | G66: =IF(ISERROR(VLOOKUP(StaffRatiosPositions,Staff,10,FALSE)),"Err",VLOOKUP(StaffRatiosPositions,Staff,10,FALSE)) -> 6 | H66: =IF(ISERROR(VLOOKUP(StaffRatiosPositions,Staff,12,FALSE)),"Err",VLOOKUP(StaffRatiosPositions,Staff,12,FALSE)) -> 7 | I66: =IF(ISERROR(VLOOKUP(StaffRatiosPositions,Staff,14,FALSE)),"Err",VLOOKUP(StaffRatiosPositions,Staff,14,FALSE)) -> 45
B67: Non-Supervisory Positions Total | C67: 44 | D67: 30 | E67: 28 | F67: 21 | G67: 30 | H67: 37 | I67: 190
C68: Err | D68: Err | E68: Err | F68: Err | G68: Err | H68: Err | I68: Err
C69: Err | D69: Err | E69: Err | F69: Err | G69: Err | H69: Err | I69: Err
C70: Err | D70: Err | E70: Err | F70: Err | G70: Err | H70: Err | I70: Err
C71: Err | D71: Err | E71: Err | F71: Err | G71: Err | H71: Err | I71: Err
B72: DMO subtotal | C72: =SUM(C66:C71) -> 56 | D72: =SUM(D66:D71) -> 37 | E72: 35 | F72: 27 | G72: 36 | H72: 44 | I72: 235
B73: Out-bureau Staff Supported
B74: Office Staff | C74: =IF(ISERROR(VLOOKUP(StaffRatiosPositions,Staff,2,FALSE)),"Err",VLOOKUP(StaffRatiosPositions,Staff,2,FALSE)) -> 0 | D74: =IF(ISERROR(VLOOKUP(StaffRatiosPositions,Staff,4,FALSE)),"Err",VLOOKUP(StaffRatiosPositions,Staff,4,FALSE)) -> 2 | E74: =IF(ISERROR(VLOOKUP(StaffRatiosPositions,Staff,6,FALSE)),"Err",VLOOKUP(StaffRatiosPositions,Staff,6,FALSE)) -> 4 | F74: =IF(ISERROR(VLOOKUP(StaffRatiosPositions,Staff,8,FALSE)),"Err",VLOOKUP(StaffRatiosPositions,Staff,8,FALSE)) -> 1 | G74: =IF(ISERROR(VLOOKUP(StaffRatiosPositions,Staff,10,FALSE)),"Err",VLOOKUP(StaffRatiosPositions,Staff,10,FALSE)) -> 3 | H74: =IF(ISERROR(VLOOKUP(StaffRatiosPositions,Staff,12,FALSE)),"Err",VLOOKUP(StaffRatiosPositions,Staff,12,FALSE)) -> 0 | I74: =IF(ISERROR(VLOOKUP(StaffRatiosPositions,Staff,14,FALSE)),"Err",VLOOKUP(StaffRatiosPositions,Staff,14,FALSE)) -> 10
B75: Field Staff | C75: =IF(ISERROR(VLOOKUP(StaffRatiosPositions,Staff,2,FALSE)),"Err",VLOOKUP(StaffRatiosPositions,Staff,2,FALSE)) -> 14 | D75: =IF(ISERROR(VLOOKUP(StaffRatiosPositions,Staff,4,FALSE)),"Err",VLOOKUP(StaffRatiosPositions,Staff,4,FALSE)) -> 18 | E75: =IF(ISERROR(VLOOKUP(StaffRatiosPositions,Staff,6,FALSE)),"Err",VLOOKUP(StaffRatiosPositions,Staff,6,FALSE)) -> 23 | F75: =IF(ISERROR(VLOOKUP(StaffRatiosPositions,Staff,8,FALSE)),"Err",VLOOKUP(StaffRatiosPositions,Staff,8,FALSE)) -> 12 | G75: =IF(ISERROR(VLOOKUP(StaffRatiosPositions,Staff,10,FALSE)),"Err",VLOOKUP(StaffRatiosPositions,Staff,10,FALSE)) -> 9 | H75: =IF(ISERROR(VLOOKUP(StaffRatiosPositions,Staff,12,FALSE)),"Err",VLOOKUP(StaffRatiosPositions,Staff,12,FALSE)) -> 6 | I75: =IF(ISERROR(VLOOKUP(StaffRatiosPositions,Staff,14,FALSE)),"Err",VLOOKUP(StaffRatiosPositions,Staff,14,FALSE)) -> 82
B76: Out-bureau subtotal | C76: =SUM(C74:C75) -> 14 | D76: =SUM(D74:D75) -> 20 | E76: 27 | F76: 13 | G76: 12 | H76: 6 | I76: 92
B77: 10% Adjustment For Out Of Bureau Staff | C77: =C76*0.1 -> 1.4 | D77: =D76*0.1 -> 2 | E77: 2.7 | F77: 1.3 | G77: 1.2 | H77: 0.6 | I77: 9.2
B78: Total Staff Supported | C78: =C77+C72 -> 57.4 | D78: =D77+D72 -> 39 | E78: 37.7 | F78: 28.3 | G78: 37.2 | H78: 44.6 | I78: 244.2
B79: Info Tech Gen | C79: =IF(ISERROR(VLOOKUP(StaffRatiosPositions,Staff,2,FALSE)),"Err",VLOOKUP(StaffRatiosPositions,Staff,2,FALSE)) -> 1 | D79: =IF(ISERROR(VLOOKUP(StaffRatiosPositions,Staff,4,FALSE)),"Err",VLOOKUP(StaffRatiosPositions,Staff,4,FALSE)) -> 1 | E79: =IF(ISERROR(VLOOKUP(StaffRatiosPositions,Staff,6,FALSE)),"Err",VLOOKUP(StaffRatiosPositions,Staff,6,FALSE)) -> 1 | F79: =IF(ISERROR(VLOOKUP(StaffRatiosPositions,Staff,8,FALSE)),"Err",VLOOKUP(StaffRatiosPositions,Staff,8,FALSE)) -> 1 | G79: =IF(ISERROR(VLOOKUP(StaffRatiosPositions,Staff,10,FALSE)),"Err",VLOOKUP(StaffRatiosPositions,Staff,10,FALSE)) -> 0 | H79: =IF(ISERROR(VLOOKUP(StaffRatiosPositions,Staff,12,FALSE)),"Err",VLOOKUP(StaffRatiosPositions,Staff,12,FALSE)) -> 1 | I79: =IF(ISERROR(VLOOKUP(StaffRatiosPositions,Staff,14,FALSE)),"Err",VLOOKUP(StaffRatiosPositions,Staff,14,FALSE)) -> 5
B80: Staff/IT ratio (X:1) | C80: =IF(C79=0,0,C78/C79) -> 57.4 | D80: =IF(D79=0,0,D78/D79) -> 39 | E80: 37.7 | F80: 28.3 | G80: 0 | H80: 44.6 | I80: 48.84
B82: ="Optimum IT Staff @ " & IT_Staff_Support_Ratio & ":1 ratio" -> Optimum IT Staff @ 50:1 ratio | C82: =IF(IT_Staff_Support_Ratio=0,"No IT Ratio",(C78+C79)/IT_Staff_Support_Ratio) -> 1.168 | D82: 0.8 | E82: 0.774 | F82: 0.586 | G82: 0.744 | H82: 0.912 | I82: 4.984
B84: Difference IT Staff | C84: =IF(IT_Staff_Support_Ratio=0,"No IT Ratio",C79-C82) -> -0.168 | D84: 0.2 | E84: 0.226 | F84: 0.414 | G84: -0.744 | H84: 0.088 | I84: 0.016

Sheet Blasting
B3: Blasting Staffing Analysis
B4: =IF(Date_Of_Report=0,"No Date Of Report Entered",Date_Of_Report) -> 2015-04-24
B5: Office | C5: # Of Inspections | D5: ="Total Hours (@ " & Hrs_Blasting_Inspection & "hrs/insp)" -> Total Hours (@ 3.75hrs/insp) | E5: ="FTE of Previous Column (@ " & FTE & ")" -> FTE of Previous Column (@ 1500) | F5: Blasting Insp CATS Hours | G5: Blasting Hrs / Inspection | H5: Number Of Blasting Complaints | I5: Man Hours Expended For Complaints | J5: ="FTE For Complaints (@ " & FTE & ")" -> FTE For Complaints (@ 1500)
B8: Cambria | C8: =IF(ISERROR(VLOOKUP("Explosives",InspectionByCode,3,FALSE)),"No Inspections",VLOOKUP("Explosives",InspectionByCode,3,FALSE)) -> 570 | D8: =IF(Hrs_Blasting_Inspection=0,"No Hrs/Blast Inspection",C8*Hrs_Blasting_Inspection) -> 2137.5 | E8: =IF(FTE=0,"No FTE",D8/FTE) -> 1.425 | F8: =IF(ISERROR(VLOOKUP("Blasting Insp",CatsData,3,FALSE)),"No CATS Data",VLOOKUP("Blasting Insp",CatsData,3,FALSE)) -> 1549.25 | G8: =IF(OR(C8=0,C8="No Inspections"),0,F8/C8) -> 2.717982456 | H8: =IF(ISERROR(VLOOKUP("Blasting",ComplaintsData,2,FALSE)),"No Complaint Data",VLOOKUP("Blasting",ComplaintsData,2,FALSE)) -> 27 | I8: =IF(ISERROR(VLOOKUP("Blast Complaint Inv",CatsData,3,FALSE)),"No Complaint Data",VLOOKUP("Blast Complaint Inv",CatsData,3,FALSE)) -> 295.5 | J8: =IF(FTE=0,"No FTE",I8/FTE) -> 0.197
B9: Greensburg | C9: =IF(ISERROR(VLOOKUP("Explosives",InspectionByCode,4,FALSE)),"No Inspections",VLOOKUP("Explosives",InspectionByCode,4,FALSE)) -> 352 | D9: 1320 | E9: 0.88 | F9: =IF(ISERROR(VLOOKUP("Blasting Insp",CatsData,5,FALSE)),"No CATS Data",VLOOKUP("Blasting Insp",CatsData,5,FALSE)) -> 931 | G9: =IF(OR(C9=0,C9="No Inspections"),0,F9/C9) -> 2.644886364 | H9: =IF(ISERROR(VLOOKUP("Blasting",ComplaintsData,3,FALSE)),"No Complaint Data",VLOOKUP("Blasting",ComplaintsData,3,FALSE)) -> 29 | I9: =IF(ISERROR(VLOOKUP("Blast Complaint Inv",CatsData,5,FALSE)),"No Complaint Data",VLOOKUP("Blast Complaint Inv",CatsData,5,FALSE)) -> 299 | J9: 0.1993333333
B10: Knox | C10: =IF(ISERROR(VLOOKUP("Explosives",InspectionByCode,5,FALSE)),"No Inspections",VLOOKUP("Explosives",InspectionByCode,5,FALSE)) -> 127 | D10: 476.25 | E10: 0.3175 | F10: =IF(ISERROR(VLOOKUP("Blasting Insp",CatsData,6,FALSE)),"No CATS Data",VLOOKUP("Blasting Insp",CatsData,6,FALSE)) -> 741 | G10: =IF(OR(C10=0,C10="No Inspections"),0,F10/C10) -> 5.834645669 | H10: =IF(ISERROR(VLOOKUP("Blasting",ComplaintsData,4,FALSE)),"No Complaint Data",VLOOKUP("Blasting",ComplaintsData,4,FALSE)) -> 20 | I10: =IF(ISERROR(VLOOKUP("Blast Complaint Inv",CatsData,6,FALSE)),"No Complaint Data",VLOOKUP("Blast Complaint Inv",CatsData,6,FALSE)) -> 383 | J10: 0.2553333333
B11: Moshannon | C11: =IF(ISERROR(VLOOKUP("Explosives",InspectionByCode,6,FALSE)),"No Inspections",VLOOKUP("Explosives",InspectionByCode,6,FALSE)) -> 298 | D11: 1117.5 | E11: 0.745 | F11: =IF(ISERROR(VLOOKUP("Blasting Insp",CatsData,7,FALSE)),"No CATS Data",VLOOKUP("Blasting Insp",CatsData,7,FALSE)) -> 1239.75 | G11: =IF(OR(C11=0,C11="No Inspections"),0,F11/C11) -> 4.160234899 | H11: =IF(ISERROR(VLOOKUP("Blasting",ComplaintsData,5,FALSE)),"No Complaint Data",VLOOKUP("Blasting",ComplaintsData,5,FALSE)) -> 47 | I11: =IF(ISERROR(VLOOKUP("Blast Complaint Inv",CatsData,7,FALSE)),"No Complaint Data",VLOOKUP("Blast Complaint Inv",CatsData,7,FALSE)) -> 1014.92 | J11: 0.6766133333
B12: Pottsville | C12: =IF(ISERROR(VLOOKUP("Explosives",InspectionByCode,7,FALSE)),"No Inspections",VLOOKUP("Explosives",InspectionByCode,7,FALSE)) -> 683 | D12: 2561.25 | E12: 1.7075 | F12: =IF(ISERROR(VLOOKUP("Blasting Insp",CatsData,8,FALSE)),"No CATS Data",VLOOKUP("Blasting Insp",CatsData,8,FALSE)) -> 1894.25 | G12: =IF(OR(C12=0,C12="No Inspections"),0,F12/C12) -> 2.773426061 | H12: =IF(ISERROR(VLOOKUP("Blasting",ComplaintsData,6,FALSE)),"No Complaint Data",VLOOKUP("Blasting",ComplaintsData,6,FALSE)) -> 165 | I12: =IF(ISERROR(VLOOKUP("Blast Complaint Inv",CatsData,8,FALSE)),"No Complaint Data",VLOOKUP("Blast Complaint Inv",CatsData,8,FALSE)) -> 2331 | J12: 1.554
B13: Totals | C13: =SUM(C8:C12) -> 2030 | D13: 7612.5 | E13: 5.075 | F13: =SUM(F8:F12) -> 6355.25 | G13: =IF(C13=0,0,F13/C13) -> 3.130665025 | H13: =SUM(H8:H12) -> 288 | I13: =SUM(I8:I12) -> 4323.42 | J13: 2.88228
B15: Office | C15: Man Hours Calculated For Authorizations | D15: ="FTE For Authorizations (@ " & FTE & ")" -> FTE For Authorizations (@ 1500) | E15: ="Total Blasting FTE (@ " & FTE & ")" -> Total Blasting FTE (@ 1500) | F15: Current Authorized Blasting Complement | G15: Efficiency Ratio | H15: Minimum Required FTE | I15: Complement Projected Vs Actual
B18: =B8 -> Cambria | C18: =SUMIF(Authorization_Type_Catagory,"*blast*",INDIRECT($B18 & "Authorizations"))+SUMIF(Authorization_Type,"*Explosives*",INDIRECT($B18 & "Authorizations")) -> 574.75 | D18: =IF(FTE=0,"No FTE",C18/FTE) -> 0.3831666667 | E18: =SUM(D18,J8,E8) -> 2.005166667 | F18: =IF(ISERROR(VLOOKUP("Blasting & Explosives Insp",Staff,4,FALSE)),"Err",VLOOKUP("Blasting & Explosives Insp",Staff,4,FALSE)) -> 2 | G18: =IF(F18=0,0,E18/F18) -> 1.002583333 | H18: =IF(BlastingEfficiencyRatio=0,0,E18/BlastingEfficiencyRatio) -> 2.005166667 | I18: =F18-H18 -> -0.005166666667
B19: =B9 -> Greensburg | C19: =SUMIF(Authorization_Type_Catagory,"*blast*",INDIRECT($B19 & "Authorizations"))+SUMIF(Authorization_Type,"*Explosives*",INDIRECT($B19 & "Authorizations")) -> 472.75 | D19: 0.3151666667 | E19: 1.3945 | F19: =IF(ISERROR(VLOOKUP("Blasting & Explosives Insp",Staff,6,FALSE)),"Err",VLOOKUP("Blasting & Explosives Insp",Staff,6,FALSE)) -> 2 | G19: =IF(F19=0,0,E19/F19) -> 0.69725 | H19: 1.3945 | I19: 0.6055
B20: =B10 -> Knox | C20: =SUMIF(Authorization_Type_Catagory,"*blast*",INDIRECT($B20 & "Authorizations"))+SUMIF(Authorization_Type,"*Explosives*",INDIRECT($B20 & "Authorizations")) -> 415.5 | D20: 0.277 | E20: 0.8498333333 | F20: =IF(ISERROR(VLOOKUP("Blasting & Explosives Insp",Staff,8,FALSE)),"Err",VLOOKUP("Blasting & Explosives Insp",Staff,8,FALSE)) -> 1 | G20: =IF(F20=0,0,E20/F20) -> 0.8498333333 | H20: 0.8498333333 | I20: 0.1501666667
B21: =B11 -> Moshannon | C21: =SUMIF(Authorization_Type_Catagory,"*blast*",INDIRECT($B21 & "Authorizations"))+SUMIF(Authorization_Type,"*Explosives*",INDIRECT($B21 & "Authorizations")) -> 371.5 | D21: 0.2476666667 | E21: 1.66928 | F21: =IF(ISERROR(VLOOKUP("Blasting & Explosives Insp",Staff,10,FALSE)),"Err",VLOOKUP("Blasting & Explosives Insp",Staff,10,FALSE)) -> 2 | G21: =IF(F21=0,0,E21/F21) -> 0.83464 | H21: 1.66928 | I21: 0.33072
B22: =B12 -> Pottsville | C22: =SUMIF(Authorization_Type_Catagory,"*blast*",INDIRECT($B22 & "Authorizations"))+SUMIF(Authorization_Type,"*Explosives*",INDIRECT($B22 & "Authorizations")) -> 1611.25 | D22: 1.074166667 | E22: 4.335666667 | F22: =IF(ISERROR(VLOOKUP("Blasting & Explosives Insp",Staff,12,FALSE)),"Err",VLOOKUP("Blasting & Explosives Insp",Staff,12,FALSE)) -> 4 | G22: =IF(F22=0,0,E22/F22) -> 1.083916667 | H22: 4.335666667 | I22: -0.3356666667
B23: Totals | C23: =SUM(C18:C22) -> 3445.75 | D23: 2.297166667 | E23: 10.25444667 | F23: =SUM(F18:F22) -> 11 | G23: 1 | H23: 10.25444667 | I23: 0.7455533333

Sheet Inspections
B3: Inspection Staffing Analysis - All
B4: =IF(Date_Of_Report=0,"No Date Of Report Entered",Date_Of_Report) -> 2015-04-24
B5: Office | C5: Number Of Inspections Required | D5: Number Of Man Hours Required | E5: ="FTE For Required Inspections (@ " & FTE & ")" -> FTE For Required Inspections (@ 1500) | F5: Number Of Non-Blasting Complaints | G5: Man Hours Expended For Complaints | H5: ="FTE For Complaints (@ " & FTE & ")" -> FTE For Complaints (@ 1500) | I5: ="Number Of Completion Reports" -> Number Of Completion Reports | J5: ="Number Of Man Hours For Completion Reports" -> Number Of Man Hours For Completion Reports | K5: ="FTE For Completion Reports (@ " & FTE & ")" -> FTE For Completion Reports (@ 1500)
A8: 1 | B8: Cambria | C8: =IF('Inspections - Required'!$A$2="","No Insp Req",SUM(INDIRECT($B8&"_Inspections_Required"))) -> 4810.241096 | D8: =IF('Inspections - Required MH'!$A$2="","No Insp MH",SUM(INDIRECT($B8 & "_Inspections_Required_MH"))) -> 20837.08767 | E8: =IF(FTE=0,"No FTE",IF(D8="No Insp MH","No Insp MH",D8/FTE)) -> 13.89139178 | F8: =IF(Complaints!$A$3="","No Complaints",SUM(INDIRECT($B8 & "_Complaints"))-IF(ISERROR(VLOOKUP("Blasting",ComplaintsData,MATCH($B8,Complaints_Header,0),FALSE)),0,VLOOKUP("Blasting",ComplaintsData,MATCH($B8,Complaints_Header,0),FALSE))) -> 82 | G8: =IF('CATS - Class Activity Codes'!$A$2="","No CATS Data",IF(ISERROR(VLOOKUP("Complaint Inv",CatsData,MATCH($B8,CATS_Data_Header,0),FALSE)),0,VLOOKUP("Complaint Inv",CatsData,MATCH($B8,CATS_Data_Header,0),FALSE))) -> 394.75 | H8: =IF(FTE=0,"No FTE",IF(G8="No CATS Data","No CATS Data",G8/FTE)) -> 0.2631666667 | I8: =IF('Authorizations - Count'!$A$2="","No Auth Count",SUMIF(Authorization_Type_Category_Authorizations_Count,"Completion Reports",INDIRECT($B8 & "_Authorizations_Count"))) -> 94 | J8: =IF(Authorizations!$A$2 = "","No Auths",SUMIF(Authorization_Type_Catagory,"Completion Reports",INDIRECT($B8 & "Authorizations"))) -> 940 | K8: =IF(FTE=0,"No FTE",IF(J8="No Auths","No Auths",J8/FTE)) -> 0.6266666667
A9: 2 | B9: Greensburg | C9: =IF('Inspections - Required'!$A$2="","No Insp Req",SUM(INDIRECT($B9&"_Inspections_Required"))) -> 3517.336986 | D9: =IF('Inspections - Required MH'!$A$2="","No Insp MH",SUM(INDIRECT($B9 & "_Inspections_Required_MH"))) -> 15794.08767 | E9: 10.52939178 | F9: =IF(Complaints!$A$3="","No Complaints",SUM(INDIRECT($B9 & "_Complaints"))-IF(ISERROR(VLOOKUP("Blasting",ComplaintsData,MATCH($B9,Complaints_Header,0),FALSE)),0,VLOOKUP("Blasting",ComplaintsData,MATCH($B9,Complaints_Header,0),FALSE))) -> 60 | G9: =IF('CATS - Class Activity Codes'!$A$2="","No CATS Data",IF(ISERROR(VLOOKUP("Complaint Inv",CatsData,MATCH($B9,CATS_Data_Header,0),FALSE)),0,VLOOKUP("Complaint Inv",CatsData,MATCH($B9,CATS_Data_Header,0),FALSE))) -> 310.5 | H9: 0.207 | I9: =IF('Authorizations - Count'!$A$2="","No Auth Count",SUMIF(Authorization_Type_Category_Authorizations_Count,"Completion Reports",INDIRECT($B9 & "_Authorizations_Count"))) -> 67 | J9: =IF(Authorizations!$A$2 = "","No Auths",SUMIF(Authorization_Type_Catagory,"Completion Reports",INDIRECT($B9 & "Authorizations"))) -> 670 | K9: =IF(FTE=0,"No FTE",IF(J9="No Auths","No Auths",J9/FTE)) -> 0.4466666667
A10: 3 | B10: Knox | C10: =IF('Inspections - Required'!$A$2="","No Insp Req",SUM(INDIRECT($B10&"_Inspections_Required"))) -> 3406.50411 | D10: =IF('Inspections - Required MH'!$A$2="","No Insp MH",SUM(INDIRECT($B10 & "_Inspections_Required_MH"))) -> 14671.50685 | E10: 9.781004566 | F10: =IF(Complaints!$A$3="","No Complaints",SUM(INDIRECT($B10 & "_Complaints"))-IF(ISERROR(VLOOKUP("Blasting",ComplaintsData,MATCH($B10,Complaints_Header,0),FALSE)),0,VLOOKUP("Blasting",ComplaintsData,MATCH($B10,Complaints_Header,0),FALSE))) -> 64 | G10: =IF('CATS - Class Activity Codes'!$A$2="","No CATS Data",IF(ISERROR(VLOOKUP("Complaint Inv",CatsData,MATCH($B10,CATS_Data_Header,0),FALSE)),0,VLOOKUP("Complaint Inv",CatsData,MATCH($B10,CATS_Data_Header,0),FALSE))) -> 486.75 | H10: 0.3245 | I10: =IF('Authorizations - Count'!$A$2="","No Auth Count",SUMIF(Authorization_Type_Category_Authorizations_Count,"Completion Reports",INDIRECT($B10 & "_Authorizations_Count"))) -> 67 | J10: =IF(Authorizations!$A$2 = "","No Auths",SUMIF(Authorization_Type_Catagory,"Completion Reports",INDIRECT($B10 & "Authorizations"))) -> 670 | K10: =IF(FTE=0,"No FTE",IF(J10="No Auths","No Auths",J10/FTE)) -> 0.4466666667
A11: 4 | B11: Moshannon | C11: =IF('Inspections - Required'!$A$2="","No Insp Req",SUM(INDIRECT($B11&"_Inspections_Required"))) -> 3818.813699 | D11: =IF('Inspections - Required MH'!$A$2="","No Insp MH",SUM(INDIRECT($B11 & "_Inspections_Required_MH"))) -> 16193.25753 | E11: 10.79550502 | F11: =IF(Complaints!$A$3="","No Complaints",SUM(INDIRECT($B11 & "_Complaints"))-IF(ISERROR(VLOOKUP("Blasting",ComplaintsData,MATCH($B11,Complaints_Header,0),FALSE)),0,VLOOKUP("Blasting",ComplaintsData,MATCH($B11,Complaints_Header,0),FALSE))) -> 32 | G11: =IF('CATS - Class Activity Codes'!$A$2="","No CATS Data",IF(ISERROR(VLOOKUP("Complaint Inv",CatsData,MATCH($B11,CATS_Data_Header,0),FALSE)),0,VLOOKUP("Complaint Inv",CatsData,MATCH($B11,CATS_Data_Header,0),FALSE))) -> 357.5 | H11: 0.2383333333 | I11: =IF('Authorizations - Count'!$A$2="","No Auth Count",SUMIF(Authorization_Type_Category_Authorizations_Count,"Completion Reports",INDIRECT($B11 & "_Authorizations_Count"))) -> 62 | J11: =IF(Authorizations!$A$2 = "","No Auths",SUMIF(Authorization_Type_Catagory,"Completion Reports",INDIRECT($B11 & "Authorizations"))) -> 620 | K11: =IF(FTE=0,"No FTE",IF(J11="No Auths","No Auths",J11/FTE)) -> 0.4133333333
A12: 5 | B12: Pottsville | C12: =IF('Inspections - Required'!$A$2="","No Insp Req",SUM(INDIRECT($B12&"_Inspections_Required"))) -> 6281.454795 | D12: =IF('Inspections - Required MH'!$A$2="","No Insp MH",SUM(INDIRECT($B12 & "_Inspections_Required_MH"))) -> 24693.47671 | E12: 16.46231781 | F12: =IF(Complaints!$A$3="","No Complaints",SUM(INDIRECT($B12 & "_Complaints"))-IF(ISERROR(VLOOKUP("Blasting",ComplaintsData,MATCH($B12,Complaints_Header,0),FALSE)),0,VLOOKUP("Blasting",ComplaintsData,MATCH($B12,Complaints_Header,0),FALSE))) -> 118 | G12: =IF('CATS - Class Activity Codes'!$A$2="","No CATS Data",IF(ISERROR(VLOOKUP("Complaint Inv",CatsData,MATCH($B12,CATS_Data_Header,0),FALSE)),0,VLOOKUP("Complaint Inv",CatsData,MATCH($B12,CATS_Data_Header,0),FALSE))) -> 752.25 | H12: 0.5015 | I12: =IF('Authorizations - Count'!$A$2="","No Auth Count",SUMIF(Authorization_Type_Category_Authorizations_Count,"Completion Reports",INDIRECT($B12 & "_Authorizations_Count"))) -> 49 | J12: =IF(Authorizations!$A$2 = "","No Auths",SUMIF(Authorization_Type_Catagory,"Completion Reports",INDIRECT($B12 & "Authorizations"))) -> 490 | K12: =IF(FTE=0,"No FTE",IF(J12="No Auths","No Auths",J12/FTE)) -> 0.3266666667
B13: Totals | C13: =IF('Inspections - Required'!$A$2="","No Insp Req",SUM(C8:C12)) -> 21834.35068 | D13: =IF('Inspections - Required MH'!$A$2="","No Insp MH",SUM(D8:D12)) -> 92189.41644 | E13: 61.45961096 | F13: =IF(Complaints!$A$3="","No Complaints",SUM(F8:F12)) -> 356 | G13: =IF('CATS - Class Activity Codes'!$A$2="","No CATS Data",SUM(G8:G12)) -> 2301.75 | H13: 1.5345 | I13: =IF('Authorizations - Count'!$A$2="","No Auth Count",SUM(I8:I12)) -> 339 | J13: =IF(Authorizations!$A$2 = "","No Auths",SUM(J8:J12)) -> 3390 | K13: =IF(FTE=0,"No FTE",IF(J13="No Auths","No Auths",SUM(K8:K12))) -> 2.26
B15: Office | C15: Number Of Pre-Apps | D15: Man Hours For Pre-Apps | E15: ="FTE For Pre-Apps (@ " & FTE & ")" -> FTE For Pre-Apps (@ 1500) | F15: Number Of Small IM and Bluestone Apps | G15: Man Hours For Small IM and Bluestone Apps | H15: ="FTE For Small IM and Bluestone Apps (@ " & FTE & ")" -> FTE For Small IM and Bluestone Apps (@ 1500) | I15: Number Of Surface, Undgrd, Prep, and Refuse Apps | J15: Man Hours For Surface, Undgrd, Prep, and Refuse Apps | K15: ="FTE For Surface, Undgrd, Prep, and Refuse Apps (@ " & FTE & ")" -> FTE For Surface, Undgrd, Prep, and Refuse Apps (@ 1500)
A18: 1 | B18: =$B8 -> Cambria | C18: =IF(Authorizations!$A$2 = "","No Auths",SUMIF(Authorization_Type_Category_Authorizations_Count,"CM and IM Pre-Apps",INDIRECT($B18 & "_Authorizations_Count"))) -> 8 | D18: =IF(Inspection_Hrs_For_PreApps=0,"No Hrs Defined",IF(C18="No Auths","No Auths",C18*Inspection_Hrs_For_PreApps)) -> 60 | E18: =IF(FTE=0,"No FTE",IF(D18="No Hrs Defined","No Hrs Defined",IF(D18="No Auths","No Auths",D18/FTE))) -> 0.04 | F18: =IF('Authorizations - Count'!$A$2="","No Auth Count",SUMIF(Ayth_Type_Cat_and_Type_Auth_Count,"BluestoneNew",INDIRECT($B18 & "_Authorizations_Count")) +SUMIF(Ayth_Type_Cat_and_Type_Auth_Count,"IM Small SurfaceNew",INDIRECT($B18 & "_Authorizations_Count"))) -> 0 | G18: =IF(Man_Hours_For_Small_IM_and_Bluestone_Apps=0,"No Hrs Defined",IF(F18="No Auth Count","No Auth Count",F18*Man_Hours_For_Small_IM_and_Bluestone_Apps)) -> 0 | H18: =IF(FTE=0,"No FTE",IF(G18="No Hrs Defined","No Hrs Defined",IF(G18="No Auth Count","No Auth Count",G18/FTE))) -> 0 | I18: =IF('Authorizations - Count'!$A$2="","No Auth Count",SUMIF(Ayth_Type_Cat_and_Type_Auth_Count,"CM Surface Mining PermitNew",INDIRECT($B18 & "_Authorizations_Count")) +SUMIF(Ayth_Type_Cat_and_Type_Auth_Count,"CM Underground Mining PermitNew",INDIRECT($B18 & "_Authorizations_Count"))+SUMIF(Ayth_Type_Cat_and_Type_Auth_Count,"Prep/Processing PlantNew",INDIRECT($B18 & "_Authorizations_Count"))+SUMIF(Ayth_Type_Cat_and_Type_Auth_Count,"Refuse DisposalNew",INDIRECT($B18 & "_Authorizations_Count"))) -> 14 | J18: =IF(Inspection_Man_Hours_For_Surface__Undgrd__Prep__and_Refuse_Apps=0,"No Hrs Defined",IF(I18="No Auth Count","No Auth Count",I18*Inspection_Man_Hours_For_Surface__Undgrd__Prep__and_Refuse_Apps)) -> 105 | K18: =IF(FTE=0,"No FTE",IF(Inspection_Man_Hours_For_Surface__Undgrd__Prep__and_Refuse_Apps=0,"No Hrs Defined",IF(J18="No Auth Count","No Auth Count",J18/FTE))) -> 0.07
A19: 2 | B19: =$B9 -> Greensburg | C19: =IF(Authorizations!$A$2 = "","No Auths",SUMIF(Authorization_Type_Category_Authorizations_Count,"CM and IM Pre-Apps",INDIRECT($B19 & "_Authorizations_Count"))) -> 9 | D19: =IF(Inspection_Hrs_For_PreApps=0,"No Hrs Defined",IF(C19="No Auths","No Auths",C19*Inspection_Hrs_For_PreApps)) -> 67.5 | E19: 0.045 | F19: =IF('Authorizations - Count'!$A$2="","No Auth Count",SUMIF(Ayth_Type_Cat_and_Type_Auth_Count,"BluestoneNew",INDIRECT($B19 & "_Authorizations_Count")) +SUMIF(Ayth_Type_Cat_and_Type_Auth_Count,"IM Small SurfaceNew",INDIRECT($B19 & "_Authorizations_Count"))) -> 0 | G19: =IF(Man_Hours_For_Small_IM_and_Bluestone_Apps=0,"No Hrs Defined",IF(F19="No Auth Count","No Auth Count",F19*Man_Hours_For_Small_IM_and_Bluestone_Apps)) -> 0 | H19: 0 | I19: =IF('Authorizations - Count'!$A$2="","No Auth Count",SUMIF(Ayth_Type_Cat_and_Type_Auth_Count,"CM Surface Mining PermitNew",INDIRECT($B19 & "_Authorizations_Count")) +SUMIF(Ayth_Type_Cat_and_Type_Auth_Count,"CM Underground Mining PermitNew",INDIRECT($B19 & "_Authorizations_Count"))+SUMIF(Ayth_Type_Cat_and_Type_Auth_Count,"Prep/Processing PlantNew",INDIRECT($B19 & "_Authorizations_Count"))+SUMIF(Ayth_Type_Cat_and_Type_Auth_Count,"Refuse DisposalNew",INDIRECT($B19 & "_Authorizations_Count"))) -> 12 | J19: 90 | K19: =IF(FTE=0,"No FTE",IF(Inspection_Man_Hours_For_Surface__Undgrd__Prep__and_Refuse_Apps=0,"No Hrs Defined",IF(J19="No Auth Count","No Auth Count",J19/FTE))) -> 0.06
A20: 3 | B20: =$B10 -> Knox | C20: =IF(Authorizations!$A$2 = "","No Auths",SUMIF(Authorization_Type_Category_Authorizations_Count,"CM and IM Pre-Apps",INDIRECT($B20 & "_Authorizations_Count"))) -> 14 | D20: =IF(Inspection_Hrs_For_PreApps=0,"No Hrs Defined",IF(C20="No Auths","No Auths",C20*Inspection_Hrs_For_PreApps)) -> 105 | E20: 0.07 | F20: =IF('Authorizations - Count'!$A$2="","No Auth Count",SUMIF(Ayth_Type_Cat_and_Type_Auth_Count,"BluestoneNew",INDIRECT($B20 & "_Authorizations_Count")) +SUMIF(Ayth_Type_Cat_and_Type_Auth_Count,"IM Small SurfaceNew",INDIRECT($B20 & "_Authorizations_Count"))) -> 8 | G20: =IF(Man_Hours_For_Small_IM_and_Bluestone_Apps=0,"No Hrs Defined",IF(F20="No Auth Count","No Auth Count",F20*Man_Hours_For_Small_IM_and_Bluestone_Apps)) -> 28 | H20: 0.01866666667 | I20: =IF('Authorizations - Count'!$A$2="","No Auth Count",SUMIF(Ayth_Type_Cat_and_Type_Auth_Count,"CM Surface Mining PermitNew",INDIRECT($B20 & "_Authorizations_Count")) +SUMIF(Ayth_Type_Cat_and_Type_Auth_Count,"CM Underground Mining PermitNew",INDIRECT($B20 & "_Authorizations_Count"))+SUMIF(Ayth_Type_Cat_and_Type_Auth_Count,"Prep/Processing PlantNew",INDIRECT($B20 & "_Authorizations_Count"))+SUMIF(Ayth_Type_Cat_and_Type_Auth_Count,"Refuse DisposalNew",INDIRECT($B20 & "_Authorizations_Count"))) -> 6 | J20: 45 | K20: =IF(FTE=0,"No FTE",IF(Inspection_Man_Hours_For_Surface__Undgrd__Prep__and_Refuse_Apps=0,"No Hrs Defined",IF(J20="No Auth Count","No Auth Count",J20/FTE))) -> 0.03
A21: 4 | B21: =$B11 -> Moshannon | C21: =IF(Authorizations!$A$2 = "","No Auths",SUMIF(Authorization_Type_Category_Authorizations_Count,"CM and IM Pre-Apps",INDIRECT($B21 & "_Authorizations_Count"))) -> 6 | D21: =IF(Inspection_Hrs_For_PreApps=0,"No Hrs Defined",IF(C21="No Auths","No Auths",C21*Inspection_Hrs_For_PreApps)) -> 45 | E21: 0.03 | F21: =IF('Authorizations - Count'!$A$2="","No Auth Count",SUMIF(Ayth_Type_Cat_and_Type_Auth_Count,"BluestoneNew",INDIRECT($B21 & "_Authorizations_Count")) +SUMIF(Ayth_Type_Cat_and_Type_Auth_Count,"IM Small SurfaceNew",INDIRECT($B21 & "_Authorizations_Count"))) -> 12 | G21: =IF(Man_Hours_For_Small_IM_and_Bluestone_Apps=0,"No Hrs Defined",IF(F21="No Auth Count","No Auth Count",F21*Man_Hours_For_Small_IM_and_Bluestone_Apps)) -> 42 | H21: 0.028 | I21: =IF('Authorizations - Count'!$A$2="","No Auth Count",SUMIF(Ayth_Type_Cat_and_Type_Auth_Count,"CM Surface Mining PermitNew",INDIRECT($B21 & "_Authorizations_Count")) +SUMIF(Ayth_Type_Cat_and_Type_Auth_Count,"CM Underground Mining PermitNew",INDIRECT($B21 & "_Authorizations_Count"))+SUMIF(Ayth_Type_Cat_and_Type_Auth_Count,"Prep/Processing PlantNew",INDIRECT($B21 & "_Authorizations_Count"))+SUMIF(Ayth_Type_Cat_and_Type_Auth_Count,"Refuse DisposalNew",INDIRECT($B21 & "_Authorizations_Count"))) -> 2 | J21: 15 | K21: =IF(FTE=0,"No FTE",IF(Inspection_Man_Hours_For_Surface__Undgrd__Prep__and_Refuse_Apps=0,"No Hrs Defined",IF(J21="No Auth Count","No Auth Count",J21/FTE))) -> 0.01
A22: 5 | B22: =$B12 -> Pottsville | C22: =IF(Authorizations!$A$2 = "","No Auths",SUMIF(Authorization_Type_Category_Authorizations_Count,"CM and IM Pre-Apps",INDIRECT($B22 & "_Authorizations_Count"))) -> 3 | D22: =IF(Inspection_Hrs_For_PreApps=0,"No Hrs Defined",IF(C22="No Auths","No Auths",C22*Inspection_Hrs_For_PreApps)) -> 22.5 | E22: 0.015 | F22: =IF('Authorizations - Count'!$A$2="","No Auth Count",SUMIF(Ayth_Type_Cat_and_Type_Auth_Count,"BluestoneNew",INDIRECT($B22 & "_Authorizations_Count")) +SUMIF(Ayth_Type_Cat_and_Type_Auth_Count,"IM Small SurfaceNew",INDIRECT($B22 & "_Authorizations_Count"))) -> 27 | G22: =IF(Man_Hours_For_Small_IM_and_Bluestone_Apps=0,"No Hrs Defined",IF(F22="No Auth Count","No Auth Count",F22*Man_Hours_For_Small_IM_and_Bluestone_Apps)) -> 94.5 | H22: 0.063 | I22: =IF('Authorizations - Count'!$A$2="","No Auth Count",SUMIF(Ayth_Type_Cat_and_Type_Auth_Count,"CM Surface Mining PermitNew",INDIRECT($B22 & "_Authorizations_Count")) +SUMIF(Ayth_Type_Cat_and_Type_Auth_Count,"CM Underground Mining PermitNew",INDIRECT($B22 & "_Authorizations_Count"))+SUMIF(Ayth_Type_Cat_and_Type_Auth_Count,"Prep/Processing PlantNew",INDIRECT($B22 & "_Authorizations_Count"))+SUMIF(Ayth_Type_Cat_and_Type_Auth_Count,"Refuse DisposalNew",INDIRECT($B22 & "_Authorizations_Count"))) -> 2 | J22: 15 | K22: =IF(FTE=0,"No FTE",IF(Inspection_Man_Hours_For_Surface__Undgrd__Prep__and_Refuse_Apps=0,"No Hrs Defined",IF(J22="No Auth Count","No Auth Count",J22/FTE))) -> 0.01
B23: Totals | C23: =IF(Authorizations!$A$2 = "","No Auths",SUM(C18:C22)) -> 40 | D23: =IF(Inspection_Hrs_For_PreApps=0,"No Hrs Defined",IF(C23="No Auths","No Auths",SUM(D18:D22))) -> 300 | E23: 0.2 | F23: =IF('Authorizations - Count'!$A$2="","No Auth Count",SUM(F18:F22)) -> 47 | G23: =IF(Man_Hours_For_Small_IM_and_Bluestone_Apps=0,"No Hrs Defined",IF(F23="No Auth Count","No Auth Count",SUM(G18:G22))) -> 164.5 | H23: 0.1096666667 | I23: =IF('Authorizations - Count'!$A$2="","No Auth Count",SUM(I18:I22)) -> 36 | J23: 270 | K23: =IF(FTE=0,"No FTE",IF(Inspection_Man_Hours_For_Surface__Undgrd__Prep__and_Refuse_Apps=0,"No Hrs Defined",IF(J22="No Auth Count","No Auth Count",J23/FTE))) -> 0.18
B25: Office | C25: Number Of Large IM Apps | D25: Man Hours For Large IM Apps | E25: ="FTE For Large IM Apps (@ " & FTE & ")" -> FTE For Large IM Apps (@ 1500) | F25: Man Hours For Miss Activities (63502, 63801, 63802, 63804, 63807, 63808) | G25: ="FTE For Miss Activities (@ " & FTE & ")" -> FTE For Miss Activities (@ 1500) | H25: Total FTE Required | I25: Current Inspector Complement | J25: Efficiency Ratio | K25: Minimum Required FTE | L25: Complement Projected Vs Actual
A28: 1 | B28: =$B8 -> Cambria | C28: =IF('Authorizations - Count'!$A$2="","No Auth Count",SUMIF(Ayth_Type_Cat_and_Type_Auth_Count,"IM Large SurfaceNew",INDIRECT($B28 & "_Authorizations_Count"))) -> 3 | D28: =IF(Man_Hours_For_Large_IM_Apps=0,"No Hrs Defined",IF(C28="No Auth Count","No Auth Count",C28*Man_Hours_For_Large_IM_Apps)) -> 22.5 | E28: =IF(FTE=0,"No FTE",IF(Man_Hours_For_Large_IM_Apps=0,"No Hrs Defined",IF(D28="No Auth Count","No Auth Count",D28/FTE))) -> 0.015 | F28: =IF('CATS - Class Activity Codes'!A2="","No CATS Data", IF(ISERROR(SUMPRODUCT(--((Classification_CATS_Class="ENVTL TRN")+(Classification_CATS_Class="SFRC MN CNSVN INSP"))*(Activity_Code_CATS_Class=63801),(INDIRECT($B18 & "_CATS_Class_Hrs")))),0, SUMPRODUCT(--((Classification_CATS_Class="ENVTL TRN")+(Classification_CATS_Class="SFRC MN CNSVN INSP"))*(Activity_Code_CATS_Class=63801),(INDIRECT($B18 & "_CATS_Class_Hrs")))) +IF(ISERROR(SUMPRODUCT(--((Classification_CATS_Class="ENVTL TRN")+(Classification_CATS_Class="SFRC MN CNSVN INSP"))*(Activity_Code_CATS_Class=63502),(INDIRECT($B18 & "_CATS_Class_Hrs")))),0, SUMPRODUCT(--((Classification_CATS_Class="ENVTL TRN")+(Classification_CATS_Class="SFRC MN CNSVN INSP"))*(Activity_Code_CATS_Class=63502),(INDIRECT($B18 & "_CATS_Class_Hrs")))) +IF(ISERROR(SUMPRODUCT(--((Classification_CATS_Class="ENVTL TRN")+(Classification_CATS_Class="SFRC MN CNSVN INSP"))*(Activity_Code_CATS_Class=63802),(INDIRECT($B18 & "_CATS_Class_Hrs")))),0, SUMPRODUCT(--((Classification_CATS_Class="ENVTL TRN")+(Classification_CATS_Class="SFRC MN CNSVN INSP"))*(Activity_Code_CATS_Class=63802),(INDIRECT($B18 & "_CATS_Class_Hrs")))) +IF(ISERROR(SUMPRODUCT(--((Classification_CATS_Class="ENVTL TRN")+(Classification_CATS_Class="SFRC MN CNSVN INSP"))*(Activity_Code_CATS_Class=63804),(INDIRECT($B18 & "_CATS_Class_Hrs")))),0, SUMPRODUCT(--((Classification_CATS_Class="ENVTL TRN")+(Classification_CATS_Class="SFRC MN CNSVN INSP"))*(Activity_Code_CATS_Class=63804),(INDIRECT($B18 & "_CATS_Class_Hrs")))) +IF(ISERROR(SUMPRODUCT(--((Classification_CATS_Class="ENVTL TRN")+(Classification_CATS_Class="SFRC MN CNSVN INSP"))*(Activity_Code_CATS_Class=63807),(INDIRECT($B18 & "_CATS_Class_Hrs")))),0, SUMPRODUCT(--((Classification_CATS_Class="ENVTL TRN")+(Classification_CATS_Class="SFRC MN CNSVN INSP"))*(Activity_Code_CATS_Class=63807),(INDIRECT($B18 & "_CATS_Class_Hrs")))) +IF(ISERROR(SUMPRODUCT(--((Classification_CATS_Class="ENVTL TRN")+(Classification_CATS_Class="SFRC MN CNSVN INSP"))*(Activity_Code_CATS_Class=63808),(INDIRECT($B18 & "_CATS_Class_Hrs")))),0, SUMPRODUCT(--((Classification_CATS_Class="ENVTL TRN")+(Classification_CATS_Class="SFRC MN CNSVN INSP"))*(Activity_Code_CATS_Class=63808),(INDIRECT($B18 & "_CATS_Class_Hrs"))))) -> 1786.5 | G28: =IF(FTE=0,"No FTE",IF(F28="No CATS Data","No CATS Data",F28/FTE)) -> 1.191 | H28: =IF(E8="No FTE","No FTE",IF(AND(ISNUMBER(E8),ISNUMBER(H8),ISNUMBER(K8),ISNUMBER(E18),ISNUMBER(H18),ISNUMBER(K18),ISNUMBER(E28),ISNUMBER(G28)),E8+H8+K8+E18+H18+K18+E28+G28,"Incomplete Data")) -> 16.09722511 | I28: =IF(ISERROR(VLOOKUP("SMCI/Mining Spec/Env Trainee (Compliance)",Staff,(MATCH($B28,Staffing_Header,0)+1),FALSE)),0,VLOOKUP("SMCI/Mining Spec/Env Trainee (Compliance)",Staff,(MATCH($B28,Staffing_Header,0)+1),FALSE)) -> 14 | J28: =IF(OR(H28="No FTE",H28="Incomplete Data"),H28,IF(I28=0,0,H28/I28)) -> 1.149801794 | K28: =IF(OR(H28="No FTE",H28="Incomplete Data"),H28,IF(OR(InspectionEfficiencyRatio="No FTE",InspectionEfficiencyRatio="Incomplete Data",InspectionEfficiencyRatio=0),InspectionEfficiencyRatio,H28/InspectionEfficiencyRatio)) -> 16.09722511 | L28: =IF(ISNUMBER(K28),I28-K28,K28) -> -2.097225114
A29: 2 | B29: =$B9 -> Greensburg | C29: =IF('Authorizations - Count'!$A$2="","No Auth Count",SUMIF(Ayth_Type_Cat_and_Type_Auth_Count,"IM Large SurfaceNew",INDIRECT($B29 & "_Authorizations_Count"))) -> 0 | D29: =IF(Man_Hours_For_Large_IM_Apps=0,"No Hrs Defined",IF(C29="No Auth Count","No Auth Count",C29*Man_Hours_For_Large_IM_Apps)) -> 0 | E29: 0 | F29: =IF('CATS - Class Activity Codes'!A3="","No CATS Data", IF(ISERROR(SUMPRODUCT(--((Classification_CATS_Class="ENVTL TRN")+(Classification_CATS_Class="SFRC MN CNSVN INSP"))*(Activity_Code_CATS_Class=63801),(INDIRECT($B19 & "_CATS_Class_Hrs")))),0, SUMPRODUCT(--((Classification_CATS_Class="ENVTL TRN")+(Classification_CATS_Class="SFRC MN CNSVN INSP"))*(Activity_Code_CATS_Class=63801),(INDIRECT($B19 & "_CATS_Class_Hrs")))) +IF(ISERROR(SUMPRODUCT(--((Classification_CATS_Class="ENVTL TRN")+(Classification_CATS_Class="SFRC MN CNSVN INSP"))*(Activity_Code_CATS_Class=63502),(INDIRECT($B19 & "_CATS_Class_Hrs")))),0, SUMPRODUCT(--((Classification_CATS_Class="ENVTL TRN")+(Classification_CATS_Class="SFRC MN CNSVN INSP"))*(Activity_Code_CATS_Class=63502),(INDIRECT($B19 & "_CATS_Class_Hrs")))) +IF(ISERROR(SUMPRODUCT(--((Classification_CATS_Class="ENVTL TRN")+(Classification_CATS_Class="SFRC MN CNSVN INSP"))*(Activity_Code_CATS_Class=63802),(INDIRECT($B19 & "_CATS_Class_Hrs")))),0, SUMPRODUCT(--((Classification_CATS_Class="ENVTL TRN")+(Classification_CATS_Class="SFRC MN CNSVN INSP"))*(Activity_Code_CATS_Class=63802),(INDIRECT($B19 & "_CATS_Class_Hrs")))) +IF(ISERROR(SUMPRODUCT(--((Classification_CATS_Class="ENVTL TRN")+(Classification_CATS_Class="SFRC MN CNSVN INSP"))*(Activity_Code_CATS_Class=63804),(INDIRECT($B19 & "_CATS_Class_Hrs")))),0, SUMPRODUCT(--((Classification_CATS_Class="ENVTL TRN")+(Classification_CATS_Class="SFRC MN CNSVN INSP"))*(Activity_Code_CATS_Class=63804),(INDIRECT($B19 & "_CATS_Class_Hrs")))) +IF(ISERROR(SUMPRODUCT(--((Classification_CATS_Class="ENVTL TRN")+(Classification_CATS_Class="SFRC MN CNSVN INSP"))*(Activity_Code_CATS_Class=63807),(INDIRECT($B19 & "_CATS_Class_Hrs")))),0, SUMPRODUCT(--((Classification_CATS_Class="ENVTL TRN")+(Classification_CATS_Class="SFRC MN CNSVN INSP"))*(Activity_Code_CATS_Class=63807),(INDIRECT($B19 & "_CATS_Class_Hrs")))) +IF(ISERROR(SUMPRODUCT(--((Classification_CATS_Class="ENVTL TRN")+(Classification_CATS_Class="SFRC MN CNSVN INSP"))*(Activity_Code_CATS_Class=63808),(INDIRECT($B19 & "_CATS_Class_Hrs")))),0, SUMPRODUCT(--((Classification_CATS_Class="ENVTL TRN")+(Classification_CATS_Class="SFRC MN CNSVN INSP"))*(Activity_Code_CATS_Class=63808),(INDIRECT($B19 & "_CATS_Class_Hrs"))))) -> 1179.7 | G29: 0.7864666667 | H29: 12.07452511 | I29: =IF(ISERROR(VLOOKUP("SMCI/Mining Spec/Env Trainee (Compliance)",Staff,(MATCH($B29,Staffing_Header,0)+1),FALSE)),0,VLOOKUP("SMCI/Mining Spec/Env Trainee (Compliance)",Staff,(MATCH($B29,Staffing_Header,0)+1),FALSE)) -> 11 | J29: 1.097684101 | K29: 12.07452511 | L29: -1.074525114
A30: 3 | B30: =$B10 -> Knox | C30: =IF('Authorizations - Count'!$A$2="","No Auth Count",SUMIF(Ayth_Type_Cat_and_Type_Auth_Count,"IM Large SurfaceNew",INDIRECT($B30 & "_Authorizations_Count"))) -> 2 | D30: =IF(Man_Hours_For_Large_IM_Apps=0,"No Hrs Defined",IF(C30="No Auth Count","No Auth Count",C30*Man_Hours_For_Large_IM_Apps)) -> 15 | E30: 0.01 | F30: =IF('CATS - Class Activity Codes'!A4="","No CATS Data", IF(ISERROR(SUMPRODUCT(--((Classification_CATS_Class="ENVTL TRN")+(Classification_CATS_Class="SFRC MN CNSVN INSP"))*(Activity_Code_CATS_Class=63801),(INDIRECT($B20 & "_CATS_Class_Hrs")))),0, SUMPRODUCT(--((Classification_CATS_Class="ENVTL TRN")+(Classification_CATS_Class="SFRC MN CNSVN INSP"))*(Activity_Code_CATS_Class=63801),(INDIRECT($B20 & "_CATS_Class_Hrs")))) +IF(ISERROR(SUMPRODUCT(--((Classification_CATS_Class="ENVTL TRN")+(Classification_CATS_Class="SFRC MN CNSVN INSP"))*(Activity_Code_CATS_Class=63502),(INDIRECT($B20 & "_CATS_Class_Hrs")))),0, SUMPRODUCT(--((Classification_CATS_Class="ENVTL TRN")+(Classification_CATS_Class="SFRC MN CNSVN INSP"))*(Activity_Code_CATS_Class=63502),(INDIRECT($B20 & "_CATS_Class_Hrs")))) +IF(ISERROR(SUMPRODUCT(--((Classification_CATS_Class="ENVTL TRN")+(Classification_CATS_Class="SFRC MN CNSVN INSP"))*(Activity_Code_CATS_Class=63802),(INDIRECT($B20 & "_CATS_Class_Hrs")))),0, SUMPRODUCT(--((Classification_CATS_Class="ENVTL TRN")+(Classification_CATS_Class="SFRC MN CNSVN INSP"))*(Activity_Code_CATS_Class=63802),(INDIRECT($B20 & "_CATS_Class_Hrs")))) +IF(ISERROR(SUMPRODUCT(--((Classification_CATS_Class="ENVTL TRN")+(Classification_CATS_Class="SFRC MN CNSVN INSP"))*(Activity_Code_CATS_Class=63804),(INDIRECT($B20 & "_CATS_Class_Hrs")))),0, SUMPRODUCT(--((Classification_CATS_Class="ENVTL TRN")+(Classification_CATS_Class="SFRC MN CNSVN INSP"))*(Activity_Code_CATS_Class=63804),(INDIRECT($B20 & "_CATS_Class_Hrs")))) +IF(ISERROR(SUMPRODUCT(--((Classification_CATS_Class="ENVTL TRN")+(Classification_CATS_Class="SFRC MN CNSVN INSP"))*(Activity_Code_CATS_Class=63807),(INDIRECT($B20 & "_CATS_Class_Hrs")))),0, SUMPRODUCT(--((Classification_CATS_Class="ENVTL TRN")+(Classification_CATS_Class="SFRC MN CNSVN INSP"))*(Activity_Code_CATS_Class=63807),(INDIRECT($B20 & "_CATS_Class_Hrs")))) +IF(ISERROR(SUMPRODUCT(--((Classification_CATS_Class="ENVTL TRN")+(Classification_CATS_Class="SFRC MN CNSVN INSP"))*(Activity_Code_CATS_Class=63808),(INDIRECT($B20 & "_CATS_Class_Hrs")))),0, SUMPRODUCT(--((Classification_CATS_Class="ENVTL TRN")+(Classification_CATS_Class="SFRC MN CNSVN INSP"))*(Activity_Code_CATS_Class=63808),(INDIRECT($B20 & "_CATS_Class_Hrs"))))) -> 686 | G30: 0.4573333333 | H30: 11.13817123 | I30: =IF(ISERROR(VLOOKUP("SMCI/Mining Spec/Env Trainee (Compliance)",Staff,(MATCH($B30,Staffing_Header,0)+1),FALSE)),0,VLOOKUP("SMCI/Mining Spec/Env Trainee (Compliance)",Staff,(MATCH($B30,Staffing_Header,0)+1),FALSE)) -> 8 | J30: 1.392271404 | K30: 11.13817123 | L30: -3.138171233
A31: 4 | B31: =$B11 -> Moshannon | C31: =IF('Authorizations - Count'!$A$2="","No Auth Count",SUMIF(Ayth_Type_Cat_and_Type_Auth_Count,"IM Large SurfaceNew",INDIRECT($B31 & "_Authorizations_Count"))) -> 1 | D31: =IF(Man_Hours_For_Large_IM_Apps=0,"No Hrs Defined",IF(C31="No Auth Count","No Auth Count",C31*Man_Hours_For_Large_IM_Apps)) -> 7.5 | E31: 0.005 | F31: =IF('CATS - Class Activity Codes'!A5="","No CATS Data", IF(ISERROR(SUMPRODUCT(--((Classification_CATS_Class="ENVTL TRN")+(Classification_CATS_Class="SFRC MN CNSVN INSP"))*(Activity_Code_CATS_Class=63801),(INDIRECT($B21 & "_CATS_Class_Hrs")))),0, SUMPRODUCT(--((Classification_CATS_Class="ENVTL TRN")+(Classification_CATS_Class="SFRC MN CNSVN INSP"))*(Activity_Code_CATS_Class=63801),(INDIRECT($B21 & "_CATS_Class_Hrs")))) +IF(ISERROR(SUMPRODUCT(--((Classification_CATS_Class="ENVTL TRN")+(Classification_CATS_Class="SFRC MN CNSVN INSP"))*(Activity_Code_CATS_Class=63502),(INDIRECT($B21 & "_CATS_Class_Hrs")))),0, SUMPRODUCT(--((Classification_CATS_Class="ENVTL TRN")+(Classification_CATS_Class="SFRC MN CNSVN INSP"))*(Activity_Code_CATS_Class=63502),(INDIRECT($B21 & "_CATS_Class_Hrs")))) +IF(ISERROR(SUMPRODUCT(--((Classification_CATS_Class="ENVTL TRN")+(Classification_CATS_Class="SFRC MN CNSVN INSP"))*(Activity_Code_CATS_Class=63802),(INDIRECT($B21 & "_CATS_Class_Hrs")))),0, SUMPRODUCT(--((Classification_CATS_Class="ENVTL TRN")+(Classification_CATS_Class="SFRC MN CNSVN INSP"))*(Activity_Code_CATS_Class=63802),(INDIRECT($B21 & "_CATS_Class_Hrs")))) +IF(ISERROR(SUMPRODUCT(--((Classification_CATS_Class="ENVTL TRN")+(Classification_CATS_Class="SFRC MN CNSVN INSP"))*(Activity_Code_CATS_Class=63804),(INDIRECT($B21 & "_CATS_Class_Hrs")))),0, SUMPRODUCT(--((Classification_CATS_Class="ENVTL TRN")+(Classification_CATS_Class="SFRC MN CNSVN INSP"))*(Activity_Code_CATS_Class=63804),(INDIRECT($B21 & "_CATS_Class_Hrs")))) +IF(ISERROR(SUMPRODUCT(--((Classification_CATS_Class="ENVTL TRN")+(Classification_CATS_Class="SFRC MN CNSVN INSP"))*(Activity_Code_CATS_Class=63807),(INDIRECT($B21 & "_CATS_Class_Hrs")))),0, SUMPRODUCT(--((Classification_CATS_Class="ENVTL TRN")+(Classification_CATS_Class="SFRC MN CNSVN INSP"))*(Activity_Code_CATS_Class=63807),(INDIRECT($B21 & "_CATS_Class_Hrs")))) +IF(ISERROR(SUMPRODUCT(--((Classification_CATS_Class="ENVTL TRN")+(Classification_CATS_Class="SFRC MN CNSVN INSP"))*(Activity_Code_CATS_Class=63808),(INDIRECT($B21 & "_CATS_Class_Hrs")))),0, SUMPRODUCT(--((Classification_CATS_Class="ENVTL TRN")+(Classification_CATS_Class="SFRC MN CNSVN INSP"))*(Activity_Code_CATS_Class=63808),(INDIRECT($B21 & "_CATS_Class_Hrs"))))) -> 1038 | G31: 0.692 | H31: 12.21217169 | I31: =IF(ISERROR(VLOOKUP("SMCI/Mining Spec/Env Trainee (Compliance)",Staff,(MATCH($B31,Staffing_Header,0)+1),FALSE)),0,VLOOKUP("SMCI/Mining Spec/Env Trainee (Compliance)",Staff,(MATCH($B31,Staffing_Header,0)+1),FALSE)) -> 11 | J31: 1.110197426 | K31: 12.21217169 | L31: -1.212171689
A32: 5 | B32: =$B12 -> Pottsville | C32: =IF('Authorizations - Count'!$A$2="","No Auth Count",SUMIF(Ayth_Type_Cat_and_Type_Auth_Count,"IM Large SurfaceNew",INDIRECT($B32 & "_Authorizations_Count"))) -> 2 | D32: =IF(Man_Hours_For_Large_IM_Apps=0,"No Hrs Defined",IF(C32="No Auth Count","No Auth Count",C32*Man_Hours_For_Large_IM_Apps)) -> 15 | E32: 0.01 | F32: =IF('CATS - Class Activity Codes'!A6="","No CATS Data", IF(ISERROR(SUMPRODUCT(--((Classification_CATS_Class="ENVTL TRN")+(Classification_CATS_Class="SFRC MN CNSVN INSP"))*(Activity_Code_CATS_Class=63801),(INDIRECT($B22 & "_CATS_Class_Hrs")))),0, SUMPRODUCT(--((Classification_CATS_Class="ENVTL TRN")+(Classification_CATS_Class="SFRC MN CNSVN INSP"))*(Activity_Code_CATS_Class=63801),(INDIRECT($B22 & "_CATS_Class_Hrs")))) +IF(ISERROR(SUMPRODUCT(--((Classification_CATS_Class="ENVTL TRN")+(Classification_CATS_Class="SFRC MN CNSVN INSP"))*(Activity_Code_CATS_Class=63502),(INDIRECT($B22 & "_CATS_Class_Hrs")))),0, SUMPRODUCT(--((Classification_CATS_Class="ENVTL TRN")+(Classification_CATS_Class="SFRC MN CNSVN INSP"))*(Activity_Code_CATS_Class=63502),(INDIRECT($B22 & "_CATS_Class_Hrs")))) +IF(ISERROR(SUMPRODUCT(--((Classification_CATS_Class="ENVTL TRN")+(Classification_CATS_Class="SFRC MN CNSVN INSP"))*(Activity_Code_CATS_Class=63802),(INDIRECT($B22 & "_CATS_Class_Hrs")))),0, SUMPRODUCT(--((Classification_CATS_Class="ENVTL TRN")+(Classification_CATS_Class="SFRC MN CNSVN INSP"))*(Activity_Code_CATS_Class=63802),(INDIRECT($B22 & "_CATS_Class_Hrs")))) +IF(ISERROR(SUMPRODUCT(--((Classification_CATS_Class="ENVTL TRN")+(Classification_CATS_Class="SFRC MN CNSVN INSP"))*(Activity_Code_CATS_Class=63804),(INDIRECT($B22 & "_CATS_Class_Hrs")))),0, SUMPRODUCT(--((Classification_CATS_Class="ENVTL TRN")+(Classification_CATS_Class="SFRC MN CNSVN INSP"))*(Activity_Code_CATS_Class=63804),(INDIRECT($B22 & "_CATS_Class_Hrs")))) +IF(ISERROR(SUMPRODUCT(--((Classification_CATS_Class="ENVTL TRN")+(Classification_CATS_Class="SFRC MN CNSVN INSP"))*(Activity_Code_CATS_Class=63807),(INDIRECT($B22 & "_CATS_Class_Hrs")))),0, SUMPRODUCT(--((Classification_CATS_Class="ENVTL TRN")+(Classification_CATS_Class="SFRC MN CNSVN INSP"))*(Activity_Code_CATS_Class=63807),(INDIRECT($B22 & "_CATS_Class_Hrs")))) +IF(ISERROR(SUMPRODUCT(--((Classification_CATS_Class="ENVTL TRN")+(Classification_CATS_Class="SFRC MN CNSVN INSP"))*(Activity_Code_CATS_Class=63808),(INDIRECT($B22 & "_CATS_Class_Hrs")))),0, SUMPRODUCT(--((Classification_CATS_Class="ENVTL TRN")+(Classification_CATS_Class="SFRC MN CNSVN INSP"))*(Activity_Code_CATS_Class=63808),(INDIRECT($B22 & "_CATS_Class_Hrs"))))) -> 863.25 | G32: 0.5755 | H32: 17.96398447 | I32: =IF(ISERROR(VLOOKUP("SMCI/Mining Spec/Env Trainee (Compliance)",Staff,(MATCH($B32,Staffing_Header,0)+1),FALSE)),0,VLOOKUP("SMCI/Mining Spec/Env Trainee (Compliance)",Staff,(MATCH($B32,Staffing_Header,0)+1),FALSE)) -> 16 | J32: 1.12274903 | K32: 17.96398447 | L32: -1.963984475
B33: Totals | C33: =IF('Authorizations - Count'!$A$2="","No Auth Count",SUM(C28:C32)) -> 8 | D33: =IF(Man_Hours_For_Large_IM_Apps=0,"No Hrs Defined",IF(C33="No Auth Count","No Auth Count",SUM(C33))) -> 8 | E33: 0.005333333333 | F33: =SUM(F28:F32) -> 5553.45 | G33: 3.7023 | H33: 69.45141096 | I33: =SUM(I28:I32) -> 60 | J33: 1 | K33: 69.45141096 | L33: -9.451410959

Sheet TMDL
B3: TMDL Staffing Analysis
B4: =IF(Date_Of_Report=0,"No Date Of Report Entered",Date_Of_Report) -> 2015-04-24
B5: Office | C5: Man Hours Assigned | D5: ="FTE For Man Hours Assigned (@ " & FTE & ")" -> FTE For Man Hours Assigned (@ 1500) | E5: Man Hours Expended | F5: ="FTE For Man Hours Expended (@ " & FTE & ")" -> FTE For Man Hours Expended (@ 1500) | G5: Complement Projected Vs Actual
B8: California | C8: 0 | D8: =IF(FTE=0,"No FTE",C8/FTE) -> 0 | E8: =IF(ISERROR(VLOOKUP("TMDL",CatsData,2,FALSE)),"No CATS Data",VLOOKUP("TMDL",CatsData,2,FALSE)) -> 6 | F8: =IF(FTE=0,"No FTE",E8/FTE) -> 0.004 | G8: =IF(D8="No FTE",D8,F8-D8) -> 0.004
B9: Cambria | C9: 0 | D9: 0 | E9: =IF(ISERROR(VLOOKUP("TMDL",CatsData,3,FALSE)),"No CATS Data",VLOOKUP("TMDL",CatsData,3,FALSE)) -> 22 | F9: 0.01466666667 | G9: =IF(D9="No FTE",D9,F9-D9) -> 0.01466666667
B10: Greensburg | C10: 0 | D10: 0 | E10: =IF(ISERROR(VLOOKUP("TMDL",CatsData,5,FALSE)),"No CATS Data",VLOOKUP("TMDL",CatsData,5,FALSE)) -> 0 | F10: 0 | G10: 0
B11: Knox | C11: 0 | D11: 0 | E11: =IF(ISERROR(VLOOKUP("TMDL",CatsData,6,FALSE)),"No CATS Data",VLOOKUP("TMDL",CatsData,6,FALSE)) -> 420.5 | F11: 0.2803333333 | G11: 0.2803333333
B12: Moshannon | C12: 0 | D12: 0 | E12: =IF(ISERROR(VLOOKUP("TMDL",CatsData,7,FALSE)),"No CATS Data",VLOOKUP("TMDL",CatsData,7,FALSE)) -> 359.5 | F12: 0.2396666667 | G12: 0.2396666667
B13: Pottsville | C13: 0 | D13: 0 | E13: =IF(ISERROR(VLOOKUP("TMDL",CatsData,8,FALSE)),"No CATS Data",VLOOKUP("TMDL",CatsData,8,FALSE)) -> 0 | F13: 0 | G13: 0
B14: Totals | C14: =SUM(C8:C13) -> 0 | D14: 0 | E14: =SUM(E8:E13) -> 808 | F14: 0.5386666667 | G14: 0.5386666667

Sheet Tech
B3: Tech Staffing Analysis
B4: =IF(Date_Of_Report=0,"No Date Of Report Entered",Date_Of_Report) -> 2015-04-24
B5: Office | C5: Man Hours For Required Autrhorizations * | D5: ="FTE For Required Autrhorizations * (@ " & FTE & ")" -> FTE For Required Autrhorizations * (@ 1500) | E5: Hydro/Geo Investigations | F5: Spec Rec Projects | G5: Litigation | H5: Comp / Public Info | I5: Total Investigation Time ** | J5: ="Investigation FTE (@ " & FTE & ")" -> Investigation FTE (@ 1500) | K5: ="Total FTE (@ " & FTE & ")" -> Total FTE (@ 1500) | L5: Current Tech Staff Complement *** | M5: Efficiency Ratio | N5: Minimum Required FTE | O5: Complement Projected Vs Actual
B8: California | C8: =SUM(INDIRECT($B8 & "Authorizations"))-(SUMIF(Authorization_Type_Catagory,"*blast*",INDIRECT($B8 & "Authorizations"))+SUMIF(Authorization_Type,"*Explosives*",INDIRECT($B8 & "Authorizations"))) -> 20856 | D8: =IF(FTE=0,"No FTE",C8/FTE) -> 13.904 | E8: =IF(ISERROR(VLOOKUP("Hydro/Geophyscl Inv",CatsData,2,FALSE)),"No CATS Data",VLOOKUP("Hydro/Geophyscl Inv",CatsData,2,FALSE)) -> 2440.5 | F8: =IF(ISERROR(VLOOKUP("Special Rec Projects",CatsData,2,FALSE)),"No CATS Data",VLOOKUP("Special Rec Projects",CatsData,2,FALSE)) -> 0 | G8: =IF(ISERROR(VLOOKUP("Litigation",CatsData,2,FALSE)),"No CATS Data",VLOOKUP("Litigation",CatsData,2,FALSE)) -> 653 | H8: =IF(OR(ISERROR(VLOOKUP("Complaint Inv",CatsData,2,FALSE)),ISERROR(VLOOKUP("Public Comm/Info",CatsData,2,FALSE))),"No CATS Data",VLOOKUP("Complaint Inv",CatsData,2,FALSE)+VLOOKUP("Public Comm/Info",CatsData,2,FALSE)) -> 3741.75 | I8: =SUM(E8:H8) -> 6835.25 | J8: =IF(FTE=0,"No FTE",I8/FTE) -> 4.556833333 | K8: =IF(FTE=0,"No FTE",J8+D8) -> 18.46083333 | L8: =IF(OR(ISERROR(VLOOKUP("Geologist",Staff,2,FALSE)), ISERROR(VLOOKUP("Engineer",Staff,2,FALSE)), ISERROR(VLOOKUP("Mining Spec/Env Trainee (Permits)",Staff,2,FALSE)), ISERROR(VLOOKUP("Water Pollution Biologist (Permits)",Staff,2,FALSE)), ISERROR(VLOOKUP("Mining Permit & Comp Spec (Permits)",Staff,2,FALSE))), "No Staff Data", VLOOKUP("Geologist",Staff,2,FALSE) +VLOOKUP("Engineer",Staff,2,FALSE) +VLOOKUP("Mining Spec/Env Trainee (Permits)",Staff,2,FALSE) +VLOOKUP("Water Pollution Biologist (Permits)",Staff,2,FALSE) +VLOOKUP("Mining Permit & Comp Spec (Permits)",Staff,2,FALSE)) -> 15 | M8: =IF(K8="No FTE",K8,IF(L8=0,"Check Staff",K8/L8)) -> 1.230722222 | N8: =IF(K8="No FTE",K8,IF(TechEfficiencyRatio=0,0,K8/TechEfficiencyRatio)) -> 17.3716865 | O8: =IF(N8="No FTE",N8,L8-N8) -> -2.371686496
B9: Cambria | C9: 11830 | D9: 7.886666667 | E9: =IF(ISERROR(VLOOKUP("Hydro/Geophyscl Inv",CatsData,3,FALSE)),"No CATS Data",VLOOKUP("Hydro/Geophyscl Inv",CatsData,3,FALSE)) -> 372.5 | F9: =IF(ISERROR(VLOOKUP("Special Rec Projects",CatsData,3,FALSE)),"No CATS Data",VLOOKUP("Special Rec Projects",CatsData,3,FALSE)) -> 944 | G9: =IF(ISERROR(VLOOKUP("Litigation",CatsData,3,FALSE)),"No CATS Data",VLOOKUP("Litigation",CatsData,3,FALSE)) -> 19.5 | H9: =IF(OR(ISERROR(VLOOKUP("Complaint Inv",CatsData,3,FALSE)),ISERROR(VLOOKUP("Public Comm/Info",CatsData,3,FALSE))),"No CATS Data",VLOOKUP("Complaint Inv",CatsData,3,FALSE)+VLOOKUP("Public Comm/Info",CatsData,3,FALSE)) -> 593.75 | I9: =SUM(E9:H9) -> 1929.75 | J9: 1.2865 | K9: 9.173166667 | L9: =IF(OR(ISERROR(VLOOKUP("Geologist",Staff,4,FALSE)), ISERROR(VLOOKUP("Engineer",Staff,4,FALSE)), ISERROR(VLOOKUP("Mining Spec/Env Trainee (Permits)",Staff,4,FALSE)), ISERROR(VLOOKUP("Water Pollution Biologist (Permits)",Staff,4,FALSE)), ISERROR(VLOOKUP("Mining Permit & Comp Spec (Permits)",Staff,4,FALSE))), "No Staff Data", VLOOKUP("Geologist",Staff,4,FALSE) +VLOOKUP("Engineer",Staff,4,FALSE) +VLOOKUP("Mining Spec/Env Trainee (Permits)",Staff,4,FALSE) +VLOOKUP("Water Pollution Biologist (Permits)",Staff,4,FALSE) +VLOOKUP("Mining Permit & Comp Spec (Permits)",Staff,4,FALSE)) -> 7 | M9: =IF(K9="No FTE",K9,IF(L9=0,"Check Staff",K9/L9)) -> 1.310452381 | N9: 8.631970867 | O9: =IF(N9="No FTE",N9,L9-N9) -> -1.631970867
B10: Greensburg | C10: 7394 | D10: 4.929333333 | E10: =IF(ISERROR(VLOOKUP("Hydro/Geophyscl Inv",CatsData,5,FALSE)),"No CATS Data",VLOOKUP("Hydro/Geophyscl Inv",CatsData,5,FALSE)) -> 161 | F10: =IF(ISERROR(VLOOKUP("Special Rec Projects",CatsData,5,FALSE)),"No CATS Data",VLOOKUP("Special Rec Projects",CatsData,5,FALSE)) -> 656.83 | G10: =IF(ISERROR(VLOOKUP("Litigation",CatsData,5,FALSE)),"No CATS Data",VLOOKUP("Litigation",CatsData,5,FALSE)) -> 135.33 | H10: =IF(OR(ISERROR(VLOOKUP("Complaint Inv",CatsData,5,FALSE)),ISERROR(VLOOKUP("Public Comm/Info",CatsData,5,FALSE))),"No CATS Data",VLOOKUP("Complaint Inv",CatsData,5,FALSE)+VLOOKUP("Public Comm/Info",CatsData,5,FALSE)) -> 1001 | I10: 1954.16 | J10: 1.302773333 | K10: 6.232106667 | L10: =IF(OR(ISERROR(VLOOKUP("Geologist",Staff,6,FALSE)), ISERROR(VLOOKUP("Engineer",Staff,6,FALSE)), ISERROR(VLOOKUP("Mining Spec/Env Trainee (Permits)",Staff,6,FALSE)), ISERROR(VLOOKUP("Water Pollution Biologist (Permits)",Staff,6,FALSE)), ISERROR(VLOOKUP("Mining Permit & Comp Spec (Permits)",Staff,6,FALSE))), "No Staff Data", VLOOKUP("Geologist",Staff,6,FALSE) +VLOOKUP("Engineer",Staff,6,FALSE) +VLOOKUP("Mining Spec/Env Trainee (Permits)",Staff,6,FALSE) +VLOOKUP("Water Pollution Biologist (Permits)",Staff,6,FALSE) +VLOOKUP("Mining Permit & Comp Spec (Permits)",Staff,6,FALSE)) -> 7 | M10: 0.8903009524 | N10: 5.864426663 | O10: 1.135573337
B11: Knox | C11: 5916 | D11: 3.944 | E11: =IF(ISERROR(VLOOKUP("Hydro/Geophyscl Inv",CatsData,6,FALSE)),"No CATS Data",VLOOKUP("Hydro/Geophyscl Inv",CatsData,6,FALSE)) -> 407.5 | F11: =IF(ISERROR(VLOOKUP("Special Rec Projects",CatsData,6,FALSE)),"No CATS Data",VLOOKUP("Special Rec Projects",CatsData,6,FALSE)) -> 629.75 | G11: =IF(ISERROR(VLOOKUP("Litigation",CatsData,6,FALSE)),"No CATS Data",VLOOKUP("Litigation",CatsData,6,FALSE)) -> 4 | H11: =IF(OR(ISERROR(VLOOKUP("Complaint Inv",CatsData,6,FALSE)),ISERROR(VLOOKUP("Public Comm/Info",CatsData,6,FALSE))),"No CATS Data",VLOOKUP("Complaint Inv",CatsData,6,FALSE)+VLOOKUP("Public Comm/Info",CatsData,6,FALSE)) -> 611.5 | I11: 1652.75 | J11: 1.101833333 | K11: 5.045833333 | L11: =IF(OR(ISERROR(VLOOKUP("Geologist",Staff,8,FALSE)), ISERROR(VLOOKUP("Engineer",Staff,8,FALSE)), ISERROR(VLOOKUP("Mining Spec/Env Trainee (Permits)",Staff,8,FALSE)), ISERROR(VLOOKUP("Water Pollution Biologist (Permits)",Staff,8,FALSE)), ISERROR(VLOOKUP("Mining Permit & Comp Spec (Permits)",Staff,8,FALSE))), "No Staff Data", VLOOKUP("Geologist",Staff,8,FALSE) +VLOOKUP("Engineer",Staff,8,FALSE) +VLOOKUP("Mining Spec/Env Trainee (Permits)",Staff,8,FALSE) +VLOOKUP("Water Pollution Biologist (Permits)",Staff,8,FALSE) +VLOOKUP("Mining Permit & Comp Spec (Permits)",Staff,8,FALSE)) -> 5 | M11: 1.009166667 | N11: 4.748140736 | O11: 0.2518592637
B12: Moshannon | C12: 8594.5 | D12: 5.729666667 | E12: =IF(ISERROR(VLOOKUP("Hydro/Geophyscl Inv",CatsData,7,FALSE)),"No CATS Data",VLOOKUP("Hydro/Geophyscl Inv",CatsData,7,FALSE)) -> 1722.09 | F12: =IF(ISERROR(VLOOKUP("Special Rec Projects",CatsData,7,FALSE)),"No CATS Data",VLOOKUP("Special Rec Projects",CatsData,7,FALSE)) -> 1814.25 | G12: =IF(ISERROR(VLOOKUP("Litigation",CatsData,7,FALSE)),"No CATS Data",VLOOKUP("Litigation",CatsData,7,FALSE)) -> 5.5 | H12: =IF(OR(ISERROR(VLOOKUP("Complaint Inv",CatsData,7,FALSE)),ISERROR(VLOOKUP("Public Comm/Info",CatsData,7,FALSE))),"No CATS Data",VLOOKUP("Complaint Inv",CatsData,7,FALSE)+VLOOKUP("Public Comm/Info",CatsData,7,FALSE)) -> 436.25 | I12: 3978.09 | J12: 2.65206 | K12: 8.381726667 | L12: =IF(OR(ISERROR(VLOOKUP("Geologist",Staff,10,FALSE)), ISERROR(VLOOKUP("Engineer",Staff,10,FALSE)), ISERROR(VLOOKUP("Mining Spec/Env Trainee (Permits)",Staff,10,FALSE)), ISERROR(VLOOKUP("Water Pollution Biologist (Permits)",Staff,10,FALSE)), ISERROR(VLOOKUP("Mining Permit & Comp Spec (Permits)",Staff,10,FALSE))), "No Staff Data", VLOOKUP("Geologist",Staff,10,FALSE) +VLOOKUP("Engineer",Staff,10,FALSE) +VLOOKUP("Mining Spec/Env Trainee (Permits)",Staff,10,FALSE) +VLOOKUP("Water Pollution Biologist (Permits)",Staff,10,FALSE) +VLOOKUP("Mining Permit & Comp Spec (Permits)",Staff,10,FALSE)) -> 8 | M12: 1.047715833 | N12: 7.887224012 | O12: 0.1127759881
B13: Pottsville | C13: 6352 | D13: 4.234666667 | E13: =IF(ISERROR(VLOOKUP("Hydro/Geophyscl Inv",CatsData,8,FALSE)),"No CATS Data",VLOOKUP("Hydro/Geophyscl Inv",CatsData,8,FALSE)) -> 186.75 | F13: =IF(ISERROR(VLOOKUP("Special Rec Projects",CatsData,8,FALSE)),"No CATS Data",VLOOKUP("Special Rec Projects",CatsData,8,FALSE)) -> 474 | G13: =IF(ISERROR(VLOOKUP("Litigation",CatsData,8,FALSE)),"No CATS Data",VLOOKUP("Litigation",CatsData,8,FALSE)) -> 456.5 | H13: =IF(OR(ISERROR(VLOOKUP("Complaint Inv",CatsData,8,FALSE)),ISERROR(VLOOKUP("Public Comm/Info",CatsData,8,FALSE))),"No CATS Data",VLOOKUP("Complaint Inv",CatsData,8,FALSE)+VLOOKUP("Public Comm/Info",CatsData,8,FALSE)) -> 1292.5 | I13: 2409.75 | J13: 1.6065 | K13: 5.841166667 | L13: =IF(OR(ISERROR(VLOOKUP("Geologist",Staff,12,FALSE)), ISERROR(VLOOKUP("Engineer",Staff,12,FALSE)), ISERROR(VLOOKUP("Mining Spec/Env Trainee (Permits)",Staff,12,FALSE)), ISERROR(VLOOKUP("Water Pollution Biologist (Permits)",Staff,12,FALSE)), ISERROR(VLOOKUP("Mining Permit & Comp Spec (Permits)",Staff,12,FALSE))), "No Staff Data", VLOOKUP("Geologist",Staff,12,FALSE) +VLOOKUP("Engineer",Staff,12,FALSE) +VLOOKUP("Mining Spec/Env Trainee (Permits)",Staff,12,FALSE) +VLOOKUP("Water Pollution Biologist (Permits)",Staff,12,FALSE) +VLOOKUP("Mining Permit & Comp Spec (Permits)",Staff,12,FALSE)) -> 8 | M13: 0.7301458333 | N13: 5.496551227 | O13: 2.503448773
B14: Totals | C14: =SUM(C8:C13) -> 60942.5 | D14: 40.62833333 | E14: 5290.34 | F14: 4518.83 | G14: 1273.83 | H14: 7676.75 | I14: 18759.75 | J14: 12.5065 | K14: 53.13483333 | L14: =SUM(L8:L13) -> 50 | M14: 1.062696667 | N14: 50 | O14: 0
B15: .
B16: ** Includes Spec Invest, Spec Rec, Lit and pub info and complaints in Cal
B17: *** Includes Geologist, Engineer, Mining Spec/Env Trainee (Permits), Water Pollution Biologist (Permits), Mining Permit & Comp Spec (Permits)

Sheet Miscellaneous
B3: Miscellaneous Staffing Analysis
B4: =IF(Date_Of_Report=0,"No Date Of Report Entered",Date_Of_Report) -> 2015-04-24
B5: Activity Code | C5: Activity | D5: Office | P5: Totals by Activity
B6: 58011 | C6: Map Scanning Project | D6: California | F6: Cambria | H6: Greensburg | J6: Knox | L6: Moshannon | N6: Pottsville
B7: 63000 | C7: General | D7: Hours | E7: FTE | F7: Hours | G7: FTE | H7: Hours | I7: FTE | J7: Hours | K7: FTE | L7: Hours | M7: FTE | N7: Hours | O7: FTE | P7: Hours | Q7: FTE
B8: 63502 | C8: =IF(MiscellaneousActivityCodes="","",IF(ISERROR(VLOOKUP(MiscellaneousActivityCodes,CATS_Data,2,FALSE)),"",VLOOKUP(MiscellaneousActivityCodes,CATS_Data,2,FALSE))) -> Research/Tech Devlp | D8: =IF(MiscellaneousActivityCodes="","",IF(ISERROR(VLOOKUP(MiscellaneousActivityCodes,CATS_Data,3,FALSE)),"No CATS Data",VLOOKUP(MiscellaneousActivityCodes,CATS_Data,3,FALSE))) -> 33.25 | E8: =IF(MiscellaneousActivityCodes="","",IF(FTE=0,"No FTE",D8/FTE)) -> 0.02216666667 | F8: =IF(MiscellaneousActivityCodes="","",IF(ISERROR(VLOOKUP(MiscellaneousActivityCodes,CATS_Data,4,FALSE)),"No CATS Data",VLOOKUP(MiscellaneousActivityCodes,CATS_Data,4,FALSE))) -> 0 | G8: =IF(MiscellaneousActivityCodes="","",IF(FTE=0,"No FTE",F8/FTE)) -> 0 | H8: =IF(MiscellaneousActivityCodes="","",IF(ISERROR(VLOOKUP(MiscellaneousActivityCodes,CATS_Data,6,FALSE)),"No CATS Data",VLOOKUP(MiscellaneousActivityCodes,CATS_Data,6,FALSE))) -> 93 | I8: =IF(MiscellaneousActivityCodes="","",IF(FTE=0,"No FTE",H8/FTE)) -> 0.062 | J8: =IF(MiscellaneousActivityCodes="","",IF(ISERROR(VLOOKUP(MiscellaneousActivityCodes,CATS_Data,7,FALSE)),"No CATS Data",VLOOKUP(MiscellaneousActivityCodes,CATS_Data,7,FALSE))) -> 0 | K8: =IF(MiscellaneousActivityCodes="","",IF(FTE=0,"No FTE",J8/FTE)) -> 0 | L8: =IF(MiscellaneousActivityCodes="","",IF(ISERROR(VLOOKUP(MiscellaneousActivityCodes,CATS_Data,8,FALSE)),"No CATS Data",VLOOKUP(MiscellaneousActivityCodes,CATS_Data,8,FALSE))) -> 0 | M8: =IF(MiscellaneousActivityCodes="","",IF(FTE=0,"No FTE",L8/FTE)) -> 0 | N8: =IF(MiscellaneousActivityCodes="","",IF(ISERROR(VLOOKUP(MiscellaneousActivityCodes,CATS_Data,9,FALSE)),"No CATS Data",VLOOKUP(MiscellaneousActivityCodes,CATS_Data,9,FALSE))) -> 0 | O8: =IF(MiscellaneousActivityCodes="","",IF(FTE=0,"No FTE",N8/FTE)) -> 0 | P8: =IF(MiscellaneousActivityCodes="","",SUM(N8,L8,J8,H8,F8,D8)) -> 126.25 | Q8: =IF(MiscellaneousActivityCodes="","",IF(FTE=0,"No FTE",P8/FTE)) -> 0.08416666667
B9: 63801 | C9: Training (Non IT) | D9: 1469.5 | E9: 0.9796666667 | F9: 2868 | G9: 1.912 | H9: 2341.45 | I9: 1.560966667 | J9: 941.5 | K9: 0.6276666667 | L9: 1924.25 | M9: 1.282833333 | N9: 710.25 | O9: 0.4735 | P9: =IF(MiscellaneousActivityCodes="","",SUM(N9,L9,J9,H9,F9,D9)) -> 10254.95 | Q9: 6.836633333
B10: 63802 | C10: Prog Supprt/Non-Cler | D10: 14.75 | E10: 0.009833333333 | F10: 48.25 | G10: 0.03216666667 | H10: 223.5 | I10: 0.149 | J10: 32 | K10: 0.02133333333 | L10: 683.5 | M10: 0.4556666667 | N10: 7.5 | O10: 0.005 | P10: 1009.5 | Q10: 0.673
B11: 63804 | C11: Vehicle/Equip Maint | D11: 90.75 | E11: 0.0605 | F11: 264.5 | G11: 0.1763333333 | H11: 189.5 | I11: 0.1263333333 | J11: 287.5 | K11: 0.1916666667 | L11: 274.25 | M11: 0.1828333333 | N11: 261.75 | O11: 0.1745 | P11: 1368.25 | Q11: 0.9121666667
B12: 63807 | C12: Imagine PA/CATS | D12: 237.5 | E12: 0.1583333333 | F12: 274 | G12: 0.1826666667 | H12: 163.83 | I12: 0.10922 | J12: 818.75 | K12: 0.5458333333 | L12: 561.49 | M12: 0.3743266667 | N12: 920.25 | O12: 0.6135 | P12: 2975.82 | Q12: 1.98388
B13: 63808 | C13: Staff Meetings | D13: 562 | E13: 0.3746666667 | F13: 834.75 | G13: 0.5565 | H13: 585 | I13: 0.39 | J13: 573.25 | K13: 0.3821666667 | L13: 944.75 | M13: 0.6298333333 | N13: 384.25 | O13: 0.2561666667 | P13: 3884 | Q13: 2.589333333
B24: Totals | D24: =SUM(D8:D23) -> 2407.75 | E24: =IF(FTE=0,"No FTE",D24/FTE) -> 1.605166667 | F24: =SUM(F8:F23) -> 4289.5 | G24: =IF(FTE=0,"No FTE",F24/FTE) -> 2.859666667 | H24: =SUM(H8:H23) -> 3596.28 | I24: =IF(FTE=0,"No FTE",H24/FTE) -> 2.39752 | J24: =SUM(J8:J23) -> 2653 | K24: =IF(FTE=0,"No FTE",J24/FTE) -> 1.768666667 | L24: =SUM(L8:L23) -> 4388.24 | M24: =IF(FTE=0,"No FTE",L24/FTE) -> 2.925493333 | N24: =SUM(N8:N23) -> 2284 | O24: =IF(FTE=0,"No FTE",N24/FTE) -> 1.522666667 | P24: =SUM(P8:P23) -> 19618.77 | Q24: =IF(FTE=0,"No FTE",P24/FTE) -> 13.07918
B25: =" FTE @ " & FTE & " " -> FTE @ 1500

Sheet CATS - Activity Codes
A1: Activity Code | B1: Activity Code Name | C1: California | D1: Cambria | E1: District Mining | F1: Greensburg | G1: Knox | H1: Moshannon | I1: Pottsville | J1: Bureau Wide Total | K1: Bureau Wide FTE | T1: 1 | AE1: 1 | AP1: 1 | BA1: 1 | BL1: 1 | BW1: 1 | CH1: 1 | CS1: 1 | DD1: 1 | DO1: 1 | DZ1: 1 | EK1: 1 | EV1: 1 | FG1: 1 | FR1: 1 | GC1: 1 | GN1: 1 | GY1: 1 | HJ1: 1 | HU1: 1 | IF1: 1 | IQ1: 1
A2: 8000 | B2: R2K Admin (hidden) | C2: 0 | D2: 0 | E2: 0 | F2: 0 | G2: 0 | H2: 0 | I2: 65.25 | J2: =SUM(C2:I2) -> 65.25 | K2: =IF(FTE=0,"No FTE",J2/FTE) -> 0.0435 | T2: 1 | AE2: 1 | AP2: 1 | BA2: 1 | BL2: 1 | BW2: 1 | CH2: 1 | CS2: 1
A3: 8100 | B3: R2K Search (hidden) | C3: 9 | D3: 0.5 | E3: 4.5 | F3: 28.25 | G3: 17 | H3: 3.58 | I3: 3 | J3: =SUM(C3:I3) -> 65.83 | K3: 0.04388666667 | M3: Activity Code Record Coloring Key
A4: 8200 | B4: R2K Retrieval (hidden) | C4: 5 | D4: 0.75 | E4: 6.25 | F4: 19 | G4: 0 | H4: 0 | I4: 4.25 | J4: 35.25 | K4: 0.0235
A5: 8300 | B5: R2K Redaction (hidden) | C5: 0 | D5: 0 | E5: 0 | F5: 0 | G5: 0 | H5: 0 | I5: 0 | J5: 0 | K5: 0 | M5: Activity Code Groups
A6: 58011 | B6: Mapping, Scanning, Digitizing | C6: 0 | D6: 0 | E6: 0 | F6: 0 | G6: 0 | H6: 0 | I6: 0 | J6: 0 | K6: 0 | M6: Blasting
A7: 63000 | B7: General (hidden) | C7: 0 | D7: 0 | E7: 0 | F7: 0 | G7: 0 | H7: 0 | I7: 0 | J7: 0 | K7: 0 | M7: Permitting
A8: 63001 | B8: Pre-App Review | C8: 2233.75 | D8: 449.75 | E8: 0 | F8: 1370 | G8: 1727 | H8: 734.25 | I8: 395.25 | J8: 6910 | K8: 4.606666667 | M8: MSI
A9: 63002 | B9: Surface Mine App Rev | C9: 28.5 | D9: 5877.25 | E9: 0 | F9: 2252.75 | G9: 1993.5 | H9: 4022 | I9: 2181.75 | J9: 16355.75 | K9: 10.90383333 | M9: Inspections
A10: 63003 | B10: Deep Mine App Rev | C10: 3005 | D10: 0 | E10: 0 | F10: 97.5 | G10: 4 | H10: 0 | I10: 9.25 | J10: 3115.75 | K10: 2.077166667 | M10: Misc
A11: 63004 | B11: Refuse Disp App Rev | C11: 693.25 | D11: 6.75 | E11: 0 | F11: 7.5 | G11: 0 | H11: 0 | I11: 0 | J11: 707.5 | K11: 0.4716666667 | M11: Clerical
A12: 63005 | B12: Prep Plant App Rev | C12: 200.5 | D12: 0 | E12: 0 | F12: 0 | G12: 0 | H12: 0 | I12: 0 | J12: 200.5 | K12: 0.1336666667 | M12: TMDL
A13: 63006 | B13: GFCC | C13: 0 | D13: 213.5 | E13: 0 | F13: 359.25 | G13: 151.25 | H13: 215 | I13: 6.5 | J13: 945.5 | K13: 0.6303333333
A14: 63007 | B14: CRDA Alternatives Analysis | C14: 50 | D14: 0 | E14: 0 | F14: 0 | G14: 0 | H14: 0 | I14: 0 | J14: 50 | K14: 0.03333333333
A15: 63008 | B15: Certification Review | C15: 82 | D15: 2.5 | E15: 0 | F15: 79.75 | G15: 17.5 | H15: 36.75 | I15: 0 | J15: 218.5 | K15: 0.1456666667
A16: 63011 | B16: Bond Liability Rev | C16: 382.5 | D16: 541 | E16: 0 | F16: 28.75 | G16: 178.25 | H16: 475 | I16: 2144.25 | J16: 3749.75 | K16: 2.499833333
A17: 63012 | B17: Water Treatment Liability | C17: 262.5 | D17: 629.5 | E17: 212 | F17: 423.75 | G17: 89.5 | H17: 408.5 | I17: 0 | J17: 2025.75 | K17: 1.3505
A18: 63015 | B18: Permit Renewal Rev | C18: 1908 | D18: 2077.25 | E18: 0 | F18: 1458.75 | G18: 653.25 | H18: 786.75 | I18: 2155.5 | J18: 9039.5 | K18: 6.026333333
A19: 63016 | B19: Permit Rev Major/Txf | C19: 5673.5 | D19: 332.25 | E19: 0 | F19: 783.75 | G19: 334.25 | H19: 1036.75 | I19: 2055 | J19: 10215.5 | K19: 6.810333333
A20: 63017 | B20: Permit Rev Minor | C20: 1116 | D20: 199 | E20: 0 | F20: 482 | G20: 652.75 | H20: 255.75 | I20: 1437 | J20: 4142.5 | K20: 2.761666667
A21: 63018 | B21: Exploration Activity | C21: 70.5 | D21: 61.75 | E21: 0 | F21: 107.5 | G21: 37.25 | H21: 2 | I21: 88.5 | J21: 367.5 | K21: 0.245
A22: 63021 | B22: 6-Mo Proj Maps Rev | C22: 1343.25 | D22: 0 | E22: 0 | F22: 0 | G22: 0 | H22: 4.5 | I22: 0 | J22: 1347.75 | K22: 0.8985
A23: 63022 | B23: Blasting Permit Rev | C23: 0 | D23: 1103.5 | E23: 0 | F23: 161.5 | G23: 526 | H23: 475.83 | I23: 1500.5 | J23: 3767.33 | K23: 2.511553333
A24: 63023 | B24: Blasting Security Plan | C24: 0 | D24: 17.5 | E24: 0 | F24: 61 | G24: 2.5 | H24: 9 | I24: 214.5 | J24: 304.5 | K24: 0.203
A25: 63100 | B25: Complete Insp | C25: 0 | D25: 9921 | E25: 0 | F25: 7267.84 | G25: 7445.83 | H25: 7887.5 | I25: 16785.75 | J25: 49307.92 | K25: 32.87194667
A26: 63102 | B26: Partial Insp | C26: 58 | D26: 10703.95 | E26: 0 | F26: 8374.2 | G26: 3735.92 | H26: 6760.75 | I26: 7766.99 | J26: 37399.81 | K26: 24.93320667
A27: 63108 | B27: Surface Subsid Insp | C27: 3809.25 | D27: 4 | E27: 0 | F27: 0 | G27: 0 | H27: 0 | I27: 0 | J27: 3813.25 | K27: 2.542166667
A28: 63109 | B28: DMS Undgrnd Sub Insp | C28: 0 | D28: 0 | E28: 0 | F28: 0 | G28: 0 | H28: 0 | I28: 0 | J28: 0 | K28: 0
A29: 63111 | B29: Blasting Insp | C29: 0 | D29: 1549.25 | E29: 3 | F29: 931 | G29: 741 | H29: 1239.75 | I29: 1894.25 | J29: 6358.25 | K29: 4.238833333
A30: 63112 | B30: Cmpltn Rpt/Bond Rel | C30: 56 | D30: 1058.5 | E30: 0 | F30: 511.75 | G30: 334.5 | H30: 647 | I30: 178.5 | J30: 2786.25 | K30: 1.8575
A31: 63200 | B31: Complnce/Enf Actvty | C31: 392.75 | D31: 1846.33 | E31: 22.5 | F31: 1661.61 | G31: 1025.75 | H31: 2215.92 | I31: 1626.75 | J31: 8791.61 | K31: 5.861073333
A32: 63205 | B32: Litigation | C32: 653 | D32: 19.5 | E32: 0 | F32: 135.33 | G32: 4 | H32: 5.5 | I32: 456.5 | J32: 1273.83 | K32: 0.84922
A33: 63301 | B33: Hydro/Geophyscl Inv | C33: 2440.5 | D33: 372.5 | E33: 0 | F33: 161 | G33: 407.5 | H33: 1722.09 | I33: 186.75 | J33: 5290.34 | K33: 3.526893333
A34: 63302 | B34: 105 Streams/Wetlands | C34: 628.5 | D34: 253 | E34: 0 | F34: 5.5 | G34: 560.75 | H34: 4.5 | I34: 330.5 | J34: 1782.75 | K34: =IF(FTE=0,"No FTE",J34/FTE) -> 1.1885
A35: 63304 | B35: Blast Complaint Inv | C35: 0 | D35: 295.5 | E35: 0 | F35: 299 | G35: 383 | H35: 1014.92 | I35: 2331 | J35: 4323.42 | K35: 2.88228
A36: 63306 | B36: Complaint Inv | C36: 1294.25 | D36: 394.75 | E36: 0 | F36: 310.5 | G36: 486.75 | H36: 357.5 | I36: 752.25 | J36: 3596 | K36: 2.397333333
A37: 63311 | B37: Accident Inv | C37: 0 | D37: 0 | E37: 0 | F37: 0 | G37: 66.5 | H37: 8 | I37: 45.75 | J37: 120.25 | K37: 0.08016666667
A38: 63400 | B38: Mine Sub Claim Inv | C38: 5372.75 | D38: 0 | E38: 0 | F38: 0 | G38: 0 | H38: 0 | I38: 0 | J38: 5372.75 | K38: 3.581833333
A39: 63401 | B39: Mine Sub Risk Assess | C39: 35.75 | D39: 0 | E39: 0 | F39: 0 | G39: 0 | H39: 0 | I39: 0 | J39: 35.75 | K39: 0.02383333333
A40: 63403 | B40: Mine Sub Struc Insp | C40: 1458.75 | D40: 0 | E40: 0 | F40: 0 | G40: 0 | H40: 0 | I40: 0 | J40: 1458.75 | K40: 0.9725
A41: 63405 | B41: MSI Sales/Polcy Actn | C41: 0 | D41: 0 | E41: 0 | F41: 0 | G41: 0 | H41: 0 | I41: 0 | J41: 0 | K41: 0
A42: 63407 | B42: Mine Sub Clm Stlmnts | C42: 1721.25 | D42: 0 | E42: 0 | F42: 0 | G42: 0 | H42: 0 | I42: 0 | J42: 1721.25 | K42: 1.1475
A43: 63409 | B43: MSI Marketing | C43: 0 | D43: 0 | E43: 0 | F43: 0 | G43: 0 | H43: 0 | I43: 0 | J43: 0 | K43: 0
A44: 63502 | B44: Research/Tech Devlp | C44: 33.25 | D44: 0 | E44: 0 | F44: 93 | G44: 0 | H44: 0 | I44: 0 | J44: 126.25 | K44: 0.08416666667
A45: 63513 | B45: Beneficial Use of Coal Ash | C45: 4 | D45: 0 | E45: 6 | F45: 0 | G45: 0 | H45: 112 | I45: 244.5 | J45: 366.5 | K45: 0.2443333333
A46: 63601 | B46: Watershed Projects | C46: 0 | D46: 98.5 | E46: 11.5 | F46: 367.5 | G46: 40.25 | H46: 226 | I46: 1053.75 | J46: 1797.5 | K46: 1.198333333
A47: 63602 | B47: TMDL | C47: 6 | D47: 22 | E47: 0 | F47: 0 | G47: 420.5 | H47: 359.5 | I47: 0 | J47: 808 | K47: 0.5386666667
A48: 63603 | B48: Special Rec Projects | C48: 0 | D48: 944 | E48: 158.75 | F48: 656.83 | G48: 629.75 | H48: 1814.25 | I48: 474 | J48: 4677.58 | K48: 3.118386667
A49: 63604 | B49: Area Unsuitable (UFM) | C49: 0 | D49: 0 | E49: 0 | F49: 0 | G49: 0 | H49: 0 | I49: 1 | J49: 1 | K49: 0.0006666666667
A50: 63700 | B50: Database Activity | C50: 13139.31 | D50: 2580.25 | E50: 38 | F50: 864.15 | G50: 1586 | H50: 2214.17 | I50: 1179.75 | J50: 21601.63 | K50: 14.40108667
A51: 63701 | B51: Mineral Prod Systm | C51: 0 | D51: 0.5 | E51: 39.75 | F51: 0 | G51: 16 | H51: 0 | I51: 0 | J51: 56.25 | K51: 0.0375
A52: 63712 | B52: Info Tech Activity | C52: 1666.75 | D52: 1.5 | E52: 1613.25 | F52: 27 | G52: 0.5 | H52: 68 | I52: 25.5 | J52: 3402.5 | K52: 2.268333333
A53: 63800 | B53: Prog Mgmt/Sprvsn | C53: 7517 | D53: 5110.5 | E53: 4740 | F53: 2633.5 | G53: 4955.25 | H53: 4149 | I53: 7483.5 | J53: 36588.75 | K53: 24.3925
A54: 63801 | B54: Training (Non IT) | C54: 1469.5 | D54: 2868 | E54: 73.5 | F54: 2341.45 | G54: 941.5 | H54: 1924.25 | I54: 710.25 | J54: 10328.45 | K54: 6.885633333
A55: 63802 | B55: Prog Supprt/Non-Cler | C55: 14.75 | D55: 48.25 | E55: 0 | F55: 223.5 | G55: 32 | H55: 683.5 | I55: 7.5 | J55: =SUM(C55:I55) -> 1009.5 | K55: 0.673
A56: 63804 | B56: Vehicle/Equip Maint | C56: 90.75 | D56: 264.5 | E56: 73.5 | F56: 189.5 | G56: 287.5 | H56: 274.25 | I56: 261.75 | J56: 1441.75 | K56: 0.9611666667
A57: 63805 | B57: Clerical Support | C57: 8379.5 | D57: 3304.24 | E57: 0 | F57: 8325 | G57: 4851.75 | H57: 4329.25 | I57: 5333.25 | J57: 34522.99 | K57: 23.01532667
A58: 63807 | B58: Imagine PA/CATS | C58: 237.5 | D58: 274 | E58: 164.25 | F58: 163.83 | G58: 818.75 | H58: 561.49 | I58: 920.25 | J58: 3140.07 | K58: 2.09338
A59: 63808 | B59: Staff Meetings | C59: 562 | D59: 834.75 | E59: 324.75 | F59: 585 | G59: 573.25 | H59: 944.75 | I59: 384.25 | J59: 4208.75 | K59: 2.805833333
A60: 63830 | B60: Public Comm/Info | C60: 2447.5 | D60: 199 | E60: 18.75 | F60: 690.5 | G60: 124.75 | H60: 78.75 | I60: 540.25 | J60: 4099.5 | K60: 2.733
A61: 63908 | B61: Facilities Management | C61: 3.5 | D61: 78.25 | E61: 226 | F61: 439.5 | G61: 0 | H61: 13 | I61: 3.75 | J61: 764 | K61: 0.5093333333
J62: 0 | K62: 0
J63: 0 | K63: 0
J64: 0 | K64: 0
J65: 0 | K65: 0
J66: 0 | K66: =IF(FTE=0,"No FTE",J66/FTE) -> 0
J67: 0 | K67: 0
J68: 0 | K68: 0
J69: 0 | K69: 0
J70: 0 | K70: 0
J71: 0 | K71: 0
A72: Grand Total | C72: =SUM(C2:C71) -> 70555.31 | D72: =SUM(D2:D71) -> 54559.27 | E72: 7736.25 | F72: 44978.99 | G72: 36853.25 | H72: 48081.25 | I72: 63238.74 | J72: =SUM(J2:J71) -> 326003.06 | K72: =SUM(C72:I72) -> 326003.06
A73: FTE | C73: =IF(FTE=0,"No FTE",C72/FTE) -> 47.03687333 | D73: 36.37284667 | E73: 5.1575 | F73: 29.98599333 | G73: 24.56883333 | H73: 32.05416667 | I73: 42.15916 | J73: 217.3353733 | K73: =IF(FTE=0,"No FTE",SUM(K2:K71)) -> 217.3353733

Sheet CATS - Class Activity Codes
A1: Classification | B1: Activity Code | C1: Activity Code Name | D1: California | E1: Cambria | F1: District Mining | G1: Greensburg | H1: Knox | I1: Moshannon | J1: Pottsville | K1: Bureau Wide Total | L1: Bureau Wide FTE
A2: ACCT 3 | B2: 8000 | C2: R2K Admin (hidden) | D2: 0 | E2: 0 | F2: 0 | G2: 0 | H2: 0 | I2: 0 | J2: 0 | K2: =SUM(D2:J2) -> 0 | L2: =IF(FTE=0,"No FTE",K2/FTE) -> 0
A3: ACCT 3 | B3: 8100 | C3: R2K Search (hidden) | D3: 0 | E3: 0 | F3: 0 | G3: 0 | H3: 0 | I3: 0 | J3: 0 | K3: =SUM(D3:J3) -> 0 | L3: 0
A4: ACCT 3 | B4: 8200 | C4: R2K Retrieval (hidden) | D4: 0 | E4: 0 | F4: 0 | G4: 0 | H4: 0 | I4: 0 | J4: 0 | K4: 0 | L4: 0
A5: ACCT 3 | B5: 8300 | C5: R2K Redaction (hidden) | D5: 0 | E5: 0 | F5: 0 | G5: 0 | H5: 0 | I5: 0 | J5: 0 | K5: 0 | L5: 0
A6: ACCT 3 | B6: 58011 | C6: Mapping, Scanning, Digitizing | D6: 0 | E6: 0 | F6: 0 | G6: 0 | H6: 0 | I6: 0 | J6: 0 | K6: 0 | L6: 0
A7: ACCT 3 | B7: 63000 | C7: General (hidden) | D7: 0 | E7: 0 | F7: 0 | G7: 0 | H7: 0 | I7: 0 | J7: 0 | K7: 0 | L7: 0
A8: ACCT 3 | B8: 63001 | C8: Pre-App Review | D8: 0 | E8: 0 | F8: 0 | G8: 0 | H8: 0 | I8: 0 | J8: 0 | K8: 0 | L8: 0
A9: ACCT 3 | B9: 63002 | C9: Surface Mine App Rev | D9: 0 | E9: 0 | F9: 0 | G9: 0 | H9: 0 | I9: 0 | J9: 0 | K9: 0 | L9: 0
A10: ACCT 3 | B10: 63003 | C10: Deep Mine App Rev | D10: 0 | E10: 0 | F10: 0 | G10: 0 | H10: 0 | I10: 0 | J10: 0 | K10: 0 | L10: 0
A11: ACCT 3 | B11: 63004 | C11: Refuse Disp App Rev | D11: 0 | E11: 0 | F11: 0 | G11: 0 | H11: 0 | I11: 0 | J11: 0 | K11: 0 | L11: 0
A12: ACCT 3 | B12: 63005 | C12: Prep Plant App Rev | D12: 0 | E12: 0 | F12: 0 | G12: 0 | H12: 0 | I12: 0 | J12: 0 | K12: 0 | L12: 0
A13: ACCT 3 | B13: 63006 | C13: GFCC | D13: 0 | E13: 0 | F13: 0 | G13: 0 | H13: 0 | I13: 0 | J13: 0 | K13: 0 | L13: 0
A14: ACCT 3 | B14: 63007 | C14: CRDA Alternatives Analysis | D14: 0 | E14: 0 | F14: 0 | G14: 0 | H14: 0 | I14: 0 | J14: 0 | K14: 0 | L14: 0
A15: ACCT 3 | B15: 63008 | C15: Certification Review | D15: 0 | E15: 0 | F15: 0 | G15: 0 | H15: 0 | I15: 0 | J15: 0 | K15: 0 | L15: 0
A16: ACCT 3 | B16: 63011 | C16: Bond Liability Rev | D16: 0 | E16: 0 | F16: 0 | G16: 0 | H16: 0 | I16: 0 | J16: 0 | K16: 0 | L16: 0
A17: ACCT 3 | B17: 63012 | C17: Water Treatment Liability | D17: 0 | E17: 0 | F17: 0 | G17: 0 | H17: 0 | I17: 0 | J17: 0 | K17: 0 | L17: 0
A18: ACCT 3 | B18: 63015 | C18: Permit Renewal Rev | D18: 0 | E18: 0 | F18: 0 | G18: 0 | H18: 0 | I18: 0 | J18: 0 | K18: 0 | L18: 0
A19: ACCT 3 | B19: 63016 | C19: Permit Rev Major/Txf | D19: 0 | E19: 0 | F19: 0 | G19: 0 | H19: 0 | I19: 0 | J19: 0 | K19: 0 | L19: 0
A20: ACCT 3 | B20: 63017 | C20: Permit Rev Minor | D20: 0 | E20: 0 | F20: 0 | G20: 0 | H20: 0 | I20: 0 | J20: 0 | K20: 0 | L20: 0
A21: ACCT 3 | B21: 63018 | C21: Exploration Activity | D21: 0 | E21: 0 | F21: 0 | G21: 0 | H21: 0 | I21: 0 | J21: 0 | K21: 0 | L21: 0
A22: ACCT 3 | B22: 63021 | C22: 6-Mo Proj Maps Rev | D22: 0 | E22: 0 | F22: 0 | G22: 0 | H22: 0 | I22: 0 | J22: 0 | K22: 0 | L22: 0
A23: ACCT 3 | B23: 63022 | C23: Blasting Permit Rev | D23: 0 | E23: 0 | F23: 0 | G23: 0 | H23: 0 | I23: 0 | J23: 0 | K23: 0 | L23: 0
A24: ACCT 3 | B24: 63023 | C24: Blasting Security Plan | D24: 0 | E24: 0 | F24: 0 | G24: 0 | H24: 0 | I24: 0 | J24: 0 | K24: 0 | L24: 0
A25: ACCT 3 | B25: 63100 | C25: Complete Insp | D25: 0 | E25: 0 | F25: 0 | G25: 0 | H25: 0 | I25: 0 | J25: 0 | K25: 0 | L25: 0
A26: ACCT 3 | B26: 63102 | C26: Partial Insp | D26: 0 | E26: 0 | F26: 0 | G26: 0 | H26: 0 | I26: 0 | J26: 0 | K26: 0 | L26: 0
A27: ACCT 3 | B27: 63108 | C27: Surface Subsid Insp | D27: 0 | E27: 0 | F27: 0 | G27: 0 | H27: 0 | I27: 0 | J27: 0 | K27: 0 | L27: 0
A28: ACCT 3 | B28: 63109 | C28: DMS Undgrnd Sub Insp | D28: 0 | E28: 0 | F28: 0 | G28: 0 | H28: 0 | I28: 0 | J28: 0 | K28: 0 | L28: 0
A29: ACCT 3 | B29: 63111 | C29: Blasting Insp | D29: 0 | E29: 0 | F29: 0 | G29: 0 | H29: 0 | I29: 0 | J29: 0 | K29: 0 | L29: 0
A30: ACCT 3 | B30: 63112 | C30: Cmpltn Rpt/Bond Rel | D30: 0 | E30: 0 | F30: 0 | G30: 0 | H30: 0 | I30: 0 | J30: 0 | K30: 0 | L30: 0
A31: ACCT 3 | B31: 63200 | C31: Complnce/Enf Actvty | D31: 0 | E31: 0 | F31: 0 | G31: 0 | H31: 0 | I31: 0 | J31: 0 | K31: 0 | L31: 0
A32: ACCT 3 | B32: 63205 | C32: Litigation | D32: 0 | E32: 0 | F32: 0 | G32: 0 | H32: 0 | I32: 0 | J32: 0 | K32: 0 | L32: 0
A33: ACCT 3 | B33: 63301 | C33: Hydro/Geophyscl Inv | D33: 0 | E33: 0 | F33: 0 | G33: 0 | H33: 0 | I33: 0 | J33: 0 | K33: 0 | L33: 0
A34: ACCT 3 | B34: 63302 | C34: 105 Streams/Wetlands | D34: 0 | E34: 0 | F34: 0 | G34: 0 | H34: 0 | I34: 0 | J34: 0 | K34: 0 | L34: 0
A35: ACCT 3 | B35: 63304 | C35: Blast Complaint Inv | D35: 0 | E35: 0 | F35: 0 | G35: 0 | H35: 0 | I35: 0 | J35: 0 | K35: 0 | L35: 0
A36: ACCT 3 | B36: 63306 | C36: Complaint Inv | D36: 0 | E36: 0 | F36: 0 | G36: 0 | H36: 0 | I36: 0 | J36: 0 | K36: 0 | L36: 0
A37: ACCT 3 | B37: 63311 | C37: Accident Inv | D37: 0 | E37: 0 | F37: 0 | G37: 0 | H37: 0 | I37: 0 | J37: 0 | K37: 0 | L37: 0
A38: ACCT 3 | B38: 63400 | C38: Mine Sub Claim Inv | D38: 0 | E38: 0 | F38: 0 | G38: 0 | H38: 0 | I38: 0 | J38: 0 | K38: 0 | L38: 0
A39: ACCT 3 | B39: 63401 | C39: Mine Sub Risk Assess | D39: 0 | E39: 0 | F39: 0 | G39: 0 | H39: 0 | I39: 0 | J39: 0 | K39: 0 | L39: 0
A40: ACCT 3 | B40: 63403 | C40: Mine Sub Struc Insp | D40: 0 | E40: 0 | F40: 0 | G40: 0 | H40: 0 | I40: 0 | J40: 0 | K40: 0 | L40: 0
A41: ACCT 3 | B41: 63405 | C41: MSI Sales/Polcy Actn | D41: 0 | E41: 0 | F41: 0 | G41: 0 | H41: 0 | I41: 0 | J41: 0 | K41: 0 | L41: 0
A42: ACCT 3 | B42: 63407 | C42: Mine Sub Clm Stlmnts | D42: 0 | E42: 0 | F42: 0 | G42: 0 | H42: 0 | I42: 0 | J42: 0 | K42: 0 | L42: 0
A43: ACCT 3 | B43: 63409 | C43: MSI Marketing | D43: 0 | E43: 0 | F43: 0 | G43: 0 | H43: 0 | I43: 0 | J43: 0 | K43: 0 | L43: 0
A44: ACCT 3 | B44: 63502 | C44: Research/Tech Devlp | D44: 0 | E44: 0 | F44: 0 | G44: 0 | H44: 0 | I44: 0 | J44: 0 | K44: 0 | L44: 0
A45: ACCT 3 | B45: 63513 | C45: Beneficial Use of Coal Ash | D45: 0 | E45: 0 | F45: 0 | G45: 0 | H45: 0 | I45: 0 | J45: 0 | K45: 0 | L45: 0
A46: ACCT 3 | B46: 63601 | C46: Watershed Projects | D46: 0 | E46: 0 | F46: 0 | G46: 0 | H46: 0 | I46: 0 | J46: 0 | K46: 0 | L46: 0
A47: ACCT 3 | B47: 63602 | C47: TMDL | D47: 0 | E47: 0 | F47: 0 | G47: 0 | H47: 0 | I47: 0 | J47: 0 | K47: 0 | L47: 0
A48: ACCT 3 | B48: 63603 | C48: Special Rec Projects | D48: 0 | E48: 0 | F48: 0 | G48: 0 | H48: 0 | I48: 0 | J48: 0 | K48: 0 | L48: 0
A49: ACCT 3 | B49: 63604 | C49: Area Unsuitable (UFM) | D49: 0 | E49: 0 | F49: 0 | G49: 0 | H49: 0 | I49: 0 | J49: 0 | K49: 0 | L49: 0
A50: ACCT 3 | B50: 63700 | C50: Database Activity | D50: 0 | E50: 0 | F50: 0 | G50: 0 | H50: 0 | I50: 0 | J50: 0 | K50: 0 | L50: 0
A51: ACCT 3 | B51: 63701 | C51: Mineral Prod Systm | D51: 0 | E51: 0 | F51: 0 | G51: 0 | H51: 0 | I51: 0 | J51: 0 | K51: 0 | L51: 0
A52: ACCT 3 | B52: 63712 | C52: Info Tech Activity | D52: 0 | E52: 0 | F52: 0 | G52: 0 | H52: 0 | I52: 0 | J52: 0 | K52: 0 | L52: 0
A53: ACCT 3 | B53: 63800 | C53: Prog Mgmt/Sprvsn | D53: 0 | E53: 0 | F53: 0 | G53: 0 | H53: 0 | I53: 0 | J53: 0 | K53: 0 | L53: 0
A54: ACCT 3 | B54: 63801 | C54: Training (Non IT) | D54: 0 | E54: 0 | F54: 0 | G54: 0 | H54: 0 | I54: 0 | J54: 0 | K54: 0 | L54: 0
A55: ACCT 3 | B55: 63802 | C55: Prog Supprt/Non-Cler | D55: 0 | E55: 0 | F55: 0 | G55: 0 | H55: 0 | I55: 0 | J55: 0 | K55: 0 | L55: 0
A56: ACCT 3 | B56: 63804 | C56: Vehicle/Equip Maint | D56: 0 | E56: 0 | F56: 0 | G56: 0 | H56: 0 | I56: 0 | J56: 0 | K56: 0 | L56: 0
A57: ACCT 3 | B57: 63805 | C57: Clerical Support | D57: 0 | E57: 0 | F57: 0 | G57: 0 | H57: 0 | I57: 0 | J57: 0 | K57: 0 | L57: 0
A58: ACCT 3 | B58: 63807 | C58: Imagine PA/CATS | D58: 0 | E58: 0 | F58: 0 | G58: 0 | H58: 0 | I58: 0 | J58: 0 | K58: 0 | L58: 0
A59: ACCT 3 | B59: 63808 | C59: Staff Meetings | D59: 0 | E59: 0 | F59: 0 | G59: 0 | H59: 0 | I59: 0 | J59: 0 | K59: 0 | L59: 0
A60: ACCT 3 | B60: 63830 | C60: Public Comm/Info | D60: 0 | E60: 0 | F60: 0 | G60: 0 | H60: 0 | I60: 0 | J60: 0 | K60: 0 | L60: 0
A61: ACCT 3 | B61: 63908 | C61: Facilities Management | D61: 0 | E61: 0 | F61: 0 | G61: 0 | H61: 0 | I61: 0 | J61: 0 | K61: 0 | L61: 0
A62: ADMV ASST 1 | B62: 8000 | C62: R2K Admin (hidden) | D62: 0 | E62: 0 | F62: 0 | G62: 0 | H62: 0 | I62: 0 | J62: 0 | K62: 0 | L62: 0
A63: ADMV ASST 1 | B63: 8100 | C63: R2K Search (hidden) | D63: 0 | E63: 0 | F63: 0 | G63: 0 | H63: 0 | I63: 0 | J63: 0 | K63: 0 | L63: 0
A64: ADMV ASST 1 | B64: 8200 | C64: R2K Retrieval (hidden) | D64: 0 | E64: 0 | F64: 0 | G64: 0 | H64: 0 | I64: 0 | J64: 0 | K64: 0 | L64: 0
A65: ADMV ASST 1 | B65: 8300 | C65: R2K Redaction (hidden) | D65: 0 | E65: 0 | F65: 0 | G65: 0 | H65: 0 | I65: 0 | J65: 0 | K65: 0 | L65: 0
A66: ADMV ASST 1 | B66: 58011 | C66: Mapping, Scanning, Digitizing | D66: 0 | E66: 0 | F66: 0 | G66: 0 | H66: 0 | I66: 0 | J66: 0 | K66: 0 | L66: =IF(FTE=0,"No FTE",K66/FTE) -> 0
A67: ADMV ASST 1 | B67: 63000 | C67: General (hidden) | D67: 0 | E67: 0 | F67: 0 | G67: 0 | H67: 0 | I67: 0 | J67: 0 | K67: =SUM(D67:J67) -> 0 | L67: 0
A68: ADMV ASST 1 | B68: 63001 | C68: Pre-App Review | D68: 0 | E68: 0 | F68: 0 | G68: 0 | H68: 0 | I68: 0 | J68: 0 | K68: 0 | L68: 0
A69: ADMV ASST 1 | B69: 63002 | C69: Surface Mine App Rev | D69: 0 | E69: 0 | F69: 0 | G69: 0 | H69: 0 | I69: 0 | J69: 0 | K69: 0 | L69: 0
A70: ADMV ASST 1 | B70: 63003 | C70: Deep Mine App Rev | D70: 0 | E70: 0 | F70: 0 | G70: 0 | H70: 0 | I70: 0 | J70: 0 | K70: 0 | L70: 0
A71: ADMV ASST 1 | B71: 63004 | C71: Refuse Disp App Rev | D71: 0 | E71: 0 | F71: 0 | G71: 0 | H71: 0 | I71: 0 | J71: 0 | K71: 0 | L71: 0
A72: ADMV ASST 1 | B72: 63005 | C72: Prep Plant App Rev | D72: 0 | E72: 0 | F72: 0 | G72: 0 | H72: 0 | I72: 0 | J72: 0 | K72: 0 | L72: 0
A73: ADMV ASST 1 | B73: 63006 | C73: GFCC | D73: 0 | E73: 0 | F73: 0 | G73: 0 | H73: 0 | I73: 0 | J73: 0 | K73: 0 | L73: 0
A74: ADMV ASST 1 | B74: 63007 | C74: CRDA Alternatives Analysis | D74: 0 | E74: 0 | F74: 0 | G74: 0 | H74: 0 | I74: 0 | J74: 0 | K74: 0 | L74: 0
A75: ADMV ASST 1 | B75: 63008 | C75: Certification Review | D75: 0 | E75: 0 | F75: 0 | G75: 0 | H75: 0 | I75: 0 | J75: 0 | K75: 0 | L75: 0
A76: ADMV ASST 1 | B76: 63011 | C76: Bond Liability Rev | D76: 0 | E76: 0 | F76: 0 | G76: 0 | H76: 0 | I76: 0 | J76: 0 | K76: 0 | L76: 0
A77: ADMV ASST 1 | B77: 63012 | C77: Water Treatment Liability | D77: 0 | E77: 0 | F77: 0 | G77: 0 | H77: 0 | I77: 0 | J77: 0 | K77: 0 | L77: 0
A78: ADMV ASST 1 | B78: 63015 | C78: Permit Renewal Rev | D78: 0 | E78: 0 | F78: 0 | G78: 0 | H78: 0 | I78: 0 | J78: 0 | K78: 0 | L78: 0
A79: ADMV ASST 1 | B79: 63016 | C79: Permit Rev Major/Txf | D79: 0 | E79: 0 | F79: 0 | G79: 0 | H79: 0 | I79: 0 | J79: 0 | K79: 0 | L79: 0
A80: ADMV ASST 1 | B80: 63017 | C80: Permit Rev Minor | D80: 0 | E80: 0 | F80: 0 | G80: 0 | H80: 0 | I80: 0 | J80: 0 | K80: 0 | L80: 0
A81: ADMV ASST 1 | B81: 63018 | C81: Exploration Activity | D81: 0 | E81: 0 | F81: 0 | G81: 0 | H81: 0 | I81: 0 | J81: 0 | K81: 0 | L81: 0
A82: ADMV ASST 1 | B82: 63021 | C82: 6-Mo Proj Maps Rev | D82: 0 | E82: 0 | F82: 0 | G82: 0 | H82: 0 | I82: 0 | J82: 0 | K82: 0 | L82: 0
A83: ADMV ASST 1 | B83: 63022 | C83: Blasting Permit Rev | D83: 0 | E83: 0 | F83: 0 | G83: 0 | H83: 0 | I83: 0 | J83: 0 | K83: 0 | L83: 0
A84: ADMV ASST 1 | B84: 63023 | C84: Blasting Security Plan | D84: 0 | E84: 0 | F84: 0 | G84: 0 | H84: 0 | I84: 0 | J84: 0 | K84: 0 | L84: 0
A85: ADMV ASST 1 | B85: 63100 | C85: Complete Insp | D85: 0 | E85: 0 | F85: 0 | G85: 0 | H85: 0 | I85: 0 | J85: 0 | K85: 0 | L85: 0
A86: ADMV ASST 1 | B86: 63102 | C86: Partial Insp | D86: 0 | E86: 0 | F86: 0 | G86: 0 | H86: 0 | I86: 0 | J86: 0 | K86: 0 | L86: 0
A87: ADMV ASST 1 | B87: 63108 | C87: Surface Subsid Insp | D87: 0 | E87: 0 | F87: 0 | G87: 0 | H87: 0 | I87: 0 | J87: 0 | K87: 0 | L87: 0
A88: ADMV ASST 1 | B88: 63109 | C88: DMS Undgrnd Sub Insp | D88: 0 | E88: 0 | F88: 0 | G88: 0 | H88: 0 | I88: 0 | J88: 0 | K88: 0 | L88: 0
A89: ADMV ASST 1 | B89: 63111 | C89: Blasting Insp | D89: 0 | E89: 0 | F89: 0 | G89: 0 | H89: 0 | I89: 0 | J89: 0 | K89: 0 | L89: 0
A90: ADMV ASST 1 | B90: 63112 | C90: Cmpltn Rpt/Bond Rel | D90: 0 | E90: 0 | F90: 0 | G90: 0 | H90: 0 | I90: 0 | J90: 0 | K90: 0 | L90: 0
A91: ADMV ASST 1 | B91: 63200 | C91: Complnce/Enf Actvty | D91: 0 | E91: 0 | F91: 0 | G91: 0 | H91: 0 | I91: 0 | J91: 0 | K91: 0 | L91: 0
A92: ADMV ASST 1 | B92: 63205 | C92: Litigation | D92: 0 | E92: 0 | F92: 0 | G92: 0 | H92: 0 | I92: 0 | J92: 0 | K92: 0 | L92: 0
A93: ADMV ASST 1 | B93: 63301 | C93: Hydro/Geophyscl Inv | D93: 0 | E93: 0 | F93: 0 | G93: 0 | H93: 0 | I93: 0 | J93: 0 | K93: 0 | L93: 0
A94: ADMV ASST 1 | B94: 63302 | C94: 105 Streams/Wetlands | D94: 0 | E94: 0 | F94: 0 | G94: 0 | H94: 0 | I94: 0 | J94: 0 | K94: 0 | L94: 0
A95: ADMV ASST 1 | B95: 63304 | C95: Blast Complaint Inv | D95: 0 | E95: 0 | F95: 0 | G95: 0 | H95: 0 | I95: 0 | J95: 0 | K95: 0 | L95: 0
A96: ADMV ASST 1 | B96: 63306 | C96: Complaint Inv | D96: 0 | E96: 0 | F96: 0 | G96: 0 | H96: 0 | I96: 0 | J96: 0 | K96: 0 | L96: 0
A97: ADMV ASST 1 | B97: 63311 | C97: Accident Inv | D97: 0 | E97: 0 | F97: 0 | G97: 0 | H97: 0 | I97: 0 | J97: 0 | K97: 0 | L97: 0
A98: ADMV ASST 1 | B98: 63400 | C98: Mine Sub Claim Inv | D98: 0 | E98: 0 | F98: 0 | G98: 0 | H98: 0 | I98: 0 | J98: 0 | K98: 0 | L98: 0
A99: ADMV ASST 1 | B99: 63401 | C99: Mine Sub Risk Assess | D99: 0 | E99: 0 | F99: 0 | G99: 0 | H99: 0 | I99: 0 | J99: 0 | K99: 0 | L99: 0
A100: ADMV ASST 1 | B100: 63403 | C100: Mine Sub Struc Insp | D100: 0 | E100: 0 | F100: 0 | G100: 0 | H100: 0 | I100: 0 | J100: 0 | K100: 0 | L100: 0
A101: ADMV ASST 1 | B101: 63405 | C101: MSI Sales/Polcy Actn | D101: 0 | E101: 0 | F101: 0 | G101: 0 | H101: 0 | I101: 0 | J101: 0 | K101: 0 | L101: 0
A102: ADMV ASST 1 | B102: 63407 | C102: Mine Sub Clm Stlmnts | D102: 0 | E102: 0 | F102: 0 | G102: 0 | H102: 0 | I102: 0 | J102: 0 | K102: 0 | L102: 0
A103: ADMV ASST 1 | B103: 63409 | C103: MSI Marketing | D103: 0 | E103: 0 | F103: 0 | G103: 0 | H103: 0 | I103: 0 | J103: 0 | K103: 0 | L103: 0
A104: ADMV ASST 1 | B104: 63502 | C104: Research/Tech Devlp | D104: 0 | E104: 0 | F104: 0 | G104: 0 | H104: 0 | I104: 0 | J104: 0 | K104: 0 | L104: 0
A105: ADMV ASST 1 | B105: 63513 | C105: Beneficial Use of Coal Ash | D105: 0 | E105: 0 | F105: 0 | G105: 0 | H105: 0 | I105: 0 | J105: 0 | K105: 0 | L105: 0
A106: ADMV ASST 1 | B106: 63601 | C106: Watershed Projects | D106: 0 | E106: 0 | F106: 0 | G106: 0 | H106: 0 | I106: 0 | J106: 0 | K106: 0 | L106: 0
A107: ADMV ASST 1 | B107: 63602 | C107: TMDL | D107: 0 | E107: 0 | F107: 0 | G107: 0 | H107: 0 | I107: 0 | J107: 0 | K107: 0 | L107: 0
A108: ADMV ASST 1 | B108: 63603 | C108: Special Rec Projects | D108: 0 | E108: 0 | F108: 0 | G108: 0 | H108: 0 | I108: 0 | J108: 0 | K108: 0 | L108: 0
A109: ADMV ASST 1 | B109: 63604 | C109: Area Unsuitable (UFM) | D109: 0 | E109: 0 | F109: 0 | G109: 0 | H109: 0 | I109: 0 | J109: 0 | K109: 0 | L109: 0
A110: ADMV ASST 1 | B110: 63700 | C110: Database Activity | D110: 0 | E110: 0 | F110: 0 | G110: 0 | H110: 0 | I110: 0 | J110: 0 | K110: 0 | L110: 0
A111: ADMV ASST 1 | B111: 63701 | C111: Mineral Prod Systm | D111: 0 | E111: 0 | F111: 0 | G111: 0 | H111: 0 | I111: 0 | J111: 0 | K111: 0 | L111: 0
A112: ADMV ASST 1 | B112: 63712 | C112: Info Tech Activity | D112: 0 | E112: 0 | F112: 0 | G112: 0 | H112: 0 | I112: 0 | J112: 0 | K112: 0 | L112: 0
A113: ADMV ASST 1 | B113: 63800 | C113: Prog Mgmt/Sprvsn | D113: 0 | E113: 0 | F113: 0 | G113: 0 | H113: 0 | I113: 0 | J113: 0 | K113: 0 | L113: 0
A114: ADMV ASST 1 | B114: 63801 | C114: Training (Non IT) | D114: 0 | E114: 0 | F114: 0 | G114: 0 | H114: 0 | I114: 0 | J114: 0 | K114: 0 | L114: 0
A115: ADMV ASST 1 | B115: 63802 | C115: Prog Supprt/Non-Cler | D115: 0 | E115: 0 | F115: 0 | G115: 0 | H115: 0 | I115: 0 | J115: 0 | K115: 0 | L115: 0
A116: ADMV ASST 1 | B116: 63804 | C116: Vehicle/Equip Maint | D116: 0 | E116: 0 | F116: 0 | G116: 0 | H116: 0 | I116: 0 | J116: 0 | K116: 0 | L116: 0
A117: ADMV ASST 1 | B117: 63805 | C117: Clerical Support | D117: 0 | E117: 0 | F117: 0 | G117: 0 | H117: 0 | I117: 0 | J117: 0 | K117: 0 | L117: 0
A118: ADMV ASST 1 | B118: 63807 | C118: Imagine PA/CATS | D118: 0 | E118: 0 | F118: 0 | G118: 0 | H118: 0 | I118: 0 | J118: 0 | K118: 0 | L118: 0
A119: ADMV ASST 1 | B119: 63808 | C119: Staff Meetings | D119: 0 | E119: 0 | F119: 0 | G119: 0 | H119: 0 | I119: 0 | J119: 0 | K119: 0 | L119: 0
A120: ADMV ASST 1 | B120: 63830 | C120: Public Comm/Info | D120: 0 | E120: 0 | F120: 0 | G120: 0 | H120: 0 | I120: 0 | J120: 0 | K120: 0 | L120: 0
A121: ADMV ASST 1 | B121: 63908 | C121: Facilities Management | D121: 0 | E121: 0 | F121: 0 | G121: 0 | H121: 0 | I121: 0 | J121: 0 | K121: 0 | L121: 0
A122: ADMV OFR 1 | B122: 8000 | C122: R2K Admin (hidden) | D122: 0 | E122: 0 | F122: 0 | G122: 0 | H122: 0 | I122: 0 | J122: 0 | K122: 0 | L122: 0
A123: ADMV OFR 1 | B123: 8100 | C123: R2K Search (hidden) | D123: 0 | E123: 0 | F123: 4.5 | G123: 0 | H123: 0 | I123: 0 | J123: 0 | K123: 4.5 | L123: 0.003
A124: ADMV OFR 1 | B124: 8200 | C124: R2K Retrieval (hidden) | D124: 0 | E124: 0 | F124: 6.25 | G124: 0 | H124: 0 | I124: 0 | J124: 0 | K124: 6.25 | L124: 0.004166666667
A125: ADMV OFR 1 | B125: 8300 | C125: R2K Redaction (hidden) | D125: 0 | E125: 0 | F125: 0 | G125: 0 | H125: 0 | I125: 0 | J125: 0 | K125: 0 | L125: 0
A126: ADMV OFR 1 | B126: 58011 | C126: Mapping, Scanning, Digitizing | D126: 0 | E126: 0 | F126: 0 | G126: 0 | H126: 0 | I126: 0 | J126: 0 | K126: 0 | L126: 0
A127: ADMV OFR 1 | B127: 63000 | C127: General (hidden) | D127: 0 | E127: 0 | F127: 0 | G127: 0 | H127: 0 | I127: 0 | J127: 0 | K127: 0 | L127: 0
A128: ADMV OFR 1 | B128: 63001 | C128: Pre-App Review | D128: 0 | E128: 0 | F128: 0 | G128: 0 | H128: 0 | I128: 0 | J128: 0 | K128: 0 | L128: 0
A129: ADMV OFR 1 | B129: 63002 | C129: Surface Mine App Rev | D129: 0 | E129: 0 | F129: 0 | G129: 0 | H129: 0 | I129: 0 | J129: 0 | K129: 0 | L129: 0
A130: ADMV OFR 1 | B130: 63003 | C130: Deep Mine App Rev | D130: 0 | E130: 0 | F130: 0 | G130: 0 | H130: 0 | I130: 0 | J130: 0 | K130: 0 | L130: =IF(FTE=0,"No FTE",K130/FTE) -> 0
A131: ADMV OFR 1 | B131: 63004 | C131: Refuse Disp App Rev | D131: 0 | E131: 0 | F131: 0 | G131: 0 | H131: 0 | I131: 0 | J131: 0 | K131: =SUM(D131:J131) -> 0 | L131: 0
A132: ADMV OFR 1 | B132: 63005 | C132: Prep Plant App Rev | D132: 0 | E132: 0 | F132: 0 | G132: 0 | H132: 0 | I132: 0 | J132: 0 | K132: 0 | L132: 0
A133: ADMV OFR 1 | B133: 63006 | C133: GFCC | D133: 0 | E133: 0 | F133: 0 | G133: 0 | H133: 0 | I133: 0 | J133: 0 | K133: 0 | L133: 0
A134: ADMV OFR 1 | B134: 63007 | C134: CRDA Alternatives Analysis | D134: 0 | E134: 0 | F134: 0 | G134: 0 | H134: 0 | I134: 0 | J134: 0 | K134: 0 | L134: 0
A135: ADMV OFR 1 | B135: 63008 | C135: Certification Review | D135: 0 | E135: 0 | F135: 0 | G135: 0 | H135: 0 | I135: 0 | J135: 0 | K135: 0 | L135: 0
A136: ADMV OFR 1 | B136: 63011 | C136: Bond Liability Rev | D136: 0 | E136: 0 | F136: 0 | G136: 0 | H136: 0 | I136: 0 | J136: 0 | K136: 0 | L136: 0
A137: ADMV OFR 1 | B137: 63012 | C137: Water Treatment Liability | D137: 0 | E137: 0 | F137: 0 | G137: 0 | H137: 0 | I137: 0 | J137: 0 | K137: 0 | L137: 0
A138: ADMV OFR 1 | B138: 63015 | C138: Permit Renewal Rev | D138: 0 | E138: 0 | F138: 0 | G138: 0 | H138: 0 | I138: 0 | J138: 0 | K138: 0 | L138: 0
A139: ADMV OFR 1 | B139: 63016 | C139: Permit Rev Major/Txf | D139: 0 | E139: 0 | F139: 0 | G139: 0 | H139: 0 | I139: 0 | J139: 0 | K139: 0 | L139: 0
A140: ADMV OFR 1 | B140: 63017 | C140: Permit Rev Minor | D140: 0 | E140: 0 | F140: 0 | G140: 0 | H140: 0 | I140: 0 | J140: 0 | K140: 0 | L140: 0
A141: ADMV OFR 1 | B141: 63018 | C141: Exploration Activity | D141: 0 | E141: 0 | F141: 0 | G141: 0 | H141: 0 | I141: 0 | J141: 0 | K141: 0 | L141: 0
A142: ADMV OFR 1 | B142: 63021 | C142: 6-Mo Proj Maps Rev | D142: 0 | E142: 0 | F142: 0 | G142: 0 | H142: 0 | I142: 0 | J142: 0 | K142: 0 | L142: 0
A143: ADMV OFR 1 | B143: 63022 | C143: Blasting Permit Rev | D143: 0 | E143: 0 | F143: 0 | G143: 0 | H143: 0 | I143: 0 | J143: 0 | K143: 0 | L143: 0
A144: ADMV OFR 1 | B144: 63023 | C144: Blasting Security Plan | D144: 0 | E144: 0 | F144: 0 | G144: 0 | H144: 0 | I144: 0 | J144: 0 | K144: 0 | L144: 0
A145: ADMV OFR 1 | B145: 63100 | C145: Complete Insp | D145: 0 | E145: 0 | F145: 0 | G145: 0 | H145: 0 | I145: 0 | J145: 0 | K145: 0 | L145: 0
A146: ADMV OFR 1 | B146: 63102 | C146: Partial Insp | D146: 0 | E146: 0 | F146: 0 | G146: 0 | H146: 0 | I146: 0 | J146: 0 | K146: 0 | L146: 0
A147: ADMV OFR 1 | B147: 63108 | C147: Surface Subsid Insp | D147: 0 | E147: 0 | F147: 0 | G147: 0 | H147: 0 | I147: 0 | J147: 0 | K147: 0 | L147: 0
A148: ADMV OFR 1 | B148: 63109 | C148: DMS Undgrnd Sub Insp | D148: 0 | E148: 0 | F148: 0 | G148: 0 | H148: 0 | I148: 0 | J148: 0 | K148: 0 | L148: 0
A149: ADMV OFR 1 | B149: 63111 | C149: Blasting Insp | D149: 0 | E149: 0 | F149: 0 | G149: 0 | H149: 0 | I149: 0 | J149: 0 | K149: 0 | L149: 0
A150: ADMV OFR 1 | B150: 63112 | C150: Cmpltn Rpt/Bond Rel | D150: 0 | E150: 0 | F150: 0 | G150: 0 | H150: 0 | I150: 0 | J150: 0 | K150: 0 | L150: 0
A151: ADMV OFR 1 | B151: 63200 | C151: Complnce/Enf Actvty | D151: 0 | E151: 0 | F151: 0 | G151: 0 | H151: 0 | I151: 0 | J151: 0 | K151: 0 | L151: 0
A152: ADMV OFR 1 | B152: 63205 | C152: Litigation | D152: 0 | E152: 0 | F152: 0 | G152: 0 | H152: 0 | I152: 0 | J152: 0 | K152: 0 | L152: 0
A153: ADMV OFR 1 | B153: 63301 | C153: Hydro/Geophyscl Inv | D153: 0 | E153: 0 | F153: 0 | G153: 0 | H153: 0 | I153: 0 | J153: 0 | K153: 0 | L153: 0
A154: ADMV OFR 1 | B154: 63302 | C154: 105 Streams/Wetlands | D154: 0 | E154: 0 | F154: 0 | G154: 0 | H154: 0 | I154: 0 | J154: 0 | K154: 0 | L154: 0
A155: ADMV OFR 1 | B155: 63304 | C155: Blast Complaint Inv | D155: 0 | E155: 0 | F155: 0 | G155: 0 | H155: 0 | I155: 0 | J155: 0 | K155: 0 | L155: 0
A156: ADMV OFR 1 | B156: 63306 | C156: Complaint Inv | D156: 0 | E156: 0 | F156: 0 | G156: 0 | H156: 0 | I156: 0 | J156: 0 | K156: 0 | L156: 0
A157: ADMV OFR 1 | B157: 63311 | C157: Accident Inv | D157: 0 | E157: 0 | F157: 0 | G157: 0 | H157: 0 | I157: 0 | J157: 0 | K157: 0 | L157: 0
A158: ADMV OFR 1 | B158: 63400 | C158: Mine Sub Claim Inv | D158: 0 | E158: 0 | F158: 0 | G158: 0 | H158: 0 | I158: 0 | J158: 0 | K158: 0 | L158: 0
A159: ADMV OFR 1 | B159: 63401 | C159: Mine Sub Risk Assess | D159: 0 | E159: 0 | F159: 0 | G159: 0 | H159: 0 | I159: 0 | J159: 0 | K159: 0 | L159: 0
A160: ADMV OFR 1 | B160: 63403 | C160: Mine Sub Struc Insp | D160: 0 | E160: 0 | F160: 0 | G160: 0 | H160: 0 | I160: 0 | J160: 0 | K160: 0 | L160: 0
A161: ADMV OFR 1 | B161: 63405 | C161: MSI Sales/Polcy Actn | D161: 0 | E161: 0 | F161: 0 | G161: 0 | H161: 0 | I161: 0 | J161: 0 | K161: 0 | L161: 0
A162: ADMV OFR 1 | B162: 63407 | C162: Mine Sub Clm Stlmnts | D162: 0 | E162: 0 | F162: 0 | G162: 0 | H162: 0 | I162: 0 | J162: 0 | K162: 0 | L162: 0
A163: ADMV OFR 1 | B163: 63409 | C163: MSI Marketing | D163: 0 | E163: 0 | F163: 0 | G163: 0 | H163: 0 | I163: 0 | J163: 0 | K163: 0 | L163: 0
A164: ADMV OFR 1 | B164: 63502 | C164: Research/Tech Devlp | D164: 0 | E164: 0 | F164: 0 | G164: 0 | H164: 0 | I164: 0 | J164: 0 | K164: 0 | L164: 0
A165: ADMV OFR 1 | B165: 63513 | C165: Beneficial Use of Coal Ash | D165: 0 | E165: 0 | F165: 6 | G165: 0 | H165: 0 | I165: 0 | J165: 0 | K165: 6 | L165: 0.004
A166: ADMV OFR 1 | B166: 63601 | C166: Watershed Projects | D166: 0 | E166: 0 | F166: 11.5 | G166: 0 | H166: 0 | I166: 0 | J166: 0 | K166: 11.5 | L166: 0.007666666667
A167: ADMV OFR 1 | B167: 63602 | C167: TMDL | D167: 0 | E167: 0 | F167: 0 | G167: 0 | H167: 0 | I167: 0 | J167: 0 | K167: 0 | L167: 0
A168: ADMV OFR 1 | B168: 63603 | C168: Special Rec Projects | D168: 0 | E168: 0 | F168: 158.75 | G168: 0 | H168: 0 | I168: 0 | J168: 0 | K168: 158.75 | L168: 0.1058333333
A169: ADMV OFR 1 | B169: 63604 | C169: Area Unsuitable (UFM) | D169: 0 | E169: 0 | F169: 0 | G169: 0 | H169: 0 | I169: 0 | J169: 0 | K169: 0 | L169: 0
A170: ADMV OFR 1 | B170: 63700 | C170: Database Activity | D170: 0 | E170: 7 | F170: 23 | G170: 0 | H170: 0 | I170: 0 | J170: 0 | K170: 30 | L170: 0.02
A171: ADMV OFR 1 | B171: 63701 | C171: Mineral Prod Systm | D171: 0 | E171: 0 | F171: 39.75 | G171: 0 | H171: 0 | I171: 0 | J171: 0 | K171: 39.75 | L171: 0.0265
A172: ADMV OFR 1 | B172: 63712 | C172: Info Tech Activity | D172: 0 | E172: 1.5 | F172: 0 | G172: 0 | H172: 0 | I172: 0 | J172: 0 | K172: 1.5 | L172: 0.001
A173: ADMV OFR 1 | B173: 63800 | C173: Prog Mgmt/Sprvsn | D173: 0 | E173: 1187.75 | F173: 2491.5 | G173: 0 | H173: 0 | I173: 0 | J173: 0 | K173: 3679.25 | L173: 2.452833333
A174: ADMV OFR 1 | B174: 63801 | C174: Training (Non IT) | D174: 0 | E174: 25 | F174: 25 | G174: 0 | H174: 0 | I174: 0 | J174: 0 | K174: 50 | L174: 0.03333333333
A175: ADMV OFR 1 | B175: 63802 | C175: Prog Supprt/Non-Cler | D175: 0 | E175: 0 | F175: 0 | G175: 0 | H175: 0 | I175: 0 | J175: 0 | K175: 0 | L175: 0
A176: ADMV OFR 1 | B176: 63804 | C176: Vehicle/Equip Maint | D176: 0 | E176: 0 | F176: 0 | G176: 0 | H176: 0 | I176: 0 | J176: 0 | K176: 0 | L176: 0
A177: ADMV OFR 1 | B177: 63805 | C177: Clerical Support | D177: 0 | E177: 0 | F177: 0 | G177: 0 | H177: 0 | I177: 0 | J177: 0 | K177: 0 | L177: 0
A178: ADMV OFR 1 | B178: 63807 | C178: Imagine PA/CATS | D178: 0 | E178: 47.75 | F178: 139.75 | G178: 0 | H178: 0 | I178: 0 | J178: 0 | K178: 187.5 | L178: 0.125
A179: ADMV OFR 1 | B179: 63808 | C179: Staff Meetings | D179: 0 | E179: 47.75 | F179: 118.25 | G179: 0 | H179: 0 | I179: 0 | J179: 0 | K179: 166 | L179: 0.1106666667
A180: ADMV OFR 1 | B180: 63830 | C180: Public Comm/Info | D180: 0 | E180: 0.5 | F180: 18.75 | G180: 0 | H180: 0 | I180: 0 | J180: 0 | K180: 19.25 | L180: 0.01283333333
A181: ADMV OFR 1 | B181: 63908 | C181: Facilities Management | D181: 0 | E181: 59.75 | F181: 0 | G181: 0 | H181: 0 | I181: 0 | J181: 0 | K181: 59.75 | L181: 0.03983333333
A182: ADMV OFR 2 | B182: 8000 | C182: R2K Admin (hidden) | D182: 0 | E182: 0 | F182: 0 | G182: 0 | H182: 0 | I182: 0 | J182: 0 | K182: 0 | L182: 0
A183: ADMV OFR 2 | B183: 8100 | C183: R2K Search (hidden) | D183: 0 | E183: 0 | F183: 0 | G183: 0 | H183: 0 | I183: 0 | J183: 0 | K183: 0 | L183: 0
A184: ADMV OFR 2 | B184: 8200 | C184: R2K Retrieval (hidden) | D184: 0 | E184: 0 | F184: 0 | G184: 0 | H184: 0 | I184: 0 | J184: 0 | K184: 0 | L184: 0
A185: ADMV OFR 2 | B185: 8300 | C185: R2K Redaction (hidden) | D185: 0 | E185: 0 | F185: 0 | G185: 0 | H185: 0 | I185: 0 | J185: 0 | K185: 0 | L185: 0
A186: ADMV OFR 2 | B186: 58011 | C186: Mapping, Scanning, Digitizing | D186: 0 | E186: 0 | F186: 0 | G186: 0 | H186: 0 | I186: 0 | J186: 0 | K186: 0 | L186: 0
A187: ADMV OFR 2 | B187: 63000 | C187: General (hidden) | D187: 0 | E187: 0 | F187: 0 | G187: 0 | H187: 0 | I187: 0 | J187: 0 | K187: 0 | L187: 0
A188: ADMV OFR 2 | B188: 63001 | C188: Pre-App Review | D188: 0 | E188: 0 | F188: 0 | G188: 0 | H188: 0 | I188: 0 | J188: 0 | K188: 0 | L188: 0
A189: ADMV OFR 2 | B189: 63002 | C189: Surface Mine App Rev | D189: 0 | E189: 0 | F189: 0 | G189: 0 | H189: 0 | I189: 0 | J189: 0 | K189: 0 | L189: 0
A190: ADMV OFR 2 | B190: 63003 | C190: Deep Mine App Rev | D190: 0 | E190: 0 | F190: 0 | G190: 0 | H190: 0 | I190: 0 | J190: 0 | K190: 0 | L190: 0
A191: ADMV OFR 2 | B191: 63004 | C191: Refuse Disp App Rev | D191: 0 | E191: 0 | F191: 0 | G191: 0 | H191: 0 | I191: 0 | J191: 0 | K191: 0 | L191: 0
A192: ADMV OFR 2 | B192: 63005 | C192: Prep Plant App Rev | D192: 0 | E192: 0 | F192: 0 | G192: 0 | H192: 0 | I192: 0 | J192: 0 | K192: 0 | L192: 0
A193: ADMV OFR 2 | B193: 63006 | C193: GFCC | D193: 0 | E193: 0 | F193: 0 | G193: 0 | H193: 0 | I193: 0 | J193: 0 | K193: 0 | L193: 0
A194: ADMV OFR 2 | B194: 63007 | C194: CRDA Alternatives Analysis | D194: 0 | E194: 0 | F194: 0 | G194: 0 | H194: 0 | I194: 0 | J194: 0 | K194: 0 | L194: =IF(FTE=0,"No FTE",K194/FTE) -> 0
A195: ADMV OFR 2 | B195: 63008 | C195: Certification Review | D195: 0 | E195: 0 | F195: 0 | G195: 0 | H195: 0 | I195: 0 | J195: 0 | K195: =SUM(D195:J195) -> 0 | L195: 0
A196: ADMV OFR 2 | B196: 63011 | C196: Bond Liability Rev | D196: 0 | E196: 0 | F196: 0 | G196: 0 | H196: 0 | I196: 0 | J196: 0 | K196: 0 | L196: 0
A197: ADMV OFR 2 | B197: 63012 | C197: Water Treatment Liability | D197: 0 | E197: 0 | F197: 0 | G197: 0 | H197: 0 | I197: 0 | J197: 0 | K197: 0 | L197: 0
A198: ADMV OFR 2 | B198: 63015 | C198: Permit Renewal Rev | D198: 0 | E198: 0 | F198: 0 | G198: 0 | H198: 0 | I198: 0 | J198: 0 | K198: 0 | L198: 0
A199: ADMV OFR 2 | B199: 63016 | C199: Permit Rev Major/Txf | D199: 0 | E199: 0 | F199: 0 | G199: 0 | H199: 0 | I199: 0 | J199: 0 | K199: 0 | L199: 0
A200: ADMV OFR 2 | B200: 63017 | C200: Permit Rev Minor | D200: 0 | E200: 0 | F200: 0 | G200: 0 | H200: 0 | I200: 0 | J200: 0 | K200: 0 | L200: 0
... 6801 more rows

Sheet CATS - Problem Records
A1: CATS Problem Records Details | K1: Problem Summary | N1: Activity Code Summary | Q1: Problem Employee Summary
A2: Persno | B2: Employee Name | C2: Date | D2: Hours | E2: Work Code | F2: Activity Code | G2: Problem | I2: Total Problem Hours | K2: Problem | L2: Hours | N2: Activity Code | O2: Hours | Q2: Problem | R2: Employee Name | S2: Hours
A3: 700475 | B3: Adam M. Snyder | C3: 2014-01-07 | D3: 2 | G3: No Work Code No Activity Code | I3: =IF($D$2="",0,SUM(CATS_Problem_Records_Hours)) -> 4986.77 | K3: No Activity Code | L3: =IF($K3="","",SUMIF(CATS_Problem_Records_Problem,$K3,CATS_Problem_Records_Hours)) -> 2701.35 | O3: =IF($N3="","",SUMIF(CATS_Problem_Records_Act_Code,$N3,CATS_Problem_Records_Hours)) -> 4076.6 | Q3: No Activity Code | R3: Adam M. Snyder | S3: =IF($Q3="","",SUMPRODUCT((CATS_Problem_Records_Problem=Q3)*(CATS_Problem_Records_Employee_Name=R3),CATS_Problem_Records_Hours)) -> 18
A4: 700475 | B4: Adam M. Snyder | C4: 2014-02-05 | D4: 2 | G4: No Work Code No Activity Code | K4: No Employee Record Avaliable | L4: 910.17 | N4: 63022 | O4: 8.5 | Q4: No Activity Code | R4: Alan J Bigatel | S4: 12.5
A5: 700475 | B5: Adam M. Snyder | C5: 2014-08-25 | D5: 3.5 | E5: 0 | G5: No Activity Code | K5: No Work Code No Activity Code | L5: 1362.5 | N5: 63100 | O5: 694.75 | Q5: No Activity Code | R5: Amanda Jean Leasure | S5: 15.5
A6: 700475 | B6: Adam M. Snyder | C6: 2014-11-26 | D6: 2 | E6: 0 | G6: No Activity Code | K6: No Work Code No Activity Code No Employee Record Avaliable | L6: 12.75 | N6: 63102 | O6: 85 | Q6: No Activity Code | R6: Andrea Lee Stewart | S6: 15.5
A7: 700475 | B7: Adam M. Snyder | C7: 2014-12-24 | D7: 2.5 | E7: 0 | G7: No Activity Code | N7: 63112 | O7: 23 | Q7: No Activity Code | R7: Andrew M Walker | S7: 6
A8: 700475 | B8: Adam M. Snyder | C8: 2014-12-26 | D8: 7.5 | E8: 0 | G8: No Activity Code | N8: 63200 | O8: 43.75 | Q8: No Activity Code | R8: Anne Elizabeth Hong | S8: 16
A9: 700475 | B9: Adam M. Snyder | C9: 2014-12-31 | D9: 2.5 | E9: 0 | G9: No Activity Code | N9: 63306 | O9: 9 | Q9: No Activity Code | R9: Arnold N Belz | S9: 15.5
A10: 78328 | B10: Alan J Bigatel | C10: 2014-01-07 | D10: 2 | G10: No Work Code No Activity Code | N10: 63701 | O10: 6.67 | Q10: No Activity Code | R10: Barbara L Hajel | S10: 13.5
A11: 78328 | B11: Alan J Bigatel | C11: 2014-02-05 | D11: 2 | G11: No Work Code No Activity Code | N11: 63801 | O11: 7.5 | Q11: No Activity Code | R11: Bernard R Robb | S11: 3.5
A12: 78328 | B12: Alan J Bigatel | C12: 2014-02-12 | D12: 0 | G12: No Work Code No Activity Code | N12: 63804 | O12: 5.5 | Q12: No Activity Code | R12: Bonnie G Deems | S12: 20.5
A13: 78328 | B13: Alan J Bigatel | C13: 2014-02-13 | D13: 3 | G13: No Work Code No Activity Code | N13: 63807 | O13: 6.5 | Q13: No Activity Code | R13: Bonnie J Herbert | S13: 15.5
A14: 78328 | B14: Alan J Bigatel | C14: 2014-11-26 | D14: 2 | E14: 0 | G14: No Activity Code | N14: 63808 | O14: 20 | Q14: No Activity Code | R14: Breck D. Neeper | S14: 12.5
A15: 78328 | B15: Alan J Bigatel | C15: 2014-12-26 | D15: 7.5 | E15: 0 | G15: No Activity Code | Q15: No Activity Code | R15: Brian James Lohr | S15: 6
A16: 78328 | B16: Alan J Bigatel | C16: 2014-12-31 | D16: 3 | E16: 0 | G16: No Activity Code | Q16: No Activity Code | R16: Carl J Massini | S16: 15.5
A17: 604438 | B17: Amanda Jean Leasure | C17: 2014-02-05 | D17: 2 | G17: No Work Code No Activity Code | Q17: No Activity Code | R17: Carla A Maines | S17: 15.5
A18: 604438 | B18: Amanda Jean Leasure | C18: 2014-11-26 | D18: 2 | E18: 0 | G18: No Activity Code | Q18: No Activity Code | R18: Catherine A Hillman | S18: 16
A19: 604438 | B19: Amanda Jean Leasure | C19: 2014-12-24 | D19: 3 | E19: 0 | G19: No Activity Code | Q19: No Activity Code | R19: Catherine L Dunn | S19: 3
A20: 604438 | B20: Amanda Jean Leasure | C20: 2014-12-26 | D20: 7.5 | E20: 0 | G20: No Activity Code | Q20: No Activity Code | R20: Celesta M Gnall | S20: 13.5
A21: 604438 | B21: Amanda Jean Leasure | C21: 2014-12-31 | D21: 3 | E21: 0 | G21: No Activity Code | Q21: No Activity Code | R21: Chadwick P Paronish | S21: 19
A22: 608058 | B22: Amiee M. Bollinger | C22: 2014-01-21 | D22: 3 | G22: No Work Code No Activity Code | Q22: No Activity Code | R22: Christian Kuba | S22: 6
A23: 608058 | B23: Amiee M. Bollinger | C23: 2014-02-03 | D23: 8 | G23: No Work Code No Activity Code | Q23: No Activity Code | R23: Christine A Miller | S23: 285.5
A24: 608058 | B24: Amiee M. Bollinger | C24: 2014-02-05 | D24: 3 | G24: No Work Code No Activity Code | Q24: No Activity Code | R24: Craig James Leibfreid | S24: 15.5
A25: 608058 | B25: Amiee M. Bollinger | C25: 2014-02-13 | D25: 8.75 | G25: No Work Code No Activity Code | Q25: No Activity Code | R25: Craig T Burda | S25: 13
A26: 608058 | B26: Amiee M. Bollinger | C26: 2014-03-03 | D26: 2 | G26: No Work Code No Activity Code | Q26: No Activity Code | R26: Cynthia A Kuklis | S26: 15.5
A27: 677542 | B27: Andrea L Fink | C27: 2014-03-24 | D27: 0 | G27: No Work Code No Activity Code | Q27: No Activity Code | R27: Cynthia L. Stants | S27: 3
A28: 677542 | B28: Andrea L Fink | C28: 2014-03-25 | D28: 0 | G28: No Work Code No Activity Code | Q28: No Activity Code | R28: Damien J Petry | S28: 74.7
A29: 677542 | B29: Andrea L Fink | C29: 2014-03-26 | D29: 0 | G29: No Work Code No Activity Code | Q29: No Activity Code | R29: Daniel C Welte | S29: 16.75
A30: 677542 | B30: Andrea L Fink | C30: 2014-03-27 | D30: 0 | G30: No Work Code No Activity Code | Q30: No Activity Code | R30: Daniel J Chverchko | S30: 14
A31: 677542 | B31: Andrea L Fink | C31: 2014-03-28 | D31: 0 | G31: No Work Code No Activity Code | Q31: No Activity Code | R31: Daniel J Koury | S31: 3
A32: 677542 | B32: Andrea L Fink | C32: 2014-03-31 | D32: 0 | G32: No Work Code No Activity Code | Q32: No Activity Code | R32: Daniel Prescott Weaver | S32: 19
A33: 677542 | B33: Andrea L Fink | C33: 2014-04-01 | D33: 0 | G33: No Work Code No Activity Code | Q33: No Activity Code | R33: Daniel Sammarco | S33: 12.5
A34: 677542 | B34: Andrea L Fink | C34: 2014-04-02 | D34: 0 | G34: No Work Code No Activity Code | Q34: No Activity Code | R34: David C Bisko | S34: 15.5
A35: 677542 | B35: Andrea L Fink | C35: 2014-04-03 | D35: 0 | G35: No Work Code No Activity Code | Q35: No Activity Code | R35: David D Thomas | S35: 14
A36: 677542 | B36: Andrea L Fink | C36: 2014-04-04 | D36: 0 | G36: No Work Code No Activity Code | Q36: No Activity Code | R36: David J Krug Jr | S36: 11.75
A37: 677542 | B37: Andrea Lee Stewart | C37: 2014-11-26 | D37: 2 | E37: 0 | G37: No Activity Code | Q37: No Activity Code | R37: David J Slabinski | S37: 6
A38: 677542 | B38: Andrea Lee Stewart | C38: 2014-12-24 | D38: 3 | E38: 0 | G38: No Activity Code | Q38: No Activity Code | R38: David J Updegrave | S38: 13.5
A39: 677542 | B39: Andrea Lee Stewart | C39: 2014-12-26 | D39: 7.5 | E39: 0 | G39: No Activity Code | Q39: No Activity Code | R39: David L Tissue | S39: 15.5
A40: 677542 | B40: Andrea Lee Stewart | C40: 2014-12-31 | D40: 3 | E40: 0 | G40: No Activity Code | Q40: No Activity Code | R40: Debra J Perkins | S40: 16
A41: 529033 | B41: Andrew M Walker | C41: 2014-01-07 | D41: 2 | G41: No Work Code No Activity Code | Q41: No Activity Code | R41: Diane L Bennett | S41: 15.5
A42: 529033 | B42: Andrew M Walker | C42: 2014-02-05 | D42: 2 | G42: No Work Code No Activity Code | Q42: No Activity Code | R42: Donald Boyd Lunger Jr | S42: 10
A43: 529033 | B43: Andrew M Walker | C43: 2014-12-24 | D43: 3 | E43: 0 | G43: No Activity Code | Q43: No Activity Code | R43: Donna L Roberts | S43: 10.5
A44: 529033 | B44: Andrew M Walker | C44: 2014-12-31 | D44: 3 | E44: 0 | G44: No Activity Code | Q44: No Activity Code | R44: Drew A Frost | S44: 12.5
A45: 681779 | B45: Anne Elizabeth Hong | C45: 2014-02-05 | D45: 2 | G45: No Work Code No Activity Code | Q45: No Activity Code | R45: Edward J Motycki | S45: 13.5
A46: 681779 | B46: Anne Elizabeth Hong | C46: 2014-11-26 | D46: 2 | E46: 0 | G46: No Activity Code | Q46: No Activity Code | R46: Elias J Heferle | S46: 6
A47: 681779 | B47: Anne Elizabeth Hong | C47: 2014-12-24 | D47: 3 | E47: 0 | G47: No Activity Code | Q47: No Activity Code | R47: Eric M Oliver | S47: 12.5
A48: 681779 | B48: Anne Elizabeth Hong | C48: 2014-12-26 | D48: 8 | E48: 0 | G48: No Activity Code | Q48: No Activity Code | R48: Eric M Rosengrant | S48: 5
A49: 681779 | B49: Anne Elizabeth Hong | C49: 2014-12-31 | D49: 3 | E49: 0 | G49: No Activity Code | Q49: No Activity Code | R49: Erik M Thurheimer | S49: 15.5
A50: 9563 | B50: Arnold N Belz | C50: 2014-01-07 | D50: 2 | G50: No Work Code No Activity Code | Q50: No Activity Code | R50: Eugene J Crossley | S50: 6
A51: 9563 | B51: Arnold N Belz | C51: 2014-02-05 | D51: 3 | G51: No Work Code No Activity Code | Q51: No Activity Code | R51: George A Chakot | S51: 10.5
A52: 9563 | B52: Arnold N Belz | C52: 2014-11-26 | D52: 2 | E52: 0 | G52: No Activity Code | Q52: No Activity Code | R52: George A. Kissinger | S52: 15
A53: 9563 | B53: Arnold N Belz | C53: 2014-12-24 | D53: 3 | E53: 0 | G53: No Activity Code | Q53: No Activity Code | R53: George J Loomis II | S53: 12.5
A54: 9563 | B54: Arnold N Belz | C54: 2014-12-26 | D54: 7.5 | E54: 0 | G54: No Activity Code | Q54: No Activity Code | R54: George R Traister | S54: 15.5
A55: 9563 | B55: Arnold N Belz | C55: 2014-12-31 | D55: 3 | E55: 0 | G55: No Activity Code | Q55: No Activity Code | R55: Gerald L. Knepp | S55: 15.5
A56: 13807 | B56: Barbara L Hajel | C56: 2014-01-07 | D56: 3 | G56: No Work Code No Activity Code | Q56: No Activity Code | R56: Glen A. Krallman | S56: 13.25
A57: 13807 | B57: Barbara L Hajel | C57: 2014-02-05 | D57: 4.5 | G57: No Work Code No Activity Code | Q57: No Activity Code | R57: Gregory A Prentice | S57: 13.5
A58: 13807 | B58: Barbara L Hajel | C58: 2014-06-18 | D58: 3 | G58: No Work Code No Activity Code | Q58: No Activity Code | R58: Gregory L Aaron | S58: 19
A59: 13807 | B59: Barbara L Hajel | C59: 2014-12-24 | D59: 3 | E59: 0 | G59: No Activity Code | Q59: No Activity Code | R59: Gregory Ohler | S59: 16.75
A60: 13807 | B60: Barbara L Hajel | C60: 2014-12-26 | D60: 7.5 | E60: 0 | G60: No Activity Code | Q60: No Activity Code | R60: Harold David Goss Jr | S60: 14.5
A61: 13807 | B61: Barbara L Hajel | C61: 2014-12-31 | D61: 3 | E61: 0 | G61: No Activity Code | Q61: No Activity Code | R61: Heather A. Agosta | S61: 17
A62: 93600 | B62: Bernard R Robb | C62: 2014-01-07 | D62: 2 | G62: No Work Code No Activity Code | Q62: No Activity Code | R62: Holly M. Calvetti | S62: 7
A63: 93600 | B63: Bernard R Robb | C63: 2014-02-05 | D63: 2 | G63: No Work Code No Activity Code | Q63: No Activity Code | R63: Ignacy F Nasilowski | S63: 17
A64: 93600 | B64: Bernard R Robb | C64: 2014-08-25 | D64: 3.5 | E64: 0 | G64: No Activity Code | Q64: No Activity Code | R64: Jack Lee Thornton | S64: 6
A65: 106830 | B65: Bonnie G Deems | C65: 2014-01-07 | D65: 2 | G65: No Work Code No Activity Code | Q65: No Activity Code | R65: James A Plesakov | S65: 13.75
A66: 106830 | B66: Bonnie G Deems | C66: 2014-02-05 | D66: 2 | G66: No Work Code No Activity Code | Q66: No Activity Code | R66: James E Andrews II | S66: 16.75
A67: 106830 | B67: Bonnie G Deems | C67: 2014-08-25 | D67: 5 | E67: 0 | G67: No Activity Code | L67: =IF($K67="","",SUMIF(CATS_Problem_Records_Problem,$K67,CATS_Problem_Records_Hours)) ->  | O67: =IF($N67="","",SUMIF(CATS_Problem_Records_Act_Code,$N67,CATS_Problem_Records_Hours)) ->  | Q67: No Activity Code | R67: James K Parlavecchio | S67: =IF($Q67="","",SUMPRODUCT((CATS_Problem_Records_Problem=Q67)*(CATS_Problem_Records_Employee_Name=R67),CATS_Problem_Records_Hours)) -> 12.5
A68: 106830 | B68: Bonnie G Deems | C68: 2014-11-26 | D68: 2 | E68: 0 | G68: No Activity Code | Q68: No Activity Code | R68: James Mcdonald Jr | S68: 15.5
A69: 106830 | B69: Bonnie G Deems | C69: 2014-12-24 | D69: 3 | E69: 0 | G69: No Activity Code | Q69: No Activity Code | R69: Janet R. Turner | S69: 15.5
A70: 106830 | B70: Bonnie G Deems | C70: 2014-12-26 | D70: 7.5 | E70: 0 | G70: No Activity Code | Q70: No Activity Code | R70: Janette A Samay | S70: 6
A71: 106830 | B71: Bonnie G Deems | C71: 2014-12-31 | D71: 3 | E71: 0 | G71: No Activity Code | Q71: No Activity Code | R71: Jeffrey B. Meitrott | S71: 14.5
A72: 642274 | B72: Bonnie J Herbert | C72: 2014-02-05 | D72: 2 | G72: No Work Code No Activity Code | Q72: No Activity Code | R72: Jeffrey G Sowers | S72: 16
A73: 642274 | B73: Bonnie J Herbert | C73: 2014-11-26 | D73: 2 | E73: 0 | G73: No Activity Code | Q73: No Activity Code | R73: Jeffrey L Miller | S73: 4.5
A74: 642274 | B74: Bonnie J Herbert | C74: 2014-12-24 | D74: 3 | E74: 0 | G74: No Activity Code | Q74: No Activity Code | R74: Jeffrey T. Kohut | S74: 5
A75: 642274 | B75: Bonnie J Herbert | C75: 2014-12-26 | D75: 7.5 | E75: 0 | G75: No Activity Code | Q75: No Activity Code | R75: Jeffrey V Parr | S75: 13
A76: 642274 | B76: Bonnie J Herbert | C76: 2014-12-31 | D76: 3 | E76: 0 | G76: No Activity Code | Q76: No Activity Code | R76: Jennifer A Johnston | S76: 13.5
A77: 631522 | B77: Breck D. Neeper | C77: 2014-01-07 | D77: 2 | G77: No Work Code No Activity Code | Q77: No Activity Code | R77: Jerry C. Kinback | S77: 19
A78: 631522 | B78: Breck D. Neeper | C78: 2014-02-05 | D78: 2 | G78: No Work Code No Activity Code | Q78: No Activity Code | R78: Jessalynn K Heydenreich | S78: 15.5
A79: 631522 | B79: Breck D. Neeper | C79: 2014-02-13 | D79: 3.5 | G79: No Work Code No Activity Code | Q79: No Activity Code | R79: Joel C Folman | S79: 15.5
A80: 631522 | B80: Breck D. Neeper | C80: 2014-11-26 | D80: 2 | E80: 0 | G80: No Activity Code | Q80: No Activity Code | R80: Joel Koricich | S80: 16
A81: 631522 | B81: Breck D. Neeper | C81: 2014-12-24 | D81: 3 | E81: 0 | G81: No Activity Code | Q81: No Activity Code | R81: John B Dehaas | S81: 12
A82: 631522 | B82: Breck D. Neeper | C82: 2014-12-26 | D82: 7.5 | E82: 0 | G82: No Activity Code | Q82: No Activity Code | R82: John D Wilk | S82: 13.5
A83: 688772 | B83: Brian James Lohr | C83: 2014-02-05 | D83: 2 | G83: No Work Code No Activity Code | Q83: No Activity Code | R83: John E Rutherford | S83: 7.5
A84: 688772 | B84: Brian James Lohr | C84: 2014-12-24 | D84: 3 | E84: 0 | G84: No Activity Code | Q84: No Activity Code | R84: John G Cislo | S84: 3
A85: 688772 | B85: Brian James Lohr | C85: 2014-12-31 | D85: 3 | E85: 0 | G85: No Activity Code | Q85: No Activity Code | R85: John P Mital Jr | S85: 12.5
A86: 35197 | B86: Carl J Massini | C86: 2014-02-05 | D86: 2 | G86: No Work Code No Activity Code | Q86: No Activity Code | R86: John S Berry | S86: 13.5
A87: 35197 | B87: Carl J Massini | C87: 2014-11-26 | D87: 2 | E87: 0 | G87: No Activity Code | Q87: No Activity Code | R87: John S Sims | S87: 3
A88: 35197 | B88: Carl J Massini | C88: 2014-12-24 | D88: 3 | E88: 0 | G88: No Activity Code | Q88: No Activity Code | R88: Joseph D Floris | S88: 16.75
A89: 35197 | B89: Carl J Massini | C89: 2014-12-26 | D89: 7.5 | E89: 0 | G89: No Activity Code | Q89: No Activity Code | R89: Joseph D Stepusin | S89: 15.5
A90: 35197 | B90: Carl J Massini | C90: 2014-12-31 | D90: 3 | E90: 0 | G90: No Activity Code | Q90: No Activity Code | R90: Joseph E Laslo | S90: 9.5
A91: 87797 | B91: Carla A Maines | C91: 2014-01-07 | D91: 2 | G91: No Work Code No Activity Code | Q91: No Activity Code | R91: Joseph F Ferrara | S91: 0
A92: 87797 | B92: Carla A Maines | C92: 2014-02-05 | D92: 2 | G92: No Work Code No Activity Code | Q92: No Activity Code | R92: Joseph F Leone | S92: 21.5
A93: 87797 | B93: Carla A Maines | C93: 2014-02-13 | D93: 3 | G93: No Work Code No Activity Code | Q93: No Activity Code | R93: Joseph S Blyler | S93: 12.5
A94: 87797 | B94: Carla A Maines | C94: 2014-11-26 | D94: 2 | E94: 0 | G94: No Activity Code | Q94: No Activity Code | R94: Joshua D Putt | S94: 16
A95: 87797 | B95: Carla A Maines | C95: 2014-12-24 | D95: 3 | E95: 0 | G95: No Activity Code | Q95: No Activity Code | R95: Justin H Abbott | S95: 10.5
A96: 87797 | B96: Carla A Maines | C96: 2014-12-26 | D96: 7.5 | E96: 0 | G96: No Activity Code | Q96: No Activity Code | R96: Karen L McCoy | S96: 12.5
A97: 87797 | B97: Carla A Maines | C97: 2014-12-31 | D97: 3 | E97: 0 | G97: No Activity Code | Q97: No Activity Code | R97: Kathleen M Hill | S97: 15.5
A98: 31571 | B98: Catherine A Hillman | C98: 2014-01-07 | D98: 2 | G98: No Work Code No Activity Code | Q98: No Activity Code | R98: Kathy K Mercer | S98: 14
A99: 31571 | B99: Catherine A Hillman | C99: 2014-02-05 | D99: 2 | G99: No Work Code No Activity Code | Q99: No Activity Code | R99: Kenneth A Kovach II | S99: 16.5
A100: 31571 | B100: Catherine A Hillman | C100: 2014-11-26 | D100: 2 | E100: 0 | G100: No Activity Code | Q100: No Activity Code | R100: Kenneth S Fox | S100: 15
A101: 31571 | B101: Catherine A Hillman | C101: 2014-12-24 | D101: 3 | E101: 0 | G101: No Activity Code | Q101: No Activity Code | R101: Kent E Shoemaker | S101: 12
A102: 31571 | B102: Catherine A Hillman | C102: 2014-12-26 | D102: 8 | E102: 0 | G102: No Activity Code | Q102: No Activity Code | R102: Kerry E Speelman | S102: 15.5
A103: 31571 | B103: Catherine A Hillman | C103: 2014-12-31 | D103: 3 | E103: 0 | G103: No Activity Code | Q103: No Activity Code | R103: Kimberly A Patterson | S103: 15.5
A104: 424579 | B104: Catherine L Dunn | C104: 2014-12-31 | D104: 3 | E104: 0 | G104: No Activity Code | Q104: No Activity Code | R104: Kimberly Cecile Luda | S104: 11
A105: 716634 | B105: Celesta M Gnall | C105: 2014-12-24 | D105: 3 | E105: 0 | G105: No Activity Code | Q105: No Activity Code | R105: Kimberly S. Murnyack | S105: 2
A106: 716634 | B106: Celesta M Gnall | C106: 2014-12-26 | D106: 7.5 | E106: 0 | G106: No Activity Code | Q106: No Activity Code | R106: Larry C Mongelluzzo | S106: 12.75
A107: 716634 | B107: Celesta M Gnall | C107: 2014-12-31 | D107: 3 | E107: 0 | G107: No Activity Code | Q107: No Activity Code | R107: Laura Kaltwasser | S107: 12.5
A108: 642183 | B108: Chadwick P Paronish | C108: 2014-08-05 | D108: 3.5 | E108: 0 | G108: No Activity Code | Q108: No Activity Code | R108: Lawrence A Alexander | S108: 15.5
A109: 642183 | B109: Chadwick P Paronish | C109: 2014-11-26 | D109: 2 | E109: 0 | G109: No Activity Code | Q109: No Activity Code | R109: Lorraine A Odenthal | S109: 10.5
A110: 642183 | B110: Chadwick P Paronish | C110: 2014-12-24 | D110: 3 | E110: 0 | G110: No Activity Code | Q110: No Activity Code | R110: Luke A Jensen | S110: 13.5
A111: 642183 | B111: Chadwick P Paronish | C111: 2014-12-26 | D111: 7.5 | E111: 0 | G111: No Activity Code | Q111: No Activity Code | R111: Luke D Roles | S111: 6
A112: 642183 | B112: Chadwick P Paronish | C112: 2014-12-31 | D112: 3 | E112: 0 | G112: No Activity Code | Q112: No Activity Code | R112: Malcolm M Crittenden | S112: 17
A113: 446828 | B113: Christian Kuba | C113: 2014-02-05 | D113: 8.75 | G113: No Work Code No Activity Code | Q113: No Activity Code | R113: Mara N Goebel | S113: 15.5
A114: 446828 | B114: Christian Kuba | C114: 2014-02-13 | D114: 8 | G114: No Work Code No Activity Code | Q114: No Activity Code | R114: Margaret E Scheloske | S114: 2
A115: 446828 | B115: Christian Kuba | C115: 2014-12-24 | D115: 3 | E115: 0 | G115: No Activity Code | Q115: No Activity Code | R115: Mario P Carrello | S115: 15.5
A116: 446828 | B116: Christian Kuba | C116: 2014-12-31 | D116: 3 | E116: 0 | G116: No Activity Code | Q116: No Activity Code | R116: Mark A Benson | S116: 15.5
A117: 707581 | B117: Christine A Miller | C117: 2014-07-01 | D117: 15 | E117: 0 | G117: No Activity Code | Q117: No Activity Code | R117: Mark D Broda | S117: 8
A118: 707581 | B118: Christine A Miller | C118: 2014-07-02 | D118: 15 | E118: 0 | G118: No Activity Code | Q118: No Activity Code | R118: Mark S Odenthal | S118: 9.5
A119: 707581 | B119: Christine A Miller | C119: 2014-07-03 | D119: 15 | E119: 0 | G119: No Activity Code | Q119: No Activity Code | R119: Marlin E Prye | S119: 12.5
A120: 707581 | B120: Christine A Miller | C120: 2014-07-07 | D120: 15 | E120: 0 | G120: No Activity Code | Q120: No Activity Code | R120: Martin J Picklo | S120: 15.5
A121: 707581 | B121: Christine A Miller | C121: 2014-07-08 | D121: 15 | E121: 0 | G121: No Activity Code | Q121: No Activity Code | R121: Matthew B. Cavanaugh | S121: 15.5
A122: 707581 | B122: Christine A Miller | C122: 2014-07-09 | D122: 15 | E122: 0 | G122: No Activity Code | Q122: No Activity Code | R122: Matthew Christopher Barr | S122: 12.5
A123: 707581 | B123: Christine A Miller | C123: 2014-07-10 | D123: 15 | E123: 0 | G123: No Activity Code | Q123: No Activity Code | R123: Matthew J Somogyi | S123: 20
A124: 707581 | B124: Christine A Miller | C124: 2014-07-11 | D124: 15 | E124: 0 | G124: No Activity Code | Q124: No Activity Code | R124: Matthew J. Riley | S124: 6.4
A125: 707581 | B125: Christine A Miller | C125: 2014-07-14 | D125: 15 | E125: 0 | G125: No Activity Code | Q125: No Activity Code | R125: Maurice R Gardner | S125: 15.5
A126: 707581 | B126: Christine A Miller | C126: 2014-07-15 | D126: 15 | E126: 0 | G126: No Activity Code | Q126: No Activity Code | R126: Melanie R Ford-Wigfield | S126: 45
A127: 707581 | B127: Christine A Miller | C127: 2014-07-16 | D127: 15 | E127: 0 | G127: No Activity Code | Q127: No Activity Code | R127: Michael A Haney | S127: 15.5
A128: 707581 | B128: Christine A Miller | C128: 2014-07-17 | D128: 15 | E128: 0 | G128: No Activity Code | Q128: No Activity Code | R128: Michael J Duke | S128: 12.5
A129: 707581 | B129: Christine A Miller | C129: 2014-07-18 | D129: 15 | E129: 0 | G129: No Activity Code | Q129: No Activity Code | R129: Michael J Menghini | S129: 7.5
A130: 707581 | B130: Christine A Miller | C130: 2014-07-21 | D130: 7.5 | E130: 0 | G130: No Activity Code | Q130: No Activity Code | R130: Michael P Kutney | S130: 10.5
A131: 707581 | B131: Christine A Miller | C131: 2014-07-22 | D131: 7.5 | E131: 0 | G131: No Activity Code | L131: =IF($K131="","",SUMIF(CATS_Problem_Records_Problem,$K131,CATS_Problem_Records_Hours)) ->  | O131: =IF($N131="","",SUMIF(CATS_Problem_Records_Act_Code,$N131,CATS_Problem_Records_Hours)) ->  | Q131: No Activity Code | R131: Michael R Schirato | S131: =IF($Q131="","",SUMPRODUCT((CATS_Problem_Records_Problem=Q131)*(CATS_Problem_Records_Employee_Name=R131),CATS_Problem_Records_Hours)) -> 18.5
A132: 707581 | B132: Christine A Miller | C132: 2014-07-23 | D132: 7.5 | E132: 0 | G132: No Activity Code | Q132: No Activity Code | R132: Michael T Bodnar | S132: 8
A133: 707581 | B133: Christine A Miller | C133: 2014-07-24 | D133: 7.5 | E133: 0 | G133: No Activity Code | Q133: No Activity Code | R133: Michael W Smith | S133: 8
A134: 707581 | B134: Christine A Miller | C134: 2014-07-25 | D134: 7.5 | E134: 0 | G134: No Activity Code | Q134: No Activity Code | R134: Nathan A Houtz | S134: 13.5
A135: 707581 | B135: Christine A Miller | C135: 2014-07-28 | D135: 7.5 | E135: 0 | G135: No Activity Code | Q135: No Activity Code | R135: Patricia A Eichman | S135: 12
A136: 707581 | B136: Christine A Miller | C136: 2014-07-29 | D136: 7.5 | E136: 0 | G136: No Activity Code | Q136: No Activity Code | R136: Patrick J Brazzon | S136: 12.5
A137: 707581 | B137: Christine A Miller | C137: 2014-07-30 | D137: 7.5 | E137: 0 | G137: No Activity Code | Q137: No Activity Code | R137: Patrick L Jaquay | S137: 12
A138: 707581 | B138: Christine A Miller | C138: 2014-07-31 | D138: 7.5 | E138: 0 | G138: No Activity Code | Q138: No Activity Code | R138: Paul A Cestoni | S138: 16
A139: 707581 | B139: Christine A Miller | C139: 2014-08-01 | D139: 7.5 | E139: 0 | G139: No Activity Code | Q139: No Activity Code | R139: Paul M. Kephart | S139: 15.5
A140: 707581 | B140: Christine A Miller | C140: 2014-11-26 | D140: 2 | E140: 0 | G140: No Activity Code | Q140: No Activity Code | R140: Randolph E. Manack | S140: 15.5
A141: 707581 | B141: Christine A Miller | C141: 2014-12-24 | D141: 3 | E141: 0 | G141: No Activity Code | Q141: No Activity Code | R141: Randy R Shustack | S141: 13
A142: 707581 | B142: Christine A Miller | C142: 2014-12-26 | D142: 7.5 | E142: 0 | G142: No Activity Code | Q142: No Activity Code | R142: Rebecca Lynn Reichert | S142: 8.25
A143: 707581 | B143: Christine A Miller | C143: 2014-12-31 | D143: 3 | E143: 0 | G143: No Activity Code | Q143: No Activity Code | R143: Renee Antoinette Veltri | S143: 9.5
A144: 669069 | B144: Christine M Drobnoek | C144: 2014-01-07 | D144: 2 | G144: No Work Code No Activity Code | Q144: No Activity Code | R144: Renee L Edwards | S144: 3
A145: 669069 | B145: Christine M Drobnoek | C145: 2014-01-28 | D145: 2 | G145: No Work Code No Activity Code | Q145: No Activity Code | R145: Rhonda J Williams | S145: 16
A146: 669069 | B146: Christine M Drobnoek | C146: 2014-02-05 | D146: 2 | G146: No Work Code No Activity Code | Q146: No Activity Code | R146: Rhonda L Whitsel | S146: 3.5
A147: 669069 | B147: Christine M Drobnoek | C147: 2014-02-13 | D147: 3 | G147: No Work Code No Activity Code | Q147: No Activity Code | R147: Richard F Verscharen Jr | S147: 15.5
A148: 714879 | B148: Craig James Leibfreid | C148: 2014-11-26 | D148: 2 | E148: 0 | G148: No Activity Code | Q148: No Activity Code | R148: Richard H. Palmer | S148: 15.5
A149: 714879 | B149: Craig James Leibfreid | C149: 2014-12-24 | D149: 3 | E149: 0 | G149: No Activity Code | Q149: No Activity Code | R149: Richard J Kormanik | S149: 12
A150: 714879 | B150: Craig James Leibfreid | C150: 2014-12-26 | D150: 7.5 | E150: 0 | G150: No Activity Code | Q150: No Activity Code | R150: Richard J Walck | S150: 11
A151: 714879 | B151: Craig James Leibfreid | C151: 2014-12-31 | D151: 3 | E151: 0 | G151: No Activity Code | Q151: No Activity Code | R151: Robert A Sporcic | S151: 13
A152: 459424 | B152: Craig T Burda | C152: 2014-02-05 | D152: 2 | G152: No Work Code No Activity Code | Q152: No Activity Code | R152: Robert J Kowalsky | S152: 6
A153: 459424 | B153: Craig T Burda | C153: 2014-11-26 | D153: 2 | E153: 0 | G153: No Activity Code | Q153: No Activity Code | R153: Robert L Lawson | S153: 14.5
A154: 459424 | B154: Craig T Burda | C154: 2014-12-24 | D154: 3 | E154: 0 | G154: No Activity Code | Q154: No Activity Code | R154: Robert T Lawhead | S154: 9.5
A155: 459424 | B155: Craig T Burda | C155: 2014-12-26 | D155: 8 | E155: 0 | G155: No Activity Code | Q155: No Activity Code | R155: Robin L Myers | S155: 0
A156: 537939 | B156: Cynthia A Kuklis | C156: 2014-01-03 | D156: 2 | G156: No Work Code No Activity Code | Q156: No Activity Code | R156: Rock Martin | S156: 15.5
A157: 537939 | B157: Cynthia A Kuklis | C157: 2014-01-07 | D157: 2 | G157: No Work Code No Activity Code | Q157: No Activity Code | R157: Roger D Bowman | S157: 11
A158: 537939 | B158: Cynthia A Kuklis | C158: 2014-02-05 | D158: 7.5 | G158: No Work Code No Activity Code | Q158: No Activity Code | R158: Roger D Taylor | S158: 12.5
A159: 537939 | B159: Cynthia A Kuklis | C159: 2014-02-13 | D159: 7.5 | G159: No Work Code No Activity Code | Q159: No Activity Code | R159: Ronald H Horansky | S159: 11.5
A160: 537939 | B160: Cynthia A Kuklis | C160: 2014-11-26 | D160: 2 | E160: 0 | G160: No Activity Code | Q160: No Activity Code | R160: Russell C Dill | S160: 15.5
A161: 537939 | B161: Cynthia A Kuklis | C161: 2014-12-24 | D161: 3 | E161: 0 | G161: No Activity Code | Q161: No Activity Code | R161: Ryan D Flynn | S161: 16.75
A162: 537939 | B162: Cynthia A Kuklis | C162: 2014-12-26 | D162: 7.5 | E162: 0 | G162: No Activity Code | Q162: No Activity Code | R162: Samuel C M Faith | S162: 10.5
A163: 537939 | B163: Cynthia A Kuklis | C163: 2014-12-31 | D163: 3 | E163: 0 | G163: No Activity Code | Q163: No Activity Code | R163: Sarah Gabrielle Weinreich | S163: 13.5
A164: 646559 | B164: Cynthia L. Stants | C164: 2014-02-05 | D164: 2 | G164: No Work Code No Activity Code | Q164: No Activity Code | R164: Scott L Barnes | S164: 15.5
A165: 646559 | B165: Cynthia L. Stants | C165: 2014-12-24 | D165: 3 | E165: 0 | G165: No Activity Code | Q165: No Activity Code | R165: Stacey L Malarkey | S165: 12.5
A166: 526621 | B166: Damien J Petry | C166: 2014-07-04 | D166: 16 | E166: 0 | G166: No Activity Code | Q166: No Activity Code | R166: Stephen E. Leitkam | S166: 15.5
A167: 526621 | B167: Damien J Petry | C167: 2014-08-12 | D167: 2 | E167: 0 | G167: No Activity Code | Q167: No Activity Code | R167: Steven C Starner | S167: 12.5
A168: 526621 | B168: Damien J Petry | C168: 2014-09-01 | D168: 16 | E168: 0 | G168: No Activity Code | Q168: No Activity Code | R168: Theresa L Elicker | S168: 10.5
A169: 526621 | B169: Damien J Petry | C169: 2014-11-21 | D169: 0.2 | E169: 0 | G169: No Activity Code | Q169: No Activity Code | R169: Theresa M Reilly | S169: 13.5
A170: 526621 | B170: Damien J Petry | C170: 2014-11-26 | D170: 2 | E170: 0 | G170: No Activity Code | Q170: No Activity Code | R170: Thomas A Nalisnick | S170: 19
A171: 526621 | B171: Damien J Petry | C171: 2014-12-15 | D171: 3.5 | E171: 0 | G171: No Activity Code | Q171: No Activity Code | R171: Thomas John Boretski Jr | S171: 15.5
A172: 526621 | B172: Damien J Petry | C172: 2014-12-16 | D172: 3.5 | E172: 0 | G172: No Activity Code | Q172: No Activity Code | R172: Thomas P Pongrac | S172: 6.75
A173: 526621 | B173: Damien J Petry | C173: 2014-12-17 | D173: 3.5 | E173: 0 | G173: No Activity Code | Q173: No Activity Code | R173: Thomas W Shofestall | S173: 15.5
A174: 526621 | B174: Damien J Petry | C174: 2014-12-18 | D174: 3.5 | E174: 0 | G174: No Activity Code | Q174: No Activity Code | R174: Tiffany M Folk | S174: 15
A175: 526621 | B175: Damien J Petry | C175: 2014-12-19 | D175: 3.5 | E175: 0 | G175: No Activity Code | Q175: No Activity Code | R175: Timothy J Gillen | S175: 15.5
A176: 526621 | B176: Damien J Petry | C176: 2014-12-22 | D176: 3.5 | E176: 0 | G176: No Activity Code | Q176: No Activity Code | R176: Tracy M Norbert | S176: 2
A177: 526621 | B177: Damien J Petry | C177: 2014-12-23 | D177: 3.5 | E177: 0 | G177: No Activity Code | Q177: No Activity Code | R177: Tyler A Brown | S177: 15.5
A178: 526621 | B178: Damien J Petry | C178: 2014-12-24 | D178: 3.5 | E178: 0 | G178: No Activity Code | Q178: No Activity Code | R178: Wade W Gallaher | S178: 16
A179: 526621 | B179: Damien J Petry | C179: 2014-12-26 | D179: 7.5 | E179: 0 | G179: No Activity Code | Q179: No Activity Code | R179: Walter A Kuzemchock | S179: 15.5
A180: 526621 | B180: Damien J Petry | C180: 2014-12-31 | D180: 3 | E180: 0 | G180: No Activity Code | Q180: No Activity Code | R180: William Clark Brusse | S180: 15.5
A181: 505457 | B181: Daniel C Welte | C181: 2014-01-07 | D181: 2 | G181: No Work Code No Activity Code | Q181: No Activity Code | R181: William D Edmiston | S181: 12.5
A182: 505457 | B182: Daniel C Welte | C182: 2014-01-28 | D182: 2 | G182: No Work Code No Activity Code | Q182: No Activity Code | R182: William E Keefer Jr | S182: 16
A183: 505457 | B183: Daniel C Welte | C183: 2014-02-05 | D183: 2 | G183: No Work Code No Activity Code | Q183: No Activity Code | R183: William S Plassio | S183: 15.5
A184: 505457 | B184: Daniel C Welte | C184: 2014-11-26 | D184: 2 | E184: 0 | G184: No Activity Code | Q184: No Activity Code | R184: William T Shuss | S184: 15
A185: 505457 | B185: Daniel C Welte | C185: 2014-12-24 | D185: 3 | E185: 0 | G185: No Activity Code | Q185: No Activity Code | R185: Yakov M Reznik | S185: 16
A186: 505457 | B186: Daniel C Welte | C186: 2014-12-26 | D186: 8.75 | E186: 0 | G186: No Activity Code | Q186: No Activity Code | R186: Yvonne R Clark | S186: 15.5
A187: 505457 | B187: Daniel C Welte | C187: 2014-12-31 | D187: 3 | E187: 0 | G187: No Activity Code | Q187: No Activity Code | R187: Zachary L Bell | S187: 15
A188: 688372 | B188: Daniel J Chverchko | C188: 2014-01-07 | D188: 2 | G188: No Work Code No Activity Code | Q188: No Employee Record Avaliable | R188: Elizabeth Lynn Niles | S188: 57
A189: 688372 | B189: Daniel J Chverchko | C189: 2014-01-28 | D189: 2 | G189: No Work Code No Activity Code | Q189: No Employee Record Avaliable | R189: Elizabeth Lynn Scott | S189: 853.17
A190: 688372 | B190: Daniel J Chverchko | C190: 2014-02-05 | D190: 2 | G190: No Work Code No Activity Code | Q190: No Work Code No Activity Code | R190: Adam M. Snyder | S190: 4
A191: 688372 | B191: Daniel J Chverchko | C191: 2014-02-13 | D191: 3.5 | G191: No Work Code No Activity Code | Q191: No Work Code No Activity Code | R191: Alan J Bigatel | S191: 7
A192: 688372 | B192: Daniel J Chverchko | C192: 2014-12-24 | D192: 3 | E192: 0 | G192: No Activity Code | Q192: No Work Code No Activity Code | R192: Amanda Jean Leasure | S192: 2
A193: 688372 | B193: Daniel J Chverchko | C193: 2014-12-26 | D193: 8 | E193: 0 | G193: No Activity Code | Q193: No Work Code No Activity Code | R193: Amiee M. Bollinger | S193: 24.75
A194: 688372 | B194: Daniel J Chverchko | C194: 2014-12-31 | D194: 3 | E194: 0 | G194: No Activity Code | Q194: No Work Code No Activity Code | R194: Andrea L Fink | S194: 0
A195: 53742 | B195: Daniel J Koury | C195: 2014-01-03 | D195: 2 | G195: No Work Code No Activity Code | L195: =IF($K195="","",SUMIF(CATS_Problem_Records_Problem,$K195,CATS_Problem_Records_Hours)) ->  | O195: =IF($N195="","",SUMIF(CATS_Problem_Records_Act_Code,$N195,CATS_Problem_Records_Hours)) ->  | Q195: No Work Code No Activity Code | R195: Andrew M Walker | S195: =IF($Q195="","",SUMPRODUCT((CATS_Problem_Records_Problem=Q195)*(CATS_Problem_Records_Employee_Name=R195),CATS_Problem_Records_Hours)) -> 4
A196: 53742 | B196: Daniel J Koury | C196: 2014-01-07 | D196: 2 | G196: No Work Code No Activity Code | Q196: No Work Code No Activity Code | R196: Anne Elizabeth Hong | S196: 2
A197: 53742 | B197: Daniel J Koury | C197: 2014-02-05 | D197: 7.5 | G197: No Work Code No Activity Code | Q197: No Work Code No Activity Code | R197: Arnold N Belz | S197: 5
A198: 53742 | B198: Daniel J Koury | C198: 2014-02-13 | D198: 7.5 | G198: No Work Code No Activity Code | Q198: No Work Code No Activity Code | R198: Barbara L Hajel | S198: 10.5
A199: 53742 | B199: Daniel J Koury | C199: 2014-12-31 | D199: 3 | E199: 0 | G199: No Activity Code | Q199: No Work Code No Activity Code | R199: Bernard R Robb | S199: 4
A200: 707046 | B200: Daniel Prescott Weaver | C200: 2014-01-07 | D200: 2 | G200: No Work Code No Activity Code | Q200: No Work Code No Activity Code | R200: Bonnie G Deems | S200: 4
... 1126 more rows

Sheet Inspections By Code - Performed
A1: Inspection Code | B1: California | C1: Cambria | D1: Greensburg | E1: Knox | F1: Moshannon | G1: Pottsville | H1: Totals
A2: Administrative/File Review | B2: 5 | C2: 18 | D2: 12 | E2: 34 | F2: 53 | G2: 71 | H2: =SUM(B2:G2) -> 193
A3: Application Violator System | B3: 0 | C3: 254 | D3: 136 | E3: 68 | F3: 128 | G3: 249 | H3: =SUM(B3:G3) -> 835
A4: Auger Safety | B4: 0 | C4: 0 | D4: 0 | E4: 0 | F4: 6 | G4: 0 | H4: 6
A5: Bond Release | B5: 0 | C5: 0 | D5: 41 | E5: 0 | F5: 1 | G5: 12 | H5: 54
A6: Complaint Inspection | B6: 0 | C6: 0 | D6: 5 | E6: 0 | F6: 0 | G6: 0 | H6: 5
A7: Explosives | B7: 0 | C7: 570 | D7: 352 | E7: 127 | F7: 298 | G7: 683 | H7: 2030
A8: Follow-up Inspection | B8: 0 | C8: 77 | D8: 109 | E8: 0 | F8: 27 | G8: 2 | H8: 215
A9: Mine Subsidence Inspection | B9: 1 | C9: 0 | D9: 0 | E9: 0 | F9: 0 | G9: 0 | H9: 1
A10: Permit Renewal Inspection | B10: 0 | C10: 0 | D10: 0 | E10: 0 | F10: 0 | G10: 1 | H10: 1
A11: Routine Final Inspection | B11: 0 | C11: 15 | D11: 0 | E11: 0 | F11: 0 | G11: 21 | H11: 36
A12: Routine/Complete Inspection | B12: 0 | C12: 2048 | D12: 1280 | E12: 2446 | F12: 1881 | G12: 3461 | H12: 11116
A13: Routine/Partial Inspection | B13: 1 | C13: 2131 | D13: 1456 | E13: 869 | F13: 1467 | G13: 1882 | H13: 7806
A14: Routine/Partial/Aerial Inspection | B14: 0 | C14: 524 | D14: 418 | E14: 21 | F14: 65 | G14: 549 | H14: 1577
A15: Special Request -Fac/Site/Client Request | B15: 0 | C15: 0 | D15: 0 | E15: 0 | F15: 0 | G15: 1 | H15: 1
H16: 0
H17: 0
H18: 0
H19: 0
H20: 0
H21: 0
H22: 0
H23: 0
H24: 0
H25: 0
H26: 0
H27: 0
H28: 0
H29: 0
H30: 0
H31: 0
H32: 0
H33: 0
H34: 0
H35: 0
H36: 0
H37: 0
H38: 0
H39: 0
H40: 0
H41: 0
H42: 0
H43: 0
H44: 0
H45: 0
H46: 0
H47: 0
H48: 0
H49: 0
H50: 0
H51: 0
H52: 0
H53: 0
H54: 0
H55: 0
H56: 0
H57: 0

Sheet Inspections - Performed
A1: Permit Type | B1: Permit Kind | C1: Permit Status | D1: Cambria | E1: Greensburg | F1: Knox | G1: Moshannon | H1: Pottsville | I1: Totals
A2: Blasting Operation | C2: Active | D2: 0 | E2: 0 | F2: 0 | G2: 0 | H2: 0 | I2: =SUM(D2:H2) -> 0
A3: Blasting Operation | C3: Not Started | D3: 0 | E3: 0 | F3: 0 | G3: 0 | H3: 0 | I3: 0
A4: Coal Mining Operation | C4: Active | D4: 0 | E4: 0 | F4: 0 | G4: 0 | H4: 0 | I4: 0
A5: Coal Mining Operation | B5: Anthracite River Dredge | C5: Active | D5: 0 | E5: 0 | F5: 0 | G5: 0 | H5: 13 | I5: 13
A6: Coal Mining Operation | B6: GFCC | C6: Active | D6: 15 | E6: 78 | F6: 31 | G6: 77 | H6: 0 | I6: 201
A7: Coal Mining Operation | B7: GFCC | C7: Stage 2 Approved | D7: 10 | E7: 0 | F7: 26 | G7: 0 | H7: 0 | I7: 36
A8: Coal Mining Operation | B8: GFCC | C8: Stage 2 Eligible | D8: 9 | E8: 0 | F8: 0 | G8: 52 | H8: 0 | I8: 61
A9: Coal Mining Operation | B9: GFCC | C9: Stage1/Regraded | D9: 22 | E9: 14 | F9: 24 | G9: 0 | H9: 0 | I9: 60
A10: Coal Mining Operation | B10: Incidental Coal Extraction | C10: Active | D10: 0 | E10: 0 | F10: 0 | G10: 0 | H10: 16 | I10: 16
A11: Coal Mining Operation | B11: Incidental Coal Extraction | C11: Bond Forfeited | D11: 0 | E11: 0 | F11: 0 | G11: 0 | H11: 0 | I11: 0
A12: Coal Mining Operation | B12: Incidental Coal Extraction | C12: Primacy Bond Forfeited | D12: 0 | E12: 4 | F12: 0 | G12: 0 | H12: 0 | I12: 4
A13: Coal Mining Operation | B13: Incidental Coal Extraction | C13: Reclaimed/Passive Treatment | D13: 0 | E13: 1 | F13: 0 | G13: 0 | H13: 0 | I13: 1
A14: Coal Mining Operation | B14: Post Mining IW Discharge | C14: Reclaimed/Chemical Treatment | D14: 0 | E14: 13 | F14: 0 | G14: 0 | H14: 0 | I14: 13
A15: Coal Mining Operation | B15: Post Mining IW Discharge | C15: Reclaimed/Passive Treatment | D15: 0 | E15: 4 | F15: 0 | G15: 4 | H15: 0 | I15: 8
A16: Coal Mining Operation | B16: Post Mining IW Discharge | C16: Trust Treated Passive Treatment | D16: 0 | E16: 0 | F16: 0 | G16: 0 | H16: 0 | I16: 0
A17: Coal Mining Operation | B17: Prep Plant | C17: Active | D17: 189 | E17: 145 | F17: 24 | G17: 108 | H17: 159 | I17: 625
A18: Coal Mining Operation | B18: Prep Plant | C18: Bond Forfeited | D18: 0 | E18: 0 | F18: 0 | G18: 0 | H18: 3 | I18: 3
A19: Coal Mining Operation | B19: Prep Plant | C19: Inactive | D19: 0 | E19: 0 | F19: 0 | G19: 0 | H19: 0 | I19: 0
A20: Coal Mining Operation | B20: Prep Plant | C20: Not Started | D20: 0 | E20: 3 | F20: 0 | G20: 0 | H20: 0 | I20: 3
A21: Coal Mining Operation | B21: Prep Plant | C21: Primacy Bond Forfeited | D21: 0 | E21: 0 | F21: 0 | G21: 3 | H21: 0 | I21: 3
A22: Coal Mining Operation | B22: Prep Plant | C22: Reclaimed/Chemical Treatment | D22: 24 | E22: 26 | F22: 0 | G22: 8 | H22: 0 | I22: 58
A23: Coal Mining Operation | B23: Prep Plant | C23: Reclaimed/Passive Treatment | D23: 5 | E23: 0 | F23: 0 | G23: 0 | H23: 0 | I23: 5
A24: Coal Mining Operation | B24: Prep Plant | C24: Stage1/Regraded | D24: 0 | E24: 5 | F24: 0 | G24: 0 | H24: 0 | I24: 5
A25: Coal Mining Operation | B25: Refuse Disposal | C25: Active | D25: 161 | E25: 261 | F25: 0 | G25: 25 | H25: 39 | I25: 486
A26: Coal Mining Operation | B26: Refuse Disposal | C26: Approved Cessation | D26: 11 | E26: 0 | F26: 0 | G26: 0 | H26: 0 | I26: 11
A27: Coal Mining Operation | B27: Refuse Disposal | C27: Bond Forfeited | D27: 0 | E27: 0 | F27: 0 | G27: 0 | H27: 0 | I27: 0
A28: Coal Mining Operation | B28: Refuse Disposal | C28: Bond Forfeited-Chemical Treatment | D28: 0 | E28: 26 | F28: 0 | G28: 0 | H28: 0 | I28: 26
A29: Coal Mining Operation | B29: Refuse Disposal | C29: Bond Forfeited-Passive Treatment | D29: 0 | E29: 0 | F29: 8 | G29: 0 | H29: 0 | I29: 8
A30: Coal Mining Operation | B30: Refuse Disposal | C30: Bond Forfeiture-Under Reclamation | D30: 9 | E30: 0 | F30: 0 | G30: 0 | H30: 0 | I30: 9
A31: Coal Mining Operation | B31: Refuse Disposal | C31: Inactive | D31: 11 | E31: 0 | F31: 0 | G31: 0 | H31: 0 | I31: 11
A32: Coal Mining Operation | B32: Refuse Disposal | C32: Not Started | D32: 0 | E32: 3 | F32: 0 | G32: 0 | H32: 0 | I32: 3
A33: Coal Mining Operation | B33: Refuse Disposal | C33: Primacy Bond Forfeited | D33: 0 | E33: 10 | F33: 0 | G33: 0 | H33: 0 | I33: 10
A34: Coal Mining Operation | B34: Refuse Disposal | C34: Reclaimed/Chemical Treatment | D34: 81 | E34: 39 | F34: 13 | G34: 0 | H34: 0 | I34: 133
A35: Coal Mining Operation | B35: Refuse Disposal | C35: Reclaimed/Passive Treatment | D35: 17 | E35: 1 | F35: 0 | G35: 0 | H35: 0 | I35: 18
A36: Coal Mining Operation | B36: Refuse Disposal | C36: Stage 2 Approved | D36: 0 | E36: 0 | F36: 0 | G36: 4 | H36: 0 | I36: 4
A37: Coal Mining Operation | B37: Refuse Disposal | C37: Stage 2 Eligible | D37: 5 | E37: 10 | F37: 0 | G37: 0 | H37: 0 | I37: 15
A38: Coal Mining Operation | B38: Refuse Disposal | C38: Stage1/Regraded | D38: 12 | E38: 24 | F38: 0 | G38: 0 | H38: 0 | I38: 36
A39: Coal Mining Operation | B39: Refuse Reprocessing | C39: Active | D39: 121 | E39: 78 | F39: 0 | G39: 12 | H39: 1148 | I39: 1359
A40: Coal Mining Operation | B40: Refuse Reprocessing | C40: Approved Cessation | D40: 0 | E40: 14 | F40: 0 | G40: 0 | H40: 0 | I40: 14
A41: Coal Mining Operation | B41: Refuse Reprocessing | C41: Bond Forfeited | D41: 0 | E41: 0 | F41: 0 | G41: 0 | H41: 0 | I41: 0
A42: Coal Mining Operation | B42: Refuse Reprocessing | C42: Not Started | D42: 9 | E42: 0 | F42: 0 | G42: 0 | H42: 0 | I42: 9
A43: Coal Mining Operation | B43: Refuse Reprocessing | C43: Primacy Bond Forfeited | D43: 0 | E43: 1 | F43: 0 | G43: 0 | H43: 12 | I43: 13
A44: Coal Mining Operation | B44: Refuse Reprocessing | C44: Stage 2 Approved | D44: 4 | E44: 0 | F44: 0 | G44: 0 | H44: 12 | I44: 16
A45: Coal Mining Operation | B45: Refuse Reprocessing | C45: Stage 2 Eligible | D45: 4 | E45: 0 | F45: 0 | G45: 0 | H45: 40 | I45: 44
A46: Coal Mining Operation | B46: Refuse Reprocessing | C46: Stage1/Regraded | D46: 34 | E46: 11 | F46: 0 | G46: 0 | H46: 85 | I46: 130
A47: Coal Mining Operation | B47: Surface | C47: Abandoned | D47: 0 | E47: 0 | F47: 0 | G47: 0 | H47: 0 | I47: 0
A48: Coal Mining Operation | B48: Surface | C48: Active | D48: 978 | E48: 409 | F48: 501 | G48: 985 | H48: 1354 | I48: 4227
A49: Coal Mining Operation | B49: Surface | C49: Approved Cessation | D49: 77 | E49: 59 | F49: 0 | G49: 0 | H49: 0 | I49: 136
A50: Coal Mining Operation | B50: Surface | C50: Bond Forfeited | D50: 0 | E50: 5 | F50: 0 | G50: 12 | H50: 0 | I50: 17
A51: Coal Mining Operation | B51: Surface | C51: Bond Forfeited-Chemical Treatment | D51: 0 | E51: 0 | F51: 85 | G51: 92 | H51: 0 | I51: 177
A52: Coal Mining Operation | B52: Surface | C52: Bond Forfeited-Passive Treatment | D52: 8 | E52: 8 | F52: 183 | G52: 66 | H52: 0 | I52: 265
A53: Coal Mining Operation | B53: Surface | C53: Inactive | D53: 0 | E53: 0 | F53: 0 | G53: 0 | H53: 0 | I53: 0
A54: Coal Mining Operation | B54: Surface | C54: Not Started | D54: 41 | E54: 24 | F54: 10 | G54: 15 | H54: 0 | I54: 90
A55: Coal Mining Operation | B55: Surface | C55: Primacy Bond Forfeited | D55: 13 | E55: 21 | F55: 40 | G55: 31 | H55: 12 | I55: 117
A56: Coal Mining Operation | B56: Surface | C56: Reclaimed/Chemical Treatment | D56: 388 | E56: 122 | F56: 14 | G56: 98 | H56: 0 | I56: 622
A57: Coal Mining Operation | B57: Surface | C57: Reclaimed/Passive Treatment | D57: 119 | E57: 120 | F57: 57 | G57: 93 | H57: 0 | I57: 389
A58: Coal Mining Operation | B58: Surface | C58: Stage 2 Approved | D58: 193 | E58: 245 | F58: 218 | G58: 255 | H58: 4 | I58: 915
A59: Coal Mining Operation | B59: Surface | C59: Stage 2 Eligible | D59: 202 | E59: 90 | F59: 108 | G59: 63 | H59: 41 | I59: 504
A60: Coal Mining Operation | B60: Surface | C60: Stage1/Regraded | D60: 654 | E60: 361 | F60: 303 | G60: 542 | H60: 48 | I60: 1908
A61: Coal Mining Operation | B61: Surface | C61: Trust Treated Chemical Treatment | D61: 0 | E61: 15 | F61: 36 | G61: 0 | H61: 0 | I61: 51
A62: Coal Mining Operation | B62: Surface | C62: Trust Treated Passive Treatment | D62: 0 | E62: 0 | F62: 16 | G62: 0 | H62: 0 | I62: 16
A63: Coal Mining Operation | B63: Underground | C63: Active | D63: 299 | E63: 319 | F63: 37 | G63: 36 | H63: 207 | I63: 898
A64: Coal Mining Operation | B64: Underground | C64: Approved Cessation | D64: 38 | E64: 24 | F64: 0 | G64: 0 | H64: 0 | I64: 62
A65: Coal Mining Operation | B65: Underground | C65: Bond Forfeited | D65: 0 | E65: 0 | F65: 0 | G65: 0 | H65: 12 | I65: 12
A66: Coal Mining Operation | B66: Underground | C66: Bond Forfeited-Chemical Treatment | D66: 0 | E66: 15 | F66: 0 | G66: 12 | H66: 0 | I66: =SUM(D66:H66) -> 27
A67: Coal Mining Operation | B67: Underground | C67: Bond Forfeited-Passive Treatment | D67: 0 | E67: 4 | F67: 4 | G67: 0 | H67: 0 | I67: 8
A68: Coal Mining Operation | B68: Underground | C68: Bond Forfeiture-Under Reclamation | D68: 0 | E68: 0 | F68: 0 | G68: 12 | H68: 0 | I68: 12
A69: Coal Mining Operation | B69: Underground | C69: Inactive | D69: 0 | E69: 0 | F69: 0 | G69: 0 | H69: 12 | I69: 12
A70: Coal Mining Operation | B70: Underground | C70: Not Started | D70: 14 | E70: 9 | F70: 0 | G70: 0 | H70: 0 | I70: 23
A71: Coal Mining Operation | B71: Underground | C71: Primacy Bond Forfeited | D71: 0 | E71: 0 | F71: 0 | G71: 0 | H71: 6 | I71: 6
A72: Coal Mining Operation | B72: Underground | C72: Reclaimed/Chemical Treatment | D72: 162 | E72: 84 | F72: 13 | G72: 12 | H72: 12 | I72: 283
A73: Coal Mining Operation | B73: Underground | C73: Reclaimed/Passive Treatment | D73: 18 | E73: 19 | F73: 0 | G73: 0 | H73: 0 | I73: 37
A74: Coal Mining Operation | B74: Underground | C74: Stage 2 Approved | D74: 1 | E74: 26 | F74: 0 | G74: 0 | H74: 10 | I74: 37
A75: Coal Mining Operation | B75: Underground | C75: Stage 2 Eligible | D75: 8 | E75: 8 | F75: 0 | G75: 0 | H75: 18 | I75: 34
A76: Coal Mining Operation | B76: Underground | C76: Stage1/Regraded | D76: 31 | E76: 45 | F76: 12 | G76: 0 | H76: 72 | I76: 160
A77: Coal Mining Operation | B77: Underground | C77: Unapproved Cessation | D77: 0 | E77: 0 | F77: 0 | G77: 0 | H77: 0 | I77: 0
A78: Encroachment Location | C78: Active | D78: 0 | E78: 0 | F78: 1 | G78: 0 | H78: 0 | I78: 1
A79: Encroachment Location | C79: Not Started | D79: 0 | E79: 0 | F79: 0 | G79: 0 | H79: 0 | I79: 0
A80: Encroachment Location | B80: Abandoned Mine Reclamation | C80: Not Started | D80: 0 | E80: 0 | F80: 0 | G80: 0 | H80: 0 | I80: 0
A81: Encroachment Location | B81: Mineral Resources | C81: Active | D81: 0 | E81: 0 | F81: 0 | G81: 0 | H81: 0 | I81: 0
A82: Encroachment Location | B82: Mineral Resources | C82: Not Started | D82: 0 | E82: 0 | F82: 0 | G82: 0 | H82: 0 | I82: 0
A83: Explosive Storage Location | C83: Active | D83: 0 | E83: 0 | F83: 0 | G83: 0 | H83: 0 | I83: 0
A84: Explosive Storage Location | C84: Inactive | D84: 0 | E84: 0 | F84: 0 | G84: 0 | H84: 0 | I84: 0
A85: Explosive Storage Location | B85: Indoor Explosive Storage | C85: Active | D85: 0 | E85: 0 | F85: 0 | G85: 0 | H85: 0 | I85: 0
A86: Explosive Storage Location | B86: Indoor Explosive Storage | C86: Inactive | D86: 0 | E86: 0 | F86: 0 | G86: 0 | H86: 0 | I86: 0
A87: Explosive Storage Location | B87: Outdoor Explosive Storage | C87: Active | D87: 0 | E87: 0 | F87: 0 | G87: 0 | H87: 0 | I87: 0
A88: Explosive Storage Location | B88: Outdoor Explosive Storage | C88: Inactive | D88: 0 | E88: 0 | F88: 0 | G88: 0 | H88: 0 | I88: 0
A89: GP12 Prep Plant Emissions Operation | C89: Active | D89: 7 | E89: 0 | F89: 0 | G89: 0 | H89: 0 | I89: 7
A90: GP12 Prep Plant Emissions Operation | C90: Not Started | D90: 0 | E90: 0 | F90: 0 | G90: 0 | H90: 0 | I90: 0
A91: Industrial Mineral Mining Operation | B91: Bluestone General Permit | C91: Active | D91: 0 | E91: 0 | F91: 0 | G91: 24 | H91: 52 | I91: 76
A92: Industrial Mineral Mining Operation | B92: Bluestone General Permit | C92: Not Started | D92: 0 | E92: 0 | F92: 0 | G92: 0 | H92: 4 | I92: 4
A93: Industrial Mineral Mining Operation | B93: General Permit, Short-Term Construction | C93: Active | D93: 0 | E93: 0 | F93: 0 | G93: 0 | H93: 15 | I93: 15
A94: Industrial Mineral Mining Operation | B94: General Permit, Short-Term Construction | C94: Not Started | D94: 3 | E94: 0 | F94: 0 | G94: 1 | H94: 0 | I94: 4
A95: Industrial Mineral Mining Operation | B95: General Permit, Short-Term Construction | C95: Stage 2 Eligible | D95: 0 | E95: 0 | F95: 0 | G95: 0 | H95: 2 | I95: 2
A96: Industrial Mineral Mining Operation | B96: General Permit, Short-Term Construction | C96: Stage1/Regraded | D96: 0 | E96: 0 | F96: 0 | G96: 0 | H96: 0 | I96: 0
A97: Industrial Mineral Mining Operation | B97: Surface <10,000 Tons | C97: Active | D97: 57 | E97: 11 | F97: 166 | G97: 70 | H97: 198 | I97: 502
A98: Industrial Mineral Mining Operation | B98: Surface <10,000 Tons | C98: Bond Forfeited | D98: 0 | E98: 0 | F98: 0 | G98: 0 | H98: 4 | I98: 4
A99: Industrial Mineral Mining Operation | B99: Surface <10,000 Tons | C99: Bond in Forfeiture | D99: 0 | E99: 0 | F99: 0 | G99: 0 | H99: 0 | I99: 0
A100: Industrial Mineral Mining Operation | B100: Surface <10,000 Tons | C100: Inactive | D100: 2 | E100: 0 | F100: 0 | G100: 0 | H100: 2 | I100: 4
A101: Industrial Mineral Mining Operation | B101: Surface <10,000 Tons | C101: Not Started | D101: 0 | E101: 4 | F101: 19 | G101: 4 | H101: 7 | I101: 34
A102: Industrial Mineral Mining Operation | B102: Surface <10,000 Tons | C102: Primacy Bond Forfeited | D102: 0 | E102: 0 | F102: 0 | G102: 10 | H102: 0 | I102: 10
A103: Industrial Mineral Mining Operation | B103: Surface <10,000 Tons | C103: Stage 2 Eligible | D103: 0 | E103: 3 | F103: 0 | G103: 1 | H103: 2 | I103: 6
A104: Industrial Mineral Mining Operation | B104: Surface <10,000 Tons | C104: Stage1/Regraded | D104: 1 | E104: 1 | F104: 4 | G104: 5 | H104: 5 | I104: 16
A105: Industrial Mineral Mining Operation | B105: Surface Large | C105: Active | D105: 240 | E105: 89 | F105: 898 | G105: 226 | H105: 1036 | I105: 2489
A106: Industrial Mineral Mining Operation | B106: Surface Large | C106: Approved Cessation | D106: 0 | E106: 3 | F106: 12 | G106: 10 | H106: 15 | I106: 40
A107: Industrial Mineral Mining Operation | B107: Surface Large | C107: Bond Forfeited | D107: 4 | E107: 0 | F107: 0 | G107: 0 | H107: 0 | I107: 4
A108: Industrial Mineral Mining Operation | B108: Surface Large | C108: Bond Forfeited-Chemical Treatment | D108: 0 | E108: 0 | F108: 0 | G108: 0 | H108: 0 | I108: 0
A109: Industrial Mineral Mining Operation | B109: Surface Large | C109: Bond in Forfeiture | D109: 0 | E109: 0 | F109: 0 | G109: 0 | H109: 3 | I109: 3
A110: Industrial Mineral Mining Operation | B110: Surface Large | C110: Inactive | D110: 0 | E110: 4 | F110: 0 | G110: 0 | H110: 4 | I110: 8
A111: Industrial Mineral Mining Operation | B111: Surface Large | C111: Not Started | D111: 1 | E111: 5 | F111: 13 | G111: 4 | H111: 6 | I111: 29
A112: Industrial Mineral Mining Operation | B112: Surface Large | C112: Operative But Not Producing | D112: 0 | E112: 0 | F112: 0 | G112: 3 | H112: 0 | I112: 3
A113: Industrial Mineral Mining Operation | B113: Surface Large | C113: Reclaimed/Chemical Treatment | D113: 0 | E113: 23 | F113: 0 | G113: 0 | H113: 0 | I113: 23
A114: Industrial Mineral Mining Operation | B114: Surface Large | C114: Reclaimed/Passive Treatment | D114: 0 | E114: 0 | F114: 4 | G114: 0 | H114: 0 | I114: 4
A115: Industrial Mineral Mining Operation | B115: Surface Large | C115: Stage 2 Approved | D115: 0 | E115: 7 | F115: 0 | G115: 0 | H115: 0 | I115: 7
A116: Industrial Mineral Mining Operation | B116: Surface Large | C116: Stage 2 Eligible | D116: 3 | E116: 0 | F116: 0 | G116: 0 | H116: 11 | I116: 14
A117: Industrial Mineral Mining Operation | B117: Surface Large | C117: Stage1/Regraded | D117: 17 | E117: 9 | F117: 115 | G117: 17 | H117: 54 | I117: 212
A118: Industrial Mineral Mining Operation | B118: Surface Large | C118: Unapproved Cessation | D118: 0 | E118: 0 | F118: 0 | G118: 0 | H118: 0 | I118: 0
A119: Industrial Mineral Mining Operation | B119: Surface Small <2,000 Tons | C119: Abandoned | D119: 1 | E119: 0 | F119: 0 | G119: 0 | H119: 1 | I119: 2
A120: Industrial Mineral Mining Operation | B120: Surface Small <2,000 Tons | C120: Active | D120: 148 | E120: 37 | F120: 166 | G120: 246 | H120: 804 | I120: 1401
A121: Industrial Mineral Mining Operation | B121: Surface Small <2,000 Tons | C121: Bond Forfeited | D121: 1 | E121: 2 | F121: 4 | G121: 3 | H121: 18 | I121: 28
A122: Industrial Mineral Mining Operation | B122: Surface Small <2,000 Tons | C122: Bond in Forfeiture | D122: 0 | E122: 2 | F122: 2 | G122: 0 | H122: 4 | I122: 8
A123: Industrial Mineral Mining Operation | B123: Surface Small <2,000 Tons | C123: Inactive | D123: 0 | E123: 0 | F123: 0 | G123: 0 | H123: 1 | I123: 1
A124: Industrial Mineral Mining Operation | B124: Surface Small <2,000 Tons | C124: Not Started | D124: 1 | E124: 0 | F124: 0 | G124: 2 | H124: 4 | I124: 7
A125: Industrial Mineral Mining Operation | B125: Surface Small <2,000 Tons | C125: Stage 2 Eligible | D125: 1 | E125: 0 | F125: 0 | G125: 10 | H125: 34 | I125: 45
A126: Industrial Mineral Mining Operation | B126: Surface Small <2,000 Tons | C126: Stage1/Regraded | D126: 13 | E126: 0 | F126: 11 | G126: 5 | H126: 21 | I126: 50
A127: Industrial Mineral Mining Operation | B127: Surface Small <2,000 Tons | C127: Unapproved Cessation | D127: 0 | E127: 0 | F127: 0 | G127: 0 | H127: 1 | I127: 1
A128: Industrial Mineral Mining Operation | B128: Underground | C128: Active | D128: 0 | E128: 18 | F128: 0 | G128: 6 | H128: 0 | I128: 24
A129: Mine Drainage Trmt/Land Recl Proj Loc | C129: Active | D129: 0 | E129: 0 | F129: 0 | G129: 0 | H129: 0 | I129: 0
A130: Mine Drainage Trmt/Land Recl Proj Loc | C130: Not Started | D130: 0 | E130: 0 | F130: 0 | G130: 0 | H130: 0 | I130: =SUM(D130:H130) -> 0
A131: Mine Drainage Trmt/Land Recl Proj Loc | B131: 10 Percent Set-Aside | C131: Active | D131: 0 | E131: 0 | F131: 0 | G131: 0 | H131: 0 | I131: 0
A132: Mine Drainage Trmt/Land Recl Proj Loc | B132: Biosolid | C132: Active | D132: 0 | E132: 0 | F132: 0 | G132: 12 | H132: 0 | I132: 12
A133: Mine Drainage Trmt/Land Recl Proj Loc | B133: EPA 319 | C133: Active | D133: 0 | E133: 0 | F133: 0 | G133: 0 | H133: 0 | I133: 0
A134: Mine Drainage Trmt/Land Recl Proj Loc | B134: EPA 319 | C134: Not Started | D134: 0 | E134: 0 | F134: 0 | G134: 0 | H134: 0 | I134: 0
A135: Mine Drainage Trmt/Land Recl Proj Loc | B135: Growing Greener | C135: Active | D135: 0 | E135: 0 | F135: 0 | G135: 0 | H135: 0 | I135: 0
A136: Mine Drainage Trmt/Land Recl Proj Loc | B136: Growing Greener | C136: Not Started | D136: 0 | E136: 0 | F136: 0 | G136: 0 | H136: 0 | I136: 0
A137: Mine Drainage Trmt/Land Recl Proj Loc | B137: Rec-in-Lieu | C137: Active | D137: 0 | E137: 0 | F137: 0 | G137: 0 | H137: 0 | I137: 0
A138: Mine Drainage Trmt/Land Recl Proj Loc | B138: Watershed Restoratn, Prtnrship Act Grant | C138: Active | D138: 0 | E138: 0 | F138: 0 | G138: 0 | H138: 0 | I138: 0
A139: Mine Drainage Trmt/Land Recl Proj Loc | B139: Watershed Restoratn, Prtnrship Act Grant | C139: Not Started | D139: 0 | E139: 0 | F139: 0 | G139: 0 | H139: 0 | I139: 0
I140: 0
I141: 0
I142: 0
I143: 0
I144: 0
I145: 0
I146: 0
I147: 0
I148: 0
I149: 0
I150: 0
I151: 0
I152: 0
I153: 0
I154: 0
I155: 0
I156: 0
I157: 0
I158: 0
I159: 0
I160: 0
I161: 0
I162: 0
I163: 0
I164: 0
I165: 0
I166: 0
I167: 0
I168: 0
I169: 0
I170: 0
I171: 0
I172: 0
I173: 0
I174: 0
I175: 0
I176: 0
I177: 0
I178: 0
I179: 0
I180: 0
I181: 0
I182: 0
I183: 0
I184: 0
I185: 0
I186: 0
I187: 0
I188: 0
I189: 0
I190: 0
I191: 0
I192: 0
I193: 0
I194: =SUM(D194:H194) -> 0
I195: 0
I196: 0
I197: 0
I198: 0
I199: 0
I200: 0
... 800 more rows

Sheet Inspections - Required
A1: Permit Type | B1: Permit Kind | C1: Permit Status | D1: Cambria | E1: Greensburg | F1: Knox | G1: Moshannon | H1: Pottsville | I1: Totals
A2: Coal Mining Operation | B2: Anthracite River Dredge | C2: Active | D2: 0 | E2: 0 | F2: 0 | G2: 0 | H2: 36 | I2: =SUM(D2:H2) -> 36
A3: Coal Mining Operation | B3: GFCC | C3: Active | D3: 18.57534247 | E3: 118.1589041 | F3: 30.04931507 | G3: 73.90684932 | H3: 0 | I3: =SUM(D3:H3) -> 240.690411
A4: Coal Mining Operation | B4: GFCC | C4: Stage 2 Approved | D4: 1.435616438 | E4: 0 | F4: 4.635616438 | G4: 0 | H4: 0 | I4: 6.071232877
A5: Coal Mining Operation | B5: GFCC | C5: Stage 2 Eligible | D5: 1.095890411 | E5: 0 | F5: 0 | G5: 6.980821918 | H5: 0 | I5: 8.076712329
A6: Coal Mining Operation | B6: GFCC | C6: Stage1/Regraded | D6: 24 | E6: 0.9534246575 | F6: 24 | G6: 0 | H6: 0 | I6: 48.95342466
A7: Coal Mining Operation | B7: Incidental Coal Extraction | C7: Active | D7: 0 | E7: 0 | F7: 0 | G7: 0 | H7: 24 | I7: 24
A8: Coal Mining Operation | B8: Incidental Coal Extraction | C8: Bond Forfeited | D8: 0 | E8: 12 | F8: 0 | G8: 0 | H8: 0 | I8: 12
A9: Coal Mining Operation | B9: Incidental Coal Extraction | C9: Primacy Bond Forfeited | D9: 0 | E9: 4 | F9: 0 | G9: 0 | H9: 0 | I9: 4
A10: Coal Mining Operation | B10: Incidental Coal Extraction | C10: Reclaimed/Passive Treatment | D10: 0 | E10: 4 | F10: 0 | G10: 0 | H10: 0 | I10: 4
A11: Coal Mining Operation | B11: Not Indicated | C11: Active | D11: 12 | E11: 0 | F11: 0 | G11: 0 | H11: 0 | I11: 12
A12: Coal Mining Operation | B12: Post Mining IW Discharge | C12: Reclaimed/Chemical Treatment | D12: 0 | E12: 12 | F12: 0 | G12: 0 | H12: 0 | I12: 12
A13: Coal Mining Operation | B13: Post Mining IW Discharge | C13: Reclaimed/Passive Treatment | D13: 4 | E13: 8 | F13: 0 | G13: 4 | H13: 0 | I13: 16
A14: Coal Mining Operation | B14: Post Mining IW Discharge | C14: Trust Treated Passive Treatment | D14: 4 | E14: 0 | F14: 0 | G14: 0 | H14: 0 | I14: 4
A15: Coal Mining Operation | B15: Prep Plant | C15: Active | D15: 191.8027397 | E15: 144 | F15: 24 | G15: 108 | H15: 156 | I15: 623.8027397
A16: Coal Mining Operation | B16: Prep Plant | C16: Bond Forfeited | D16: 12 | E16: 12 | F16: 20 | G16: 8 | H16: 4 | I16: 56
A17: Coal Mining Operation | B17: Prep Plant | C17: Inactive | D17: 0 | E17: 0 | F17: 0 | G17: 4 | H17: 0 | I17: 4
A18: Coal Mining Operation | B18: Prep Plant | C18: Not Started | D18: 0 | E18: 0.6082191781 | F18: 0 | G18: 0 | H18: 0 | I18: 0.6082191781
A19: Coal Mining Operation | B19: Prep Plant | C19: Primacy Bond Forfeited | D19: 0 | E19: 0 | F19: 0 | G19: 4 | H19: 0 | I19: 4
A20: Coal Mining Operation | B20: Prep Plant | C20: Reclaimed/Chemical Treatment | D20: 24 | E20: 24 | F20: 0 | G20: 8.054794521 | H20: 0 | I20: 56.05479452
A21: Coal Mining Operation | B21: Prep Plant | C21: Reclaimed/Passive Treatment | D21: 4 | E21: 0 | F21: 0 | G21: 0 | H21: 0 | I21: 4
A22: Coal Mining Operation | B22: Prep Plant | C22: Stage1/Regraded | D22: 0 | E22: 12 | F22: 0 | G22: 0 | H22: 0 | I22: 12
A23: Coal Mining Operation | B23: Refuse Disposal | C23: Active | D23: 168 | E23: 237.0082192 | F23: 0 | G23: 24 | H23: 25.90684932 | I23: 454.9150685
A24: Coal Mining Operation | B24: Refuse Disposal | C24: Approved Cessation | D24: 12 | E24: 0 | F24: 0 | G24: 0 | H24: 0 | I24: 12
A25: Coal Mining Operation | B25: Refuse Disposal | C25: Bond Forfeited | D25: 0 | E25: 16 | F25: 4 | G25: 8 | H25: 0 | I25: 28
A26: Coal Mining Operation | B26: Refuse Disposal | C26: Bond Forfeited-Chemical Treatment | D26: 0 | E26: 36 | F26: 0 | G26: 0 | H26: 0 | I26: 36
A27: Coal Mining Operation | B27: Refuse Disposal | C27: Bond Forfeited-Passive Treatment | D27: 0 | E27: 0 | F27: 8 | G27: 0 | H27: 0 | I27: 8
A28: Coal Mining Operation | B28: Refuse Disposal | C28: Bond Forfeiture-Under Reclamation | D28: 12 | E28: 0 | F28: 0 | G28: 0 | H28: 0 | I28: 12
A29: Coal Mining Operation | B29: Refuse Disposal | C29: Inactive | D29: 4 | E29: 0 | F29: 0 | G29: 0 | H29: 0 | I29: 4
A30: Coal Mining Operation | B30: Refuse Disposal | C30: Not Started | D30: 0 | E30: 0.6082191781 | F30: 0 | G30: 0 | H30: 0 | I30: 0.6082191781
A31: Coal Mining Operation | B31: Refuse Disposal | C31: Primacy Bond Forfeited | D31: 0 | E31: 6.849315068 | F31: 0 | G31: 0 | H31: 0 | I31: 6.849315068
A32: Coal Mining Operation | B32: Refuse Disposal | C32: Reclaimed/Chemical Treatment | D32: 84 | E32: 36 | F32: 2.005479452 | G32: 0 | H32: 0 | I32: 122.0054795
A33: Coal Mining Operation | B33: Refuse Disposal | C33: Reclaimed/Passive Treatment | D33: 11.24383562 | E33: 4 | F33: 0 | G33: 0 | H33: 0 | I33: 15.24383562
A34: Coal Mining Operation | B34: Refuse Disposal | C34: Stage 2 Approved | D34: 0 | E34: 0 | F34: 0 | G34: 4 | H34: 0 | I34: 4
A35: Coal Mining Operation | B35: Refuse Disposal | C35: Stage 2 Eligible | D35: 4 | E35: 8 | F35: 0 | G35: 0 | H35: 0 | I35: 12
A36: Coal Mining Operation | B36: Refuse Disposal | C36: Stage1/Regraded | D36: 12 | E36: 24 | F36: 0 | G36: 0 | H36: 0 | I36: 36
A37: Coal Mining Operation | B37: Refuse Reprocessing | C37: Active | D37: 111.4191781 | E37: 72 | F37: 0 | G37: 12 | H37: 1139.046575 | I37: 1334.465753
A38: Coal Mining Operation | B38: Refuse Reprocessing | C38: Approved Cessation | D38: 0 | E38: 12 | F38: 0 | G38: 0 | H38: 0 | I38: 12
A39: Coal Mining Operation | B39: Refuse Reprocessing | C39: Bond Forfeited | D39: 4 | E39: 28 | F39: 0 | G39: 0 | H39: 36 | I39: 68
A40: Coal Mining Operation | B40: Refuse Reprocessing | C40: Not Started | D40: 3.769863014 | E40: 0 | F40: 0 | G40: 0 | H40: 0.5150684932 | I40: 4.284931507
A41: Coal Mining Operation | B41: Refuse Reprocessing | C41: Primacy Bond Forfeited | D41: 0 | E41: 4 | F41: 0 | G41: 0 | H41: 4 | I41: 8
A42: Coal Mining Operation | B42: Refuse Reprocessing | C42: Stage 2 Approved | D42: 4 | E42: 0 | F42: 0 | G42: 0 | H42: 4 | I42: 8
A43: Coal Mining Operation | B43: Refuse Reprocessing | C43: Stage 2 Eligible | D43: 4 | E43: 0 | F43: 0 | G43: 0 | H43: 16 | I43: 20
A44: Coal Mining Operation | B44: Refuse Reprocessing | C44: Stage1/Regraded | D44: 36 | E44: 12 | F44: 0 | G44: 0 | H44: 73.90684932 | I44: 121.9068493
A45: Coal Mining Operation | B45: Surface | C45: Abandoned | D45: 0 | E45: 4 | F45: 0 | G45: 0 | H45: 0 | I45: 4
A46: Coal Mining Operation | B46: Surface | C46: Active | D46: 878.3342466 | E46: 374.4328767 | F46: 453.9945205 | G46: 990.2136986 | H46: 1319.506849 | I46: 4016.482192
A47: Coal Mining Operation | B47: Surface | C47: Approved Cessation | D47: 48.19726027 | E47: 48 | F47: 0 | G47: 0 | H47: 0 | I47: 96.19726027
A48: Coal Mining Operation | B48: Surface | C48: Bond Forfeited | D48: 260 | E48: 504 | F48: 416 | G48: 260 | H48: 44 | I48: 1484
A49: Coal Mining Operation | B49: Surface | C49: Bond Forfeited-Chemical Treatment | D49: 19.56164384 | E49: 0 | F49: 84 | G49: 88.76712329 | H49: 0 | I49: 192.3287671
A50: Coal Mining Operation | B50: Surface | C50: Bond Forfeited-Passive Treatment | D50: 36.18630137 | E50: 7.375342466 | F50: 179.3205479 | G50: 64 | H50: 0 | I50: 286.8821918
A51: Coal Mining Operation | B51: Surface | C51: Inactive | D51: 0 | E51: 0 | F51: 0 | G51: 0 | H51: 4 | I51: 4
A52: Coal Mining Operation | B52: Surface | C52: Not Started | D52: 18.50684932 | E52: 10.33424658 | F52: 11.93972603 | G52: 9.961643836 | H52: 0 | I52: 50.74246575
A53: Coal Mining Operation | B53: Surface | C53: Primacy Bond Forfeited | D53: 60 | E53: 20 | F53: 32.94246575 | G53: 28 | H53: 12 | I53: 152.9424658
A54: Coal Mining Operation | B54: Surface | C54: Reclaimed/Chemical Treatment | D54: 367.3643836 | E54: 120 | F54: 12 | G54: 96 | H54: 0 | I54: 595.3643836
A55: Coal Mining Operation | B55: Surface | C55: Reclaimed/Passive Treatment | D55: 80.67945205 | E55: 78.1260274 | F55: 52 | G55: 80.29589041 | H55: 0 | I55: 291.1013699
A56: Coal Mining Operation | B56: Surface | C56: Stage 2 Approved | D56: 114.3342466 | E56: 171.6712329 | F56: 137.2383562 | G56: 163.090411 | H56: 4 | I56: 590.3342466
A57: Coal Mining Operation | B57: Surface | C57: Stage 2 Eligible | D57: 88.58082192 | E57: 43.76986301 | F57: 43.09041096 | G57: 59.9890411 | H57: 12 | I57: 247.430137
A58: Coal Mining Operation | B58: Surface | C58: Stage1/Regraded | D58: 462.739726 | E58: 292.109589 | F58: 181.1506849 | G58: 423.2547945 | H58: 37.90684932 | I58: 1397.161644
A59: Coal Mining Operation | B59: Surface | C59: Trust Treated Chemical Treatment | D59: 0 | E59: 12 | F59: 36 | G59: 0 | H59: 0 | I59: 48
A60: Coal Mining Operation | B60: Surface | C60: Trust Treated Passive Treatment | D60: 0 | E60: 0 | F60: 16 | G60: 0 | H60: 0 | I60: 16
A61: Coal Mining Operation | B61: Underground | C61: Active | D61: 314.0383562 | E61: 303.7150685 | F61: 36 | G61: 36 | H61: 204 | I61: 893.7534247
A62: Coal Mining Operation | B62: Underground | C62: Approved Cessation | D62: 48 | E62: 24 | F62: 0 | G62: 0 | H62: 0 | I62: 72
A63: Coal Mining Operation | B63: Underground | C63: Bond Forfeited | D63: 16 | E63: 20 | F63: 0 | G63: 8 | H63: 12 | I63: 56
A64: Coal Mining Operation | B64: Underground | C64: Bond Forfeited-Chemical Treatment | D64: 0 | E64: 12 | F64: 0 | G64: 12 | H64: 0 | I64: 24
A65: Coal Mining Operation | B65: Underground | C65: Bond Forfeited-Passive Treatment | D65: 8 | E65: 4 | F65: 4 | G65: 0 | H65: 0 | I65: 16
A66: Coal Mining Operation | B66: Underground | C66: Bond Forfeiture-Under Reclamation | D66: 0 | E66: 0 | F66: 0 | G66: 12 | H66: 0 | I66: 12
A67: Coal Mining Operation | B67: Underground | C67: Inactive | D67: 0 | E67: 0 | F67: 0 | G67: 0 | H67: 4 | I67: =SUM(D67:H67) -> 4
A68: Coal Mining Operation | B68: Underground | C68: Not Started | D68: 4 | E68: 2.331506849 | F68: 0 | G68: 0 | H68: 0 | I68: 6.331506849
A69: Coal Mining Operation | B69: Underground | C69: Primacy Bond Forfeited | D69: 0 | E69: 4 | F69: 0 | G69: 0 | H69: 4 | I69: 8
A70: Coal Mining Operation | B70: Underground | C70: Reclaimed/Chemical Treatment | D70: 216 | E70: 72 | F70: 12 | G70: 12 | H70: 11.50684932 | I70: 323.5068493
A71: Coal Mining Operation | B71: Underground | C71: Reclaimed/Passive Treatment | D71: 4.230136986 | E71: 8 | F71: 0 | G71: 0 | H71: 0 | I71: 12.23013699
A72: Coal Mining Operation | B72: Underground | C72: Stage 2 Approved | D72: 4 | E72: 20 | F72: 0 | G72: 0 | H72: 8 | I72: 32
A73: Coal Mining Operation | B73: Underground | C73: Stage 2 Eligible | D73: 8 | E73: 8 | F73: 0 | G73: 0 | H73: 8 | I73: 24
A74: Coal Mining Operation | B74: Underground | C74: Stage1/Regraded | D74: 36 | E74: 36 | F74: 12 | G74: 0 | H74: 61.90684932 | I74: 145.9068493
A75: Coal Mining Operation | B75: Underground | C75: Unapproved Cessation | D75: 0 | E75: 12 | F75: 0 | G75: 0 | H75: 0 | I75: 12
A76: Encroachment Location | B76: Abandoned Mine Reclamation | C76: Not Started | D76: 0 | E76: 0 | F76: 0 | G76: 0 | H76: 0 | I76: 0
A77: Encroachment Location | B77: Mineral Resources | C77: Active | D77: 0 | E77: 0 | F77: 0 | G77: 0 | H77: 0 | I77: 0
A78: Encroachment Location | B78: Mineral Resources | C78: Not Started | D78: 0 | E78: 0 | F78: 0 | G78: 0 | H78: 0 | I78: 0
A79: Encroachment Location | B79: Not Indicated | C79: Active | D79: 0 | E79: 0 | F79: 0 | G79: 0 | H79: 0 | I79: 0
A80: Encroachment Location | B80: Not Indicated | C80: Not Started | D80: 0 | E80: 0 | F80: 0 | G80: 0 | H80: 0 | I80: 0
A81: Explosive Storage Location | B81: Indoor Explosive Storage | C81: Active | D81: 0 | E81: 0 | F81: 0 | G81: 0 | H81: 0 | I81: 0
A82: Explosive Storage Location | B82: Indoor Explosive Storage | C82: Inactive | D82: 0 | E82: 0 | F82: 0 | G82: 0 | H82: 0 | I82: 0
A83: Explosive Storage Location | B83: Not Indicated | C83: Active | D83: 0 | E83: 0 | F83: 0 | G83: 0 | H83: 0 | I83: 0
A84: Explosive Storage Location | B84: Not Indicated | C84: Inactive | D84: 0 | E84: 0 | F84: 0 | G84: 0 | H84: 0 | I84: 0
A85: Explosive Storage Location | B85: Outdoor Explosive Storage | C85: Active | D85: 0 | E85: 0 | F85: 0 | G85: 0 | H85: 0 | I85: 0
A86: Explosive Storage Location | B86: Outdoor Explosive Storage | C86: Inactive | D86: 0 | E86: 0 | F86: 0 | G86: 0 | H86: 0 | I86: 0
A87: GP12 Prep Plant Emissions Operation | B87: Not Indicated | C87: Active | D87: 0 | E87: 0 | F87: 0 | G87: 0 | H87: 0 | I87: 0
A88: GP12 Prep Plant Emissions Operation | B88: Not Indicated | C88: Not Started | D88: 0 | E88: 0 | F88: 0 | G88: 0 | H88: 0 | I88: 0
A89: Industrial Mineral Mining Operation | B89: Bluestone General Permit | C89: Active | D89: 0 | E89: 0 | F89: 0 | G89: 22 | H89: 55.46849315 | I89: 77.46849315
A90: Industrial Mineral Mining Operation | B90: Bluestone General Permit | C90: Not Started | D90: 0 | E90: 0 | F90: 0 | G90: 0 | H90: 2.619178082 | I90: 2.619178082
A91: Industrial Mineral Mining Operation | B91: General Permit, Short-Term Construction | C91: Active | D91: 0 | E91: 2 | F91: 0 | G91: 0 | H91: 7.035616438 | I91: 9.035616438
A92: Industrial Mineral Mining Operation | B92: General Permit, Short-Term Construction | C92: Not Started | D92: 1 | E92: 0 | F92: 0 | G92: 1 | H92: 0 | I92: 2
A93: Industrial Mineral Mining Operation | B93: General Permit, Short-Term Construction | C93: Stage 2 Eligible | D93: 0 | E93: 0 | F93: 0 | G93: 0 | H93: 2 | I93: 2
A94: Industrial Mineral Mining Operation | B94: General Permit, Short-Term Construction | C94: Stage1/Regraded | D94: 0 | E94: 0 | F94: 0 | G94: 2 | H94: 0 | I94: 2
A95: Industrial Mineral Mining Operation | B95: Surface <10,000 Tons | C95: Active | D95: 52 | E95: 14 | F95: 143.660274 | G95: 88.83835616 | H95: 237.0191781 | I95: 535.5178082
A96: Industrial Mineral Mining Operation | B96: Surface <10,000 Tons | C96: Bond Forfeited | D96: 0 | E96: 0 | F96: 0 | G96: 6.509589041 | H96: 22.04383562 | I96: 28.55342466
A97: Industrial Mineral Mining Operation | B97: Surface <10,000 Tons | C97: Bond in Forfeiture | D97: 0 | E97: 0 | F97: 0 | G97: 0 | H97: 0.3178082192 | I97: 0.3178082192
A98: Industrial Mineral Mining Operation | B98: Surface <10,000 Tons | C98: Inactive | D98: 2 | E98: 0 | F98: 0 | G98: 0 | H98: 1.610958904 | I98: 3.610958904
A99: Industrial Mineral Mining Operation | B99: Surface <10,000 Tons | C99: Not Started | D99: 0 | E99: 3.608219178 | F99: 7.561643836 | G99: 2 | H99: 6 | I99: 19.16986301
A100: Industrial Mineral Mining Operation | B100: Surface <10,000 Tons | C100: Primacy Bond Forfeited | D100: 0 | E100: 0 | F100: 0 | G100: 0 | H100: 0 | I100: 0
A101: Industrial Mineral Mining Operation | B101: Surface <10,000 Tons | C101: Stage 2 Eligible | D101: 0 | E101: 2 | F101: 0 | G101: 0.6136986301 | H101: 2.816438356 | I101: 5.430136986
A102: Industrial Mineral Mining Operation | B102: Surface <10,000 Tons | C102: Stage1/Regraded | D102: 2 | E102: 2 | F102: 4 | G102: 3.928767123 | H102: 6.317808219 | I102: 18.24657534
A103: Industrial Mineral Mining Operation | B103: Surface Large | C103: Active | D103: 394.7506849 | E103: 126.2246575 | F103: 644.1972603 | G103: 307.7589041 | H103: 1171.178082 | I103: 2644.109589
A104: Industrial Mineral Mining Operation | B104: Surface Large | C104: Approved Cessation | D104: 0 | E104: 4 | F104: 11.93424658 | G104: 8.98630137 | H104: 16 | I104: 40.92054795
A105: Industrial Mineral Mining Operation | B105: Surface Large | C105: Bond Forfeited | D105: 20 | E105: 24 | F105: 40 | G105: 16 | H105: 40 | I105: 140
A106: Industrial Mineral Mining Operation | B106: Surface Large | C106: Bond Forfeited-Chemical Treatment | D106: 4 | E106: 0 | F106: 0 | G106: 0 | H106: 0 | I106: 4
A107: Industrial Mineral Mining Operation | B107: Surface Large | C107: Bond in Forfeiture | D107: 0 | E107: 0 | F107: 0 | G107: 0 | H107: 4 | I107: 4
A108: Industrial Mineral Mining Operation | B108: Surface Large | C108: Inactive | D108: 0 | E108: 4 | F108: 0 | G108: 0 | H108: 4 | I108: 8
A109: Industrial Mineral Mining Operation | B109: Surface Large | C109: Not Started | D109: 1 | E109: 4 | F109: 9.616438356 | G109: 4.635616438 | H109: 3.150684932 | I109: 22.40273973
A110: Industrial Mineral Mining Operation | B110: Surface Large | C110: Operative But Not Producing | D110: 0 | E110: 0 | F110: 0 | G110: 4 | H110: 0 | I110: 4
A111: Industrial Mineral Mining Operation | B111: Surface Large | C111: Reclaimed/Chemical Treatment | D111: 0 | E111: 8 | F111: 0 | G111: 0 | H111: 0 | I111: 8
A112: Industrial Mineral Mining Operation | B112: Surface Large | C112: Reclaimed/Passive Treatment | D112: 0 | E112: 0 | F112: 4 | G112: 0 | H112: 0 | I112: 4
A113: Industrial Mineral Mining Operation | B113: Surface Large | C113: Stage 2 Approved | D113: 0 | E113: 12 | F113: 0 | G113: 4 | H113: 4 | I113: 20
A114: Industrial Mineral Mining Operation | B114: Surface Large | C114: Stage 2 Eligible | D114: 4.98630137 | E114: 0 | F114: 0 | G114: 4 | H114: 13.05205479 | I114: 22.03835616
A115: Industrial Mineral Mining Operation | B115: Surface Large | C115: Stage1/Regraded | D115: 21.45753425 | E115: 12 | F115: 82.31232877 | G115: 11.22191781 | H115: 41.11780822 | I115: 168.109589
A116: Industrial Mineral Mining Operation | B116: Surface Large | C116: Unapproved Cessation | D116: 0 | E116: 0 | F116: 0 | G116: 4 | H116: 0 | I116: 4
A117: Industrial Mineral Mining Operation | B117: Surface Small <2,000 Tons | C117: Abandoned | D117: 3.101369863 | E117: 0 | F117: 2 | G117: 4 | H117: 6.087671233 | I117: 15.1890411
A118: Industrial Mineral Mining Operation | B118: Surface Small <2,000 Tons | C118: Active | D118: 186.509589 | E118: 32 | F118: 158.0109589 | G118: 317.4520548 | H118: 1133.39726 | I118: 1827.369863
A119: Industrial Mineral Mining Operation | B119: Surface Small <2,000 Tons | C119: Bond Forfeited | D119: 10 | E119: 8 | F119: 18.06575342 | G119: 71.97260274 | H119: 89.97808219 | I119: 198.0164384
A120: Industrial Mineral Mining Operation | B120: Surface Small <2,000 Tons | C120: Bond in Forfeiture | D120: 0 | E120: 1.452054795 | F120: 0.08219178082 | G120: 2 | H120: 7.693150685 | I120: 11.22739726
A121: Industrial Mineral Mining Operation | B121: Surface Small <2,000 Tons | C121: Inactive | D121: 0 | E121: 0 | F121: 0 | G121: 2 | H121: 6 | I121: 8
A122: Industrial Mineral Mining Operation | B122: Surface Small <2,000 Tons | C122: Not Started | D122: 1 | E122: 0 | F122: 0 | G122: 1 | H122: 13.46575342 | I122: 15.46575342
A123: Industrial Mineral Mining Operation | B123: Surface Small <2,000 Tons | C123: Stage 2 Eligible | D123: 2 | E123: 0 | F123: 0 | G123: 5.835616438 | H123: 25.79178082 | I123: 33.62739726
A124: Industrial Mineral Mining Operation | B124: Surface Small <2,000 Tons | C124: Stage1/Regraded | D124: 12.33972603 | E124: 0 | F124: 4.695890411 | G124: 4.55890411 | H124: 23.09041096 | I124: 44.68493151
A125: Industrial Mineral Mining Operation | B125: Surface Small <2,000 Tons | C125: Unapproved Cessation | D125: 4 | E125: 0 | F125: 0 | G125: 0 | H125: 10 | I125: 14
A126: Industrial Mineral Mining Operation | B126: Underground | C126: Active | D126: 0 | E126: 24 | F126: 0 | G126: 8 | H126: 0 | I126: 32
A127: Industrial Mineral Mining Operation | B127: Underground | C127: Not Started | D127: 0 | E127: 1 | F127: 0 | G127: 0 | H127: 0 | I127: 1
A128: Mine Drainage Trmt/Land Recl Proj Loc | B128: 10 Percent Set-Aside | C128: Active | D128: 36 | E128: 0 | F128: 0 | G128: 0 | H128: 0 | I128: 36
A129: Mine Drainage Trmt/Land Recl Proj Loc | B129: Biosolid | C129: Active | D129: 0 | E129: 0 | F129: 0 | G129: 97.93972603 | H129: 0 | I129: 97.93972603
A130: Mine Drainage Trmt/Land Recl Proj Loc | B130: EPA 319 | C130: Active | D130: 48 | E130: 0 | F130: 168 | G130: 0 | H130: 0 | I130: 216
A131: Mine Drainage Trmt/Land Recl Proj Loc | B131: EPA 319 | C131: Not Started | D131: 0 | E131: 2 | F131: 1 | G131: 0 | H131: 0 | I131: =SUM(D131:H131) -> 3
A132: Mine Drainage Trmt/Land Recl Proj Loc | B132: Growing Greener | C132: Active | D132: 96 | E132: 48 | F132: 48 | G132: 203.0465753 | H132: 0 | I132: 395.0465753
A133: Mine Drainage Trmt/Land Recl Proj Loc | B133: Growing Greener | C133: Not Started | D133: 0 | E133: 10 | F133: 5 | G133: 0 | H133: 0 | I133: 15
A134: Mine Drainage Trmt/Land Recl Proj Loc | B134: Not Indicated | C134: Active | D134: 48 | E134: 12 | F134: 132 | G134: 0 | H134: 24 | I134: 216
A135: Mine Drainage Trmt/Land Recl Proj Loc | B135: Not Indicated | C135: Not Started | D135: 0 | E135: 0 | F135: 2 | G135: 1 | H135: 0 | I135: 3
A136: Mine Drainage Trmt/Land Recl Proj Loc | B136: Rec-in-Lieu | C136: Active | D136: 0 | E136: 0 | F136: 60 | G136: 0 | H136: 0 | I136: 60
A137: Mine Drainage Trmt/Land Recl Proj Loc | B137: Watershed Restoratn, Prtnrship Act Grant | C137: Active | D137: 0 | E137: 96 | F137: 24 | G137: 0 | H137: 36 | I137: 156
A138: Mine Drainage Trmt/Land Recl Proj Loc | B138: Watershed Restoratn, Prtnrship Act Grant | C138: Not Started | D138: 0 | E138: 5 | F138: 0 | G138: 0 | H138: 0 | I138: 5
I139: 0
I140: 0
I141: 0
I142: 0
I143: 0
I144: 0
I145: 0
I146: 0
I147: 0
I148: 0
I149: 0
I150: 0
I151: 0
I152: 0
I153: 0
I154: 0
I155: 0
I156: 0
I157: 0
I158: 0
I159: 0
I160: 0
I161: 0
I162: 0
I163: 0
I164: 0
I165: 0
I166: 0
I167: 0
I168: 0
I169: 0
I170: 0
I171: 0
I172: 0
I173: 0
I174: 0
I175: 0
I176: 0
I177: 0
I178: 0
I179: 0
I180: 0
I181: 0
I182: 0
I183: 0
I184: 0
I185: 0
I186: 0
I187: 0
I188: 0
I189: 0
I190: 0
I191: 0
I192: 0
I193: 0
I194: 0
I195: =SUM(D195:H195) -> 0
I196: 0
I197: 0
I198: 0
I199: 0
I200: 0
... 700 more rows

Sheet Inspections - Required MH
A1: Permit Type | B1: Permit Kind | C1: Permit Status | D1: Cambria | E1: Greensburg | F1: Knox | G1: Moshannon | H1: Pottsville | I1: Totals
A2: Coal Mining Operation | B2: Anthracite River Dredge | C2: Active | D2: 0 | E2: 0 | F2: 0 | G2: 0 | H2: 156 | I2: =SUM(D2:H2) -> 156
A3: Coal Mining Operation | B3: GFCC | C3: Active | D3: 80.49315068 | E3: 512.0219178 | F3: 130.2136986 | G3: 320.2630137 | H3: 0 | I3: 1042.991781
A4: Coal Mining Operation | B4: GFCC | C4: Stage 2 Approved | D4: 7.178082192 | E4: 0 | F4: 23.17808219 | G4: 0 | H4: 0 | I4: 30.35616438
A5: Coal Mining Operation | B5: GFCC | C5: Stage 2 Eligible | D5: 5.479452055 | E5: 0 | F5: 0 | G5: 34.90410959 | H5: 0 | I5: 40.38356164
A6: Coal Mining Operation | B6: GFCC | C6: Stage1/Regraded | D6: 104 | E6: 4.131506849 | F6: 104 | G6: 0 | H6: 0 | I6: 212.1315068
A7: Coal Mining Operation | B7: Incidental Coal Extraction | C7: Active | D7: 0 | E7: 0 | F7: 0 | G7: 0 | H7: 104 | I7: 104
A8: Coal Mining Operation | B8: Incidental Coal Extraction | C8: Bond Forfeited | D8: 0 | E8: 60 | F8: 0 | G8: 0 | H8: 0 | I8: 60
A9: Coal Mining Operation | B9: Incidental Coal Extraction | C9: Primacy Bond Forfeited | D9: 0 | E9: 20 | F9: 0 | G9: 0 | H9: 0 | I9: 20
A10: Coal Mining Operation | B10: Incidental Coal Extraction | C10: Reclaimed/Passive Treatment | D10: 0 | E10: 20 | F10: 0 | G10: 0 | H10: 0 | I10: 20
A11: Coal Mining Operation | B11: Not Indicated | C11: Active | D11: 52 | E11: 0 | F11: 0 | G11: 0 | H11: 0 | I11: 52
A12: Coal Mining Operation | B12: Post Mining IW Discharge | C12: Reclaimed/Chemical Treatment | D12: 0 | E12: 52 | F12: 0 | G12: 0 | H12: 0 | I12: 52
A13: Coal Mining Operation | B13: Post Mining IW Discharge | C13: Reclaimed/Passive Treatment | D13: 20 | E13: 40 | F13: 0 | G13: 20 | H13: 0 | I13: 80
A14: Coal Mining Operation | B14: Post Mining IW Discharge | C14: Trust Treated Passive Treatment | D14: 20 | E14: 0 | F14: 0 | G14: 0 | H14: 0 | I14: 20
A15: Coal Mining Operation | B15: Prep Plant | C15: Active | D15: 831.1452055 | E15: 624 | F15: 104 | G15: 468 | H15: 676 | I15: 2703.145205
A16: Coal Mining Operation | B16: Prep Plant | C16: Bond Forfeited | D16: 60 | E16: 60 | F16: 100 | G16: 40 | H16: 20 | I16: 280
A17: Coal Mining Operation | B17: Prep Plant | C17: Inactive | D17: 0 | E17: 0 | F17: 0 | G17: 20 | H17: 0 | I17: 20
A18: Coal Mining Operation | B18: Prep Plant | C18: Not Started | D18: 0 | E18: 3.04109589 | F18: 0 | G18: 0 | H18: 0 | I18: 3.04109589
A19: Coal Mining Operation | B19: Prep Plant | C19: Primacy Bond Forfeited | D19: 0 | E19: 0 | F19: 0 | G19: 20 | H19: 0 | I19: 20
A20: Coal Mining Operation | B20: Prep Plant | C20: Reclaimed/Chemical Treatment | D20: 104 | E20: 104 | F20: 0 | G20: 34.90410959 | H20: 0 | I20: 242.9041096
A21: Coal Mining Operation | B21: Prep Plant | C21: Reclaimed/Passive Treatment | D21: 20 | E21: 0 | F21: 0 | G21: 0 | H21: 0 | I21: 20
A22: Coal Mining Operation | B22: Prep Plant | C22: Stage1/Regraded | D22: 0 | E22: 52 | F22: 0 | G22: 0 | H22: 0 | I22: 52
A23: Coal Mining Operation | B23: Refuse Disposal | C23: Active | D23: 728 | E23: 1027.035616 | F23: 0 | G23: 104 | H23: 112.2630137 | I23: 1971.29863
A24: Coal Mining Operation | B24: Refuse Disposal | C24: Approved Cessation | D24: 52 | E24: 0 | F24: 0 | G24: 0 | H24: 0 | I24: 52
A25: Coal Mining Operation | B25: Refuse Disposal | C25: Bond Forfeited | D25: 0 | E25: 80 | F25: 20 | G25: 40 | H25: 0 | I25: 140
A26: Coal Mining Operation | B26: Refuse Disposal | C26: Bond Forfeited-Chemical Treatment | D26: 0 | E26: 156 | F26: 0 | G26: 0 | H26: 0 | I26: 156
A27: Coal Mining Operation | B27: Refuse Disposal | C27: Bond Forfeited-Passive Treatment | D27: 0 | E27: 0 | F27: 40 | G27: 0 | H27: 0 | I27: 40
A28: Coal Mining Operation | B28: Refuse Disposal | C28: Bond Forfeiture-Under Reclamation | D28: 52 | E28: 0 | F28: 0 | G28: 0 | H28: 0 | I28: 52
A29: Coal Mining Operation | B29: Refuse Disposal | C29: Inactive | D29: 20 | E29: 0 | F29: 0 | G29: 0 | H29: 0 | I29: 20
A30: Coal Mining Operation | B30: Refuse Disposal | C30: Not Started | D30: 0 | E30: 3.04109589 | F30: 0 | G30: 0 | H30: 0 | I30: 3.04109589
A31: Coal Mining Operation | B31: Refuse Disposal | C31: Primacy Bond Forfeited | D31: 0 | E31: 34.24657534 | F31: 0 | G31: 0 | H31: 0 | I31: 34.24657534
A32: Coal Mining Operation | B32: Refuse Disposal | C32: Reclaimed/Chemical Treatment | D32: 364 | E32: 156 | F32: 8.690410959 | G32: 0 | H32: 0 | I32: 528.690411
A33: Coal Mining Operation | B33: Refuse Disposal | C33: Reclaimed/Passive Treatment | D33: 56.21917808 | E33: 20 | F33: 0 | G33: 0 | H33: 0 | I33: 76.21917808
A34: Coal Mining Operation | B34: Refuse Disposal | C34: Stage 2 Approved | D34: 0 | E34: 0 | F34: 0 | G34: 20 | H34: 0 | I34: 20
A35: Coal Mining Operation | B35: Refuse Disposal | C35: Stage 2 Eligible | D35: 20 | E35: 40 | F35: 0 | G35: 0 | H35: 0 | I35: 60
A36: Coal Mining Operation | B36: Refuse Disposal | C36: Stage1/Regraded | D36: 52 | E36: 104 | F36: 0 | G36: 0 | H36: 0 | I36: 156
A37: Coal Mining Operation | B37: Refuse Reprocessing | C37: Active | D37: 482.8164384 | E37: 312 | F37: 0 | G37: 52 | H37: 4935.868493 | I37: 5782.684932
A38: Coal Mining Operation | B38: Refuse Reprocessing | C38: Approved Cessation | D38: 0 | E38: 52 | F38: 0 | G38: 0 | H38: 0 | I38: 52
A39: Coal Mining Operation | B39: Refuse Reprocessing | C39: Bond Forfeited | D39: 20 | E39: 140 | F39: 0 | G39: 0 | H39: 180 | I39: 340
A40: Coal Mining Operation | B40: Refuse Reprocessing | C40: Not Started | D40: 18.84931507 | E40: 0 | F40: 0 | G40: 0 | H40: 2.575342466 | I40: 21.42465753
A41: Coal Mining Operation | B41: Refuse Reprocessing | C41: Primacy Bond Forfeited | D41: 0 | E41: 20 | F41: 0 | G41: 0 | H41: 20 | I41: 40
A42: Coal Mining Operation | B42: Refuse Reprocessing | C42: Stage 2 Approved | D42: 20 | E42: 0 | F42: 0 | G42: 0 | H42: 20 | I42: 40
A43: Coal Mining Operation | B43: Refuse Reprocessing | C43: Stage 2 Eligible | D43: 20 | E43: 0 | F43: 0 | G43: 0 | H43: 80 | I43: 100
A44: Coal Mining Operation | B44: Refuse Reprocessing | C44: Stage1/Regraded | D44: 156 | E44: 52 | F44: 0 | G44: 0 | H44: 320.2630137 | I44: 528.2630137
A45: Coal Mining Operation | B45: Surface | C45: Abandoned | D45: 0 | E45: 20 | F45: 0 | G45: 0 | H45: 0 | I45: 20
A46: Coal Mining Operation | B46: Surface | C46: Active | D46: 3806.115068 | E46: 1622.542466 | F46: 1967.309589 | G46: 4290.926027 | H46: 5717.863014 | I46: 17404.75616
A47: Coal Mining Operation | B47: Surface | C47: Approved Cessation | D47: 208.8547945 | E47: 208 | F47: 0 | G47: 0 | H47: 0 | I47: 416.8547945
A48: Coal Mining Operation | B48: Surface | C48: Bond Forfeited | D48: 1300 | E48: 2520 | F48: 2080 | G48: 1300 | H48: 220 | I48: 7420
A49: Coal Mining Operation | B49: Surface | C49: Bond Forfeited-Chemical Treatment | D49: 84.76712329 | E49: 0 | F49: 364 | G49: 384.6575342 | H49: 0 | I49: 833.4246575
A50: Coal Mining Operation | B50: Surface | C50: Bond Forfeited-Passive Treatment | D50: 180.9315068 | E50: 36.87671233 | F50: 896.6027397 | G50: 320 | H50: 0 | I50: 1434.410959
A51: Coal Mining Operation | B51: Surface | C51: Inactive | D51: 0 | E51: 0 | F51: 0 | G51: 0 | H51: 20 | I51: 20
A52: Coal Mining Operation | B52: Surface | C52: Not Started | D52: 92.53424658 | E52: 51.67123288 | F52: 59.69863014 | G52: 49.80821918 | H52: 0 | I52: 253.7123288
A53: Coal Mining Operation | B53: Surface | C53: Primacy Bond Forfeited | D53: 300 | E53: 100 | F53: 164.7123288 | G53: 140 | H53: 60 | I53: 764.7123288
A54: Coal Mining Operation | B54: Surface | C54: Reclaimed/Chemical Treatment | D54: 1591.912329 | E54: 520 | F54: 52 | G54: 416 | H54: 0 | I54: 2579.912329
A55: Coal Mining Operation | B55: Surface | C55: Reclaimed/Passive Treatment | D55: 403.3972603 | E55: 390.630137 | F55: 260 | G55: 401.4794521 | H55: 0 | I55: 1455.506849
A56: Coal Mining Operation | B56: Surface | C56: Stage 2 Approved | D56: 571.6712329 | E56: 858.3561644 | F56: 686.1917808 | G56: 815.4520548 | H56: 20 | I56: 2951.671233
A57: Coal Mining Operation | B57: Surface | C57: Stage 2 Eligible | D57: 442.9041096 | E57: 218.8493151 | F57: 215.4520548 | G57: 299.9452055 | H57: 60 | I57: 1237.150685
A58: Coal Mining Operation | B58: Surface | C58: Stage1/Regraded | D58: 2005.205479 | E58: 1265.808219 | F58: 784.9863014 | G58: 1834.10411 | H58: 164.2630137 | I58: 6054.367123
A59: Coal Mining Operation | B59: Surface | C59: Trust Treated Chemical Treatment | D59: 0 | E59: 52 | F59: 156 | G59: 0 | H59: 0 | I59: 208
A60: Coal Mining Operation | B60: Surface | C60: Trust Treated Passive Treatment | D60: 0 | E60: 0 | F60: 80 | G60: 0 | H60: 0 | I60: 80
A61: Coal Mining Operation | B61: Underground | C61: Active | D61: 1360.832877 | E61: 1316.09863 | F61: 156 | G61: 156 | H61: 884 | I61: 3872.931507
A62: Coal Mining Operation | B62: Underground | C62: Approved Cessation | D62: 208 | E62: 104 | F62: 0 | G62: 0 | H62: 0 | I62: 312
A63: Coal Mining Operation | B63: Underground | C63: Bond Forfeited | D63: 80 | E63: 100 | F63: 0 | G63: 40 | H63: 60 | I63: 280
A64: Coal Mining Operation | B64: Underground | C64: Bond Forfeited-Chemical Treatment | D64: 0 | E64: 52 | F64: 0 | G64: 52 | H64: 0 | I64: 104
A65: Coal Mining Operation | B65: Underground | C65: Bond Forfeited-Passive Treatment | D65: 40 | E65: 20 | F65: 20 | G65: 0 | H65: 0 | I65: 80
A66: Coal Mining Operation | B66: Underground | C66: Bond Forfeiture-Under Reclamation | D66: 0 | E66: 0 | F66: 0 | G66: 52 | H66: 0 | I66: =SUM(D66:H66) -> 52
A67: Coal Mining Operation | B67: Underground | C67: Inactive | D67: 0 | E67: 0 | F67: 0 | G67: 0 | H67: 20 | I67: 20
A68: Coal Mining Operation | B68: Underground | C68: Not Started | D68: 20 | E68: 11.65753425 | F68: 0 | G68: 0 | H68: 0 | I68: 31.65753425
A69: Coal Mining Operation | B69: Underground | C69: Primacy Bond Forfeited | D69: 0 | E69: 20 | F69: 0 | G69: 0 | H69: 20 | I69: 40
A70: Coal Mining Operation | B70: Underground | C70: Reclaimed/Chemical Treatment | D70: 936 | E70: 312 | F70: 52 | G70: 52 | H70: 49.8630137 | I70: 1401.863014
A71: Coal Mining Operation | B71: Underground | C71: Reclaimed/Passive Treatment | D71: 21.15068493 | E71: 40 | F71: 0 | G71: 0 | H71: 0 | I71: 61.15068493
A72: Coal Mining Operation | B72: Underground | C72: Stage 2 Approved | D72: 20 | E72: 100 | F72: 0 | G72: 0 | H72: 40 | I72: 160
A73: Coal Mining Operation | B73: Underground | C73: Stage 2 Eligible | D73: 40 | E73: 40 | F73: 0 | G73: 0 | H73: 40 | I73: 120
A74: Coal Mining Operation | B74: Underground | C74: Stage1/Regraded | D74: 156 | E74: 156 | F74: 52 | G74: 0 | H74: 268.2630137 | I74: 632.2630137
A75: Coal Mining Operation | B75: Underground | C75: Unapproved Cessation | D75: 0 | E75: 52 | F75: 0 | G75: 0 | H75: 0 | I75: 52
A76: Encroachment Location | B76: Abandoned Mine Reclamation | C76: Not Started | D76: 0 | E76: 0 | F76: 0 | G76: 0 | H76: 0 | I76: 0
A77: Encroachment Location | B77: Mineral Resources | C77: Active | D77: 0 | E77: 0 | F77: 0 | G77: 0 | H77: 0 | I77: 0
A78: Encroachment Location | B78: Mineral Resources | C78: Not Started | D78: 0 | E78: 0 | F78: 0 | G78: 0 | H78: 0 | I78: 0
A79: Encroachment Location | B79: Not Indicated | C79: Active | D79: 0 | E79: 0 | F79: 0 | G79: 0 | H79: 0 | I79: 0
A80: Encroachment Location | B80: Not Indicated | C80: Not Started | D80: 0 | E80: 0 | F80: 0 | G80: 0 | H80: 0 | I80: 0
A81: Explosive Storage Location | B81: Indoor Explosive Storage | C81: Active | D81: 0 | E81: 0 | F81: 0 | G81: 0 | H81: 0 | I81: 0
A82: Explosive Storage Location | B82: Indoor Explosive Storage | C82: Inactive | D82: 0 | E82: 0 | F82: 0 | G82: 0 | H82: 0 | I82: 0
A83: Explosive Storage Location | B83: Not Indicated | C83: Active | D83: 0 | E83: 0 | F83: 0 | G83: 0 | H83: 0 | I83: 0
A84: Explosive Storage Location | B84: Not Indicated | C84: Inactive | D84: 0 | E84: 0 | F84: 0 | G84: 0 | H84: 0 | I84: 0
A85: Explosive Storage Location | B85: Outdoor Explosive Storage | C85: Active | D85: 0 | E85: 0 | F85: 0 | G85: 0 | H85: 0 | I85: 0
A86: Explosive Storage Location | B86: Outdoor Explosive Storage | C86: Inactive | D86: 0 | E86: 0 | F86: 0 | G86: 0 | H86: 0 | I86: 0
A87: GP12 Prep Plant Emissions Operation | B87: Not Indicated | C87: Active | D87: 0 | E87: 0 | F87: 0 | G87: 0 | H87: 0 | I87: 0
A88: GP12 Prep Plant Emissions Operation | B88: Not Indicated | C88: Not Started | D88: 0 | E88: 0 | F88: 0 | G88: 0 | H88: 0 | I88: 0
A89: Industrial Mineral Mining Operation | B89: Bluestone General Permit | C89: Active | D89: 0 | E89: 0 | F89: 0 | G89: 66 | H89: 166.4054795 | I89: 232.4054795
A90: Industrial Mineral Mining Operation | B90: Bluestone General Permit | C90: Not Started | D90: 0 | E90: 0 | F90: 0 | G90: 0 | H90: 7.857534247 | I90: 7.857534247
A91: Industrial Mineral Mining Operation | B91: General Permit, Short-Term Construction | C91: Active | D91: 0 | E91: 6 | F91: 0 | G91: 0 | H91: 21.10684932 | I91: 27.10684932
A92: Industrial Mineral Mining Operation | B92: General Permit, Short-Term Construction | C92: Not Started | D92: 3 | E92: 0 | F92: 0 | G92: 3 | H92: 0 | I92: 6
A93: Industrial Mineral Mining Operation | B93: General Permit, Short-Term Construction | C93: Stage 2 Eligible | D93: 0 | E93: 0 | F93: 0 | G93: 0 | H93: 6 | I93: 6
A94: Industrial Mineral Mining Operation | B94: General Permit, Short-Term Construction | C94: Stage1/Regraded | D94: 0 | E94: 0 | F94: 0 | G94: 6 | H94: 0 | I94: 6
A95: Industrial Mineral Mining Operation | B95: Surface <10,000 Tons | C95: Active | D95: 156 | E95: 42 | F95: 430.9808219 | G95: 266.5150685 | H95: 711.0575342 | I95: 1606.553425
A96: Industrial Mineral Mining Operation | B96: Surface <10,000 Tons | C96: Bond Forfeited | D96: 0 | E96: 0 | F96: 0 | G96: 19.52876712 | H96: 66.13150685 | I96: 85.66027397
A97: Industrial Mineral Mining Operation | B97: Surface <10,000 Tons | C97: Bond in Forfeiture | D97: 0 | E97: 0 | F97: 0 | G97: 0 | H97: 0.9534246575 | I97: 0.9534246575
A98: Industrial Mineral Mining Operation | B98: Surface <10,000 Tons | C98: Inactive | D98: 6 | E98: 0 | F98: 0 | G98: 0 | H98: 4.832876712 | I98: 10.83287671
A99: Industrial Mineral Mining Operation | B99: Surface <10,000 Tons | C99: Not Started | D99: 0 | E99: 10.82465753 | F99: 22.68493151 | G99: 6 | H99: 18 | I99: 57.50958904
A100: Industrial Mineral Mining Operation | B100: Surface <10,000 Tons | C100: Primacy Bond Forfeited | D100: 0 | E100: 0 | F100: 0 | G100: 0 | H100: 0 | I100: 0
A101: Industrial Mineral Mining Operation | B101: Surface <10,000 Tons | C101: Stage 2 Eligible | D101: 0 | E101: 6 | F101: 0 | G101: 1.84109589 | H101: 8.449315068 | I101: 16.29041096
A102: Industrial Mineral Mining Operation | B102: Surface <10,000 Tons | C102: Stage1/Regraded | D102: 6 | E102: 6 | F102: 12 | G102: 11.78630137 | H102: 18.95342466 | I102: 54.73972603
A103: Industrial Mineral Mining Operation | B103: Surface Large | C103: Active | D103: 1579.00274 | E103: 504.8986301 | F103: 2576.789041 | G103: 1231.035616 | H103: 4684.712329 | I103: 10576.43836
A104: Industrial Mineral Mining Operation | B104: Surface Large | C104: Approved Cessation | D104: 0 | E104: 16 | F104: 47.7369863 | G104: 35.94520548 | H104: 64 | I104: 163.6821918
A105: Industrial Mineral Mining Operation | B105: Surface Large | C105: Bond Forfeited | D105: 80 | E105: 96 | F105: 160 | G105: 64 | H105: 160 | I105: 560
A106: Industrial Mineral Mining Operation | B106: Surface Large | C106: Bond Forfeited-Chemical Treatment | D106: 16 | E106: 0 | F106: 0 | G106: 0 | H106: 0 | I106: 16
A107: Industrial Mineral Mining Operation | B107: Surface Large | C107: Bond in Forfeiture | D107: 0 | E107: 0 | F107: 0 | G107: 0 | H107: 16 | I107: 16
A108: Industrial Mineral Mining Operation | B108: Surface Large | C108: Inactive | D108: 0 | E108: 16 | F108: 0 | G108: 0 | H108: 16 | I108: 32
A109: Industrial Mineral Mining Operation | B109: Surface Large | C109: Not Started | D109: 4 | E109: 16 | F109: 38.46575342 | G109: 18.54246575 | H109: 12.60273973 | I109: 89.6109589
A110: Industrial Mineral Mining Operation | B110: Surface Large | C110: Operative But Not Producing | D110: 0 | E110: 0 | F110: 0 | G110: 16 | H110: 0 | I110: 16
A111: Industrial Mineral Mining Operation | B111: Surface Large | C111: Reclaimed/Chemical Treatment | D111: 0 | E111: 32 | F111: 0 | G111: 0 | H111: 0 | I111: 32
A112: Industrial Mineral Mining Operation | B112: Surface Large | C112: Reclaimed/Passive Treatment | D112: 0 | E112: 0 | F112: 16 | G112: 0 | H112: 0 | I112: 16
A113: Industrial Mineral Mining Operation | B113: Surface Large | C113: Stage 2 Approved | D113: 0 | E113: 48 | F113: 0 | G113: 16 | H113: 16 | I113: 80
A114: Industrial Mineral Mining Operation | B114: Surface Large | C114: Stage 2 Eligible | D114: 19.94520548 | E114: 0 | F114: 0 | G114: 16 | H114: 52.20821918 | I114: 88.15342466
A115: Industrial Mineral Mining Operation | B115: Surface Large | C115: Stage1/Regraded | D115: 85.83013699 | E115: 48 | F115: 329.2493151 | G115: 44.88767123 | H115: 164.4712329 | I115: 672.4383562
A116: Industrial Mineral Mining Operation | B116: Surface Large | C116: Unapproved Cessation | D116: 0 | E116: 0 | F116: 0 | G116: 16 | H116: 0 | I116: 16
A117: Industrial Mineral Mining Operation | B117: Surface Small <2,000 Tons | C117: Abandoned | D117: 9.304109589 | E117: 0 | F117: 6 | G117: 12 | H117: 18.2630137 | I117: 45.56712329
A118: Industrial Mineral Mining Operation | B118: Surface Small <2,000 Tons | C118: Active | D118: 559.5287671 | E118: 96 | F118: 474.0328767 | G118: 952.3561644 | H118: 3400.191781 | I118: 5482.109589
A119: Industrial Mineral Mining Operation | B119: Surface Small <2,000 Tons | C119: Bond Forfeited | D119: 30 | E119: 24 | F119: 54.19726027 | G119: 215.9178082 | H119: 269.9342466 | I119: 594.0493151
A120: Industrial Mineral Mining Operation | B120: Surface Small <2,000 Tons | C120: Bond in Forfeiture | D120: 0 | E120: 4.356164384 | F120: 0.2465753425 | G120: 6 | H120: 23.07945205 | I120: 33.68219178
A121: Industrial Mineral Mining Operation | B121: Surface Small <2,000 Tons | C121: Inactive | D121: 0 | E121: 0 | F121: 0 | G121: 6 | H121: 18 | I121: 24
A122: Industrial Mineral Mining Operation | B122: Surface Small <2,000 Tons | C122: Not Started | D122: 3 | E122: 0 | F122: 0 | G122: 3 | H122: 40.39726027 | I122: 46.39726027
A123: Industrial Mineral Mining Operation | B123: Surface Small <2,000 Tons | C123: Stage 2 Eligible | D123: 6 | E123: 0 | F123: 0 | G123: 17.50684932 | H123: 77.37534247 | I123: 100.8821918
A124: Industrial Mineral Mining Operation | B124: Surface Small <2,000 Tons | C124: Stage1/Regraded | D124: 37.01917808 | E124: 0 | F124: 14.08767123 | G124: 13.67671233 | H124: 69.27123288 | I124: 134.0547945
A125: Industrial Mineral Mining Operation | B125: Surface Small <2,000 Tons | C125: Unapproved Cessation | D125: 12 | E125: 0 | F125: 0 | G125: 0 | H125: 30 | I125: 42
A126: Industrial Mineral Mining Operation | B126: Underground | C126: Active | D126: 0 | E126: 120 | F126: 0 | G126: 40 | H126: 0 | I126: 160
A127: Industrial Mineral Mining Operation | B127: Underground | C127: Not Started | D127: 0 | E127: 5 | F127: 0 | G127: 0 | H127: 0 | I127: 5
A128: Mine Drainage Trmt/Land Recl Proj Loc | B128: 10 Percent Set-Aside | C128: Active | D128: 156 | E128: 0 | F128: 0 | G128: 0 | H128: 0 | I128: 156
A129: Mine Drainage Trmt/Land Recl Proj Loc | B129: Biosolid | C129: Active | D129: 0 | E129: 0 | F129: 0 | G129: 424.4054795 | H129: 0 | I129: 424.4054795
A130: Mine Drainage Trmt/Land Recl Proj Loc | B130: EPA 319 | C130: Active | D130: 208 | E130: 0 | F130: 728 | G130: 0 | H130: 0 | I130: =SUM(D130:H130) -> 936
A131: Mine Drainage Trmt/Land Recl Proj Loc | B131: EPA 319 | C131: Not Started | D131: 0 | E131: 10 | F131: 5 | G131: 0 | H131: 0 | I131: 15
A132: Mine Drainage Trmt/Land Recl Proj Loc | B132: Growing Greener | C132: Active | D132: 416 | E132: 208 | F132: 208 | G132: 879.8684932 | H132: 0 | I132: 1711.868493
A133: Mine Drainage Trmt/Land Recl Proj Loc | B133: Growing Greener | C133: Not Started | D133: 0 | E133: 50 | F133: 25 | G133: 0 | H133: 0 | I133: 75
A134: Mine Drainage Trmt/Land Recl Proj Loc | B134: Not Indicated | C134: Active | D134: 208 | E134: 52 | F134: 572 | G134: 0 | H134: 104 | I134: 936
A135: Mine Drainage Trmt/Land Recl Proj Loc | B135: Not Indicated | C135: Not Started | D135: 0 | E135: 0 | F135: 10 | G135: 5 | H135: 0 | I135: 15
A136: Mine Drainage Trmt/Land Recl Proj Loc | B136: Rec-in-Lieu | C136: Active | D136: 0 | E136: 0 | F136: 260 | G136: 0 | H136: 0 | I136: 260
A137: Mine Drainage Trmt/Land Recl Proj Loc | B137: Watershed Restoratn, Prtnrship Act Grant | C137: Active | D137: 0 | E137: 416 | F137: 104 | G137: 0 | H137: 156 | I137: 676
A138: Mine Drainage Trmt/Land Recl Proj Loc | B138: Watershed Restoratn, Prtnrship Act Grant | C138: Not Started | D138: 0 | E138: 25 | F138: 0 | G138: 0 | H138: 0 | I138: 25
I139: 0
I140: 0
I141: 0
I142: 0
I143: 0
I144: 0
I145: 0
I146: 0
I147: 0
I148: 0
I149: 0
I150: 0
I151: 0
I152: 0
I153: 0
I154: 0
I155: 0
I156: 0
I157: 0
I158: 0
I159: 0
I160: 0
I161: 0
I162: 0
I163: 0
I164: 0
I165: 0
I166: 0
I167: 0
I168: 0
I169: 0
I170: 0
I171: 0
I172: 0
I173: 0
I174: 0
I175: 0
I176: 0
I177: 0
I178: 0
I179: 0
I180: 0
I181: 0
I182: 0
I183: 0
I184: 0
I185: 0
I186: 0
I187: 0
I188: 0
I189: 0
I190: 0
I191: 0
I192: 0
I193: 0
I194: =SUM(D194:H194) -> 0
I195: 0
I196: 0
I197: 0
I198: 0
I199: 0
I200: 0
... 700 more rows

Sheet Inspection Time Assesments
A1: Method used to calculate the number of required inspections and number of man hours alotted per inspection
A2: Status | B2: Coal | J2: Industrial Mineral
B3: Complete | F3: Partial | J3: Complete
B4: Deep | C4: Prep Plant | D4: Refuse Disposal | E4: Other | F4: Deep | G4: Prep Plant | H4: Refuse Disposal | I4: Other | J4: Large | K4: Small
A5: Abandoned | B5: 4/Yr @ 5.00 Man Hrs/Insp | C5: 4/Yr @ 5.00 Man Hrs/Insp | D5: 4/Yr @ 5.00 Man Hrs/Insp | E5: 4/Yr @ 5.00 Man Hrs/Insp | F5: 0/Yr @ 0.00 Man Hrs/Insp | G5: 0/Yr @ 0.00 Man Hrs/Insp | H5: 0/Yr @ 0.00 Man Hrs/Insp | I5: 0/Yr @ 0.00 Man Hrs/Insp | J5: 4/Yr @ 5.00 Man Hrs/Insp | K5: 2/Yr @ 5.00 Man Hrs/Insp
A6: Active | B6: 4/Yr @ 5.00 Man Hrs/Insp | C6: 4/Yr @ 5.00 Man Hrs/Insp | D6: 4/Yr @ 5.00 Man Hrs/Insp | E6: 4/Yr @ 5.00 Man Hrs/Insp | F6: 8/Yr @ 4.00 Man Hrs/Insp | G6: 8/Yr @ 4.00 Man Hrs/Insp | H6: 8/Yr @ 4.00 Man Hrs/Insp | I6: 8/Yr @ 4.00 Man Hrs/Insp | J6: 4/Yr @ 5.00 Man Hrs/Insp | K6: 2/Yr @ 5.00 Man Hrs/Insp
A7: Approved Cessation | B7: 4/Yr @ 5.00 Man Hrs/Insp | C7: 4/Yr @ 5.00 Man Hrs/Insp | D7: 4/Yr @ 5.00 Man Hrs/Insp | E7: 4/Yr @ 5.00 Man Hrs/Insp | F7: 8/Yr @ 4.00 Man Hrs/Insp | G7: 8/Yr @ 4.00 Man Hrs/Insp | H7: 8/Yr @ 4.00 Man Hrs/Insp | I7: 8/Yr @ 4.00 Man Hrs/Insp | J7: 4/Yr @ 5.00 Man Hrs/Insp | K7: 2/Yr @ 5.00 Man Hrs/Insp
A8: Bond Forfeited | B8: 4/Yr @ 5.00 Man Hrs/Insp | C8: 4/Yr @ 5.00 Man Hrs/Insp | D8: 4/Yr @ 5.00 Man Hrs/Insp | E8: 4/Yr @ 5.00 Man Hrs/Insp | F8: 0/Yr @ 0.00 Man Hrs/Insp | G8: 0/Yr @ 0.00 Man Hrs/Insp | H8: 0/Yr @ 0.00 Man Hrs/Insp | I8: 0/Yr @ 0.00 Man Hrs/Insp | J8: 4/Yr @ 5.00 Man Hrs/Insp | K8: 2/Yr @ 5.00 Man Hrs/Insp
A9: Bond Forfeited-Chemical Treatment | B9: 4/Yr @ 5.00 Man Hrs/Insp | C9: 4/Yr @ 5.00 Man Hrs/Insp | D9: 4/Yr @ 5.00 Man Hrs/Insp | E9: 4/Yr @ 5.00 Man Hrs/Insp | F9: 8/Yr @ 4.00 Man Hrs/Insp | G9: 8/Yr @ 4.00 Man Hrs/Insp | H9: 8/Yr @ 4.00 Man Hrs/Insp | I9: 8/Yr @ 4.00 Man Hrs/Insp | J9: 4/Yr @ 5.00 Man Hrs/Insp | K9: 2/Yr @ 5.00 Man Hrs/Insp
A10: Bond Forfeited-Passive Treatment | B10: 4/Yr @ 5.00 Man Hrs/Insp | C10: 4/Yr @ 5.00 Man Hrs/Insp | D10: 4/Yr @ 5.00 Man Hrs/Insp | E10: 4/Yr @ 5.00 Man Hrs/Insp | F10: 0/Yr @ 0.00 Man Hrs/Insp | G10: 0/Yr @ 0.00 Man Hrs/Insp | H10: 0/Yr @ 0.00 Man Hrs/Insp | I10: 0/Yr @ 0.00 Man Hrs/Insp | J10: 4/Yr @ 5.00 Man Hrs/Insp | K10: 2/Yr @ 5.00 Man Hrs/Insp
A11: Bond Forfeiture-Under Reclamation | B11: 4/Yr @ 5.00 Man Hrs/Insp | C11: 4/Yr @ 5.00 Man Hrs/Insp | D11: 4/Yr @ 5.00 Man Hrs/Insp | E11: 4/Yr @ 5.00 Man Hrs/Insp | F11: 8/Yr @ 4.00 Man Hrs/Insp | G11: 8/Yr @ 4.00 Man Hrs/Insp | H11: 8/Yr @ 4.00 Man Hrs/Insp | I11: 8/Yr @ 4.00 Man Hrs/Insp | J11: 4/Yr @ 5.00 Man Hrs/Insp | K11: 2/Yr @ 5.00 Man Hrs/Insp
A12: Bond in Forfeiture | B12: 4/Yr @ 5.00 Man Hrs/Insp | C12: 4/Yr @ 5.00 Man Hrs/Insp | D12: 4/Yr @ 5.00 Man Hrs/Insp | E12: 4/Yr @ 5.00 Man Hrs/Insp | F12: 8/Yr @ 4.00 Man Hrs/Insp | G12: 8/Yr @ 4.00 Man Hrs/Insp | H12: 8/Yr @ 4.00 Man Hrs/Insp | I12: 8/Yr @ 4.00 Man Hrs/Insp | J12: 4/Yr @ 5.00 Man Hrs/Insp | K12: 2/Yr @ 5.00 Man Hrs/Insp
A13: Inactive | B13: 4/Yr @ 5.00 Man Hrs/Insp | C13: 4/Yr @ 5.00 Man Hrs/Insp | D13: 4/Yr @ 5.00 Man Hrs/Insp | E13: 4/Yr @ 5.00 Man Hrs/Insp | F13: 0/Yr @ 0.00 Man Hrs/Insp | G13: 0/Yr @ 0.00 Man Hrs/Insp | H13: 0/Yr @ 0.00 Man Hrs/Insp | I13: 0/Yr @ 0.00 Man Hrs/Insp | J13: 4/Yr @ 5.00 Man Hrs/Insp | K13: 2/Yr @ 5.00 Man Hrs/Insp
A14: Not Started | B14: 1/Yr @ 2.00 Man Hrs/Insp | C14: 1/Yr @ 2.00 Man Hrs/Insp | D14: 1/Yr @ 2.00 Man Hrs/Insp | E14: 1/Yr @ 2.00 Man Hrs/Insp | F14: 0/Yr @ 0.00 Man Hrs/Insp | G14: 0/Yr @ 0.00 Man Hrs/Insp | H14: 0/Yr @ 0.00 Man Hrs/Insp | I14: 0/Yr @ 0.00 Man Hrs/Insp | J14: 1/Yr @ 2.00 Man Hrs/Insp | K14: 1/Yr @ 2.00 Man Hrs/Insp
A15: Operative But Not Producing | B15: 4/Yr @ 5.00 Man Hrs/Insp | C15: 4/Yr @ 5.00 Man Hrs/Insp | D15: 4/Yr @ 5.00 Man Hrs/Insp | E15: 4/Yr @ 5.00 Man Hrs/Insp | F15: 8/Yr @ 4.00 Man Hrs/Insp | G15: 8/Yr @ 4.00 Man Hrs/Insp | H15: 8/Yr @ 4.00 Man Hrs/Insp | I15: 8/Yr @ 4.00 Man Hrs/Insp | J15: 4/Yr @ 5.00 Man Hrs/Insp | K15: 2/Yr @ 5.00 Man Hrs/Insp
A16: Primacy Bond Forfeited | B16: 4/Yr @ 5.00 Man Hrs/Insp | C16: 4/Yr @ 5.00 Man Hrs/Insp | D16: 4/Yr @ 5.00 Man Hrs/Insp | E16: 4/Yr @ 5.00 Man Hrs/Insp | F16: 0/Yr @ 0.00 Man Hrs/Insp | G16: 0/Yr @ 0.00 Man Hrs/Insp | H16: 0/Yr @ 0.00 Man Hrs/Insp | I16: 0/Yr @ 0.00 Man Hrs/Insp | J16: 0/Yr @ 0.00 Man Hrs/Insp | K16: 0/Yr @ 0.00 Man Hrs/Insp
A17: Reclaimed/Chemical Treatment | B17: 4/Yr @ 5.00 Man Hrs/Insp | C17: 4/Yr @ 5.00 Man Hrs/Insp | D17: 4/Yr @ 5.00 Man Hrs/Insp | E17: 4/Yr @ 5.00 Man Hrs/Insp | F17: 8/Yr @ 4.00 Man Hrs/Insp | G17: 8/Yr @ 4.00 Man Hrs/Insp | H17: 8/Yr @ 4.00 Man Hrs/Insp | I17: 8/Yr @ 4.00 Man Hrs/Insp | J17: 4/Yr @ 5.00 Man Hrs/Insp | K17: 2/Yr @ 5.00 Man Hrs/Insp
A18: Reclaimed/Passive Treatment | B18: 4/Yr @ 5.00 Man Hrs/Insp | C18: 4/Yr @ 5.00 Man Hrs/Insp | D18: 4/Yr @ 5.00 Man Hrs/Insp | E18: 4/Yr @ 5.00 Man Hrs/Insp | F18: 0/Yr @ 0.00 Man Hrs/Insp | G18: 0/Yr @ 0.00 Man Hrs/Insp | H18: 0/Yr @ 0.00 Man Hrs/Insp | I18: 0/Yr @ 0.00 Man Hrs/Insp | J18: 4/Yr @ 5.00 Man Hrs/Insp | K18: 2/Yr @ 5.00 Man Hrs/Insp
A19: Stage 2 Approved | B19: 4/Yr @ 5.00 Man Hrs/Insp | C19: 4/Yr @ 5.00 Man Hrs/Insp | D19: 4/Yr @ 5.00 Man Hrs/Insp | E19: 4/Yr @ 5.00 Man Hrs/Insp | F19: 0/Yr @ 0.00 Man Hrs/Insp | G19: 0/Yr @ 0.00 Man Hrs/Insp | H19: 0/Yr @ 0.00 Man Hrs/Insp | I19: 0/Yr @ 0.00 Man Hrs/Insp | J19: 4/Yr @ 5.00 Man Hrs/Insp | K19: 2/Yr @ 5.00 Man Hrs/Insp
A20: Stage 2 Eligible | B20: 4/Yr @ 5.00 Man Hrs/Insp | C20: 4/Yr @ 5.00 Man Hrs/Insp | D20: 4/Yr @ 5.00 Man Hrs/Insp | E20: 4/Yr @ 5.00 Man Hrs/Insp | F20: 0/Yr @ 0.00 Man Hrs/Insp | G20: 0/Yr @ 0.00 Man Hrs/Insp | H20: 0/Yr @ 0.00 Man Hrs/Insp | I20: 0/Yr @ 0.00 Man Hrs/Insp | J20: 4/Yr @ 5.00 Man Hrs/Insp | K20: 2/Yr @ 5.00 Man Hrs/Insp
A21: Stage1/Regraded | B21: 4/Yr @ 5.00 Man Hrs/Insp | C21: 4/Yr @ 5.00 Man Hrs/Insp | D21: 4/Yr @ 5.00 Man Hrs/Insp | E21: 4/Yr @ 5.00 Man Hrs/Insp | F21: 8/Yr @ 4.00 Man Hrs/Insp | G21: 8/Yr @ 4.00 Man Hrs/Insp | H21: 8/Yr @ 4.00 Man Hrs/Insp | I21: 8/Yr @ 4.00 Man Hrs/Insp | J21: 4/Yr @ 5.00 Man Hrs/Insp | K21: 2/Yr @ 5.00 Man Hrs/Insp
A22: Trust Treated Chemical Treatment | B22: 4/Yr @ 5.00 Man Hrs/Insp | C22: 4/Yr @ 5.00 Man Hrs/Insp | D22: 4/Yr @ 5.00 Man Hrs/Insp | E22: 4/Yr @ 5.00 Man Hrs/Insp | F22: 8/Yr @ 4.00 Man Hrs/Insp | G22: 8/Yr @ 4.00 Man Hrs/Insp | H22: 8/Yr @ 4.00 Man Hrs/Insp | I22: 8/Yr @ 4.00 Man Hrs/Insp | J22: 4/Yr @ 5.00 Man Hrs/Insp | K22: 2/Yr @ 5.00 Man Hrs/Insp
A23: Trust Treated Passive Treatment | B23: 4/Yr @ 5.00 Man Hrs/Insp | C23: 4/Yr @ 5.00 Man Hrs/Insp | D23: 4/Yr @ 5.00 Man Hrs/Insp | E23: 4/Yr @ 5.00 Man Hrs/Insp | F23: 0/Yr @ 0.00 Man Hrs/Insp | G23: 0/Yr @ 0.00 Man Hrs/Insp | H23: 0/Yr @ 0.00 Man Hrs/Insp | I23: 0/Yr @ 0.00 Man Hrs/Insp | J23: 4/Yr @ 5.00 Man Hrs/Insp | K23: 2/Yr @ 5.00 Man Hrs/Insp
A24: Unapproved Cessation | B24: 4/Yr @ 5.00 Man Hrs/Insp | C24: 4/Yr @ 5.00 Man Hrs/Insp | D24: 4/Yr @ 5.00 Man Hrs/Insp | E24: 4/Yr @ 5.00 Man Hrs/Insp | F24: 8/Yr @ 4.00 Man Hrs/Insp | G24: 8/Yr @ 4.00 Man Hrs/Insp | H24: 8/Yr @ 4.00 Man Hrs/Insp | I24: 8/Yr @ 4.00 Man Hrs/Insp | J24: 4/Yr @ 5.00 Man Hrs/Insp | K24: 2/Yr @ 5.00 Man Hrs/Insp
A49: ="Report period between " & TEXT(Beginning_Date,"mm/dd/yyyy") & " and " & TEXT(Ending_Date,"mm/dd/yyyy") -> Report period between 01/01/2014 and 12/31/2014
A51: Definitions:
A52: Yearly Inspection Rate | B52: The number of inspections required for a permit over a 365 day interval (see the chart)
A53: Duration | B53: The number of days between the beginning date and the ending date divided by 89
A54: Discount | B54: Provided for permits issued during the date range of the report determine by the following
B55: a) If no issuance date can be determined then an issuabce date of 01/01/1900 is used and the discount is 1
B56: b) If the number of days between the issuance date and the ending date for the report is greater than 365 the discount is 1
B57: c) If the permit issuance date occures after the end date for the report range the discount is 0
B58: d) If a, b, and c do not apply then the discount is the number of days between the Permit Issuance Date and the Ending Date for the report range.
A60: Formula for the number of inspections required
A61: Number Of Inspections Required = | C61: ((Quarterly Inspection Rate * Duration) * Discount)
A64: For this report a Coal Permit in the Cambria District Office issued prior to the beginning date of the report and having an Active status in eFACTS would be accessed at:
A65: Number Of Complete Inspections Required = | C65: ="((1 * " & Duration & ") * 1) = " & ((1*(Duration))*1) -> ((1 * ) * 1) = 0
A66: Number Of Partial Inspections Required = | C66: ="((2 * " & Duration & ") * 1) = " & ((2*(Duration))*1) -> ((2 * ) * 1) = 0

Sheet Complaints
A1: Complaint Type | B1: Cambria | C1: Greensburg | D1: Knox | E1: Moshannon | F1: Pottsville | G1: Total Complaints
A2: Ash | B2: 1 | C2: 0 | D2: 0 | E2: 0 | F2: 1 | G2: =SUM(B2:F2) -> 2
A3: Biosolids | B3: 0 | C3: 0 | D3: 0 | E3: 0 | F3: 1 | G3: 1
A4: Blasting | B4: 27 | C4: 29 | D4: 20 | E4: 47 | F4: 165 | G4: 288
A5: Complaint Referral | B5: 10 | C5: 0 | D5: 30 | E5: 3 | F5: 14 | G5: 57
A6: Dams/Ponds | B6: 4 | C6: 0 | D6: 0 | E6: 0 | F6: 0 | G6: 4
A7: Dust | B7: 16 | C7: 8 | D7: 2 | E7: 8 | F7: 23 | G7: 57
A8: E & S | B8: 2 | C8: 1 | D8: 6 | E8: 0 | F8: 4 | G8: 13
A9: Encroachment | B9: 2 | C9: 0 | D9: 0 | E9: 0 | F9: 0 | G9: 2
A10: Explosives Disposal | B10: 0 | C10: 0 | D10: 0 | E10: 1 | F10: 0 | G10: 1
A11: Fugitive Emissions | B11: 4 | C11: 0 | D11: 0 | E11: 0 | F11: 0 | G11: 4
A12: General | B12: 11 | C12: 27 | D12: 11 | E12: 6 | F12: 14 | G12: 69
A13: Illegal Site | B13: 1 | C13: 1 | D13: 3 | E13: 4 | F13: 14 | G13: 23
A14: Mud | B14: 6 | C14: 5 | D14: 0 | E14: 2 | F14: 24 | G14: 37
A15: Noise | B15: 0 | C15: 2 | D15: 1 | E15: 0 | F15: 6 | G15: 9
A16: Not Identified | B16: 2 | C16: 0 | D16: 0 | E16: 0 | F16: 2 | G16: 4
A17: Pollutional Discharge | B17: 2 | C17: 4 | D17: 2 | E17: 2 | F17: 5 | G17: 15
A18: Sink Hole(s) | B18: 0 | C18: 7 | D18: 0 | E18: 3 | F18: 3 | G18: 13
A19: Water Supply Degradation | B19: 8 | C19: 1 | D19: 6 | E19: 2 | F19: 4 | G19: 21
A20: Water Supply Diminution | B20: 5 | C20: 2 | D20: 2 | E20: 1 | F20: 1 | G20: 11
A21: Water Supply Loss | B21: 8 | C21: 2 | D21: 1 | E21: 0 | F21: 2 | G21: 13
G22: 0
G23: 0
G24: 0
G25: 0
G26: 0
G27: 0
G28: 0
G29: 0
G30: 0
G31: 0
G32: 0
G33: 0
G34: 0
G35: 0
G36: 0
G37: 0
G38: 0
G39: 0
G40: 0
G41: 0
G42: 0
G43: 0
G44: 0
G45: 0
G46: 0
G47: 0
G48: 0
G49: 0
G50: 0
G51: 0
G52: 0
G53: 0
G54: 0
G55: 0
G56: 0
G57: 0
G58: 0
G59: 0
G60: 0
G61: 0
G62: 0
G63: 0
G64: 0
G65: 0
G66: =SUM(B66:F66) -> 0
G67: =SUM(B67:F67) -> 0
G68: =SUM(B68:F68) -> 0
G69: =SUM(B69:F69) -> 0
G70: =SUM(B70:F70) -> 0
G71: =SUM(B71:F71) -> 0
G72: 0
G73: 0
G74: 0
G75: 0
G76: 0
G77: 0
G78: 0
G79: 0
G80: 0
G81: 0
G82: 0
G83: 0
G84: 0
G85: 0
G86: 0
G87: 0
G88: 0
G89: 0
G90: 0
G91: 0
G92: 0
G93: 0
G94: 0
G95: 0
G96: 0
G97: 0
G98: 0
G99: 0
G100: 0
G101: 0
G102: 0
G103: 0
G104: 0
G105: 0
G106: 0
G107: 0
G108: 0
G109: 0
G110: 0
G111: 0
G112: 0
G113: 0
G114: 0
G115: 0
G116: 0
G117: 0
G118: 0
G119: 0
G120: 0
G121: 0
G122: 0
G123: 0
G124: 0
G125: 0
G126: 0
G127: 0
G128: 0
G129: 0
G130: 0
G131: =SUM(B131:F131) -> 0
G132: 0
G133: 0
G134: 0
G135: 0
G136: 0
G137: 0
G138: 0
G139: 0
G140: 0
G141: 0
G142: 0
G143: 0
G144: 0
G145: 0
G146: 0
G147: 0
G148: 0
G149: 0
G150: 0
G151: 0
G152: 0
G153: 0
G154: 0
G155: 0
G156: 0
G157: 0
G158: 0
G159: 0
G160: 0
G161: 0
G162: 0
G163: 0
G164: 0
G165: 0
G166: 0
G167: 0
G168: 0
G169: 0
G170: 0
G171: 0
G172: 0
G173: 0
G174: 0
G175: 0
G176: 0
G177: 0
G178: 0
G179: 0
G180: 0
G181: 0
G182: 0
G183: 0
G184: 0
G185: 0
G186: 0
G187: 0
G188: 0
G189: 0
G190: 0
G191: 0
G192: 0
G193: 0
G194: 0
G195: =SUM(B195:F195) -> 0
G196: 0
G197: 0
G198: 0
G199: 0
G200: 0
... 15 more rows

Sheet Authorizations
A1: Authorization Type Catagory | B1: Authorization Type | C1: Application Type | D1: California | E1: Cambria | F1: District Mining | G1: Greensburg | H1: Knox | I1: Moshannon | J1: Pottsville | K1: Totals
A2: 6 Month Projections | B2: CM Underground Mining Permit Six Month Projection | C2: Modification | D2: 300 | E2: 0 | F2: 0 | G2: 0 | H2: 0 | I2: 0 | J2: 0 | K2: =SUM(D2:J2) -> 300
A3: 6 Month Projections | B3: CM Underground Mining Permit Six Month Projection | C3: New | D3: 1700 | E3: 0 | F3: 0 | G3: 0 | H3: 0 | I3: 0 | J3: 0 | K3: =SUM(D3:J3) -> 1700
A4: Auger | B4: CM Surface Mining Permit, Auger Safety | C4: New | D4: 0 | E4: 204 | F4: 0 | G4: 36 | H4: 24 | I4: 48 | J4: 0 | K4: 312
A5: Bio-Solids | B5: Beneficial Use, BDMO AML Biosolid Appl Notification | C5: New | D5: 0 | E5: 0 | F5: 0 | G5: 0 | H5: 0 | I5: 100 | J5: 0 | K5: 100
A6: Blast Plan Approval | B6: IM Blast Plan Approval | C6: Amendment | D6: 0 | E6: 8 | F6: 0 | G6: 8 | H6: 48 | I6: 24 | J6: 32 | K6: 120
A7: Blast Plan Approval | B7: IM Blast Plan Approval | C7: New | D7: 0 | E7: 16 | F7: 0 | G7: 40 | H7: 8 | I7: 40 | J7: 208 | K7: 312
A8: Blasting Activity Permit | B8: Blasting Activity Permit | C8: New | D8: 0 | E8: 364 | F8: 0 | G8: 108.5 | H8: 91 | I8: 175 | J8: 1225 | K8: 1963.5
A9: Blasting Activity Permit By Rule | B9: Blasting Activity Permit By Rule | C9: New | D9: 0 | E9: 2.75 | F9: 0 | G9: 0.25 | H9: 0.5 | I9: 0.5 | J9: 14.25 | K9: 18.25
A10: Bluestone | B10: Bluestone Surface Mining Permit | C10: Amendment, Minor | D10: 0 | E10: 0 | F10: 0 | G10: 0 | H10: 0 | I10: 18 | J10: 9 | K10: 27
A11: Bluestone | B11: Bluestone Surface Mining Permit | C11: New | D11: 0 | E11: 0 | F11: 0 | G11: 0 | H11: 0 | I11: 18 | J11: 9 | K11: 27
A12: Bluestone | B12: GP105 Bluestone General Permit | C12: Amendment, Minor | D12: 0 | E12: 0 | F12: 0 | G12: 0 | H12: 0 | I12: 0 | J12: 18 | K12: 18
A13: Bluestone | B13: GP105 Bluestone General Permit | C13: New | D13: 0 | E13: 0 | F13: 0 | G13: 0 | H13: 0 | I13: 0 | J13: 63 | K13: 63
A14: CM and IM Bond Revisions | B14: CM Bond Liability Revisions | C14: New | D14: 0 | E14: 142.5 | F14: 0 | G14: 37.5 | H14: 172.5 | I14: 120 | J14: 45 | K14: 517.5
A15: CM and IM Bond Revisions | B15: IM Bonding Increment | C15: Amendment | D15: 0 | E15: 0 | F15: 0 | G15: 0 | H15: 120 | I15: 0 | J15: 0 | K15: 120
A16: CM and IM Bond Revisions | B16: IM Bonding Increment | C16: New | D16: 0 | E16: 7.5 | F16: 0 | G16: 15 | H16: 45 | I16: 22.5 | J16: 22.5 | K16: 112.5
A17: CM and IM Pre-Apps | B17: CM Pre-App Existing Permit | C17: Amendment | D17: 385 | E17: 0 | F17: 0 | G17: 0 | H17: 0 | I17: 0 | J17: 0 | K17: 385
A18: CM and IM Pre-Apps | B18: CM Pre-Application Review | C18: Amendment | D18: 0 | E18: 0 | F18: 0 | G18: 0 | H18: 0 | I18: 50 | J18: 0 | K18: 50
A19: CM and IM Pre-Apps | B19: CM Pre-Application Review | C19: New | D19: 154 | E19: 300 | F19: 0 | G19: 300 | H19: 600 | I19: 150 | J19: 150 | K19: 1654
A20: CM and IM Pre-Apps | B20: IM Pre-App Existing Permit | C20: Amendment | D20: 0 | E20: 0 | F20: 0 | G20: 50 | H20: 0 | I20: 0 | J20: 0 | K20: 50
A21: CM and IM Pre-Apps | B21: IM Pre-Application Review | C21: New | D21: 0 | E21: 100 | F21: 0 | G21: 100 | H21: 100 | I21: 100 | J21: 0 | K21: 400
A22: CM Annual Bond Calculation | B22: CM Annual Bond Calculation | C22: New | D22: 0 | E22: 435 | F22: 0 | G22: 120 | H22: 217.5 | I22: 307.5 | J22: 772.5 | K22: 1852.5
A23: CM Blast Plan Approval | B23: CM Blast Plan Approval | C23: Amendment | D23: 0 | E23: 40 | F23: 0 | G23: 16 | H23: 56 | I23: 16 | J23: 0 | K23: 128
A24: CM Blast Plan Approval | B24: CM Blast Plan Approval | C24: New | D24: 0 | E24: 144 | F24: 0 | G24: 96 | H24: 80 | I24: 32 | J24: 0 | K24: 352
A25: CM Mid-Term Bond Review | B25: CM Mid-Term Bond Review | C25: New | D25: 0 | E25: 0 | F25: 0 | G25: 0 | H25: 0 | I25: 0 | J25: 0 | K25: 0
A26: CM Surface Mining Permit | B26: Surface Mining Permit | C26: Amendment, Major | D26: 0 | E26: 440 | F26: 0 | G26: 220 | H26: 80 | I26: 160 | J26: 80 | K26: 980
A27: CM Surface Mining Permit | B27: Surface Mining Permit | C27: Amendment, Minor | D27: 0 | E27: 430 | F27: 0 | G27: 200 | H27: 220 | I27: 580 | J27: 280 | K27: 1710
A28: CM Surface Mining Permit | B28: Surface Mining Permit | C28: New | D28: 0 | E28: 2800 | F28: 0 | G28: 2400 | H28: 1200 | I28: 400 | J28: 200 | K28: 7000
A29: CM Surface Mining Permit | B29: Surface Mining Permit | C29: Renewal | D29: 0 | E29: 377 | F29: 0 | G29: 221 | H29: 117 | I29: 461.5 | J29: 143 | K29: 1319.5
A30: CM Surface Mining Permit | B30: Surface Mining Permit | C30: Transfer | D30: 0 | E30: 300 | F30: 0 | G30: 60 | H30: 15 | I30: 465 | J30: 15 | K30: 855
A31: CM Underground Mining Permit | B31: Underground Mining Permit | C31: Amendment, Major | D31: 6000 | E31: 0 | F31: 0 | G31: 0 | H31: 0 | I31: 0 | J31: 20.5 | K31: 6020.5
A32: CM Underground Mining Permit | B32: Underground Mining Permit | C32: Amendment, Minor | D32: 1650 | E32: 0 | F32: 0 | G32: 0 | H32: 0 | I32: 0 | J32: 2 | K32: 1652
A33: CM Underground Mining Permit | B33: Underground Mining Permit | C33: New | D33: 3600 | E33: 0 | F33: 0 | G33: 0 | H33: 0 | I33: 0 | J33: 100 | K33: 3700
A34: CM Underground Mining Permit | B34: Underground Mining Permit | C34: Renewal | D34: 1100 | E34: 0 | F34: 0 | G34: 0 | H34: 0 | I34: 0 | J34: 0 | K34: 1100
A35: CM Underground Mining Permit | B35: Underground Mining Permit | C35: Transfer | D35: 570 | E35: 0 | F35: 0 | G35: 0 | H35: 0 | I35: 0 | J35: 0 | K35: 570
A36: Completion Reports | B36: CM Completion Report | C36: New | D36: 0 | E36: 850 | F36: 0 | G36: 590 | H36: 470 | I36: 450 | J36: 90 | K36: 2450
A37: Completion Reports | B37: IM Completion Report | C37: New | D37: 0 | E37: 90 | F37: 0 | G37: 80 | H37: 200 | I37: 170 | J37: 400 | K37: 940
A38: Explorations | B38: CM Exploration | C38: New | D38: 32 | E38: 36 | F38: 0 | G38: 29 | H38: 38 | I38: 9 | J38: 16 | K38: 160
A39: Explorations | B39: Exploration Mining Stormwater GP | C39: New | D39: 0 | E39: 0 | F39: 0 | G39: 0 | H39: 1 | I39: 0 | J39: 1 | K39: 2
A40: Explorations | B40: Govt Financed Construction Contract Exploration | C40: New | D40: 0 | E40: 0 | F40: 0 | G40: 1 | H40: 0 | I40: 0 | J40: 0 | K40: 1
A41: Explorations | B41: IM Exploration | C41: New | D41: 0 | E41: 6 | F41: 0 | G41: 2 | H41: 8 | I41: 1 | J41: 3 | K41: 20
A42: Explosives Magazine Security Plan | B42: Explosives Magazine Security Plan | C42: Amendment | D42: 0 | E42: 0 | F42: 0 | G42: 0 | H42: 0 | I42: 0 | J42: 0 | K42: 0
A43: Explosives Magazine Security Plan | B43: Explosives Magazine Security Plan | C43: New | D43: 0 | E43: 0 | F43: 0 | G43: 204 | H43: 132 | I43: 84 | J43: 132 | K43: 552
A44: GFCC/NCGFRC | B44: Govt Financed Construction Contract | C44: Amendment, Minor | D44: 0 | E44: 0 | F44: 0 | G44: 0 | H44: 115 | I44: 0 | J44: 0 | K44: 115
A45: GFCC/NCGFRC | B45: Govt Financed Construction Contract | C45: New | D45: 0 | E45: 230 | F45: 0 | G45: 460 | H45: 115 | I45: 0 | J45: 115 | K45: 920
A46: GP12 Coal Prep Plant Emissions Permit | B46: GP12 Coal Prep Plant Emissions Permit | C46: Modification | D46: 60 | E46: 0 | F46: 0 | G46: 0 | H46: 0 | I46: 0 | J46: 0 | K46: 60
A47: GP12 Coal Prep Plant Emissions Permit | B47: GP12 Coal Prep Plant Emissions Permit | C47: New | D47: 20 | E47: 20 | F47: 0 | G47: 20 | H47: 0 | I47: 0 | J47: 140 | K47: 200
A48: GP12 Coal Prep Plant Emissions Permit | B48: GP12 Coal Prep Plant Emissions Permit | C48: Renewal | D48: 20 | E48: 60 | F48: 0 | G48: 0 | H48: 0 | I48: 20 | J48: 40 | K48: 140
A49: IM Large Surface | B49: Large Surface Mining Permit | C49: Amendment, Major | D49: 0 | E49: 27 | F49: 0 | G49: 81 | H49: 189 | I49: 27 | J49: 585 | K49: 909
A50: IM Large Surface | B50: Large Surface Mining Permit | C50: Amendment, Minor | D50: 0 | E50: 60 | F50: 0 | G50: 24 | H50: 216 | I50: 120 | J50: 240 | K50: 660
A51: IM Large Surface | B51: Large Surface Mining Permit | C51: New | D51: 0 | E51: 600 | F51: 0 | G51: 0 | H51: 400 | I51: 200 | J51: 600 | K51: 1800
A52: IM Large Surface | B52: Large Surface Mining Permit | C52: Renewal | D52: 0 | E52: 0 | F52: 0 | G52: 0 | H52: 5 | I52: 0 | J52: 0 | K52: 5
A53: IM Large Surface | B53: Large Surface Mining Permit | C53: Transfer | D53: 0 | E53: 60 | F53: 0 | G53: 60 | H53: 15 | I53: 60 | J53: 30 | K53: 225
A54: IM Short Term Constr | B54: IM General Permit, Short-Term Construction | C54: New | D54: 0 | E54: 0 | F54: 0 | G54: 9 | H54: 0 | I54: 0 | J54: 0 | K54: 9
A55: IM Small Surface | B55: Small Surface Mining Permit | C55: Amendment, Minor | D55: 0 | E55: 0 | F55: 0 | G55: 0 | H55: 15 | I55: 3 | J55: 6 | K55: 24
A56: IM Small Surface | B56: Small Surface Mining Permit | C56: New | D56: 0 | E56: 0 | F56: 0 | G56: 0 | H56: 72 | I56: 90 | J56: 171 | K56: 333
A57: IM Underground Mining Permit | B57: IM Underground Mining Permit | C57: Amendment, Minor | D57: 0 | E57: 0 | F57: 0 | G57: 12 | H57: 0 | I57: 0 | J57: 0 | K57: 12
A58: IM Underground Mining Permit | B58: IM Underground Mining Permit | C58: New | D58: 0 | E58: 0 | F58: 0 | G58: 200 | H58: 0 | I58: 0 | J58: 0 | K58: 200
A59: Incidental Extraction | B59: Incidental Extraction | C59: New | D59: 0 | E59: 0 | F59: 0 | G59: 0 | H59: 0 | I59: 0 | J59: 100 | K59: 100
A60: Mining Stormwater GP | B60: Mining Stormwater GP | C60: Modification | D60: 0 | E60: 0 | F60: 0 | G60: 0 | H60: 0 | I60: 0 | J60: 0 | K60: 0
A61: Mining Stormwater GP | B61: Mining Stormwater GP | C61: New | D61: 0 | E61: 18 | F61: 0 | G61: 6 | H61: 72 | I61: 42 | J61: 306 | K61: 444
A62: Mining Stormwater GP | B62: Mining Stormwater GP | C62: Renewal | D62: 0 | E62: 0 | F62: 0 | G62: 0 | H62: 0 | I62: 0 | J62: 0 | K62: 0
A63: NPDES Coal Mine | B63: NPDES Coal Mine | C63: Modification | D63: 1092 | E63: 312 | F63: 0 | G63: 260 | H63: 104 | I63: 260 | J63: 0 | K63: 2028
A64: NPDES Coal Mine | B64: NPDES Coal Mine | C64: New | D64: 260 | E64: 780 | F64: 0 | G64: 624 | H64: 260 | I64: 104 | J64: 104 | K64: 2132
A65: NPDES Coal Mine | B65: NPDES Coal Mine | C65: Renewal | D65: 832 | E65: 2184 | F65: 0 | G65: 780 | H65: 468 | I65: 2288 | J65: 208 | K65: 6760
A66: NPDES Coal Mine | B66: NPDES Coal Mine | C66: Transfer | D66: 676 | E66: 676 | F66: 0 | G66: 208 | H66: 52 | I66: 1560 | J66: 52 | K66: 3224
A67: NPDES Industrial Mineral Mine | B67: NPDES Industrial Mineral Mine | C67: Modification | D67: 0 | E67: 19 | F67: 0 | G67: 0 | H67: 0 | I67: 19 | J67: 0 | K67: =SUM(D67:J67) -> 38
A68: NPDES Industrial Mineral Mine | B68: NPDES Industrial Mineral Mine | C68: New | D68: 0 | E68: 38 | F68: 0 | G68: 19 | H68: 19 | I68: 38 | J68: 266 | K68: 380
A69: NPDES Industrial Mineral Mine | B69: NPDES Industrial Mineral Mine | C69: Renewal | D69: 0 | E69: 190 | F69: 0 | G69: 95 | H69: 152 | I69: 76 | J69: 437 | K69: 950
A70: NPDES Industrial Mineral Mine | B70: NPDES Industrial Mineral Mine | C70: Transfer | D70: 0 | E70: 38 | F70: 0 | G70: 38 | H70: 19 | I70: 57 | J70: 19 | K70: 171
A71: Prep/Processing Plant | B71: Preparation-Processing Plant Permit | C71: Amendment, Major | D71: 170 | E71: 0 | F71: 0 | G71: 0 | H71: 0 | I71: 0 | J71: 0 | K71: 170
A72: Prep/Processing Plant | B72: Preparation-Processing Plant Permit | C72: Amendment, Minor | D72: 140 | E72: 0 | F72: 0 | G72: 0 | H72: 0 | I72: 0 | J72: 4 | K72: 144
A73: Prep/Processing Plant | B73: Preparation-Processing Plant Permit | C73: Renewal | D73: 135 | E73: 0 | F73: 0 | G73: 0 | H73: 0 | I73: 0 | J73: 6.5 | K73: 141.5
A74: Prep/Processing Plant | B74: Preparation-Processing Plant Permit | C74: Transfer | D74: 120 | E74: 0 | F74: 0 | G74: 0 | H74: 0 | I74: 0 | J74: 0 | K74: 120
A75: Refuse Disposal | B75: Refuse Disposal Permit | C75: Amendment, Major | D75: 400 | E75: 0 | F75: 0 | G75: 0 | H75: 0 | I75: 0 | J75: 0 | K75: 400
A76: Refuse Disposal | B76: Refuse Disposal Permit | C76: Amendment, Minor | D76: 780 | E76: 0 | F76: 0 | G76: 0 | H76: 0 | I76: 0 | J76: 0 | K76: 780
A77: Refuse Disposal | B77: Refuse Disposal Permit | C77: Renewal | D77: 360 | E77: 0 | F77: 0 | G77: 0 | H77: 0 | I77: 0 | J77: 0 | K77: 360
A78: Refuse Disposal | B78: Refuse Disposal Permit | C78: Transfer | D78: 300 | E78: 0 | F78: 0 | G78: 0 | H78: 0 | I78: 0 | J78: 0 | K78: 300
A79: Refuse Reprocessing Permit | B79: Refuse Reprocessing Permit | C79: Amendment, Major | D79: 0 | E79: 0 | F79: 0 | G79: 0 | H79: 0 | I79: 0 | J79: 20 | K79: 20
A80: Refuse Reprocessing Permit | B80: Refuse Reprocessing Permit | C80: Amendment, Minor | D80: 0 | E80: 0 | F80: 0 | G80: 30 | H80: 0 | I80: 0 | J80: 190 | K80: 220
A81: Refuse Reprocessing Permit | B81: Refuse Reprocessing Permit | C81: New | D81: 0 | E81: 0 | F81: 0 | G81: 0 | H81: 0 | I81: 0 | J81: 115 | K81: 115
A82: Refuse Reprocessing Permit | B82: Refuse Reprocessing Permit | C82: Renewal | D82: 0 | E82: 0 | F82: 0 | G82: 6.5 | H82: 0 | I82: 0 | J82: 143 | K82: 149.5
A83: Refuse Reprocessing Permit | B83: Refuse Reprocessing Permit | C83: Transfer | D83: 0 | E83: 0 | F83: 0 | G83: 0 | H83: 0 | I83: 0 | J83: 15 | K83: 15
K84: 0
K85: 0
K86: 0
K87: 0
K88: 0
K89: 0
K90: 0
K91: 0
K92: 0
K93: 0
K94: 0
K95: 0
K96: 0
K97: 0
K98: 0
K99: 0
K100: 0
K101: 0
K102: 0
K103: 0
K104: 0
K105: 0
K106: 0
K107: 0
K108: 0
K109: 0
K110: 0
K111: 0
K112: 0
K113: 0
K114: 0
K115: 0
K116: 0
K117: 0
K118: 0
K119: 0
K120: 0
K121: 0
K122: 0
K123: 0
K124: 0
K125: 0
K126: 0
K127: 0
K128: 0
K129: 0
K130: 0
K131: =SUM(D131:J131) -> 0
K132: 0
K133: 0
K134: 0
K135: 0
K136: 0
K137: 0
K138: 0
K139: 0
K140: 0
K141: 0
K142: 0
K143: 0
K144: 0
K145: 0
K146: 0
K147: 0
K148: 0
K149: 0
K150: 0
K151: 0
K152: 0
K153: 0
K154: 0
K155: 0
K156: 0
K157: 0
K158: 0
K159: 0
K160: 0
K161: 0
K162: 0
K163: 0
K164: 0
K165: 0
K166: 0
K167: 0
K168: 0
K169: 0
K170: 0
K171: 0
K172: 0
K173: 0
K174: 0
K175: 0
K176: 0
K177: 0
K178: 0
K179: 0
K180: 0
K181: 0
K182: 0
K183: 0
K184: 0
K185: 0
K186: 0
K187: 0
K188: 0
K189: 0
K190: 0
K191: 0
K192: 0
K193: 0
K194: 0
K195: =SUM(D195:J195) -> 0
K196: 0
K197: 0
K198: 0
K199: 0
K200: 0

Sheet Authorizations - Count
A1: Authorization Type Catagory | B1: Authorization Type | C1: Application Type | D1: California | E1: Cambria | F1: District Mining | G1: Greensburg | H1: Knox | I1: Moshannon | J1: Pottsville
A2: 6 Month Projections | B2: CM Underground Mining Permit Six Month Projection | C2: Modification | D2: 15 | E2: 0 | F2: 0 | G2: 0 | H2: 0 | I2: 0 | J2: 0 | K2: =A2&C2 -> 6 Month ProjectionsModification
A3: 6 Month Projections | B3: CM Underground Mining Permit Six Month Projection | C3: New | D3: 85 | E3: 0 | F3: 0 | G3: 0 | H3: 0 | I3: 0 | J3: 0 | K3: =A3&C3 -> 6 Month ProjectionsNew
A4: Auger | B4: CM Surface Mining Permit, Auger Safety | C4: New | D4: 0 | E4: 17 | F4: 0 | G4: 3 | H4: 2 | I4: 4 | J4: 0 | K4: AugerNew
A5: Bio-Solids | B5: Beneficial Use, BDMO AML Biosolid Appl Notification | C5: New | D5: 0 | E5: 0 | F5: 0 | G5: 0 | H5: 0 | I5: 1 | J5: 0 | K5: Bio-SolidsNew
A6: Blast Plan Approval | B6: IM Blast Plan Approval | C6: Amendment | D6: 0 | E6: 1 | F6: 0 | G6: 1 | H6: 6 | I6: 3 | J6: 4 | K6: Blast Plan ApprovalAmendment
A7: Blast Plan Approval | B7: IM Blast Plan Approval | C7: New | D7: 0 | E7: 2 | F7: 0 | G7: 5 | H7: 1 | I7: 5 | J7: 26 | K7: Blast Plan ApprovalNew
A8: Blasting Activity Permit | B8: Blasting Activity Permit | C8: New | D8: 0 | E8: 104 | F8: 0 | G8: 31 | H8: 26 | I8: 50 | J8: 350 | K8: Blasting Activity PermitNew
A9: Blasting Activity Permit By Rule | B9: Blasting Activity Permit By Rule | C9: New | D9: 0 | E9: 11 | F9: 0 | G9: 1 | H9: 2 | I9: 2 | J9: 57 | K9: Blasting Activity Permit By RuleNew
A10: Bluestone | B10: Bluestone Surface Mining Permit | C10: Amendment, Minor | D10: 0 | E10: 0 | F10: 0 | G10: 0 | H10: 0 | I10: 2 | J10: 1 | K10: BluestoneAmendment, Minor
A11: Bluestone | B11: Bluestone Surface Mining Permit | C11: New | D11: 0 | E11: 0 | F11: 0 | G11: 0 | H11: 0 | I11: 2 | J11: 1 | K11: BluestoneNew
A12: Bluestone | B12: GP105 Bluestone General Permit | C12: Amendment, Minor | D12: 0 | E12: 0 | F12: 0 | G12: 0 | H12: 0 | I12: 0 | J12: 2 | K12: BluestoneAmendment, Minor
A13: Bluestone | B13: GP105 Bluestone General Permit | C13: New | D13: 0 | E13: 0 | F13: 0 | G13: 0 | H13: 0 | I13: 0 | J13: 7 | K13: BluestoneNew
A14: CM and IM Bond Revisions | B14: CM Bond Liability Revisions | C14: New | D14: 0 | E14: 19 | F14: 0 | G14: 5 | H14: 23 | I14: 16 | J14: 6 | K14: CM and IM Bond RevisionsNew
A15: CM and IM Bond Revisions | B15: IM Bonding Increment | C15: Amendment | D15: 0 | E15: 0 | F15: 0 | G15: 0 | H15: 16 | I15: 0 | J15: 0 | K15: CM and IM Bond RevisionsAmendment
A16: CM and IM Bond Revisions | B16: IM Bonding Increment | C16: New | D16: 0 | E16: 1 | F16: 0 | G16: 2 | H16: 6 | I16: 3 | J16: 3 | K16: CM and IM Bond RevisionsNew
A17: CM and IM Pre-Apps | B17: CM Pre-App Existing Permit | C17: Amendment | D17: 35 | E17: 0 | F17: 0 | G17: 0 | H17: 0 | I17: 0 | J17: 0 | K17: CM and IM Pre-AppsAmendment
A18: CM and IM Pre-Apps | B18: CM Pre-Application Review | C18: Amendment | D18: 0 | E18: 0 | F18: 0 | G18: 0 | H18: 0 | I18: 1 | J18: 0 | K18: CM and IM Pre-AppsAmendment
A19: CM and IM Pre-Apps | B19: CM Pre-Application Review | C19: New | D19: 14 | E19: 6 | F19: 0 | G19: 6 | H19: 12 | I19: 3 | J19: 3 | K19: CM and IM Pre-AppsNew
A20: CM and IM Pre-Apps | B20: IM Pre-App Existing Permit | C20: Amendment | D20: 0 | E20: 0 | F20: 0 | G20: 1 | H20: 0 | I20: 0 | J20: 0 | K20: CM and IM Pre-AppsAmendment
A21: CM and IM Pre-Apps | B21: IM Pre-Application Review | C21: New | D21: 0 | E21: 2 | F21: 0 | G21: 2 | H21: 2 | I21: 2 | J21: 0 | K21: CM and IM Pre-AppsNew
A22: CM Annual Bond Calculation | B22: CM Annual Bond Calculation | C22: New | D22: 0 | E22: 58 | F22: 0 | G22: 16 | H22: 29 | I22: 41 | J22: 103 | K22: CM Annual Bond CalculationNew
A23: CM Blast Plan Approval | B23: CM Blast Plan Approval | C23: Amendment | D23: 0 | E23: 5 | F23: 0 | G23: 2 | H23: 7 | I23: 2 | J23: 0 | K23: CM Blast Plan ApprovalAmendment
A24: CM Blast Plan Approval | B24: CM Blast Plan Approval | C24: New | D24: 0 | E24: 18 | F24: 0 | G24: 12 | H24: 10 | I24: 4 | J24: 0 | K24: CM Blast Plan ApprovalNew
A25: CM Mid-Term Bond Review | B25: CM Mid-Term Bond Review | C25: New | D25: 0 | E25: 16 | F25: 0 | G25: 0 | H25: 5 | I25: 7 | J25: 19 | K25: CM Mid-Term Bond ReviewNew
A26: CM Surface Mining Permit | B26: Surface Mining Permit | C26: Amendment, Major | D26: 0 | E26: 22 | F26: 0 | G26: 11 | H26: 4 | I26: 8 | J26: 4 | K26: CM Surface Mining PermitAmendment, Major
A27: CM Surface Mining Permit | B27: Surface Mining Permit | C27: Amendment, Minor | D27: 0 | E27: 43 | F27: 0 | G27: 20 | H27: 22 | I27: 58 | J27: 28 | K27: CM Surface Mining PermitAmendment, Minor
A28: CM Surface Mining Permit | B28: Surface Mining Permit | C28: New | D28: 0 | E28: 14 | F28: 0 | G28: 12 | H28: 6 | I28: 2 | J28: 1 | K28: CM Surface Mining PermitNew
A29: CM Surface Mining Permit | B29: Surface Mining Permit | C29: Renewal | D29: 0 | E29: 58 | F29: 0 | G29: 34 | H29: 18 | I29: 71 | J29: 22 | K29: CM Surface Mining PermitRenewal
A30: CM Surface Mining Permit | B30: Surface Mining Permit | C30: Transfer | D30: 0 | E30: 20 | F30: 0 | G30: 4 | H30: 1 | I30: 31 | J30: 1 | K30: CM Surface Mining PermitTransfer
A31: CM Underground Mining Permit | B31: Underground Mining Permit | C31: Amendment, Major | D31: 30 | E31: 0 | F31: 0 | G31: 0 | H31: 0 | I31: 0 | J31: 1 | K31: CM Underground Mining PermitAmendment, Major
A32: CM Underground Mining Permit | B32: Underground Mining Permit | C32: Amendment, Minor | D32: 110 | E32: 0 | F32: 0 | G32: 0 | H32: 0 | I32: 0 | J32: 1 | K32: CM Underground Mining PermitAmendment, Minor
A33: CM Underground Mining Permit | B33: Underground Mining Permit | C33: New | D33: 6 | E33: 0 | F33: 0 | G33: 0 | H33: 0 | I33: 0 | J33: 1 | K33: CM Underground Mining PermitNew
A34: CM Underground Mining Permit | B34: Underground Mining Permit | C34: Renewal | D34: 11 | E34: 0 | F34: 0 | G34: 0 | H34: 0 | I34: 0 | J34: 0 | K34: CM Underground Mining PermitRenewal
A35: CM Underground Mining Permit | B35: Underground Mining Permit | C35: Transfer | D35: 19 | E35: 0 | F35: 0 | G35: 0 | H35: 0 | I35: 0 | J35: 0 | K35: CM Underground Mining PermitTransfer
A36: Completion Reports | B36: CM Completion Report | C36: New | D36: 0 | E36: 85 | F36: 0 | G36: 59 | H36: 47 | I36: 45 | J36: 9 | K36: Completion ReportsNew
A37: Completion Reports | B37: IM Completion Report | C37: New | D37: 0 | E37: 9 | F37: 0 | G37: 8 | H37: 20 | I37: 17 | J37: 40 | K37: Completion ReportsNew
A38: Explorations | B38: CM Exploration | C38: New | D38: 32 | E38: 36 | F38: 0 | G38: 29 | H38: 38 | I38: 9 | J38: 16 | K38: ExplorationsNew
A39: Explorations | B39: Exploration Mining Stormwater GP | C39: New | D39: 0 | E39: 0 | F39: 0 | G39: 0 | H39: 1 | I39: 0 | J39: 1 | K39: ExplorationsNew
A40: Explorations | B40: Govt Financed Construction Contract Exploration | C40: New | D40: 0 | E40: 0 | F40: 0 | G40: 1 | H40: 0 | I40: 0 | J40: 0 | K40: ExplorationsNew
A41: Explorations | B41: IM Exploration | C41: New | D41: 0 | E41: 6 | F41: 0 | G41: 2 | H41: 8 | I41: 1 | J41: 3 | K41: ExplorationsNew
A42: Explosives Magazine Security Plan | B42: Explosives Magazine Security Plan | C42: Amendment | D42: 0 | E42: 0 | F42: 0 | G42: 0 | H42: 0 | I42: 3 | J42: 0 | K42: Explosives Magazine Security PlanAmendment
A43: Explosives Magazine Security Plan | B43: Explosives Magazine Security Plan | C43: New | D43: 0 | E43: 0 | F43: 0 | G43: 17 | H43: 11 | I43: 7 | J43: 11 | K43: Explosives Magazine Security PlanNew
A44: GFCC/NCGFRC | B44: Govt Financed Construction Contract | C44: Amendment, Minor | D44: 0 | E44: 0 | F44: 0 | G44: 0 | H44: 1 | I44: 0 | J44: 0 | K44: GFCC/NCGFRCAmendment, Minor
A45: GFCC/NCGFRC | B45: Govt Financed Construction Contract | C45: New | D45: 0 | E45: 2 | F45: 0 | G45: 4 | H45: 1 | I45: 0 | J45: 1 | K45: GFCC/NCGFRCNew
A46: GP12 Coal Prep Plant Emissions Permit | B46: GP12 Coal Prep Plant Emissions Permit | C46: Modification | D46: 3 | E46: 0 | F46: 0 | G46: 0 | H46: 0 | I46: 0 | J46: 0 | K46: GP12 Coal Prep Plant Emissions PermitModification
A47: GP12 Coal Prep Plant Emissions Permit | B47: GP12 Coal Prep Plant Emissions Permit | C47: New | D47: 1 | E47: 1 | F47: 0 | G47: 1 | H47: 0 | I47: 0 | J47: 7 | K47: GP12 Coal Prep Plant Emissions PermitNew
A48: GP12 Coal Prep Plant Emissions Permit | B48: GP12 Coal Prep Plant Emissions Permit | C48: Renewal | D48: 1 | E48: 3 | F48: 0 | G48: 0 | H48: 0 | I48: 1 | J48: 2 | K48: GP12 Coal Prep Plant Emissions PermitRenewal
A49: IM Large Surface | B49: Large Surface Mining Permit | C49: Amendment, Major | D49: 0 | E49: 1 | F49: 0 | G49: 3 | H49: 7 | I49: 1 | J49: 9 | K49: IM Large SurfaceAmendment, Major
A50: IM Large Surface | B50: Large Surface Mining Permit | C50: Amendment, Minor | D50: 0 | E50: 5 | F50: 0 | G50: 2 | H50: 18 | I50: 10 | J50: 20 | K50: IM Large SurfaceAmendment, Minor
A51: IM Large Surface | B51: Large Surface Mining Permit | C51: New | D51: 0 | E51: 3 | F51: 0 | G51: 0 | H51: 2 | I51: 1 | J51: 2 | K51: IM Large SurfaceNew
A52: IM Large Surface | B52: Large Surface Mining Permit | C52: Renewal | D52: 0 | E52: 0 | F52: 0 | G52: 0 | H52: 2 | I52: 0 | J52: 0 | K52: IM Large SurfaceRenewal
A53: IM Large Surface | B53: Large Surface Mining Permit | C53: Transfer | D53: 0 | E53: 4 | F53: 0 | G53: 4 | H53: 1 | I53: 4 | J53: 2 | K53: IM Large SurfaceTransfer
A54: IM Short Term Constr | B54: IM General Permit, Short-Term Construction | C54: New | D54: 0 | E54: 0 | F54: 0 | G54: 1 | H54: 0 | I54: 0 | J54: 0 | K54: IM Short Term ConstrNew
A55: IM Small Surface | B55: Small Surface Mining Permit | C55: Amendment, Minor | D55: 0 | E55: 0 | F55: 0 | G55: 0 | H55: 5 | I55: 1 | J55: 2 | K55: IM Small SurfaceAmendment, Minor
A56: IM Small Surface | B56: Small Surface Mining Permit | C56: New | D56: 0 | E56: 0 | F56: 0 | G56: 0 | H56: 8 | I56: 10 | J56: 19 | K56: IM Small SurfaceNew
A57: IM Underground Mining Permit | B57: IM Underground Mining Permit | C57: Amendment, Minor | D57: 0 | E57: 0 | F57: 0 | G57: 1 | H57: 0 | I57: 0 | J57: 0 | K57: IM Underground Mining PermitAmendment, Minor
A58: IM Underground Mining Permit | B58: IM Underground Mining Permit | C58: New | D58: 0 | E58: 0 | F58: 0 | G58: 1 | H58: 0 | I58: 0 | J58: 0 | K58: IM Underground Mining PermitNew
A59: Incidental Extraction | B59: Incidental Extraction | C59: New | D59: 0 | E59: 0 | F59: 0 | G59: 0 | H59: 0 | I59: 0 | J59: 1 | K59: Incidental ExtractionNew
A60: Mining Stormwater GP | B60: Mining Stormwater GP | C60: Modification | D60: 0 | E60: 0 | F60: 0 | G60: 1 | H60: 0 | I60: 1 | J60: 0 | K60: Mining Stormwater GPModification
A61: Mining Stormwater GP | B61: Mining Stormwater GP | C61: New | D61: 0 | E61: 3 | F61: 0 | G61: 1 | H61: 12 | I61: 7 | J61: 51 | K61: Mining Stormwater GPNew
A62: Mining Stormwater GP | B62: Mining Stormwater GP | C62: Renewal | D62: 0 | E62: 0 | F62: 0 | G62: 1 | H62: 0 | I62: 0 | J62: 13 | K62: Mining Stormwater GPRenewal
A63: NPDES Coal Mine | B63: NPDES Coal Mine | C63: Modification | D63: 21 | E63: 6 | F63: 0 | G63: 5 | H63: 2 | I63: 5 | J63: 0 | K63: NPDES Coal MineModification
A64: NPDES Coal Mine | B64: NPDES Coal Mine | C64: New | D64: 5 | E64: 15 | F64: 0 | G64: 12 | H64: 5 | I64: 2 | J64: 2 | K64: NPDES Coal MineNew
A65: NPDES Coal Mine | B65: NPDES Coal Mine | C65: Renewal | D65: 16 | E65: 42 | F65: 0 | G65: 15 | H65: 9 | I65: 44 | J65: 4 | K65: NPDES Coal MineRenewal
A66: NPDES Coal Mine | B66: NPDES Coal Mine | C66: Transfer | D66: 13 | E66: 13 | F66: 0 | G66: 4 | H66: 1 | I66: 30 | J66: 1 | K66: NPDES Coal MineTransfer
A67: NPDES Industrial Mineral Mine | B67: NPDES Industrial Mineral Mine | C67: Modification | D67: 0 | E67: 1 | F67: 0 | G67: 0 | H67: 0 | I67: 1 | J67: 0 | K67: =A67&C67 -> NPDES Industrial Mineral MineModification
A68: NPDES Industrial Mineral Mine | B68: NPDES Industrial Mineral Mine | C68: New | D68: 0 | E68: 2 | F68: 0 | G68: 1 | H68: 1 | I68: 2 | J68: 14 | K68: NPDES Industrial Mineral MineNew
A69: NPDES Industrial Mineral Mine | B69: NPDES Industrial Mineral Mine | C69: Renewal | D69: 0 | E69: 10 | F69: 0 | G69: 5 | H69: 8 | I69: 4 | J69: 23 | K69: NPDES Industrial Mineral MineRenewal
A70: NPDES Industrial Mineral Mine | B70: NPDES Industrial Mineral Mine | C70: Transfer | D70: 0 | E70: 2 | F70: 0 | G70: 2 | H70: 1 | I70: 3 | J70: 1 | K70: NPDES Industrial Mineral MineTransfer
A71: Prep/Processing Plant | B71: Preparation-Processing Plant Permit | C71: Amendment, Major | D71: 2 | E71: 0 | F71: 0 | G71: 0 | H71: 0 | I71: 0 | J71: 0 | K71: Prep/Processing PlantAmendment, Major
A72: Prep/Processing Plant | B72: Preparation-Processing Plant Permit | C72: Amendment, Minor | D72: 14 | E72: 0 | F72: 0 | G72: 0 | H72: 0 | I72: 0 | J72: 2 | K72: Prep/Processing PlantAmendment, Minor
A73: Prep/Processing Plant | B73: Preparation-Processing Plant Permit | C73: Renewal | D73: 3 | E73: 0 | F73: 0 | G73: 0 | H73: 0 | I73: 0 | J73: 1 | K73: Prep/Processing PlantRenewal
A74: Prep/Processing Plant | B74: Preparation-Processing Plant Permit | C74: Transfer | D74: 4 | E74: 0 | F74: 0 | G74: 0 | H74: 0 | I74: 0 | J74: 0 | K74: Prep/Processing PlantTransfer
A75: Refuse Disposal | B75: Refuse Disposal Permit | C75: Amendment, Major | D75: 4 | E75: 0 | F75: 0 | G75: 0 | H75: 0 | I75: 0 | J75: 0 | K75: Refuse DisposalAmendment, Major
A76: Refuse Disposal | B76: Refuse Disposal Permit | C76: Amendment, Minor | D76: 52 | E76: 0 | F76: 0 | G76: 0 | H76: 0 | I76: 0 | J76: 0 | K76: Refuse DisposalAmendment, Minor
A77: Refuse Disposal | B77: Refuse Disposal Permit | C77: Renewal | D77: 8 | E77: 0 | F77: 0 | G77: 0 | H77: 0 | I77: 0 | J77: 0 | K77: Refuse DisposalRenewal
A78: Refuse Disposal | B78: Refuse Disposal Permit | C78: Transfer | D78: 10 | E78: 0 | F78: 0 | G78: 0 | H78: 0 | I78: 0 | J78: 0 | K78: Refuse DisposalTransfer
A79: Refuse Reprocessing Permit | B79: Refuse Reprocessing Permit | C79: Amendment, Major | D79: 0 | E79: 0 | F79: 0 | G79: 0 | H79: 0 | I79: 0 | J79: 1 | K79: Refuse Reprocessing PermitAmendment, Major
A80: Refuse Reprocessing Permit | B80: Refuse Reprocessing Permit | C80: Amendment, Minor | D80: 0 | E80: 0 | F80: 0 | G80: 3 | H80: 0 | I80: 0 | J80: 19 | K80: Refuse Reprocessing PermitAmendment, Minor
A81: Refuse Reprocessing Permit | B81: Refuse Reprocessing Permit | C81: New | D81: 0 | E81: 0 | F81: 0 | G81: 0 | H81: 0 | I81: 0 | J81: 1 | K81: Refuse Reprocessing PermitNew
A82: Refuse Reprocessing Permit | B82: Refuse Reprocessing Permit | C82: Renewal | D82: 0 | E82: 0 | F82: 0 | G82: 1 | H82: 0 | I82: 0 | J82: 22 | K82: Refuse Reprocessing PermitRenewal
A83: Refuse Reprocessing Permit | B83: Refuse Reprocessing Permit | C83: Transfer | D83: 0 | E83: 0 | F83: 0 | G83: 0 | H83: 0 | I83: 0 | J83: 1 | K83: Refuse Reprocessing PermitTransfer
K131: =A131&C131 -> 
K195: =A195&C195 -> 
K259: =A259&C259 -> 
K323: =A323&C323 -> 
K387: =A387&C387 -> 

Sheet Authorization Time Assessment
A1: Authorization Time Assesment
A2: Authorization Category | B2: Authorization Type | C2: Application Type | D2: Man Hours For: | G2: ="Number Received Between " & PhysicalBeginningDate & " and " & PhysicalEndingDate -> Number Received Between 01/01/2014 and 12/31/2014
D3: Anthracite | E3: Bituminous | F3: California
A4: 6 Month Projections | B4: CM Underground Mining Permit Six Month Projection | C4: Amendment | D4: 0 | E4: 0 | F4: 20 | G4: 0
A5: 6 Month Projections | B5: CM Underground Mining Permit Six Month Projection | C5: Amendment, Major | D5: 0 | E5: 0 | F5: 20 | G5: 0
A6: 6 Month Projections | B6: CM Underground Mining Permit Six Month Projection | C6: Amendment, Minor | D6: 0 | E6: 0 | F6: 20 | G6: 0
A7: 6 Month Projections | B7: CM Underground Mining Permit Six Month Projection | C7: Modification | D7: 0 | E7: 0 | F7: 20 | G7: 15
A8: 6 Month Projections | B8: CM Underground Mining Permit Six Month Projection | C8: New | D8: 0 | E8: 0 | F8: 20 | G8: 85
A9: 6 Month Projections | B9: CM Underground Mining Permit Six Month Projection | C9: Renewal | D9: 0 | E9: 0 | F9: 20 | G9: 0
A10: 6 Month Projections | B10: CM Underground Mining Permit Six Month Projection | C10: Transfer | D10: 0 | E10: 0 | F10: 20 | G10: 0
A11: Auger | B11: CM Surface Mining Permit, Auger Safety | C11: Amendment | D11: 12 | E11: 12 | F11: 0 | G11: 0
A12: Auger | B12: CM Surface Mining Permit, Auger Safety | C12: Amendment, Major | D12: 12 | E12: 12 | F12: 0 | G12: 0
A13: Auger | B13: CM Surface Mining Permit, Auger Safety | C13: Amendment, Minor | D13: 12 | E13: 12 | F13: 0 | G13: 0
A14: Auger | B14: CM Surface Mining Permit, Auger Safety | C14: Modification | D14: 12 | E14: 12 | F14: 0 | G14: 0
A15: Auger | B15: CM Surface Mining Permit, Auger Safety | C15: New | D15: 12 | E15: 12 | F15: 0 | G15: 28
A16: Auger | B16: CM Surface Mining Permit, Auger Safety | C16: Renewal | D16: 12 | E16: 12 | F16: 0 | G16: 0
A17: Auger | B17: CM Surface Mining Permit, Auger Safety | C17: Transfer | D17: 12 | E17: 12 | F17: 0 | G17: 0
A18: Bio-Solids | B18: Beneficial Use, BDMO AML Biosolid Appl Notification | C18: Amendment | D18: 100 | E18: 100 | F18: 0 | G18: 0
A19: Bio-Solids | B19: Beneficial Use, BDMO AML Biosolid Appl Notification | C19: Amendment, Major | D19: 100 | E19: 100 | F19: 0 | G19: 0
A20: Bio-Solids | B20: Beneficial Use, BDMO AML Biosolid Appl Notification | C20: Amendment, Minor | D20: 100 | E20: 100 | F20: 0 | G20: 0
A21: Bio-Solids | B21: Beneficial Use, BDMO AML Biosolid Appl Notification | C21: Modification | D21: 100 | E21: 100 | F21: 0 | G21: 0
A22: Bio-Solids | B22: Beneficial Use, BDMO AML Biosolid Appl Notification | C22: New | D22: 100 | E22: 100 | F22: 0 | G22: 1
A23: Bio-Solids | B23: Beneficial Use, BDMO AML Biosolid Appl Notification | C23: Renewal | D23: 100 | E23: 100 | F23: 0 | G23: 0
A24: Bio-Solids | B24: Beneficial Use, BDMO AML Biosolid Appl Notification | C24: Transfer | D24: 100 | E24: 100 | F24: 0 | G24: 0
A25: Blast Plan Approval | B25: IM Blast Plan Approval | C25: Amendment | D25: 8 | E25: 8 | F25: 0 | G25: 15
A26: Blast Plan Approval | B26: IM Blast Plan Approval | C26: Amendment, Major | D26: 8 | E26: 8 | F26: 0 | G26: 0
A27: Blast Plan Approval | B27: IM Blast Plan Approval | C27: Amendment, Minor | D27: 8 | E27: 8 | F27: 0 | G27: 0
A28: Blast Plan Approval | B28: IM Blast Plan Approval | C28: Modification | D28: 8 | E28: 8 | F28: 0 | G28: 0
A29: Blast Plan Approval | B29: IM Blast Plan Approval | C29: New | D29: 8 | E29: 8 | F29: 0 | G29: 39
A30: Blast Plan Approval | B30: IM Blast Plan Approval | C30: Renewal | D30: 8 | E30: 8 | F30: 0 | G30: 0
A31: Blast Plan Approval | B31: IM Blast Plan Approval | C31: Transfer | D31: 8 | E31: 8 | F31: 0 | G31: 0
A32: Blasting Activity Permit | B32: Blasting Activity Permit | C32: Amendment | D32: 3.5 | E32: 3.5 | F32: 0 | G32: 0
A33: Blasting Activity Permit | B33: Blasting Activity Permit | C33: Amendment, Major | D33: 3.5 | E33: 3.5 | F33: 0 | G33: 0
A34: Blasting Activity Permit | B34: Blasting Activity Permit | C34: Amendment, Minor | D34: 3.5 | E34: 3.5 | F34: 0 | G34: 0
A35: Blasting Activity Permit | B35: Blasting Activity Permit | C35: Modification | D35: 3.5 | E35: 3.5 | F35: 0 | G35: 0
A36: Blasting Activity Permit | B36: Blasting Activity Permit | C36: New | D36: 3.5 | E36: 3.5 | F36: 0 | G36: 563
A37: Blasting Activity Permit | B37: Blasting Activity Permit | C37: Renewal | D37: 3.5 | E37: 3.5 | F37: 0 | G37: 0
A38: Blasting Activity Permit | B38: Blasting Activity Permit | C38: Transfer | D38: 3.5 | E38: 3.5 | F38: 0 | G38: 0
A39: Blasting Activity Permit By Rule | B39: Blasting Activity Permit By Rule | C39: Amendment | D39: 0.25 | E39: 0.25 | F39: 0 | G39: 0
A40: Blasting Activity Permit By Rule | B40: Blasting Activity Permit By Rule | C40: Amendment, Major | D40: 0.25 | E40: 0.25 | F40: 0 | G40: 0
A41: Blasting Activity Permit By Rule | B41: Blasting Activity Permit By Rule | C41: Amendment, Minor | D41: 0.25 | E41: 0.25 | F41: 0 | G41: 0
A42: Blasting Activity Permit By Rule | B42: Blasting Activity Permit By Rule | C42: Modification | D42: 0.25 | E42: 0.25 | F42: 0 | G42: 0
A43: Blasting Activity Permit By Rule | B43: Blasting Activity Permit By Rule | C43: New | D43: 0.25 | E43: 0.25 | F43: 0 | G43: 74
A44: Blasting Activity Permit By Rule | B44: Blasting Activity Permit By Rule | C44: Renewal | D44: 0.25 | E44: 0.25 | F44: 0 | G44: 0
A45: Blasting Activity Permit By Rule | B45: Blasting Activity Permit By Rule | C45: Transfer | D45: 0.25 | E45: 0.25 | F45: 0 | G45: 0
A46: Bluestone | B46: Bluestone Surface Mining Permit | C46: Amendment | D46: 9 | E46: 9 | F46: 0 | G46: 0
A47: Bluestone | B47: Bluestone Surface Mining Permit | C47: Amendment, Major | D47: 9 | E47: 9 | F47: 0 | G47: 0
A48: Bluestone | B48: Bluestone Surface Mining Permit | C48: Amendment, Minor | D48: 9 | E48: 9 | F48: 0 | G48: 3
A49: Bluestone | B49: Bluestone Surface Mining Permit | C49: Modification | D49: 9 | E49: 9 | F49: 0 | G49: 0
A50: Bluestone | B50: Bluestone Surface Mining Permit | C50: New | D50: 9 | E50: 9 | F50: 0 | G50: 3
A51: Bluestone | B51: Bluestone Surface Mining Permit | C51: Renewal | D51: 9 | E51: 9 | F51: 0 | G51: 0
A52: Bluestone | B52: Bluestone Surface Mining Permit | C52: Transfer | D52: 9 | E52: 9 | F52: 0 | G52: 0
A53: Bluestone | B53: GP105 Bluestone General Permit | C53: Amendment | D53: 9 | E53: 9 | F53: 0 | G53: 0
A54: Bluestone | B54: GP105 Bluestone General Permit | C54: Amendment, Major | D54: 9 | E54: 9 | F54: 0 | G54: 0
A55: Bluestone | B55: GP105 Bluestone General Permit | C55: Amendment, Minor | D55: 9 | E55: 9 | F55: 0 | G55: 2
A56: Bluestone | B56: GP105 Bluestone General Permit | C56: Modification | D56: 9 | E56: 9 | F56: 0 | G56: 0
A57: Bluestone | B57: GP105 Bluestone General Permit | C57: New | D57: 9 | E57: 9 | F57: 0 | G57: 7
A58: Bluestone | B58: GP105 Bluestone General Permit | C58: Renewal | D58: 9 | E58: 9 | F58: 0 | G58: 0
A59: Bluestone | B59: GP105 Bluestone General Permit | C59: Transfer | D59: 9 | E59: 9 | F59: 0 | G59: 0
A60: CM and IM Bond Revisions | B60: CM Bond Liability Revisions | C60: Amendment | D60: 7.5 | E60: 7.5 | F60: 7.5 | G60: 0
A61: CM and IM Bond Revisions | B61: CM Bond Liability Revisions | C61: Amendment, Major | D61: 7.5 | E61: 7.5 | F61: 7.5 | G61: 0
A62: CM and IM Bond Revisions | B62: CM Bond Liability Revisions | C62: Amendment, Minor | D62: 7.5 | E62: 7.5 | F62: 7.5 | G62: 0
A63: CM and IM Bond Revisions | B63: CM Bond Liability Revisions | C63: Modification | D63: 7.5 | E63: 7.5 | F63: 7.5 | G63: 0
A64: CM and IM Bond Revisions | B64: CM Bond Liability Revisions | C64: New | D64: 7.5 | E64: 7.5 | F64: 7.5 | G64: 70
A65: CM and IM Bond Revisions | B65: CM Bond Liability Revisions | C65: Renewal | D65: 7.5 | E65: 7.5 | F65: 7.5 | G65: 0
A66: CM and IM Bond Revisions | B66: CM Bond Liability Revisions | C66: Transfer | D66: 7.5 | E66: 7.5 | F66: 7.5 | G66: 0
A67: CM and IM Bond Revisions | B67: CM Bonding Increment | C67: Amendment | D67: 7.5 | E67: 7.5 | F67: 7.5 | G67: 0
A68: CM and IM Bond Revisions | B68: CM Bonding Increment | C68: Amendment, Major | D68: 7.5 | E68: 7.5 | F68: 7.5 | G68: 0
A69: CM and IM Bond Revisions | B69: CM Bonding Increment | C69: Amendment, Minor | D69: 7.5 | E69: 7.5 | F69: 7.5 | G69: 0
A70: CM and IM Bond Revisions | B70: CM Bonding Increment | C70: Modification | D70: 7.5 | E70: 7.5 | F70: 7.5 | G70: 0
A71: CM and IM Bond Revisions | B71: CM Bonding Increment | C71: New | D71: 7.5 | E71: 7.5 | F71: 7.5 | G71: 0
A72: CM and IM Bond Revisions | B72: CM Bonding Increment | C72: Renewal | D72: 7.5 | E72: 7.5 | F72: 7.5 | G72: 0
A73: CM and IM Bond Revisions | B73: CM Bonding Increment | C73: Transfer | D73: 7.5 | E73: 7.5 | F73: 7.5 | G73: 0
A74: CM and IM Bond Revisions | B74: CM Bonding Increment Rollover | C74: Amendment | D74: 7.5 | E74: 7.5 | F74: 7.5 | G74: 0
A75: CM and IM Bond Revisions | B75: CM Bonding Increment Rollover | C75: Amendment, Major | D75: 7.5 | E75: 7.5 | F75: 7.5 | G75: 0
A76: CM and IM Bond Revisions | B76: CM Bonding Increment Rollover | C76: Amendment, Minor | D76: 7.5 | E76: 7.5 | F76: 7.5 | G76: 0
A77: CM and IM Bond Revisions | B77: CM Bonding Increment Rollover | C77: Modification | D77: 7.5 | E77: 7.5 | F77: 7.5 | G77: 0
A78: CM and IM Bond Revisions | B78: CM Bonding Increment Rollover | C78: New | D78: 7.5 | E78: 7.5 | F78: 7.5 | G78: 0
A79: CM and IM Bond Revisions | B79: CM Bonding Increment Rollover | C79: Renewal | D79: 7.5 | E79: 7.5 | F79: 7.5 | G79: 0
A80: CM and IM Bond Revisions | B80: CM Bonding Increment Rollover | C80: Transfer | D80: 7.5 | E80: 7.5 | F80: 7.5 | G80: 0
A81: CM and IM Bond Revisions | B81: CM Surface Mining Permit Bonding Increment | C81: Amendment | D81: 7.5 | E81: 7.5 | F81: 7.5 | G81: 0
A82: CM and IM Bond Revisions | B82: CM Surface Mining Permit Bonding Increment | C82: Amendment, Major | D82: 7.5 | E82: 7.5 | F82: 7.5 | G82: 0
A83: CM and IM Bond Revisions | B83: CM Surface Mining Permit Bonding Increment | C83: Amendment, Minor | D83: 7.5 | E83: 7.5 | F83: 7.5 | G83: 0
A84: CM and IM Bond Revisions | B84: CM Surface Mining Permit Bonding Increment | C84: Modification | D84: 7.5 | E84: 7.5 | F84: 7.5 | G84: 0
A85: CM and IM Bond Revisions | B85: CM Surface Mining Permit Bonding Increment | C85: New | D85: 7.5 | E85: 7.5 | F85: 7.5 | G85: 0
A86: CM and IM Bond Revisions | B86: CM Surface Mining Permit Bonding Increment | C86: Renewal | D86: 7.5 | E86: 7.5 | F86: 7.5 | G86: 0
A87: CM and IM Bond Revisions | B87: CM Surface Mining Permit Bonding Increment | C87: Transfer | D87: 7.5 | E87: 7.5 | F87: 7.5 | G87: 0
A88: CM and IM Bond Revisions | B88: CM Surface Mining Permit Bonding Increment Rollover | C88: Amendment | D88: 7.5 | E88: 7.5 | F88: 7.5 | G88: 0
A89: CM and IM Bond Revisions | B89: CM Surface Mining Permit Bonding Increment Rollover | C89: Amendment, Major | D89: 7.5 | E89: 7.5 | F89: 7.5 | G89: 0
A90: CM and IM Bond Revisions | B90: CM Surface Mining Permit Bonding Increment Rollover | C90: Amendment, Minor | D90: 7.5 | E90: 7.5 | F90: 7.5 | G90: 0
A91: CM and IM Bond Revisions | B91: CM Surface Mining Permit Bonding Increment Rollover | C91: Modification | D91: 7.5 | E91: 7.5 | F91: 7.5 | G91: 0
A92: CM and IM Bond Revisions | B92: CM Surface Mining Permit Bonding Increment Rollover | C92: New | D92: 7.5 | E92: 7.5 | F92: 7.5 | G92: 0
A93: CM and IM Bond Revisions | B93: CM Surface Mining Permit Bonding Increment Rollover | C93: Renewal | D93: 7.5 | E93: 7.5 | F93: 7.5 | G93: 0
A94: CM and IM Bond Revisions | B94: CM Surface Mining Permit Bonding Increment Rollover | C94: Transfer | D94: 7.5 | E94: 7.5 | F94: 7.5 | G94: 0
A95: CM and IM Bond Revisions | B95: CM Surface Mining Permit Sub F & G Bonding Increment | C95: Amendment | D95: 7.5 | E95: 7.5 | F95: 7.5 | G95: 0
A96: CM and IM Bond Revisions | B96: CM Surface Mining Permit Sub F & G Bonding Increment | C96: Amendment, Major | D96: 7.5 | E96: 7.5 | F96: 7.5 | G96: 0
A97: CM and IM Bond Revisions | B97: CM Surface Mining Permit Sub F & G Bonding Increment | C97: Amendment, Minor | D97: 7.5 | E97: 7.5 | F97: 7.5 | G97: 0
A98: CM and IM Bond Revisions | B98: CM Surface Mining Permit Sub F & G Bonding Increment | C98: Modification | D98: 7.5 | E98: 7.5 | F98: 7.5 | G98: 0
A99: CM and IM Bond Revisions | B99: CM Surface Mining Permit Sub F & G Bonding Increment | C99: New | D99: 7.5 | E99: 7.5 | F99: 7.5 | G99: 0
A100: CM and IM Bond Revisions | B100: CM Surface Mining Permit Sub F & G Bonding Increment | C100: Renewal | D100: 7.5 | E100: 7.5 | F100: 7.5 | G100: 0
A101: CM and IM Bond Revisions | B101: CM Surface Mining Permit Sub F & G Bonding Increment | C101: Transfer | D101: 7.5 | E101: 7.5 | F101: 7.5 | G101: 0
A102: CM and IM Bond Revisions | B102: CM Surface Mining Permit Sub F & G Bonding Increment Rollover | C102: Amendment | D102: 7.5 | E102: 7.5 | F102: 7.5 | G102: 0
A103: CM and IM Bond Revisions | B103: CM Surface Mining Permit Sub F & G Bonding Increment Rollover | C103: Amendment, Major | D103: 7.5 | E103: 7.5 | F103: 7.5 | G103: 0
A104: CM and IM Bond Revisions | B104: CM Surface Mining Permit Sub F & G Bonding Increment Rollover | C104: Amendment, Minor | D104: 7.5 | E104: 7.5 | F104: 7.5 | G104: 0
A105: CM and IM Bond Revisions | B105: CM Surface Mining Permit Sub F & G Bonding Increment Rollover | C105: Modification | D105: 7.5 | E105: 7.5 | F105: 7.5 | G105: 0
A106: CM and IM Bond Revisions | B106: CM Surface Mining Permit Sub F & G Bonding Increment Rollover | C106: New | D106: 7.5 | E106: 7.5 | F106: 7.5 | G106: 0
A107: CM and IM Bond Revisions | B107: CM Surface Mining Permit Sub F & G Bonding Increment Rollover | C107: Renewal | D107: 7.5 | E107: 7.5 | F107: 7.5 | G107: 0
A108: CM and IM Bond Revisions | B108: CM Surface Mining Permit Sub F & G Bonding Increment Rollover | C108: Transfer | D108: 7.5 | E108: 7.5 | F108: 7.5 | G108: 0
A109: CM and IM Bond Revisions | B109: CM Underground Mining Permit Bonding Increment | C109: Amendment | D109: 7.5 | E109: 7.5 | F109: 7.5 | G109: 0
A110: CM and IM Bond Revisions | B110: CM Underground Mining Permit Bonding Increment | C110: Amendment, Major | D110: 7.5 | E110: 7.5 | F110: 7.5 | G110: 0
A111: CM and IM Bond Revisions | B111: CM Underground Mining Permit Bonding Increment | C111: Amendment, Minor | D111: 7.5 | E111: 7.5 | F111: 7.5 | G111: 0
A112: CM and IM Bond Revisions | B112: CM Underground Mining Permit Bonding Increment | C112: Modification | D112: 7.5 | E112: 7.5 | F112: 7.5 | G112: 0
A113: CM and IM Bond Revisions | B113: CM Underground Mining Permit Bonding Increment | C113: New | D113: 7.5 | E113: 7.5 | F113: 7.5 | G113: 0
A114: CM and IM Bond Revisions | B114: CM Underground Mining Permit Bonding Increment | C114: Renewal | D114: 7.5 | E114: 7.5 | F114: 7.5 | G114: 0
A115: CM and IM Bond Revisions | B115: CM Underground Mining Permit Bonding Increment | C115: Transfer | D115: 7.5 | E115: 7.5 | F115: 7.5 | G115: 0
A116: CM and IM Bond Revisions | B116: IM Bonding Increment | C116: Amendment | D116: 7.5 | E116: 7.5 | F116: 7.5 | G116: 16
A117: CM and IM Bond Revisions | B117: IM Bonding Increment | C117: Amendment, Major | D117: 7.5 | E117: 7.5 | F117: 7.5 | G117: 0
A118: CM and IM Bond Revisions | B118: IM Bonding Increment | C118: Amendment, Minor | D118: 7.5 | E118: 7.5 | F118: 7.5 | G118: 0
A119: CM and IM Bond Revisions | B119: IM Bonding Increment | C119: Modification | D119: 7.5 | E119: 7.5 | F119: 7.5 | G119: 0
A120: CM and IM Bond Revisions | B120: IM Bonding Increment | C120: New | D120: 7.5 | E120: 7.5 | F120: 7.5 | G120: 15
A121: CM and IM Bond Revisions | B121: IM Bonding Increment | C121: Renewal | D121: 7.5 | E121: 7.5 | F121: 7.5 | G121: 0
A122: CM and IM Bond Revisions | B122: IM Bonding Increment | C122: Transfer | D122: 7.5 | E122: 7.5 | F122: 7.5 | G122: 0
A123: CM and IM Bond Revisions | B123: IM Large Surface Mining Permit Bonding Increment | C123: Amendment | D123: 7.5 | E123: 7.5 | F123: 7.5 | G123: 0
A124: CM and IM Bond Revisions | B124: IM Large Surface Mining Permit Bonding Increment | C124: Amendment, Major | D124: 7.5 | E124: 7.5 | F124: 7.5 | G124: 0
A125: CM and IM Bond Revisions | B125: IM Large Surface Mining Permit Bonding Increment | C125: Amendment, Minor | D125: 7.5 | E125: 7.5 | F125: 7.5 | G125: 0
A126: CM and IM Bond Revisions | B126: IM Large Surface Mining Permit Bonding Increment | C126: Modification | D126: 7.5 | E126: 7.5 | F126: 7.5 | G126: 0
A127: CM and IM Bond Revisions | B127: IM Large Surface Mining Permit Bonding Increment | C127: New | D127: 7.5 | E127: 7.5 | F127: 7.5 | G127: 0
A128: CM and IM Bond Revisions | B128: IM Large Surface Mining Permit Bonding Increment | C128: Renewal | D128: 7.5 | E128: 7.5 | F128: 7.5 | G128: 0
A129: CM and IM Bond Revisions | B129: IM Large Surface Mining Permit Bonding Increment | C129: Transfer | D129: 7.5 | E129: 7.5 | F129: 7.5 | G129: 0
A130: CM and IM Bond Revisions | B130: IM Small Surface Mining Permit Bonding Increment | C130: Amendment | D130: 7.5 | E130: 7.5 | F130: 7.5 | G130: 0
A131: CM and IM Bond Revisions | B131: IM Small Surface Mining Permit Bonding Increment | C131: Amendment, Major | D131: 7.5 | E131: 7.5 | F131: 7.5 | G131: 0
A132: CM and IM Bond Revisions | B132: IM Small Surface Mining Permit Bonding Increment | C132: Amendment, Minor | D132: 7.5 | E132: 7.5 | F132: 7.5 | G132: 0
A133: CM and IM Bond Revisions | B133: IM Small Surface Mining Permit Bonding Increment | C133: Modification | D133: 7.5 | E133: 7.5 | F133: 7.5 | G133: 0
A134: CM and IM Bond Revisions | B134: IM Small Surface Mining Permit Bonding Increment | C134: New | D134: 7.5 | E134: 7.5 | F134: 7.5 | G134: 0
A135: CM and IM Bond Revisions | B135: IM Small Surface Mining Permit Bonding Increment | C135: Renewal | D135: 7.5 | E135: 7.5 | F135: 7.5 | G135: 0
A136: CM and IM Bond Revisions | B136: IM Small Surface Mining Permit Bonding Increment | C136: Transfer | D136: 7.5 | E136: 7.5 | F136: 7.5 | G136: 0
A137: CM and IM Bond Revisions | B137: Refuse Reprocessing Permit Bonding Increment | C137: Amendment | D137: 7.5 | E137: 7.5 | F137: 7.5 | G137: 0
A138: CM and IM Bond Revisions | B138: Refuse Reprocessing Permit Bonding Increment | C138: Amendment, Major | D138: 7.5 | E138: 7.5 | F138: 7.5 | G138: 0
A139: CM and IM Bond Revisions | B139: Refuse Reprocessing Permit Bonding Increment | C139: Amendment, Minor | D139: 7.5 | E139: 7.5 | F139: 7.5 | G139: 0
A140: CM and IM Bond Revisions | B140: Refuse Reprocessing Permit Bonding Increment | C140: Modification | D140: 7.5 | E140: 7.5 | F140: 7.5 | G140: 0
A141: CM and IM Bond Revisions | B141: Refuse Reprocessing Permit Bonding Increment | C141: New | D141: 7.5 | E141: 7.5 | F141: 7.5 | G141: 0
A142: CM and IM Bond Revisions | B142: Refuse Reprocessing Permit Bonding Increment | C142: Renewal | D142: 7.5 | E142: 7.5 | F142: 7.5 | G142: 0
A143: CM and IM Bond Revisions | B143: Refuse Reprocessing Permit Bonding Increment | C143: Transfer | D143: 7.5 | E143: 7.5 | F143: 7.5 | G143: 0
A144: CM and IM Bond Revisions | B144: Refuse Reprocessing Permit Bonding Increment Rollover | C144: Amendment | D144: 7.5 | E144: 7.5 | F144: 7.5 | G144: 0
A145: CM and IM Bond Revisions | B145: Refuse Reprocessing Permit Bonding Increment Rollover | C145: Amendment, Major | D145: 7.5 | E145: 7.5 | F145: 7.5 | G145: 0
A146: CM and IM Bond Revisions | B146: Refuse Reprocessing Permit Bonding Increment Rollover | C146: Amendment, Minor | D146: 7.5 | E146: 7.5 | F146: 7.5 | G146: 0
A147: CM and IM Bond Revisions | B147: Refuse Reprocessing Permit Bonding Increment Rollover | C147: Modification | D147: 7.5 | E147: 7.5 | F147: 7.5 | G147: 0
A148: CM and IM Bond Revisions | B148: Refuse Reprocessing Permit Bonding Increment Rollover | C148: New | D148: 7.5 | E148: 7.5 | F148: 7.5 | G148: 0
A149: CM and IM Bond Revisions | B149: Refuse Reprocessing Permit Bonding Increment Rollover | C149: Renewal | D149: 7.5 | E149: 7.5 | F149: 7.5 | G149: 0
A150: CM and IM Bond Revisions | B150: Refuse Reprocessing Permit Bonding Increment Rollover | C150: Transfer | D150: 7.5 | E150: 7.5 | F150: 7.5 | G150: 0
A151: CM and IM Bond Revisions | B151: Refuse Reprocessing Permit Sub F & G Bonding Increment | C151: Amendment | D151: 7.5 | E151: 7.5 | F151: 7.5 | G151: 0
A152: CM and IM Bond Revisions | B152: Refuse Reprocessing Permit Sub F & G Bonding Increment | C152: Amendment, Major | D152: 7.5 | E152: 7.5 | F152: 7.5 | G152: 0
A153: CM and IM Bond Revisions | B153: Refuse Reprocessing Permit Sub F & G Bonding Increment | C153: Amendment, Minor | D153: 7.5 | E153: 7.5 | F153: 7.5 | G153: 0
A154: CM and IM Bond Revisions | B154: Refuse Reprocessing Permit Sub F & G Bonding Increment | C154: Modification | D154: 7.5 | E154: 7.5 | F154: 7.5 | G154: 0
A155: CM and IM Bond Revisions | B155: Refuse Reprocessing Permit Sub F & G Bonding Increment | C155: New | D155: 7.5 | E155: 7.5 | F155: 7.5 | G155: 0
A156: CM and IM Bond Revisions | B156: Refuse Reprocessing Permit Sub F & G Bonding Increment | C156: Renewal | D156: 7.5 | E156: 7.5 | F156: 7.5 | G156: 0
